{"text_format":"1","workbook":"xlsx","n_sheets":9,"sheets":["Hoja de trabajo","Cotización","Solicitud","Hoja1","CP","Actividades","Cuotas","Descuentos y recargos","Derechos de póliza"],"not_rendered":{"charts":0,"images":1,"macros":1,"external_links":2,"defined_names":8,"comments":1,"pivot_tables":0},"unopened":[],"bounds":{"document_bytes":16777216,"sheet_cells":100000,"rows_first":2000,"rows_last":500,"rows_between":2000,"halvings":0,"cell_chars":16384,"cell_head_chars":4096},"cells_cut":0,"cells_raw":0,"read":"whole","date_system":"1900"}

{"sheet":"Hoja de trabajo","index":0,"n_rows":55,"n_cols":16,"rows_kept":55,"cut":false,"hidden":true,"merged":[[54,11,54,12],[27,6,28,8],[34,1,34,3],[45,1,45,3],[33,1,33,3],[35,1,35,3],[36,1,36,3],[37,1,37,3],[38,1,38,3],[37,8,39,8],[49,1,49,3],[50,1,50,3],[41,1,41,3],[42,1,42,3],[43,1,43,3],[44,1,44,3],[46,1,46,3],[47,1,47,3],[48,1,48,3],[39,1,39,3],[40,1,40,3],[17,2,17,4],[21,2,21,4],[18,0,18,8],[13,0,13,1],[13,2,13,4],[15,0,15,1],[15,2,15,4],[19,0,19,1],[4,0,4,8],[3,0,3,9],[5,2,5,4],[7,2,7,4],[11,2,11,4],[33,8,35,8],[27,0,27,1],[23,2,23,4],[22,0,22,8],[29,0,29,1],[31,0,31,1],[25,2,25,4],[26,0,26,8],[24,0,24,8],[34,4,34,5],[33,4,33,5],[30,0,30,8],[32,0,32,8],[25,0,25,1],[35,4,35,5],[23,0,23,1],[36,4,36,5],[37,4,37,5],[38,4,38,5],[0,3,2,6],[39,4,39,5],[19,2,19,4],[0,0,2,2],[6,0,6,8],[8,0,8,8],[12,0,12,8],[5,0,5,1],[7,0,7,1],[11,0,11,1],[9,0,9,1],[17,0,17,1],[21,0,21,1],[40,4,40,5],[41,4,41,5],[42,4,42,5],[43,4,43,5],[49,4,49,5],[50,4,50,5],[44,4,44,5],[45,4,45,5],[46,4,46,5],[47,4,47,5],[48,4,48,5]]}
[null,null,null,"COTIZADOR\nRESPONSABILIDAD CIVIL PARA CONSTRUCTORES",null,null,null,null,null,null,null,"Versión:",1,null,"Nacional"]
[null,null,null,null,null,null,null,null,null,null,null,"Fecha de elaboración:","2021-02-09",null,"Dólares"]
[null,null,null,null,null,null,null,null,null,null,null,null,null,null,"Vigencia",{"$f":"D30-C30","v":364}]
["DATOS GENERALES",null,null,null,null,null,null,null,null,null,null,null,null,null,"Tipo de cambio",19.850000000000001]
[]
["Obra a realizar:",null,"Mantenimiento",null,null,null,null,null,null,null,null,null,null,null,"Forma de pago ","Contado"]
[]
["Actividad:",null,{"$f":"IFERROR(VLOOKUP($C$6,Actividades!$C$29:$D$32,2,FALSE),\"\")","v":"Inmuebles, Sistemas de Comunicación, Electricos, Electronicos, de Computo"},null,null,null,null,null,null,null,null,"Tipo de riesgo",{"$f":"IF(G35<=30200000,IFERROR(VLOOKUP(C8,Actividades!$D$29:$E$32,2,0),\"\"),IFERROR(VLOOKUP(C8,Actividades!$D$34:$E$37,2,0),\"\"))","v":"Sencillo"},null,"fecha hoy",{"$f":"NOW()","v":"2022-03-18T15:02:28.870"}]
[]
["Ubicación del Proyecto:"]
[]
["CP:",null,6700,null,null,null,null,null,null,null,null,"Estado",{"$f":"IFERROR(VLOOKUP(C12,CP!$A$3:$D$96153,4,0),\"\")","v":"Ciudad de México"}]
[]
["Alcaldía | Municipio:",null,{"$f":"IFERROR(VLOOKUP(C12,CP!$A$3:$D$96153,3,0),\"\")","v":"Cuauhtémoc"}]
[]
["Estado:",null,{"$f":"IFERROR(VLOOKUP(C12,CP!$A$3:$D$96153,4,0),\"\")","v":"Ciudad de México"}]
[]
["Calle y número:",null,"ggtgt"]
[]
["Colonia:",null,"tgtgt"]
[]
["Valor del contrato:",null,2000000]
[]
["Moneda:",null,"Nacional",null,null,null,null,null,null,null,null,"Descuento por valor de contrato",{"$f":"SUM(('Descuentos y recargos'!$A$6:$A$15<'Hoja de trabajo'!$C$22)*('Descuentos y recargos'!$B$6:$B$15>='Hoja de trabajo'!$C$22)*('Descuentos y recargos'!$C$6:$C$15))","v":1}]
[]
["Número de máquinas",null,0,null,null,null,null,null,null,null,null,"Descuento por máquinas",{"$f":"LOOKUP($C$26,'Descuentos y recargos'!$B$20:$B$28,'Descuentos y recargos'!C20:$C$28)","v":1}]
[]
[null,null,"Desde","Hasta",null,null,null,null,null,null,null,"Descuento por vigencia del seguro",{"$f":"VLOOKUP((YEAR(D30)-YEAR(C30))*12+MONTH(D30)-MONTH(C30),'Descuentos y recargos'!$A$33:$B$45,2,0)","v":1}]
[]
["Vigencia:",null,"2021-09-30","2022-09-29",null,null,null,null,null,null,null,"Descuento por ubicación",1]
[]
[null,null,"dd/mm/aaaa","dd/mm/aaaa"]
[]
[null,"Coberturas",null,null,"Amparada",null,"Suma Asegurada",null,null,null,null,"Recargo por responsabilidad",{"$f":"IF(C24=\"Nacional\",IF(SUM(('Descuentos y recargos'!$I$4:$K$4='Hoja de trabajo'!$M$8)*('Descuentos y recargos'!$E$6:$E$64<G35)*('Descuentos y recargos'!$F$6:$F$64>=G35)*('Descuentos y recargos'!$I$6:$K$64))=0,SUM(('Descuentos y recargos'!$I$4:$K$4='Hoja de trabajo'!$M$8)*('Descuentos y recargos'!$E$6:$E$64<25000000)*('Descuentos y recargos'!$F$6:$F$64>=25000000)*('Descuentos y recargos'!$I$6:$K$64)),SUM(('Descuentos y recargos'!$I$4:$K$4='Hoja de trabajo'!$M$8)*('Descuentos y recargos'!$E$6:$E$64<G35)*('Descuentos y recargos'!$F$6:$F$64>=G35)*('Descuentos y recargos'!$I$6:$K$64))),IF(SUM(('Descuentos y recargos'!$I$4:$K$4='Hoja de trabajo'!$M$8)*('Descuentos y recargos'!$G$6:$G$37<G35)*('Descuentos y recargos'!$H$6:$H$37>=G35)*('Descuentos y recargos'!$I$6:$K$37))=0,SUM(('Descuentos y recargos'!$I$4:$K$4='Hoja de trabajo'!$M$8)*('Descuentos y recargos'!$G$6:$G$37<25000000)*('Descuentos y recargos'!$H$6:$H$37>=25000000)*('Descuentos y recargos'!$I$6:$K$37)),SUM(('Descuentos y recargos'!$I$4:$K$4='Hoja de trabajo'!$M$8)*('Descuentos y recargos'!$G$6:$G$37<G35)*('Descuentos y recargos'!$H$6:$H$37>=G35)*('Descuentos y recargos'!$I$6:$K$37))))","v":0.99674309204115119}]
[null,"Cobertura básica",null,null,"Sí",null,10885]
[null,"Personal bajo relación de trabajo",null,null,"No",null,null,null,null,null,null,"Cuota de riesgo","Cuota de tarifa","Prima de tarifa"]
[null,"Instalaciones subterráneas",null,null,"Sí",null,null,null,null,null,null,{"$f":"SUM((Cuotas!$B$3:$B$19='Hoja de trabajo'!B35)*(Cuotas!$C$2:$E$2='Hoja de trabajo'!$M$8)*(Cuotas!$C$3:$E$19))","v":0.45798399224380409},{"$f":"(L37*$M$24*$M$26*$M$28*(1+$M$34)*$M$30)/(1-Cuotas!$H$4)","v":1.8289527455564878},{"$f":"IF(E35=\"Sí\",M37*C22/1000,0)","v":3657.9054911129756}]
[null,"Trabajos de soldadura ",null,null,"Sí",null,null,null,null,null,null,{"$f":"SUM((Cuotas!$B$3:$B$19='Hoja de trabajo'!B36)*(Cuotas!$C$2:$E$2='Hoja de trabajo'!$M$8)*(Cuotas!$C$3:$E$19))","v":4.5798399224380414E-2},{"$f":"(L38*$M$24*$M$26*$M$28*(1+$M$34)*$M$30)/(1-Cuotas!$H$4)","v":0.1828952745556488},{"$f":"IF(E36=\"Sí\",M38*$G$35/1000,0)","v":0},"SI(G36>$G$35,\"Error\",SI(E36=\"Sí\",M38*G36/1000,0))"]
[null,"Carga y descarga",null,null,"Sí",null,null,null,null,null,null,{"$f":"SUM((Cuotas!$B$3:$B$19='Hoja de trabajo'!B37)*(Cuotas!$C$2:$E$2='Hoja de trabajo'!$M$8)*(Cuotas!$C$3:$E$19))","v":4.5798399224380414E-2},{"$f":"(L39*$M$24*$M$26*$M$28*(1+$M$34)*$M$30)/(1-Cuotas!$H$4)","v":0.1828952745556488},{"$f":"IF(E37=\"Sí\",M39*$G$35/1000,0)","v":1.9908150635382371}]
[null,"Demolición",null,null,"No",null,null,null,null,null,null,{"$f":"SUM((Cuotas!$B$3:$B$19='Hoja de trabajo'!B38)*(Cuotas!$C$2:$E$2='Hoja de trabajo'!$M$8)*(Cuotas!$C$3:$E$19))","v":4.5798399224380414E-2},{"$f":"(L40*$M$24*$M$26*$M$28*(1+$M$34)*$M$30)/(1-Cuotas!$H$4)","v":0.1828952745556488},1.9908150635382371]
[null,"Explosivos",null,null,"No",null,null,null,null,null,null,{"$f":"SUM((Cuotas!$B$3:$B$19='Hoja de trabajo'!B39)*(Cuotas!$C$2:$E$2='Hoja de trabajo'!$M$8)*(Cuotas!$C$3:$E$19))","v":0.11449599806095102},{"$f":"(L41*$M$24*$M$26*$M$28*(1+$M$34)*$M$30)/(1-Cuotas!$H$4)","v":0.45723818638912195},4.9770376588455916]
[null,"Máquinas de trabajo",null,null,"No",null,null,null,null,null,null,{"$f":"SUM((Cuotas!$B$3:$B$19='Hoja de trabajo'!B40)*(Cuotas!$C$2:$E$2='Hoja de trabajo'!$M$8)*(Cuotas!$C$3:$E$19))","v":4.5798399224380414E-2},{"$f":"(L42*$M$24*$M$26*$M$28*(1+$M$34)*$M$30)/(1-Cuotas!$H$4)","v":0.1828952745556488},0]
[null,"Apuntalamiento",null,null,"Sí",null,null,null,null,null,null,{"$f":"SUM((Cuotas!$B$3:$B$19='Hoja de trabajo'!B41)*(Cuotas!$C$2:$E$2='Hoja de trabajo'!$M$8)*(Cuotas!$C$3:$E$19))","v":0.22899199612190205},{"$f":"(L43*$M$24*$M$26*$M$28*(1+$M$34)*$M$30)/(1-Cuotas!$H$4)","v":0.9144763727782439},0]
[null,"Sostén a suelos y subsuelos vecinos",null,null,"No",null,null,null,null,null,null,{"$f":"SUM((Cuotas!$B$3:$B$19='Hoja de trabajo'!B42)*(Cuotas!$C$2:$E$2='Hoja de trabajo'!$M$8)*(Cuotas!$C$3:$E$19))","v":4.5798399224380414E-2},{"$f":"(L44*$M$24*$M$26*$M$28*(1+$M$34)*$M$30)/(1-Cuotas!$H$4)","v":0.1828952745556488},0]
[null,"RC arrendatario",null,null,"Sí",null,null,null,null,null,null,{"$f":"SUM((Cuotas!$B$3:$B$19='Hoja de trabajo'!B43)*(Cuotas!$C$2:$E$2='Hoja de trabajo'!$M$8)*(Cuotas!$C$3:$E$19))","v":4.5798399224380414E-2},{"$f":"(L45*$M$24*$M$26*$M$28*(1+$M$34)*$M$30)/(1-Cuotas!$H$4)","v":0.1828952745556488},1.9908150635382371]
[null,"RC cruzada por riesgos vecinales",null,null,"Sí",null,null,null,null,null,null,{"$f":"SUM((Cuotas!$B$3:$B$19='Hoja de trabajo'!B44)*(Cuotas!$C$2:$E$2='Hoja de trabajo'!$M$8)*(Cuotas!$C$3:$E$19))","v":4.5798399224380414E-2},{"$f":"(L46*$M$24*$M$26*$M$28*(1+$M$34)*$M$30)/(1-Cuotas!$H$4)","v":0.1828952745556488},0]
[null,"RC asumida",null,null,"Sí",null,null,null,null,null,null,{"$f":"SUM((Cuotas!$B$3:$B$19='Hoja de trabajo'!B45)*(Cuotas!$C$2:$E$2='Hoja de trabajo'!$M$8)*(Cuotas!$C$3:$E$19))","v":2.2899199612190207E-2},{"$f":"(L47*$M$24*$M$26*$M$28*(1+$M$34)*$M$30)/(1-Cuotas!$H$4)","v":9.1447637277824401E-2},0.99540753176911856]
[null,"Otras obras especiales",null,null,"No",null,null,null,null,null,null,{"$f":"SUM((Cuotas!$B$3:$B$19='Hoja de trabajo'!B46)*(Cuotas!$C$2:$E$2='Hoja de trabajo'!$M$8)*(Cuotas!$C$3:$E$19))","v":0.13739519767314123},{"$f":"(L48*$M$24*$M$26*$M$28*(1+$M$34)*$M$30)/(1-Cuotas!$H$4)","v":0.5486858236669464},5.9724451906147111]
[null,"RC contaminación",null,null,"No",null,null,null,null,null,null,{"$f":"SUM((Cuotas!$B$3:$B$19='Hoja de trabajo'!B47)*(Cuotas!$C$2:$E$2='Hoja de trabajo'!$M$8)*(Cuotas!$C$3:$E$19))","v":2.2899199612190207E-2},{"$f":"(L49*$M$24*$M$26*$M$28*(1+$M$34)*$M$30)/(1-Cuotas!$H$4)","v":9.1447637277824401E-2},0.99540753176911856]
[null,"RC por daños ocasionados a bienes propiedad de terceros",null,null,"Sí",null,null,null,null,null,null,{"$f":"SUM((Cuotas!$B$3:$B$19='Hoja de trabajo'!B48)*(Cuotas!$C$2:$E$2='Hoja de trabajo'!$M$8)*(Cuotas!$C$3:$E$19))","v":4.5798399224380414E-2},{"$f":"(L50*$M$24*$M$26*$M$28*(1+$M$34)*$M$30)/(1-Cuotas!$H$4)","v":0.1828952745556488},0]
[null,"RC contratistas independientes",null,null,"Sí",null,null,null,null,null,null,{"$f":"SUM((Cuotas!$B$3:$B$19='Hoja de trabajo'!B49)*(Cuotas!$C$2:$E$2='Hoja de trabajo'!$M$8)*(Cuotas!$C$3:$E$19))","v":0.22899199612190205},{"$f":"(L51*$M$24*$M$26*$M$28*(1+$M$34)*$M$30)/(1-Cuotas!$H$4)","v":0.9144763727782439},0]
[null,null,null,null,null,null,null,null,null,null,null,{"$f":"SUM((Cuotas!$B$3:$B$19='Hoja de trabajo'!B50)*(Cuotas!$C$2:$E$2='Hoja de trabajo'!$M$8)*(Cuotas!$C$3:$E$19))","v":4.5798399224380414E-2},{"$f":"(L52*$M$24*$M$26*$M$28*(1+$M$34)*$M$30)/(1-Cuotas!$H$4)","v":0.1828952745556488},1.9908150635382371]
[null,null,null,null,null,null,null,null,null,null,null,{"$f":"SUM((Cuotas!$B$3:$B$19='Hoja de trabajo'!B51)*(Cuotas!$C$2:$E$2='Hoja de trabajo'!$M$8)*(Cuotas!$C$3:$E$19))","v":2.2899199612190207E-2},{"$f":"(L53*$M$24*$M$26*$M$28*(1+$M$34)*$M$30)/(1-Cuotas!$H$4)","v":9.1447637277824401E-2},0.99540753176911856]
[]
[null,null,null,null,null,null,null,null,null,null,null,"Prima de tarifa total",null,{"$f":"IF(SUM($N$37:$N$53)<2405.5,2436.24,SUM($N$37:$N$53))","v":3679.8044568118967}]

{"sheet":"Cotización","index":1,"n_rows":59,"n_cols":8,"rows_kept":59,"cut":false,"hidden":true,"merged":[[6,3,11,4],[15,5,18,7],[15,3,18,4],[39,2,39,4],[39,6,39,7],[28,2,28,4],[28,6,28,7],[29,2,29,4],[29,6,29,7],[35,6,35,7],[30,6,30,7],[31,6,31,7],[32,6,32,7],[33,6,33,7],[34,6,34,7],[35,2,35,4],[40,2,40,4],[40,6,40,7],[36,2,36,4],[36,6,36,7],[37,2,37,4],[37,6,37,7],[38,2,38,4],[38,6,38,7],[58,4,60,7],[58,2,60,3],[41,1,41,5],[42,2,42,5],[54,1,54,7],[56,1,56,7],[55,1,55,7],[57,1,57,7],[30,2,30,4],[34,2,34,4],[33,2,33,4],[32,2,32,4],[14,5,14,7],[27,2,27,4],[27,6,27,7],[26,2,26,4],[26,6,26,7],[21,3,21,4],[23,1,23,4],[22,1,22,7],[23,6,23,7],[24,2,24,4],[24,6,24,7],[25,2,25,4],[25,6,25,7],[20,3,20,4],[0,6,2,7],[43,1,46,5],[3,1,3,4],[3,6,3,7],[4,1,4,2],[4,3,4,4],[5,1,5,2],[5,3,5,4],[17,1,17,2],[15,1,15,2],[8,5,8,7],[31,2,31,4],[14,1,14,4],[18,1,18,2]]}
[null,null,null,null,null,null,"COTIZACIÓN DE SEGURO\nRC KONSTRUYE"]
[]
[]
[null,"DATOS DEL ASEGURADO / CONTRATANTE",null,null,null,"No. Cotización:",105157]
[null,"Nombre/Razón Social:",null,"HELMUT SERGIO SCHWARZ GARZA",null,"Agente","Oficina","Moneda"]
[null,"R.F.C.:",null,null,null,1234,"Cdmx",{"$f":"IFERROR('Hoja de trabajo'!C24,\"\")","v":"Nacional"}]
[null,"Direccion",null,null,null,"No. Contrato","Forma de pago","Días de Vigencia"]
[null,null,"Calle y No.",null,null,null,{"$f":"'Hoja de trabajo'!P6","v":"Contado"},{"$f":"'Hoja de trabajo'!P3","v":364}]
[null,null,"Colonia",null,null,"Fecha"]
[null,null,"Alcaldïa / Municipio",null,null,"Elaboración","Desde","Hasta"]
[null,null,"Estado",null,null,{"$f":"'Hoja de trabajo'!P8","v":"2022-03-18T15:02:28.870"},{"$f":"_xlfn.CONCAT(TEXT('Hoja de trabajo'!C30,\"dd/mm/aaaa\"),,\" \",\"12:00 Hrs.\")","v":"30/09/2021 12:00 Hrs."},{"$f":"_xlfn.CONCAT(TEXT('Hoja de trabajo'!D30,\"dd/mm/aaaa\"),,\" \",\"12:00 Hrs.\")","v":"29/09/2022 12:00 Hrs."}]
[null,null,"CP"]
[null,null,"Telefóno:"]
[null,null,"Correo electrónico:"]
[null,"DATOS DEL RIESGO",null,null,null,"Breve descripción del proyecto:"]
[null,"Ubicación del proyecto:",null,"Torre Levana II Departamento 1504 Piso 15 Dirección: Av. Jose Vasconcelos 640 Zona Santa Engracia. C.P ",null,"Reparación y acondicionamiento de inmuebles que no afectan elementos de carga"]
[null,"C.P.:"]
[null,"Alcaldía/Municipio:"]
[null,"Estado:"]
[null,"Obra a realizar:",null,{"$f":"IFERROR('Hoja de trabajo'!C6,\"\")","v":"Mantenimiento"}]
[null,"Actividad:",null,{"$f":"IFERROR('Hoja de trabajo'!C8,\"\")","v":"Inmuebles, Sistemas de Comunicación, Electricos, Electronicos, de Computo"}]
[null,"Valor del contrato:",null,{"$f":"IFERROR('Hoja de trabajo'!C22,\"\")","v":2000000}]
[null,"DESGLOSE DE COBERTURAS"]
[null,"Coberturas Amparadas",null,null,null,"Suma Asegurada","Deducible"]
[null,null,{"$f":"'Hoja de trabajo'!B35","v":"Cobertura básica"},null,null,{"$f":"IF('Hoja de trabajo'!E35=\"Sí\",'Hoja de trabajo'!$G$35,\"Excluida\")","v":10885},{"$f":"IF('Hoja de trabajo'!E35=\"Sí\",\"10% sobre la pérdida, con mínimo de 150 UMAS\",\" \")","v":"10% sobre la pérdida, con mínimo de 150 UMAS"}]
[null,null,{"$f":"'Hoja de trabajo'!B36","v":"Personal bajo relación de trabajo"},null,null,{"$f":"IF('Hoja de trabajo'!E36=\"Sí\",\"AMPARADA\",\"EXCLUIDA\")","v":"EXCLUIDA"},{"$f":"IF(F26=\"Excluida\",\" \",\"10% sobre la pérdida, con mínimo de 150 UMAS\")","v":" "}]
[null,null,{"$f":"'Hoja de trabajo'!B37","v":"Instalaciones subterráneas"},null,null,{"$f":"IF('Hoja de trabajo'!E37=\"Sí\",\"AMPARADA\",\"EXCLUIDA\")","v":"AMPARADA"},{"$f":"IF(F27=\"Excluida\",\" \",\"10% sobre la pérdida, con mínimo de 150 UMAS\")","v":"10% sobre la pérdida, con mínimo de 150 UMAS"}]
[null,null,{"$f":"'Hoja de trabajo'!B38","v":"Trabajos de soldadura "},null,null,{"$f":"IF('Hoja de trabajo'!E38=\"Sí\",\"AMPARADA\",\"EXCLUIDA\")","v":"AMPARADA"},"10% sobre la pérdida, con mínimo de 150 UMAS"]
[null,null,{"$f":"'Hoja de trabajo'!B39","v":"Carga y descarga"},null,null,{"$f":"IF('Hoja de trabajo'!E39=\"Sí\",\"AMPARADA\",\"EXCLUIDA\")","v":"AMPARADA"},"10% sobre la pérdida, con mínimo de 150 UMAS"]
[null,null,{"$f":"'Hoja de trabajo'!B40","v":"Demolición"},null,null,{"$f":"IF('Hoja de trabajo'!E40=\"Sí\",\"AMPARADA\",\"EXCLUIDA\")","v":"EXCLUIDA"},{"$f":"IF(F30=\"Excluida\",\" \",\"20% sobre la pérdida, con mínimo de 150 UMAS\")","v":" "}]
[null,null,{"$f":"'Hoja de trabajo'!B41","v":"Explosivos"},null,null,{"$f":"IF('Hoja de trabajo'!E41=\"Sí\",\"AMPARADA\",\"EXCLUIDA\")","v":"EXCLUIDA"},{"$f":"IF(F31=\"Excluida\",\" \",\"20% sobre la pérdida, con mínimo de 150 UMAS\")","v":" "}]
[null,null,{"$f":"'Hoja de trabajo'!B42","v":"Máquinas de trabajo"},null,null,{"$f":"IF('Hoja de trabajo'!E42=\"Sí\",\"AMPARADA\",\"EXCLUIDA\")","v":"EXCLUIDA"}," "]
[null,null,{"$f":"'Hoja de trabajo'!B43","v":"Apuntalamiento"},null,null,{"$f":"IF('Hoja de trabajo'!E43=\"Sí\",\"AMPARADA\",\"EXCLUIDA\")","v":"AMPARADA"},{"$f":"IF(F33=\"Excluida\",\" \",\"20% sobre la pérdida, con mínimo de 150 UMAS\")","v":"20% sobre la pérdida, con mínimo de 150 UMAS"}]
[null,null,{"$f":"'Hoja de trabajo'!B44","v":"Sostén a suelos y subsuelos vecinos"},null,null,{"$f":"IF('Hoja de trabajo'!E44=\"Sí\",\"AMPARADA\",\"EXCLUIDA\")","v":"EXCLUIDA"},{"$f":"IF(F34=\"Excluida\",\" \",\"20% sobre la pérdida, con mínimo de 150 UMAS\")","v":" "}]
[null,null,{"$f":"'Hoja de trabajo'!B45","v":"RC arrendatario"},null,null,{"$f":"IF('Hoja de trabajo'!E45=\"Sí\",\"AMPARADA\",\"EXCLUIDA\")","v":"AMPARADA"},"10% sobre la pérdida, con mínimo de 150 UMAS"]
[null,null,{"$f":"'Hoja de trabajo'!B46","v":"RC cruzada por riesgos vecinales"},null,null,{"$f":"IF('Hoja de trabajo'!E46=\"Sí\",\"AMPARADA\",\"EXCLUIDA\")","v":"AMPARADA"},{"$f":"IF(F36=\"Excluida\",\" \",\"20% sobre la pérdida, con mínimo de 150 UMAS\")","v":"20% sobre la pérdida, con mínimo de 150 UMAS"}]
[null,null,{"$f":"'Hoja de trabajo'!B47","v":"RC asumida"},null,null,{"$f":"IF('Hoja de trabajo'!E47=\"Sí\",\"AMPARADA\",\"EXCLUIDA\")","v":"AMPARADA"},"10% sobre la pérdida, con mínimo de 150 UMAS"]
[null,null,{"$f":"'Hoja de trabajo'!B48","v":"Otras obras especiales"},null,null,{"$f":"IF('Hoja de trabajo'!E48=\"Sí\",\"AMPARADA\",\"EXCLUIDA\")","v":"EXCLUIDA"}," "]
[null,null,{"$f":"'Hoja de trabajo'!B49","v":"RC contaminación"},null,null,{"$f":"IF('Hoja de trabajo'!E49=\"Sí\",\"AMPARADA\",\"EXCLUIDA\")","v":"EXCLUIDA"},{"$f":"IF(F39=\"Excluida\",\" \",\"20% sobre la pérdida, con mínimo de 150 UMAS\")","v":" "}]
[null,null,{"$f":"'Hoja de trabajo'!B50","v":"RC por daños ocasionados a bienes propiedad de terceros"},null,null,{"$f":"IF('Hoja de trabajo'!E50=\"Sí\",\"AMPARADA\",\"EXCLUIDA\")","v":"AMPARADA"},"10% sobre la pérdida, con mínimo de 150 UMAS"]
[null,null,{"$f":"'Hoja de trabajo'!B51","v":"RC contratistas independientes"},null,null,{"$f":"IF('Hoja de trabajo'!E51=\"Sí\",\"AMPARADA\",\"EXCLUIDA\")","v":"AMPARADA"},"10% sobre la pérdida, con mínimo de 150 UMAS"]
[null,"Observaciones",null,null,null,null,"Prima Neta:",{"$f":"IFERROR('Hoja de trabajo'!$N$55,0)","v":3679.8044568118967}]
[null,null,"UMA: Unidad de Medida Actualizada Diaria",null,null,null,"Recargos:",{"$f":"IFERROR(VLOOKUP(G8,'Descuentos y recargos'!$M$6:$N$10,2,0)*H42,0)","v":0}]
[null,null,null,null,null,null,"Derechos:",{"$f":"IFERROR(IF(H42<100000,IF($H$6=\"Nacional\",SUM(('Derechos de póliza'!$A$5:$A$12<H42)*('Derechos de póliza'!$B$5:$B$12>=H42)*('Derechos de póliza'!$C$5:$C$12)),SUM(('Derechos de póliza'!$D$5:$D$12<H42)*('Derechos de póliza'!$E$5:$E$12>=#REF!)*('Derechos de póliza'!$F$5:$F$12))),1000),0)","v":200}]
[null,null,null,null,null,null,"Subtotal:",{"$f":"IFERROR(SUM($H$42:$H$44),0)","v":3879.8044568118967}]
[null,null,null,null,null,null,"I.V.A.:",{"$f":"H45*0.16","v":620.76871308990349}]
[null,null,null,null,null,null,"Prima Total:",{"$f":"IFERROR(SUM($H$45:$H$46),0)","v":4500.5731699017997}]
[]
[null,null,null,"Forma de pago","Importe total","1er Recibo","No. De recibos subsecuentes","Montos subsecuentes"]
[null,null,null,"Semestral",{"$f":"IF($H$6='Descuentos y recargos'!$N$5, (($H$42*(1+'Descuentos y recargos'!N7))+$H$44)*1.16, (($H$42*(1+'Descuentos y recargos'!O7))+$H$44)*1.16)","v":4671.3160966978721},{"$f":"IF($H$6='Descuentos y recargos'!$N$5, ((($H$42*(1+'Descuentos y recargos'!N7))/2)+$H$44)*1.16, (($H$42*(1+'Descuentos y recargos'!O7))+$H$44)*1.16)","v":2451.6580483489365}," 1, cada uno de",{"$f":"IF($H$6='Descuentos y recargos'!$N$5, ((($H$42*(1+'Descuentos y recargos'!N7))/2))*1.16, (($H$42*(1+'Descuentos y recargos'!O7)))*1.16)","v":2219.6580483489361}]
[null,null,null,"Trimestral",{"$f":"IF($H$6='Descuentos y recargos'!$N$5, (($H$42*(1+'Descuentos y recargos'!N8))+$H$44)*1.16, (($H$42*(1+'Descuentos y recargos'!O8))+$H$44)*1.16)","v":4703.3303954721359},{"$f":"IF($H$6='Descuentos y recargos'!$N$5, ((($H$42*(1+'Descuentos y recargos'!N7))/4)+$H$44)*1.16, (($H$42*(1+'Descuentos y recargos'!O7))+$H$44)*1.16)","v":1341.8290241744683}," 3, cada uno de",{"$f":"IF($H$6='Descuentos y recargos'!$N$5, ((($H$42*(1+'Descuentos y recargos'!N8))/4))*1.16, (($H$42*(1+'Descuentos y recargos'!O8)))*1.16)","v":1117.832598868034}]
[null,null,null,"Bimestral",{"$f":"IF($H$6='Descuentos y recargos'!$N$5, (($H$42*(1+'Descuentos y recargos'!N9))+$H$44)*1.16, (($H$42*(1+'Descuentos y recargos'!O9))+$H$44)*1.16)","v":4735.3446942463988},{"$f":"IF($H$6='Descuentos y recargos'!$N$5, ((($H$42*(1+'Descuentos y recargos'!N7))/6)+$H$44)*1.16, (($H$42*(1+'Descuentos y recargos'!O7))+$H$44)*1.16)","v":971.88601611631202}," 5, cada uno de",{"$f":"IF($H$6='Descuentos y recargos'!$N$5, ((($H$42*(1+'Descuentos y recargos'!N9))/6))*1.16, (($H$42*(1+'Descuentos y recargos'!O9)))*1.16)","v":750.55744904106655}]
[null,null,null,"Mensual",{"$f":"IF($H$6='Descuentos y recargos'!$N$5, (($H$42*(1+'Descuentos y recargos'!N10))+$H$44)*1.16, (($H$42*(1+'Descuentos y recargos'!O10))+$H$44)*1.16)","v":4778.030425945416},{"$f":"IF($H$6='Descuentos y recargos'!$N$5, ((($H$42*(1+'Descuentos y recargos'!N7))/12)+$H$44)*1.16, (($H$42*(1+'Descuentos y recargos'!O7))+$H$44)*1.16)","v":601.94300805815601},"11, cada uno de",{"$f":"IF($H$6='Descuentos y recargos'!$N$5, ((($H$42*(1+'Descuentos y recargos'!N10))/12))*1.16, (($H$42*(1+'Descuentos y recargos'!O10)))*1.16)","v":378.83586882878467}]
[]
[null,"La emisión o, en su caso, la renovación de la póliza, queda sujeta a la entrega de los documentos relacionados con el art. 492 de la LISF, será necesario enviar el formato “Conoce a tu cliente”, firmado por el Asegurado.  \nLa   presente  cotización fue  elaborada por Seguros Ve Por Más, S. A. Grupo Financiero Ve Por Más con las  tarifas  vigentes."]
[null,"La información contenida en esta cotización no representa garantía ni compromiso alguno por parte de Seguros Ve Por Más, S.A., Grupo Financiero Ve Por Más, ni cualquiera de sus filiales, empleados, funcionarios o prestadores, y no constituye ni constituirá obligación alguna de cumplimiento por parte de Seguros Ve Por Más, S.A., Grupo Financiero Ve Por Más ni cualquiera de sus filiales, empleados, funcionarios o prestadores hacia su clientela."]
[null,"Esta cotización tiene una vigencia de 15 (quince) días naturales, siempre y cuando  los parámetros de esta cotización se mantengan."]
[null,"\"Seguro registrado ante la Comisión Nacional de Seguros y Fianzas con el número  CNSF-S0016-0210-2021/CONDUSEF-001552-04 de fecha  31 de mayo de 2021\"."]
[null,null,"Seguros Ve Por Más, S. A. Grupo Financiero Ve Por Más\nPaseo De La Reforma 243 Piso 16, Col. Cuauhtémoc, C.P.\n06500 , Cuauhtémoc, Tel. 55 11 02 18 00\n",null,"Página 1 de 1"]

{"sheet":"Solicitud","index":2,"n_rows":154,"n_cols":13,"rows_kept":154,"cut":false,"hidden":true,"merged":[[0,0,0,10],[1,0,1,10],[2,0,2,10],[1,11,2,11],[3,0,3,10],[4,11,5,11],[4,0,5,4],[4,5,5,10],[10,4,11,5],[10,11,11,11],[10,7,11,10],[8,4,9,4],[8,5,9,5],[10,0,11,0],[10,1,11,3],[12,11,13,11],[12,5,12,7],[6,11,7,11],[8,11,9,11],[8,0,9,0],[8,1,9,3],[6,0,7,3],[14,11,15,11],[13,5,13,7],[12,8,13,10],[12,0,12,2],[13,0,13,2],[12,3,13,4],[6,4,7,5],[6,6,7,8],[6,9,7,10],[8,6,9,7],[8,8,9,10],[10,6,11,6],[14,5,15,5],[14,6,15,7],[14,8,15,8],[14,9,15,10],[14,0,15,0],[22,0,22,2],[33,0,33,10],[32,0,32,10],[20,3,20,10],[16,11,17,11],[18,0,18,10],[21,0,21,1],[20,0,20,1],[19,0,19,1],[19,3,19,4],[23,0,23,10],[28,0,28,10],[29,0,29,10],[30,0,30,10],[31,0,31,10],[24,0,24,1],[26,0,26,1],[25,0,25,1],[16,8,17,8],[16,9,17,10],[38,11,49,11],[39,0,39,10],[40,0,40,10],[41,0,41,10],[42,0,42,10],[43,0,43,10],[44,0,44,10],[36,11,37,11],[38,0,38,10],[45,0,45,10],[46,0,46,10],[47,0,47,10],[48,0,48,10],[49,0,49,10],[50,11,52,11],[53,11,55,11],[56,11,58,11],[53,0,55,1],[53,2,55,10],[56,0,58,2],[56,3,58,10],[50,0,52,1],[50,2,52,10],[66,0,66,9],[66,10,66,11],[67,1,67,6],[67,7,67,8],[67,10,67,11],[68,1,68,6],[68,7,68,8],[68,10,68,11],[59,11,61,11],[62,0,62,10],[63,0,63,10],[65,0,65,10],[62,11,65,11],[59,0,61,1],[59,2,61,10],[64,0,64,1],[71,1,71,6],[71,7,71,8],[71,10,71,11],[72,1,72,6],[72,7,72,8],[72,10,72,11],[69,1,69,6],[69,7,69,8],[69,10,69,11],[70,1,70,6],[70,7,70,8],[70,10,70,11],[75,1,75,6],[75,7,75,8],[75,10,75,11],[76,1,76,6],[76,7,76,8],[76,10,76,11],[73,1,73,6],[73,7,73,8],[73,10,73,11],[74,1,74,6],[74,7,74,8],[74,10,74,11],[79,1,79,6],[79,7,79,8],[79,10,79,11],[80,1,80,6],[80,7,80,8],[80,10,80,11],[77,1,77,6],[77,7,77,8],[77,10,77,11],[78,1,78,6],[78,7,78,8],[78,10,78,11],[83,1,83,6],[83,7,83,8],[83,10,83,11],[84,1,84,6],[84,7,84,8],[84,10,84,11],[81,1,81,6],[81,7,81,8],[81,10,81,11],[82,1,82,6],[82,7,82,8],[82,10,82,11],[92,0,92,3],[96,0,99,0],[96,3,99,3],[96,6,99,6],[96,9,99,9],[85,1,85,6],[85,7,85,8],[85,10,85,11],[86,1,86,6],[86,7,86,8],[86,10,86,11],[113,0,113,10],[114,0,114,10],[115,0,115,10],[116,0,116,10],[108,0,108,3],[107,0,107,10],[109,0,109,10],[110,0,110,10],[111,0,111,10],[112,0,112,10],[122,0,122,10],[123,0,123,10],[124,0,124,10],[125,0,125,10],[118,0,118,10],[119,0,119,10],[120,0,120,10],[121,0,121,10],[117,0,117,10],[132,0,133,0],[132,3,133,3],[132,6,133,6],[132,9,133,9],[126,0,126,10],[127,0,127,10],[128,0,128,10],[129,0,129,10],[130,0,131,10],[132,1,133,2],[132,4,133,5],[132,7,133,8],[153,0,153,10],[139,0,139,10],[140,0,140,10],[141,0,141,10],[142,0,142,10],[143,0,143,10],[144,0,144,10],[145,0,145,10],[134,0,134,9],[135,0,135,10],[136,0,136,10],[138,0,138,10],[137,0,137,10],[154,0,154,3],[88,0,88,10],[89,0,89,10],[90,0,90,10],[91,0,91,10],[93,0,93,10],[94,0,95,10],[100,0,100,10],[96,1,99,2],[96,4,99,5],[96,7,99,8],[101,0,101,10],[102,0,102,10],[103,0,103,10],[104,0,104,10],[105,0,105,10],[106,0,106,10],[146,0,146,10],[147,0,147,10],[148,0,148,10],[149,0,149,10],[150,0,150,10],[151,0,151,10],[152,0,152,10],[14,1,15,1],[16,0,17,0],[16,1,17,1],[14,2,15,2],[14,3,15,4],[16,2,17,2],[16,3,17,4],[16,5,17,5],[16,6,17,7],[34,0,35,0],[34,1,35,1],[34,2,35,2],[34,3,35,4],[34,5,35,5],[34,6,35,7],[34,8,35,8],[34,9,35,10],[36,0,37,0],[36,1,37,1],[36,2,37,2],[36,3,37,4],[36,5,37,5],[36,6,37,7],[36,8,37,8],[36,9,37,10]]}
["Instrucciones "]
["Este formato debe ser llenado y firmado por el Solicitante con letra de molde y tinta de un solo color."]
["Favor de no dejar preguntas ni espacios sin contestar. Este documento no será válido con tachaduras, enmendaduras y de lo declarado no se aceptan cambios posteriores. "]
["Datos personales del Contratante:"]
["Nombre(s) o Razón Social Apellido Paterno Apellido Materno",null,null,null,null,{"$f":"Cotización!D5","v":"HELMUT SERGIO SCHWARZ GARZA"}]
[]
["Número de serie del certificado digital FIEL (cuando se cuente con ella)",null,null,null,null,null,"Ocupación, Profesión (o Giro)"]
[]
["R.F.C. ",null,null,null,"CURP (cuando se cuente con ella)",null,"Correo electrónico"]
[]
["Teléfono(s)",null,null,null,"País de Nacimiento",null,"Nacionalidad"]
[null,null,null,null,null,null,null,null,null,null,null,null,{"$f":"7500*20","v":150000}]
["Fecha de Nacimiento (Personas Físicas)",null,null,null,null,"Fecha de Constitución (Personas Morales)"]
["(dd/mm/aaaa)",null,null,null,null,"(dd/mm/aaaa)"]
["Domicilio: Calle",null,"No. Exterior",null,null,"No. Interior",null,null,"Colonia"]
[]
["Código Postal",null,"Alcaldía o Municipio",null,null,"Ciudad",null,null,"Estado"]
[]
["Datos de la póliza"]
["Póliza Nueva                ",null,null,"Vigencia: ",null,"desde",null,"Hasta"]
["Renueva ",null,null,"                           (dd/mm/aaaa)                            (dd/mm/aaaa)"]
["Póliza No. ________"]
[]
["Pago de la prima"]
["Forma de pago:      ",null,"Mensual ",null,"Trimestral ",null,"Semestral",null,"Contado"]
["Moneda:",null,"Nacional",null,"Dólares"]
["Método de pago:  ",null,"Tarjeta de Crédito",null,"Cuenta CLABE",null,"Pago Referenciado",null,"Cargo por única ocasión"]
["  ",null,"Meses sin intereses* "]
["*La promoción a meses sin intereses está sujeta a disponibilidad en el momento del cobro."]
["Cesación de los efectos del contrato por falta de pago de prima"]
["En caso de que esta solicitud sea aceptada y se emita la póliza correspondiente, le recordamos que en caso de que no hubiera sido pagada la prima dentro del periodo de gracia estipulado en la carátula de póliza, los efectos del contrato cesarán automáticamente a las doce horas del último día de este periodo."]
["En caso de que no se señale el periodo de gracia en la carátula de póliza, se aplicará un plazo de treinta días naturales siguientes a la fecha de su vencimiento, de conformidad con lo estipulado en el artículo 40 de la Ley sobre el Contrato de Seguro."]
["Datos del seguro"]
["Ubicación del proyecto "]
["Domicilio: Calle",null,"No. Exterior",null,null,"No. Interior",null,null,"Colonia"]
[]
["Código Postal",null,"Alcaldía o Municipio",null,null,"Ciudad",null,null,"Estado"]
[]
["Descripción de los trabajos a realizar:"]
[]
[]
[]
[]
[]
[]
[]
[]
[]
[]
["Nota: En caso de necesitar más espacio para la descripción, favor de adjuntar documentos anexos con la información detallada"]
["Valor Total de(l) contrato(s):"]
[]
[]
["Duración del proyecto:"]
[]
[]
["Experiencia con la que cuenta para la obra por realizar:"]
[]
[]
["Colindantes:"]
[]
[]
["Indique el tipo de maquinaria de construcción a emplear:"]
[]
["Indique:        ",null,"Es propia",null,"Es arrendada",null,"Con operador ",null,"Sin operador "]
[" "]
["Sección I Responsabilidad civil"]
[null,"Seleccionar la(s) cobertura(s)",null,null,null,null,null,"Indicar Sí / No",null,"Suma Asegurada"]
[null,"Cobertura básica",null,null,null,null,null,"Amparada",null,{"$f":"'Hoja de trabajo'!G35","v":10885}]
[null,"Coberturas adicionales",null,null,null,null,null,"Indicar Sí / No",null,"Sublímite"]
[null,"1.     Personal bajo relación de trabajo ",null,null,null,null,null,{"$f":"'Hoja de trabajo'!E36","v":"No"},null,{"$f":"'Hoja de trabajo'!G36","v":0}]
[null,"2.     Instalaciones subterráneas",null,null,null,null,null,{"$f":"'Hoja de trabajo'!E37","v":"Sí"},null,{"$f":"'Hoja de trabajo'!G37","v":0}]
[null,"3.     Trabajos de soldadura ",null,null,null,null,null,{"$f":"'Hoja de trabajo'!E38","v":"Sí"},null,{"$f":"'Hoja de trabajo'!G38","v":0}]
[null,"4.     Carga y descarga",null,null,null,null,null,{"$f":"'Hoja de trabajo'!E39","v":"Sí"},null,{"$f":"'Hoja de trabajo'!G39","v":0}]
[null,"5.     Demolición",null,null,null,null,null,{"$f":"'Hoja de trabajo'!E40","v":"No"},null,{"$f":"'Hoja de trabajo'!G40","v":0}]
[null,"6.     Explosivos",null,null,null,null,null,{"$f":"'Hoja de trabajo'!E41","v":"No"},null,{"$f":"'Hoja de trabajo'!G41","v":0}]
[null,"7.     Máquinas de trabajo",null,null,null,null,null,{"$f":"'Hoja de trabajo'!E42","v":"No"},null,{"$f":"'Hoja de trabajo'!G42","v":0}]
[null,"8.     Apuntalamiento",null,null,null,null,null,{"$f":"'Hoja de trabajo'!E43","v":"Sí"},null,{"$f":"'Hoja de trabajo'!G43","v":0}]
[null,"9.     Sostén a suelos y subsuelos vecinos.",null,null,null,null,null,{"$f":"'Hoja de trabajo'!E44","v":"No"},null,{"$f":"'Hoja de trabajo'!G44","v":0}]
[null,"10.  Arrendatario ",null,null,null,null,null,{"$f":"'Hoja de trabajo'!E45","v":"Sí"},null,{"$f":"'Hoja de trabajo'!G45","v":0}]
[null,"11.  Cruzada por riesgos vecinales ",null,null,null,null,null,{"$f":"'Hoja de trabajo'!E46","v":"Sí"},null,{"$f":"'Hoja de trabajo'!G46","v":0}]
[null,"12.  Asumida (caso por caso)",null,null,null,null,null,{"$f":"'Hoja de trabajo'!E47","v":"Sí"},null,{"$f":"'Hoja de trabajo'!G47","v":0}]
[null,"13.  Otras obras especiales ",null,null,null,null,null,{"$f":"'Hoja de trabajo'!E48","v":"No"},null,{"$f":"'Hoja de trabajo'!G48","v":0}]
[null,"Coberturas que pueden ser contratadas por convenio expreso",null,null,null,null,null,"Indicar Sí / No",null,"Sublímite"]
[null,"1.     Responsabilidad civil contaminación",null,null,null,null,null,{"$f":"'Hoja de trabajo'!E49","v":"No"},null,{"$f":"'Hoja de trabajo'!G49","v":0}]
[null,"2.     Responsabilidad civil por daños ocasionados a bienes propiedad de terceros",null,null,null,null,null,{"$f":"'Hoja de trabajo'!E50","v":"Sí"},null,{"$f":"'Hoja de trabajo'!G50","v":0}]
[null,"3.     Responsabilidad civil contratistas independientes (caso por caso)",null,null,null,null,null,{"$f":"'Hoja de trabajo'!E51","v":"Sí"},null,{"$f":"'Hoja de trabajo'!G51","v":0}]
[]
["Información adicional"]
["Siniestralidad"]
["En los últimos tres años ¿ha tenido algún siniestro?    □ Sí          □ No"]
["Describir la pérdida y especificar monto de esta: ____________________________"]
[]
["Otros Seguros"]
["¿Cuenta con algún seguro similar al contrato de la presente solicitud?          □ Sí          □ No"]
[]
["Tipo de Seguro:",null,null,"Vigencia:",null,null,"Suma Asegurada:",null,null,"Prima:"]
[]
[]
[]
["Aviso de privacidad"]
["Aviso de privacidad Seguros Ve por Más, S.A. Grupo Financiero Ve por Más, con domicilio en Paseo de la Reforma No. 243, Piso 16 Colonia Cuauhtémoc, C.P. 06500, Ciudad de México, Le informa que los datos personales y/o datos personales sensibles que se recaban de usted, serán utilizados para las siguientes finalidades que son necesarias para el servicio y/o producto que solicita: La realización de todas y cada una de las operaciones y la prestación de los servicios, así como la celebración de los demás actos que Seguros Ve por Más puede realizar conforme a la legislación que les sea aplicable y a sus estatutos sociales la identificación y contacto del titular de los datos personales; para la evaluación de su solicitud de seguro y selección de riesgos, y en su caso, la emisión del contrato de seguro, la aplicación de exámenes de estado general de salud, previo a la contratación del seguro; para realizar las gestiones de cobro que son inherentes a la contratación o renovación del seguro; para el trámite y seguimiento de sus solicitudes de pago de siniestros, administración, mantenimiento y renovación de la póliza de seguro; las revisiones y correcciones requeridas por actualización de datos o para mayor conocimiento de los titulares y sus operaciones, tanto para efectos legales como de prevención o seguridad; la comunicación con los clientes, proveedores, consejeros y auditores externos, actuales o anteriores, para tratar cualquier tema relacionado con asuntos contractuales, comerciales, laborales, de negocioso con sus datos personales o el presente aviso de privacidad; las consultas, investigaciones y revisiones en relación a cualquier queja, reclamación o aclaración; la atención de requerimientos de cualquier autoridad competente conforme a la legislación aplicable a la entidad financiera; cualquier actividad complementaria o auxiliar necesaria para la realización de los fines anteriores."]
["De manera adicional, se utilizará su información personal para las siguientes finalidades que no son necesarias para el servicio o producto solicitado, pero que permiten y facilitan brindarle un mejor servicio:"]
["La promoción de productos, servicios, beneficios adicionales, descuentos, promociones, bonificaciones, concursos, estudios de mercado, sorteos y publicidad en general, ofrecidos por las empresas integrantes del grupo financiero o relacionado con las mismas o terceros nacionales o extranjeros con quienes cualquiera de dichas empresas mantengan alianzas comerciales, la realización de encuestas de calidad, servicio o de cualquier otro tipo relacionado con los productos y servicios que se ofrecen y/o prestan, así como el desarrollo e implementación de procesos de análisis de información y estadísticos que se deriven de dichas encuestas. En caso de que usted no desee que sus datos personales sean tratados ni transferidos para estos fines adicionales, usted contará con 5 días hábiles a partir de la recepción de este aviso, para manifestar su negativa al siguiente correo: datospersonales@vepormas.com.mx, de lo contrario se entenderá que usted acepta el uso de sus datos para estos fines. "]
["Para conocer mayor información sobre los términos y condiciones en que serán tratados sus datos personales y la forma en que podrá ejercer sus derechos arco, puede consultar nuestro aviso de privacidad integral en http://www.vepormas.com, dentro de la página de Seguros Ve por Más, seleccionando el apartado “su información personal está segura con Ve por Más”. El titular de los datos personales manifiesta haber leído y estar de acuerdo con los términos del aviso de privacidad, conociendo y aceptando la finalidad de la recolección, el tratamiento de sus datos personales y personales sensibles y transferencia de los mismos a través de su firma autógrafa o electrónica."]
["Se entenderá que el solicitante titular y/o contratante consiente tácitamente el tratamiento de su información personal en los términos indicados en el presente aviso de privacidad si no manifiesta su oposición al mismo. He leído y me doy por enterado del aviso de privacidad que antecede en relación con la póliza de seguro."]
["Lugar y fecha (dd/mm/aaaa)"]
["________________________________________________"]
[]
["Declaraciones del solicitante"]
["Hago constar que la información y datos asentados en esta solicitud son verídicos y exactos, y que estoy de acuerdo en que sirvan de evaluación para el seguro que solicito por lo que en caso de que alguno de los datos proporcionados resulte falso o inexacto, estoy consiente en que el contrato será rescindido de pleno derecho, de conformidad con lo dispuesto por el artículo 47 de la Ley sobre el Contrato de Seguro."]
["Cualquier omisión o inexacta declaración de los hechos a que se refieren los artículos 8, 9 y 10 de la Ley sobre el Contrato de Seguro, facultará a Seguros Ve Por Más, S.A., Grupo Financiero Ve Por Más para considerar rescindido de pleno derecho el contrato de seguro, aunque no haya influido en la realización del siniestro."]
["Declaro de manera libre y espontánea, bajo protesta de decir verdad, que los recursos destinados para el apego de la prima de seguro que en su caso llegue a celebrar con motivo de la presente solicitud no son de procedencia ilícita."]
["Declaraciones adicionales del solicitante"]
["Previa lectura y debidamente enterados de las condiciones y obligaciones que establece esta solicitud, confirmo haber declarado los datos exactos para la correcta evaluación de la misma."]
["Asimismo, autorizo a las Compañías de Seguros a las que previamente he solicitado pólizas, para que proporcionen a Seguros Ve Por Más, S.A., Grupo Financiero Ve Por Más, la información de su conocimiento, para la correcta evaluación de esta solicitud y a su vez a Seguros Ve Por Más , S.A., Grupo Financiero Ve Por Más, para que proporcione a cualquier otra empresa del ramo, la información que se derive de esta solicitud y de otras que sean de su conocimiento, a efecto que pueda evaluar cualquier otra propuesta de contratación de seguro del sector que le sea solicitada por mi persona."]
["Estoy de acuerdo que, en caso de ser aceptada esta solicitud, la misma formará parte del contrato de seguro, cuyas condiciones generales, me serán entregadas con el método elegido más adelante; mismas que declaro conocer y manifiesto me han sido explicadas y estoy de acuerdo con ellas."]
["Lugar y fecha (dd/mm/aaaa)"]
["Apreciable solicitante, en caso de que sea aceptada su solicitud, le agradecemos nos indique cual es la mejor forma de recibir condiciones generales del contrato en cuestión. Le invitamos a sumarse al cuidado de la naturaleza evitando el uso del papel aceptando medio electrónico para su recepción. "]
["□ Vía correo electrónico a la siguiente dirección ________________________________"]
["□ Impresión en papel"]
["Estoy de acuerdo que, en caso de ser aceptada esta solicitud, la misma formará parte del contrato de seguro cuyas condiciones generales serán entregadas con el método elegido en la sección de arriba, la cual declaro conocer y manifiesto me han sido explicadas y estoy de acuerdo con ellas."]
["En caso de solicitar la recepción de las condiciones generales vía correo electrónico, dichas condiciones generales se tendrán por recibidas desde el momento en que Seguros Ve Por Más, S.A., Grupo Financiero Ve Por Más, realice su envío al solicitante. Lo anterior en el entendido que el correo electrónico señalado en la presente solicitud es consultado periódicamente por el solicitante y/o usuario de la cuenta o bien por una persona que la entrega física de las condiciones generales de Seguros Ve Por Más, S.A., Grupo Financiero Ve Por Más hacia el solicitante de la póliza del seguro."]
["Igualmente, acepto y autorizo a Seguros Ve Por Más, S.A., Grupo Financiero Ve Por Más para enviar al mencionado correo electrónico cualquier otra comunicación y/o notificación que pudiera derivar de la solicitud y en su caso contratación del seguro, incluyendo sin limitar: a) Requerimientos de información; b) Reclamaciones; c) Póliza; d) Endosos; e) Rescisiones; f) Procedencia e importancia de siniestros."]
["Cualquier cambio en la dirección de correo electrónico del solicitante, así como de Seguros Ve Por Más, S.A., Grupo Financiero Ve Por Más, deberá ser comunicado por escrito."]
["En caso de no hacerlo, todos los avisos, notificaciones y demás diligencias que se hagan se efectuarán en el correo electrónico indicado en esta solicitud y surtirán plenamente efectos. Finalmente, declaro que el agente de seguros me ha informado de manera amplia y detallada sobre el alcance real de la obertura y la forma de conservarla o darla por terminada."]
["______________________________                                    ______________________________"]
["                                Firma del Contratante                                                         Firma del Solicitante Titular"]
["Datos del Agente"]
["De conformidad con lo descrito en el Artículo 96 de la Ley de Instituciones de Seguros y de Fianzas, declaro haber informado al solicitante el alcance real de la cobertura y la forma de conservarla o darla por terminada, de manera amplia y detallada."]
["Nombre(s)                                                        Apellido Paterno                                       Apellido Materno"]
[]
["R.F.C.",null,null,"CURP",null,null,"Clave de Agente",null,null,"Correo Electrónico"]
[]
["1.     ¿Tiene algún parentesco con el solicitante?     □ Sí        □ No"]
["2.     Informo que entrevisté al contratante y/o solicitante/titular de esta solicitud del seguro, asimismo cotejé contra original, información contenida en la identificación oficial y documentos que me fueron entregados para el trámite de este seguro."]
["___________________________________"]
["Agente"]
["Nombre y firma"]
["Estas preguntas deberán ser contestadas sólo por el contratante (sólo si se trata de persona física)"]
["1.     ¿Desempeña o ha desempeñado alguno de estos cargos en el sexenio actual o anterior?"]
["Diputado local o federal, Director General de la C.F.E., Director General de PEMEX, Gobernador de Estado, Jefe de Gobierno de la CDMX, Ministro de la Suprema Corte de Justicia de la Nación, Presidente de la República, Presidente de Partido Político Registrado en el INE (antes IFE), Procurador General de la República, Procurador de Justicia de los Estados, Secretario de Finanzas del Distrito Federal, Secretario de Finanzas de los Estados, Secretario de Gobierno de los Estados, Senador (para los extranjeros, presidentes o mandatarios)."]
["□ Sí          □ No          En caso afirmativo indique cual _____________________________"]
["2.     ¿Realiza alguna de estas actividades?"]
["Comerciante de: metales preciosos, antigüedades, joyas, objetos de arte, piedras preciosas, productos militares de alta sofisticación, agentes aduanales, casinos, loterías, juegos de azar, centros nocturnos, distribución de armas, inmobiliaria, organizaciones de caridad, pirámides, prestamistas, producción de armas, consultor financiero."]
["□ Sí          □ No          En caso afirmativo indique cual _____________________________"]
["3.     ¿Usted ha estado relacionado en algún proceso penal?"]
["□ Sí          □ No          En caso afirmativo indique cual _____________________________"]
["Para todos los efectos legales que pueda tener esta solicitud, declaro que todas las respuestas contenidas en las mismas. Son verídicas y están completas, reconociendo que constituyen parte del contrato de seguro aceptando en consecuencia la obligación de pagar la prima y ajustes correspondientes al contrato."]
["Artículo 25. Si el contenido de la póliza o sus modificaciones no concordaren con la oferta, el asegurado podrá pedir la rectificación correspondiente dentro de los treinta días que sigan al día en que reciba la póliza. Transcurrido este plazo se considerarán aceptadas las estipulaciones de la póliza o de sus modificaciones."]
["Este documento sólo constituye una solicitud de seguro y, por lo tanto, no representa garantía alguna de que la misma será aceptada por la Compañía, ni de que, en caso de aceptarse, la aceptación concuerde totalmente con los términos de la solicitud."]
["Se informa que el producto ligado a esta solicitud cuenta con exclusiones y limitantes, mismas que puede consultar dentro de las Condiciones Generales del mismo producto, que se encuentran en nuestra página de internet www.vepormas.com. Se hace del conocimiento de nuestros clientes que podrán consultar todos los preceptos y referencias legales mencionadas en el contrato, en nuestra página de internet www.vepormas.com, Condiciones Generales, sección, Anexo denominado Preceptos Legales."]
["Para cualquier aclaración o duda no resultas en relación a su seguro, contacte a la Unidad Especializada de nuestra Compañía ubicada en Avenida Paseo de la Reforma, número 243 Piso 16, Colonia Cuauhtémoc, Alcaldía Cuauhtémoc, Ciudad de México, C.P. 06500, a los teléfonos  55 1102 1919 o al 800 8376 7627 elegir la opción 0 y solicitar ser canalizado a la UNE, en un horario de lunes a viernes de 9:00 a 18:00 horas; al correo electrónico aclaraciones.une@segurosvepormas.com o visite www.vepormas.com; o bien contactar a CONDUSEF en Avenida Insurgentes Sur, número 762, colonia Del Valle, Alcaldía Benito Juárez, Ciudad de México, C.P. 03100, al teléfono (55) 5340 0999 en la CDMX y en el interior de la República al 800 999 8080; correo electrónico asesoria@condusef.gob.mx, o visite la página www.gob.mx/condusef."]
["En cumplimiento a lo dispuesto en el artículo 202 de la Ley de Instituciones de Seguros y de Fianzas, la documentación contractual y la nota técnica que integran este producto de seguro, quedaron registradas ante la Comisión Nacional de Seguros y Fianzas, a partir del día __ de _____ de ____, con el número ____ -____-____-__/CONDUSEF-______-__."]

{"sheet":"Hoja1","index":3,"n_rows":0,"n_cols":0,"rows_kept":0,"cut":false,"hidden":false,"merged":[]}

{"sheet":"CP","index":4,"n_rows":96153,"n_cols":10,"rows_kept":4500,"cut":true,"hidden":true,"merged":[[0,0,0,3]],"bounds":{"rows_first":2000,"rows_last":500,"rows_between":2000,"halvings":0}}
["CODIGOS POSTALES",null,null,null,"ZONA TEV","ZONA FHM",null,"Forma de pago","Moneda"]
["Código Postal","Colonia","Municipio","Estado","Zona Terremoto \nTarifa AMIS","Zona Hidro\nTarifa AMIS",null,"Contado","Nacional","Sí"]
[20000,"Zona Centro","Aguascalientes","Aguascalientes","A",3,null,"Semestral","Dólares","No"]
[20008,"Delegación de La Secretaria de Comercio y Fomento Industrial","Aguascalientes","Aguascalientes","A",3,null,"Trimestral"]
[20009,"Palacio de Gobierno del Estado de Aguascalientes","Aguascalientes","Aguascalientes","A",3,null,"Mensual"]
[20010,"San Cayetano","Aguascalientes","Aguascalientes","A",3]
[20010,"Colinas del Rio","Aguascalientes","Aguascalientes","A",3]
[20010,"Las Brisas","Aguascalientes","Aguascalientes","A",3]
[20010,"Olivares Santana","Aguascalientes","Aguascalientes","A",3]
[20010,"Ramon Romo Franco","Aguascalientes","Aguascalientes","A",3]
[20016,"La Fundición","Aguascalientes","Aguascalientes","A",3]
[20016,"Los Sauces","Aguascalientes","Aguascalientes","A",3]
[20016,"Fundición II","Aguascalientes","Aguascalientes","A",3]
[20016,"Colinas de San Ignacio","Aguascalientes","Aguascalientes","A",3]
[20018,"Línea de Fuego","Aguascalientes","Aguascalientes","A",3]
[20020,"Buenos Aires","Aguascalientes","Aguascalientes","A",3]
[20020,"Las Arboledas","Aguascalientes","Aguascalientes","A",3]
[20020,"Circunvalación Norte","Aguascalientes","Aguascalientes","A",3]
[20020,"Villas de San Francisco","Aguascalientes","Aguascalientes","A",3]
[20029,"Villas de La Universidad","Aguascalientes","Aguascalientes","A",3]
[20030,"Gremial","Aguascalientes","Aguascalientes","A",3]
[20030,"Industrial","Aguascalientes","Aguascalientes","A",3]
[20030,"El Sol","Aguascalientes","Aguascalientes","A",3]
[20040,"Curtidores","Aguascalientes","Aguascalientes","A",3]
[20040,"Altavista","Aguascalientes","Aguascalientes","A",3]
[20040,"La Concordia","Aguascalientes","Aguascalientes","A",3]
[20040,"Miravalle","Aguascalientes","Aguascalientes","A",3]
[20040,"Panorama","Aguascalientes","Aguascalientes","A",3]
[20049,"Colinas del Poniente","Aguascalientes","Aguascalientes","A",3]
[20050,"La Fe","Aguascalientes","Aguascalientes","A",3]
[20050,"México","Aguascalientes","Aguascalientes","A",3]
[20050,"San Pablo","Aguascalientes","Aguascalientes","A",3]
[20050,"Primavera","Aguascalientes","Aguascalientes","A",3]
[20050,"Bugambilias","Aguascalientes","Aguascalientes","A",3]
[20050,"Del Carmen","Aguascalientes","Aguascalientes","A",3]
[20059,"Guadalupe","Aguascalientes","Aguascalientes","A",3]
[20060,"Moderno","Aguascalientes","Aguascalientes","A",3]
[20064,"Valle del Rio San Pedro","Aguascalientes","Aguascalientes","A",3]
[20070,"San Marcos","Aguascalientes","Aguascalientes","A",3]
[20070,"Guadalupe Posada","Aguascalientes","Aguascalientes","A",3]
[20070,"San Marcos","Aguascalientes","Aguascalientes","A",3]
[20078,"San Marcos","Aguascalientes","Aguascalientes","A",3]
[20080,"Modelo","Aguascalientes","Aguascalientes","A",3]
[20080,"Residencial del Valle I","Aguascalientes","Aguascalientes","A",3]
[20089,"Residencial del Valle II","Aguascalientes","Aguascalientes","A",3]
[20100,"Campestre La Herradura","Aguascalientes","Aguascalientes","A",3]
[20100,"Los Vergeles","Aguascalientes","Aguascalientes","A",3]
[20100,"Campestre 2a. Sección","Aguascalientes","Aguascalientes","A",3]
[20100,"La Querencia","Aguascalientes","Aguascalientes","A",3]
[20100,"Jardines del Campestre","Aguascalientes","Aguascalientes","A",3]
[20100,"Club Campestre","Aguascalientes","Aguascalientes","A",3]
[20100,"Rancho San Antonio","Aguascalientes","Aguascalientes","A",3]
[20100,"Campestre 1a. Sección","Aguascalientes","Aguascalientes","A",3]
[20110,"Valle del Campestre","Aguascalientes","Aguascalientes","A",3]
[20110,"Las Cavas","Aguascalientes","Aguascalientes","A",3]
[20110,"Granjas del Campestre","Aguascalientes","Aguascalientes","A",3]
[20110,"Puerto las Hadas","Aguascalientes","Aguascalientes","A",3]
[20110,"Talamantes Ponce","Aguascalientes","Aguascalientes","A",3]
[20110,"Villas de Montenegro","Aguascalientes","Aguascalientes","A",3]
[20115,"Villa de las Trojes","Aguascalientes","Aguascalientes","A",3]
[20115,"Trojes de Oriente 1a Sección","Aguascalientes","Aguascalientes","A",3]
[20115,"Valle de las Trojes","Aguascalientes","Aguascalientes","A",3]
[20115,"Trojes de Oriente 2a Sección","Aguascalientes","Aguascalientes","A",3]
[20115,"La Paloma","Aguascalientes","Aguascalientes","A",3]
[20115,"Villas de San Nicolás","Aguascalientes","Aguascalientes","A",3]
[20115,"Barrio de Santiago","Aguascalientes","Aguascalientes","A",3]
[20116,"La Troje","Aguascalientes","Aguascalientes","A",3]
[20116,"Trojes de Alonso","Aguascalientes","Aguascalientes","A",3]
[20116,"Santa Fe","Aguascalientes","Aguascalientes","A",3]
[20117,"Aguascalientes 2000","Aguascalientes","Aguascalientes","A",3]
[20118,"Trojes del Sol","Aguascalientes","Aguascalientes","A",3]
[20118,"Los Jarales","Aguascalientes","Aguascalientes","A",3]
[20118,"Valle del Campanario","Aguascalientes","Aguascalientes","A",3]
[20118,"Las Misiones","Aguascalientes","Aguascalientes","A",3]
[20118,"Cerrada El Molino","Aguascalientes","Aguascalientes","A",3]
[20118,"Misión del Campanario","Aguascalientes","Aguascalientes","A",3]
[20118,"Cerrada del Valle","Aguascalientes","Aguascalientes","A",3]
[20118,"Valle Real","Aguascalientes","Aguascalientes","A",3]
[20118,"Terzetto","Aguascalientes","Aguascalientes","A",3]
[20118,"Trojes de Kristal","Aguascalientes","Aguascalientes","A",3]
[20118,"Las Trojes","Aguascalientes","Aguascalientes","A",3]
[20118,"Cerrada de La Misión","Aguascalientes","Aguascalientes","A",3]
[20119,"Lomas del Campestre 2a Sección","Aguascalientes","Aguascalientes","A",3]
[20119,"Villas del Campestre","Aguascalientes","Aguascalientes","A",3]
[20119,"Los Calicantos","Aguascalientes","Aguascalientes","A",3]
[20120,"Jardines de La Concepción 1a Sección","Aguascalientes","Aguascalientes","A",3]
[20120,"Jardines de La Concepción 2a Sección","Aguascalientes","Aguascalientes","A",3]
[20120,"Rinconada los Bosques","Aguascalientes","Aguascalientes","A",3]
[20120,"Los Bosques","Aguascalientes","Aguascalientes","A",3]
[20123,"Arroyo El Molino","Aguascalientes","Aguascalientes","A",3]
[20124,"Galerías","Aguascalientes","Aguascalientes","A",3]
[20124,"Residencial Altaria","Aguascalientes","Aguascalientes","A",3]
[20126,"Villa de Nuestra Señora de La Asunción Sector San Marcos","Aguascalientes","Aguascalientes","A",3]
[20126,"Privada Guadalupe","Aguascalientes","Aguascalientes","A",3]
[20126,"Villas de La Convención","Aguascalientes","Aguascalientes","A",3]
[20126,"Lomas de La Asunción","Aguascalientes","Aguascalientes","A",3]
[20126,"Villa de Nuestra Señora de La Asunción Sector Encino","Aguascalientes","Aguascalientes","A",3]
[20126,"Villa de Nuestra Señora de La Asunción Sector Alameda","Aguascalientes","Aguascalientes","A",3]
[20126,"San José de Pozo Bravo","Aguascalientes","Aguascalientes","A",3]
[20126,"Villa Notre Dame","Aguascalientes","Aguascalientes","A",3]
[20126,"Constitución","Aguascalientes","Aguascalientes","A",3]
[20126,"Pozo Bravo Norte","Aguascalientes","Aguascalientes","A",3]
[20126,"Villa de Nuestra Señora de La Asunción Sector Guadalupe","Aguascalientes","Aguascalientes","A",3]
[20126,"Villa de Nuestra Señora de La Asunción Sector Estación","Aguascalientes","Aguascalientes","A",3]
[20126,"Residencial las Plazas","Aguascalientes","Aguascalientes","A",3]
[20126,"Montebello Della Stanza","Aguascalientes","Aguascalientes","A",3]
[20126,"Soberana Convención Revolucionaria","Aguascalientes","Aguascalientes","A",3]
[20126,"Villa Loma Dorada","Aguascalientes","Aguascalientes","A",3]
[20126,"Libertad","Aguascalientes","Aguascalientes","A",3]
[20126,"Natura","Aguascalientes","Aguascalientes","A",3]
[20126,"Rinconada Pozo Bravo","Aguascalientes","Aguascalientes","A",3]
[20126,"Pozo Bravo Sur","Aguascalientes","Aguascalientes","A",3]
[20126,"Los Naranjos","Aguascalientes","Aguascalientes","A",3]
[20126,"Jardines de Montebello","Aguascalientes","Aguascalientes","A",3]
[20126,"Villa Teresa","Aguascalientes","Aguascalientes","A",3]
[20127,"Bosques del Prado Norte","Aguascalientes","Aguascalientes","A",3]
[20129,"Lomas del Campestre 1a Sección","Aguascalientes","Aguascalientes","A",3]
[20130,"Fátima","Aguascalientes","Aguascalientes","A",3]
[20130,"Primo Verdad","Aguascalientes","Aguascalientes","A",3]
[20130,"Unidad Ganadera","Aguascalientes","Aguascalientes","A",3]
[20130,"Nueva Rinconada","Aguascalientes","Aguascalientes","A",3]
[20130,"Puerta Navarra","Aguascalientes","Aguascalientes","A",3]
[20130,"Palmas del Pedregal","Aguascalientes","Aguascalientes","A",3]
[20130,"Residencial Campestre Club de Golf Norte","Aguascalientes","Aguascalientes","A",3]
[20130,"Residencial Campestre Club de Golf Sur","Aguascalientes","Aguascalientes","A",3]
[20130,"Palma Real","Aguascalientes","Aguascalientes","A",3]
[20130,"Bosques del Prado Sur","Aguascalientes","Aguascalientes","A",3]
[20130,"Independencia de México","Aguascalientes","Aguascalientes","A",3]
[20130,"El Roble","Aguascalientes","Aguascalientes","A",3]
[20130,"San José del Arenal","Aguascalientes","Aguascalientes","A",3]
[20135,"Centro Distribuidor de Básicos","Aguascalientes","Aguascalientes","A",3]
[20135,"Agropecuario","Aguascalientes","Aguascalientes","A",3]
[20136,"La Rinconada","Aguascalientes","Aguascalientes","A",3]
[20137,"El Plateado","Aguascalientes","Aguascalientes","A",3]
[20138,"Villas del Vergel","Aguascalientes","Aguascalientes","A",3]
[20138,"Residencial Pulgas Pandas Sur","Aguascalientes","Aguascalientes","A",3]
[20138,"Residencial Pulgas Pandas Norte","Aguascalientes","Aguascalientes","A",3]
[20138,"Cerrada San Miguel","Aguascalientes","Aguascalientes","A",3]
[20140,"Andrea","Aguascalientes","Aguascalientes","A",3]
[20140,"Morelos","Aguascalientes","Aguascalientes","A",3]
[20140,"Las Hadas","Aguascalientes","Aguascalientes","A",3]
[20146,"Los Arcos","Aguascalientes","Aguascalientes","A",3]
[20149,"Industrial","Aguascalientes","Aguascalientes","A",3]
[20150,"Lomas del Cobano","Aguascalientes","Aguascalientes","A",3]
[20150,"La Estrella","Aguascalientes","Aguascalientes","A",3]
[20150,"Macias Arellano","Aguascalientes","Aguascalientes","A",3]
[20150,"Buenavista","Aguascalientes","Aguascalientes","A",3]
[20150,"C.T.M.","Aguascalientes","Aguascalientes","A",3]
[20157,"La Higuerilla","Aguascalientes","Aguascalientes","A",3]
[20157,"Parras","Aguascalientes","Aguascalientes","A",3]
[20158,"Hacienda el Cobano 1a Sección","Aguascalientes","Aguascalientes","A",3]
[20158,"Villas del Cobano","Aguascalientes","Aguascalientes","A",3]
[20158,"Trojes del Cobano","Aguascalientes","Aguascalientes","A",3]
[20158,"El Cobano","Aguascalientes","Aguascalientes","A",3]
[20159,"Alianza Ferrocarrilera","Aguascalientes","Aguascalientes","A",3]
[20159,"Bosques del Prado Oriente","Aguascalientes","Aguascalientes","A",3]
[20160,"Francisco Guel Jimenez","Aguascalientes","Aguascalientes","A",3]
[20160,"Las Viñas INFONAVIT","Aguascalientes","Aguascalientes","A",3]
[20164,"Santa Anita 4a Sección","Aguascalientes","Aguascalientes","A",3]
[20169,"Santa Anita 2a Sección","Aguascalientes","Aguascalientes","A",3]
[20169,"Santa Anita","Aguascalientes","Aguascalientes","A",3]
[20170,"S.T.E.M.A.","Aguascalientes","Aguascalientes","A",3]
[20170,"Rodolfo Landeros Gallegos","Aguascalientes","Aguascalientes","A",3]
[20170,"Zona Militar","Aguascalientes","Aguascalientes","A",3]
[20170,"Lic Benito Juárez","Aguascalientes","Aguascalientes","A",3]
[20170,"Villa Bonita","Aguascalientes","Aguascalientes","A",3]
[20170,"El Maguey","Aguascalientes","Aguascalientes","A",3]
[20170,"Las Cumbres","Aguascalientes","Aguascalientes","A",3]
[20170,"Nazario Ortiz Garza","Aguascalientes","Aguascalientes","A",3]
[20172,"Lic Benito Palomino Dena","Aguascalientes","Aguascalientes","A",3]
[20172,"Claustros Loma Dorada","Aguascalientes","Aguascalientes","A",3]
[20174,"Vista de las Cumbres","Aguascalientes","Aguascalientes","A",3]
[20174,"Los Laureles 3ra. Sección","Aguascalientes","Aguascalientes","A",3]
[20174,"Paseos del Sol","Aguascalientes","Aguascalientes","A",3]
[20174,"Los Laureles 2a Sección","Aguascalientes","Aguascalientes","A",3]
[20174,"Los Laureles","Aguascalientes","Aguascalientes","A",3]
[20174,"Mirador de Las Culturas III","Aguascalientes","Aguascalientes","A",3]
[20174,"Villas de La Loma","Aguascalientes","Aguascalientes","A",3]
[20174,"Colinas de Oriente","Aguascalientes","Aguascalientes","A",3]
[20174,"Mirador de Las Culturas","Aguascalientes","Aguascalientes","A",3]
[20174,"Mirador de las Culturas 2a Sección","Aguascalientes","Aguascalientes","A",3]
[20174,"Los Pericos","Aguascalientes","Aguascalientes","A",3]
[20175,"Ejido las Cumbres","Aguascalientes","Aguascalientes","A",3]
[20175,"Lomas de Oriente 1a Sección","Aguascalientes","Aguascalientes","A",3]
[20175,"J Refugio Esparza Reyes","Aguascalientes","Aguascalientes","A",3]
[20175,"Lomas de Oriente 2da. Sección","Aguascalientes","Aguascalientes","A",3]
[20175,"Lomas de Oriente 3ra. Sección","Aguascalientes","Aguascalientes","A",3]
[20177,"C.N.O.P. Oriente","Aguascalientes","Aguascalientes","A",3]
[20179,"Pensadores Mexicanos","Aguascalientes","Aguascalientes","A",3]
[20179,"Luis Ortega Douglas","Aguascalientes","Aguascalientes","A",3]
[20179,"Las Cumbres","Aguascalientes","Aguascalientes","A",3]
[20179,"Pintores Mexicanos","Aguascalientes","Aguascalientes","A",3]
[20179,"Las Cumbres II","Aguascalientes","Aguascalientes","A",3]
[20179,"Cerro Alto","Aguascalientes","Aguascalientes","A",3]
[20179,"Progreso","Aguascalientes","Aguascalientes","A",3]
[20180,"Ferronales","Aguascalientes","Aguascalientes","A",3]
[20180,"Rinconada de La Alameda","Aguascalientes","Aguascalientes","A",3]
[20180,"Lomas de Santa Anita","Aguascalientes","Aguascalientes","A",3]
[20180,"Luis Gómez Zepeda (ferronales)","Aguascalientes","Aguascalientes","A",3]
[20180,"Bosques de La Alameda","Aguascalientes","Aguascalientes","A",3]
[20180,"Del Trabajo","Aguascalientes","Aguascalientes","A",3]
[20190,"La Hacienda","Aguascalientes","Aguascalientes","A",3]
[20190,"La Mancha","Aguascalientes","Aguascalientes","A",3]
[20190,"Héroes","Aguascalientes","Aguascalientes","A",3]
[20196,"Ojocaliente I","Aguascalientes","Aguascalientes","A",3]
[20196,"Ojocaliente INEGI","Aguascalientes","Aguascalientes","A",3]
[20196,"Villerías","Aguascalientes","Aguascalientes","A",3]
[20196,"Solidaridad 1a Sección","Aguascalientes","Aguascalientes","A",3]
[20196,"Vistas de Oriente","Aguascalientes","Aguascalientes","A",3]
[20196,"Ojocaliente INEGI II","Aguascalientes","Aguascalientes","A",3]
[20196,"Terra Nova","Aguascalientes","Aguascalientes","A",3]
[20196,"Haciendas de Aguascalientes 1a Sección","Aguascalientes","Aguascalientes","A",3]
[20196,"Real de Haciendas","Aguascalientes","Aguascalientes","A",3]
[20196,"Valle de los Cactus","Aguascalientes","Aguascalientes","A",3]
[20196,"Balcones de Oriente","Aguascalientes","Aguascalientes","A",3]
[20196,"José Guadalupe Peralta Gámez","Aguascalientes","Aguascalientes","A",3]
[20196,"Ojocaliente 3a Sección","Aguascalientes","Aguascalientes","A",3]
[20196,"Colinas de San Patricio","Aguascalientes","Aguascalientes","A",3]
[20196,"El Rocio","Aguascalientes","Aguascalientes","A",3]
[20196,"Valle del Bicentenario","Aguascalientes","Aguascalientes","A",3]
[20196,"J. Guadalupe Posada","Aguascalientes","Aguascalientes","A",3]
[20197,"Ciudad Jesús Terán","Aguascalientes","Aguascalientes","A",3]
[20198,"Ex Hacienda Ojocaliente","Aguascalientes","Aguascalientes","A",3]
[20198,"Misión Alameda","Aguascalientes","Aguascalientes","A",3]
[20198,"Ejido Ojocaliente","Aguascalientes","Aguascalientes","A",3]
[20199,"Ojo Caliente IV","Aguascalientes","Aguascalientes","A",3]
[20199,"El Riego","Aguascalientes","Aguascalientes","A",3]
[20199,"Fidel Velázquez INFONAVIT","Aguascalientes","Aguascalientes","A",3]
[20199,"Municipio Libre","Aguascalientes","Aguascalientes","A",3]
[20200,"José Vasconcelos Calderón","Aguascalientes","Aguascalientes","A",3]
[20200,"Lic Manuel Gómez Morin","Aguascalientes","Aguascalientes","A",3]
[20200,"San Nicolás","Aguascalientes","Aguascalientes","A",3]
[20200,"Ex Hacienda La Cantera","Aguascalientes","Aguascalientes","A",3]
[20200,"Villas del Mediterráneo","Aguascalientes","Aguascalientes","A",3]
[20200,"Veteranos de La Revolución","Aguascalientes","Aguascalientes","A",3]
[20200,"Bellavista","Aguascalientes","Aguascalientes","A",3]
[20200,"Porta Canteras","Aguascalientes","Aguascalientes","A",3]
[20200,"Loma Bonita","Aguascalientes","Aguascalientes","A",3]
[20200,"Villas de La Cantera 1a Sección","Aguascalientes","Aguascalientes","A",3]
[20200,"San Nicolás 1ra. Sección","Aguascalientes","Aguascalientes","A",3]
[20200,"Fuentes del Lago","Aguascalientes","Aguascalientes","A",3]
[20205,"Educación Álamos","Aguascalientes","Aguascalientes","A",3]
[20205,"Nueva España","Aguascalientes","Aguascalientes","A",3]
[20206,"Lic. José López Portillo","Aguascalientes","Aguascalientes","A",3]
[20206,"La Barranquilla","Aguascalientes","Aguascalientes","A",3]
[20206,"Los Barandales","Aguascalientes","Aguascalientes","A",3]
[20207,"Canteras de San Javier","Aguascalientes","Aguascalientes","A",3]
[20207,"Rinconada San José","Aguascalientes","Aguascalientes","A",3]
[20208,"Canteras de San José","Aguascalientes","Aguascalientes","A",3]
[20210,"España","Aguascalientes","Aguascalientes","A",3]
[20210,"La Barranca de Guadalupe","Aguascalientes","Aguascalientes","A",3]
[20210,"Pirules INFONAVIT","Aguascalientes","Aguascalientes","A",3]
[20210,"Circunvalación Poniente","Aguascalientes","Aguascalientes","A",3]
[20216,"Jardines de los Pirules","Aguascalientes","Aguascalientes","A",3]
[20217,"Residencial los Pirules","Aguascalientes","Aguascalientes","A",3]
[20218,"Jardines del Lago","Aguascalientes","Aguascalientes","A",3]
[20218,"San Martin de La Cantera","Aguascalientes","Aguascalientes","A",3]
[20218,"Santa Imelda","Aguascalientes","Aguascalientes","A",3]
[20218,"Los Eucaliptos 2a. Sección","Aguascalientes","Aguascalientes","A",3]
[20218,"Francisco Villa","Aguascalientes","Aguascalientes","A",3]
[20218,"Canteras de San Agustin","Aguascalientes","Aguascalientes","A",3]
[20218,"Los Eucaliptos","Aguascalientes","Aguascalientes","A",3]
[20219,"Parque Industrial el Vergel","Aguascalientes","Aguascalientes","A",3]
[20219,"El Edén","Aguascalientes","Aguascalientes","A",3]
[20219,"Misión Juan Pablo II","Aguascalientes","Aguascalientes","A",3]
[20220,"Las Flores","Aguascalientes","Aguascalientes","A",3]
[20220,"Vivienda Popular","Aguascalientes","Aguascalientes","A",3]
[20229,"Las Torres","Aguascalientes","Aguascalientes","A",3]
[20230,"Santa Elena","Aguascalientes","Aguascalientes","A",3]
[20230,"Las Américas","Aguascalientes","Aguascalientes","A",3]
[20230,"Obraje","Aguascalientes","Aguascalientes","A",3]
[20234,"Agricultura","Aguascalientes","Aguascalientes","A",3]
[20234,"Mesonero","Aguascalientes","Aguascalientes","A",3]
[20235,"Valle Dorado","Aguascalientes","Aguascalientes","A",3]
[20235,"Villa Jardín 2a Sección","Aguascalientes","Aguascalientes","A",3]
[20235,"Villa Jardín 1a Sección","Aguascalientes","Aguascalientes","A",3]
[20235,"El Dorado 1a Sección","Aguascalientes","Aguascalientes","A",3]
[20235,"El Dorado 2a Sección","Aguascalientes","Aguascalientes","A",3]
[20236,"Jardines de Santa Elena","Aguascalientes","Aguascalientes","A",3]
[20237,"Montebello","Aguascalientes","Aguascalientes","A",3]
[20237,"Hermanos Carreón","Aguascalientes","Aguascalientes","A",3]
[20238,"Santa Elena 2a Sección","Aguascalientes","Aguascalientes","A",3]
[20239,"La Fuente","Aguascalientes","Aguascalientes","A",3]
[20240,"Los Virreyes","Aguascalientes","Aguascalientes","A",3]
[20240,"El Llanito","Aguascalientes","Aguascalientes","A",3]
[20240,"Residencial Cosío","Aguascalientes","Aguascalientes","A",3]
[20240,"Triana","Aguascalientes","Aguascalientes","A",3]
[20240,"La Luna","Aguascalientes","Aguascalientes","A",3]
[20240,"El Laurel","Aguascalientes","Aguascalientes","A",3]
[20240,"La Salud","Aguascalientes","Aguascalientes","A",3]
[20240,"Residencial el Encino","Aguascalientes","Aguascalientes","A",3]
[20240,"El Encino","Aguascalientes","Aguascalientes","A",3]
[20240,"Triana","Aguascalientes","Aguascalientes","A",3]
[20247,"San Fernando INFONAVIT","Aguascalientes","Aguascalientes","A",3]
[20248,"Jardines de Triana","Aguascalientes","Aguascalientes","A",3]
[20249,"Gámez","Aguascalientes","Aguascalientes","A",3]
[20250,"Jardines de La Cruz","Aguascalientes","Aguascalientes","A",3]
[20250,"Villas de Kristal","Aguascalientes","Aguascalientes","A",3]
[20250,"Jesús Gómez Portugal","Aguascalientes","Aguascalientes","A",3]
[20250,"Héroes de Aguascalientes","Aguascalientes","Aguascalientes","A",3]
[20250,"La Huerta","Aguascalientes","Aguascalientes","A",3]
[20250,"San Luis","Aguascalientes","Aguascalientes","A",3]
[20255,"Bona Gens","Aguascalientes","Aguascalientes","A",3]
[20255,"INFONAVIT Los Volcanes","Aguascalientes","Aguascalientes","A",3]
[20256,"FOVISSSTE Ojocaliente I","Aguascalientes","Aguascalientes","A",3]
[20256,"Ojocaliente las Torres","Aguascalientes","Aguascalientes","A",3]
[20256,"Villas de Ojocaliente","Aguascalientes","Aguascalientes","A",3]
[20256,"Ojocaliente FOVISSSTE II","Aguascalientes","Aguascalientes","A",3]
[20256,"Rinconada de La Cruz","Aguascalientes","Aguascalientes","A",3]
[20257,"Lázaro Cárdenas","Aguascalientes","Aguascalientes","A",3]
[20259,"La Estación","Aguascalientes","Aguascalientes","A",3]
[20259,"La Purísima","Aguascalientes","Aguascalientes","A",3]
[20260,"Ojo de Agua","Aguascalientes","Aguascalientes","A",3]
[20260,"IV Centenario","Aguascalientes","Aguascalientes","A",3]
[20260,"Jesús Terán Peredo","Aguascalientes","Aguascalientes","A",3]
[20260,"Rinconada El Cedazo","Aguascalientes","Aguascalientes","A",3]
[20260,"Sidusa","Aguascalientes","Aguascalientes","A",3]
[20260,"Vivienda Militar","Aguascalientes","Aguascalientes","A",3]
[20263,"Ojo de Agua de Palmitas","Aguascalientes","Aguascalientes","A",3]
[20263,"Salto de Ojocaliente","Aguascalientes","Aguascalientes","A",3]
[20263,"Cima del Chapulín","Aguascalientes","Aguascalientes","A",3]
[20263,"Balcones de Ojocaliente","Aguascalientes","Aguascalientes","A",3]
[20263,"Villa las Palmas","Aguascalientes","Aguascalientes","A",3]
[20263,"Bajío de las Palmas","Aguascalientes","Aguascalientes","A",3]
[20263,"Lomas del Gachupín","Aguascalientes","Aguascalientes","A",3]
[20263,"Agua Clara","Aguascalientes","Aguascalientes","A",3]
[20263,"San Jorge","Aguascalientes","Aguascalientes","A",3]
[20263,"Solidaridad 2a Sección","Aguascalientes","Aguascalientes","A",3]
[20263,"Lomas del Chapulín","Aguascalientes","Aguascalientes","A",3]
[20263,"Solidaridad 3a Sección","Aguascalientes","Aguascalientes","A",3]
[20263,"Tierra Buena","Aguascalientes","Aguascalientes","A",3]
[20263,"Cobano de Palmitas","Aguascalientes","Aguascalientes","A",3]
[20263,"El Cedazo","Aguascalientes","Aguascalientes","A",3]
[20263,"Villa Las Palmas 2a. Sección","Aguascalientes","Aguascalientes","A",3]
[20263,"Cielo Claro","Aguascalientes","Aguascalientes","A",3]
[20263,"La Lomita","Aguascalientes","Aguascalientes","A",3]
[20264,"Vista del Sol 3a Sección","Aguascalientes","Aguascalientes","A",3]
[20264,"Morelos INFONAVIT","Aguascalientes","Aguascalientes","A",3]
[20264,"Vista del Sol 2a Sección","Aguascalientes","Aguascalientes","A",3]
[20265,"Ojo de Agua INFONAVIT","Aguascalientes","Aguascalientes","A",3]
[20266,"La Cruz","Aguascalientes","Aguascalientes","A",3]
[20266,"Misión de Santa Fe","Aguascalientes","Aguascalientes","A",3]
[20266,"Jardines del Sol","Aguascalientes","Aguascalientes","A",3]
[20266,"Vista del Sol 1a Sección","Aguascalientes","Aguascalientes","A",3]
[20267,"Jardines de La Convención","Aguascalientes","Aguascalientes","A",3]
[20267,"S.T.E.M.A.","Aguascalientes","Aguascalientes","A",3]
[20267,"Lic Primo Verdad INEGI","Aguascalientes","Aguascalientes","A",3]
[20267,"Ojo de Agua FOVISSSTE 1a Sección","Aguascalientes","Aguascalientes","A",3]
[20268,"Fuentes de La Asunción","Aguascalientes","Aguascalientes","A",3]
[20269,"Jardines de La Luz","Aguascalientes","Aguascalientes","A",3]
[20270,"Jardines de La Asunción","Aguascalientes","Aguascalientes","A",3]
[20270,"Bulevar","Aguascalientes","Aguascalientes","A",3]
[20270,"Las Canoas","Aguascalientes","Aguascalientes","A",3]
[20270,"Jardines de Aguascalientes","Aguascalientes","Aguascalientes","A",3]
[20270,"Lindavista","Aguascalientes","Aguascalientes","A",3]
[20270,"Los Cedros","Aguascalientes","Aguascalientes","A",3]
[20270,"México","Aguascalientes","Aguascalientes","A",3]
[20270,"El Caminero","Aguascalientes","Aguascalientes","A",3]
[20276,"Jardines de las Bugambilias","Aguascalientes","Aguascalientes","A",3]
[20276,"Jardines del Parque","Aguascalientes","Aguascalientes","A",3]
[20277,"Rinconada del Parque","Aguascalientes","Aguascalientes","A",3]
[20277,"Residencial del Parque","Aguascalientes","Aguascalientes","A",3]
[20277,"Pirámides","Aguascalientes","Aguascalientes","A",3]
[20278,"Jardines de las Fuentes","Aguascalientes","Aguascalientes","A",3]
[20278,"Diana","Aguascalientes","Aguascalientes","A",3]
[20280,"Jardines del Sur","Aguascalientes","Aguascalientes","A",3]
[20280,"Casasolida","Aguascalientes","Aguascalientes","A",3]
[20280,"La Luz","Aguascalientes","Aguascalientes","A",3]
[20280,"San Francisco del Arenal","Aguascalientes","Aguascalientes","A",3]
[20280,"San Pedro","Aguascalientes","Aguascalientes","A",3]
[20280,"Prados de Villasunción","Aguascalientes","Aguascalientes","A",3]
[20280,"Martinez Dominguez","Aguascalientes","Aguascalientes","A",3]
[20280,"Torres de San Francisco","Aguascalientes","Aguascalientes","A",3]
[20280,"Central de Abastos","Aguascalientes","Aguascalientes","A",3]
[20280,"Prados del Sur","Aguascalientes","Aguascalientes","A",3]
[20280,"Trojes del Sur","Aguascalientes","Aguascalientes","A",3]
[20283,"Parque Industrial Siglo XXI","Aguascalientes","Aguascalientes","A",3]
[20283,"Parque Industrial Siglo XXI (Ampliación)","Aguascalientes","Aguascalientes","A",3]
[20284,"Villas del Oeste","Aguascalientes","Aguascalientes","A",3]
[20284,"Villas de Santa Rosa","Aguascalientes","Aguascalientes","A",3]
[20284,"La Estancia","Aguascalientes","Aguascalientes","A",3]
[20284,"INFONAVIT Potreros del Oeste","Aguascalientes","Aguascalientes","A",3]
[20284,"Vista del Sur","Aguascalientes","Aguascalientes","A",3]
[20285,"Versalles 1a Sección","Aguascalientes","Aguascalientes","A",3]
[20285,"Versalles 2a Sección","Aguascalientes","Aguascalientes","A",3]
[20286,"Villas del Pilar 1a Sección","Aguascalientes","Aguascalientes","A",3]
[20286,"Villa Capri","Aguascalientes","Aguascalientes","A",3]
[20286,"Paseos de Santa Mónica","Aguascalientes","Aguascalientes","A",3]
[20286,"Rancho Santa Mónica","Aguascalientes","Aguascalientes","A",3]
[20286,"Providencia","Aguascalientes","Aguascalientes","A",3]
[20286,"Rinconada Santa Mónica","Aguascalientes","Aguascalientes","A",3]
[20286,"Vicente Guerrero","Aguascalientes","Aguascalientes","A",3]
[20286,"Villas San Antonio","Aguascalientes","Aguascalientes","A",3]
[20287,"Insurgentes","Aguascalientes","Aguascalientes","A",3]
[20288,"Bulevares 1a. Sección","Aguascalientes","Aguascalientes","A",3]
[20288,"Bulevares 2a. Sección","Aguascalientes","Aguascalientes","A",3]
[20289,"Pilar Blanco INFONAVIT","Aguascalientes","Aguascalientes","A",3]
[20290,"Parque Industrial ALTEC","Aguascalientes","Aguascalientes","A",3]
[20290,"Ciudad Industrial","Aguascalientes","Aguascalientes","A",3]
[20290,"Vista Alegre","Aguascalientes","Aguascalientes","A",3]
[20290,"Plaza Vestir","Aguascalientes","Aguascalientes","A",3]
[20291,"Centro SCT Aguascalientes","Aguascalientes","Aguascalientes","A",3]
[20296,"Villas de Bonaterra","Aguascalientes","Aguascalientes","A",3]
[20296,"Residencial San Javier","Aguascalientes","Aguascalientes","A",3]
[20296,"Villa Sur","Aguascalientes","Aguascalientes","A",3]
[20296,"Rústicos Calpulli","Aguascalientes","Aguascalientes","A",3]
[20296,"San Francisco de los Arteaga","Aguascalientes","Aguascalientes","A",3]
[20297,"Casa Blanca","Aguascalientes","Aguascalientes","A",3]
[20297,"Jardines de Casanueva","Aguascalientes","Aguascalientes","A",3]
[20297,"Jardines de Casablanca","Aguascalientes","Aguascalientes","A",3]
[20298,"Morelos I","Aguascalientes","Aguascalientes","A",3]
[20298,"Morelos 2a Sección","Aguascalientes","Aguascalientes","A",3]
[20298,"Lomas del Sur","Aguascalientes","Aguascalientes","A",3]
[20298,"Lomas de Vistabella 2a. Sección","Aguascalientes","Aguascalientes","A",3]
[20298,"San Sebastián","Aguascalientes","Aguascalientes","A",3]
[20298,"Solidaridad 4a Sección","Aguascalientes","Aguascalientes","A",3]
[20298,"Villas de Ajedrez","Aguascalientes","Aguascalientes","A",3]
[20298,"Lomas del Mirador I Sección","Aguascalientes","Aguascalientes","A",3]
[20298,"Misión de Santa Lucía","Aguascalientes","Aguascalientes","A",3]
[20298,"Emiliano Zapata","Aguascalientes","Aguascalientes","A",3]
[20298,"Ladrilleras Los Arellano","Aguascalientes","Aguascalientes","A",3]
[20298,"Valle del Cedazo","Aguascalientes","Aguascalientes","A",3]
[20298,"Lomas de Vistabella","Aguascalientes","Aguascalientes","A",3]
[20298,"Lomas de Nueva York","Aguascalientes","Aguascalientes","A",3]
[20298,"Lomas del Mirador II Sección","Aguascalientes","Aguascalientes","A",3]
[20298,"Paseos de San Antonio","Aguascalientes","Aguascalientes","A",3]
[20298,"Laureles del Sur","Aguascalientes","Aguascalientes","A",3]
[20298,"Condominio La terraza","Aguascalientes","Aguascalientes","A",3]
[20299,"Lomas de San Jorge 2a. Sección","Aguascalientes","Aguascalientes","A",3]
[20299,"Mujeres Ilustres","Aguascalientes","Aguascalientes","A",3]
[20299,"Periodistas","Aguascalientes","Aguascalientes","A",3]
[20299,"Villalta","Aguascalientes","Aguascalientes","A",3]
[20299,"Lomas del Ajedrez","Aguascalientes","Aguascalientes","A",3]
[20299,"Lomas de San Jorge","Aguascalientes","Aguascalientes","A",3]
[20299,"Reencuentro","Aguascalientes","Aguascalientes","A",3]
[20299,"Fundadores","Aguascalientes","Aguascalientes","A",3]
[20299,"Lomas Altas","Aguascalientes","Aguascalientes","A",3]
[20300,"Campestre San Carlos","San Francisco de los Romo","Aguascalientes","A",3]
[20300,"Panamericano","San Francisco de los Romo","Aguascalientes","A",3]
[20300,"San Francisco de los Romos Centro","San Francisco de los Romo","Aguascalientes","A",3]
[20303,"La Margarita","San Francisco de los Romo","Aguascalientes","A",3]
[20303,"Los Cedros","San Francisco de los Romo","Aguascalientes","A",3]
[20303,"San Francisco","San Francisco de los Romo","Aguascalientes","A",3]
[20303,"San Juan Bautista","San Francisco de los Romo","Aguascalientes","A",3]
[20303,"San Pablo","San Francisco de los Romo","Aguascalientes","A",3]
[20303,"La Perla","San Francisco de los Romo","Aguascalientes","A",3]
[20303,"María","San Francisco de los Romo","Aguascalientes","A",3]
[20303,"La Guadalupana","San Francisco de los Romo","Aguascalientes","A",3]
[20303,"Viñedos San José","San Francisco de los Romo","Aguascalientes","A",3]
[20303,"Hidalgo","San Francisco de los Romo","Aguascalientes","A",3]
[20303,"Santa Isabel","San Francisco de los Romo","Aguascalientes","A",3]
[20303,"El Tirón","San Francisco de los Romo","Aguascalientes","A",3]
[20303,"La Aurora","San Francisco de los Romo","Aguascalientes","A",3]
[20303,"La Sociedad San Juan","San Francisco de los Romo","Aguascalientes","A",3]
[20303,"Revolución","San Francisco de los Romo","Aguascalientes","A",3]
[20303,"San José Buenavista","San Francisco de los Romo","Aguascalientes","A",3]
[20304,"Fracción de La Trinidad II","San Francisco de los Romo","Aguascalientes","A",3]
[20304,"El Chamizal","San Francisco de los Romo","Aguascalientes","A",3]
[20304,"San José del Barranco","San Francisco de los Romo","Aguascalientes","A",3]
[20304,"Villa de Guadalupe","San Francisco de los Romo","Aguascalientes","A",3]
[20304,"Santa Bárbara","San Francisco de los Romo","Aguascalientes","A",3]
[20304,"Mary","San Francisco de los Romo","Aguascalientes","A",3]
[20304,"Monserrat","San Francisco de los Romo","Aguascalientes","A",3]
[20304,"San Juan","San Francisco de los Romo","Aguascalientes","A",3]
[20304,"28 de Abril","San Francisco de los Romo","Aguascalientes","A",3]
[20304,"Parque Industrial San Francisco","San Francisco de los Romo","Aguascalientes","A",3]
[20304,"La Escondida","San Francisco de los Romo","Aguascalientes","A",3]
[20305,"La Concepción","San Francisco de los Romo","Aguascalientes","A",3]
[20305,"La Gloria","San Francisco de los Romo","Aguascalientes","A",3]
[20305,"Los Lirios","San Francisco de los Romo","Aguascalientes","A",3]
[20305,"Los Sabinos","San Francisco de los Romo","Aguascalientes","A",3]
[20305,"Zacatenco","San Francisco de los Romo","Aguascalientes","A",3]
[20305,"El Barranco","San Francisco de los Romo","Aguascalientes","A",3]
[20305,"La Providencia","San Francisco de los Romo","Aguascalientes","A",3]
[20305,"Santa Elena","San Francisco de los Romo","Aguascalientes","A",3]
[20305,"Viñedos los Zapata","San Francisco de los Romo","Aguascalientes","A",3]
[20305,"El Refugio","San Francisco de los Romo","Aguascalientes","A",3]
[20305,"Elena","San Francisco de los Romo","Aguascalientes","A",3]
[20305,"La Trinidad","San Francisco de los Romo","Aguascalientes","A",3]
[20305,"Los Gonzalez","San Francisco de los Romo","Aguascalientes","A",3]
[20305,"San Cristóbal","San Francisco de los Romo","Aguascalientes","A",3]
[20305,"San Pedro Victoria de Abajo","San Francisco de los Romo","Aguascalientes","A",3]
[20305,"El Espíritu","San Francisco de los Romo","Aguascalientes","A",3]
[20305,"El Gigante","San Francisco de los Romo","Aguascalientes","A",3]
[20305,"La Paz","San Francisco de los Romo","Aguascalientes","A",3]
[20305,"Alfredo Soriano Lopez","San Francisco de los Romo","Aguascalientes","A",3]
[20305,"El Cortijo","San Francisco de los Romo","Aguascalientes","A",3]
[20305,"La Unión","San Francisco de los Romo","Aguascalientes","A",3]
[20305,"San Pedro Victoria de Arriba","San Francisco de los Romo","Aguascalientes","A",3]
[20305,"Las Carmelitas","San Francisco de los Romo","Aguascalientes","A",3]
[20305,"San Angel","San Francisco de los Romo","Aguascalientes","A",3]
[20305,"Viñedos Xoconoxtle","San Francisco de los Romo","Aguascalientes","A",3]
[20305,"Santa Anita","San Francisco de los Romo","Aguascalientes","A",3]
[20310,"La Loma de los Negritos","Aguascalientes","Aguascalientes","A",3]
[20310,"San Felipe (Viñedos San Felipe)","Aguascalientes","Aguascalientes","A",3]
[20310,"Los Negritos","Aguascalientes","Aguascalientes","A",3]
[20311,"Sandovales","Aguascalientes","Aguascalientes","A",3]
[20311,"Coyotes Norte","Aguascalientes","Aguascalientes","A",3]
[20311,"Trojes de Alonso","Aguascalientes","Aguascalientes","A",3]
[20312,"Rio Curtidores","Aguascalientes","Aguascalientes","A",3]
[20313,"Cuauhtémoc","Aguascalientes","Aguascalientes","A",3]
[20313,"Hacienda Nueva","Aguascalientes","Aguascalientes","A",3]
[20314,"Cariñan","Aguascalientes","Aguascalientes","A",3]
[20314,"Torrecillas","Aguascalientes","Aguascalientes","A",3]
[20315,"Viñedos Valle Redondo","Aguascalientes","Aguascalientes","A",3]
[20316,"Lomas del Picacho","Aguascalientes","Aguascalientes","A",3]
[20316,"El Picacho","Aguascalientes","Aguascalientes","A",3]
[20317,"Santa Cruz de La Presa","Aguascalientes","Aguascalientes","A",3]
[20318,"La Cantera","Aguascalientes","Aguascalientes","A",3]
[20319,"Cereso (para Varones y Mujeres)","Aguascalientes","Aguascalientes","A",3]
[20320,"Gral. José María Morelos y Pavón","Aguascalientes","Aguascalientes","A",3]
[20320,"Cañada Honda","Aguascalientes","Aguascalientes","A",3]
[20321,"El Cortijo","Aguascalientes","Aguascalientes","A",3]
[20321,"La Escondida","Aguascalientes","Aguascalientes","A",3]
[20322,"La Presa","Aguascalientes","Aguascalientes","A",3]
[20322,"San Vicente","Aguascalientes","Aguascalientes","A",3]
[20323,"Santa María de Gallardo","Aguascalientes","Aguascalientes","A",3]
[20324,"Jaltomate","Aguascalientes","Aguascalientes","A",3]
[20326,"La Rioja","Aguascalientes","Aguascalientes","A",3]
[20326,"San Ignacio III","Aguascalientes","Aguascalientes","A",3]
[20326,"La Perla","Aguascalientes","Aguascalientes","A",3]
[20326,"San Ignacio","Aguascalientes","Aguascalientes","A",3]
[20326,"La Soledad","Aguascalientes","Aguascalientes","A",3]
[20326,"San Ignacio 3","Aguascalientes","Aguascalientes","A",3]
[20326,"San Ignacio II","Aguascalientes","Aguascalientes","A",3]
[20326,"Rinconada San Ignacio","Aguascalientes","Aguascalientes","A",3]
[20326,"Puesta del Sol","Aguascalientes","Aguascalientes","A",3]
[20326,"Ex Hacienda San Ignacio","Aguascalientes","Aguascalientes","A",3]
[20328,"Los Pocitos","Aguascalientes","Aguascalientes","A",3]
[20328,"Sandovales de Arriba","Aguascalientes","Aguascalientes","A",3]
[20328,"Parque Industrial Tecno Polo","Aguascalientes","Aguascalientes","A",3]
[20329,"Contadero","Aguascalientes","Aguascalientes","A",3]
[20329,"Las Plazuelas","Aguascalientes","Aguascalientes","A",3]
[20329,"Puerta del Sol","Aguascalientes","Aguascalientes","A",3]
[20329,"La Punta Campestre","Aguascalientes","Aguascalientes","A",3]
[20329,"Rincón Andaluz","Aguascalientes","Aguascalientes","A",3]
[20329,"Torre Campestre Santa María","Aguascalientes","Aguascalientes","A",3]
[20329,"Santa María","Aguascalientes","Aguascalientes","A",3]
[20329,"Río Viejo","Aguascalientes","Aguascalientes","A",3]
[20329,"La Joya","Aguascalientes","Aguascalientes","A",3]
[20330,"Palo Alto","El Llano","Aguascalientes","A",3]
[20330,"El Saucito","El Llano","Aguascalientes","A",3]
[20330,"De Afuera","El Llano","Aguascalientes","A",3]
[20330,"El Salto","El Llano","Aguascalientes","A",3]
[20330,"Pobre","El Llano","Aguascalientes","A",3]
[20330,"De Abajo","El Llano","Aguascalientes","A",3]
[20330,"De Triana","El Llano","Aguascalientes","A",3]
[20330,"El Progreso","El Llano","Aguascalientes","A",3]
[20330,"Centro del Barrio","El Llano","Aguascalientes","A",3]
[20333,"Las Flores","El Llano","Aguascalientes","A",3]
[20333,"San Rafael","El Llano","Aguascalientes","A",3]
[20333,"El Coton","El Llano","Aguascalientes","A",3]
[20333,"El Milagro","El Llano","Aguascalientes","A",3]
[20333,"El Vaciero","El Llano","Aguascalientes","A",3]
[20333,"Lic Jesús Terán","El Llano","Aguascalientes","A",3]
[20333,"San Francisco de Los Pedroza","El Llano","Aguascalientes","A",3]
[20333,"El Barreno (Ampliación San Francisco)","El Llano","Aguascalientes","A",3]
[20333,"Las Laminas","El Llano","Aguascalientes","A",3]
[20333,"San Francisco de los Viveros","El Llano","Aguascalientes","A",3]
[20333,"Sandovales","El Llano","Aguascalientes","A",3]
[20333,"El Mocho","El Llano","Aguascalientes","A",3]
[20333,"San Gerónimo","El Llano","Aguascalientes","A",3]
[20333,"Granaj San José (San Antonio de Montoya)","El Llano","Aguascalientes","A",3]
[20334,"El Novillo","El Llano","Aguascalientes","A",3]
[20334,"El Colorin","El Llano","Aguascalientes","A",3]
[20334,"La Luz","El Llano","Aguascalientes","A",3]
[20334,"La Luz de Palo Alto","El Llano","Aguascalientes","A",3]
[20335,"Ojo de Agua de Crucitas","El Llano","Aguascalientes","A",3]
[20335,"El Puertecito","El Llano","Aguascalientes","A",3]
[20335,"Ojo de Agua de Placitas","El Llano","Aguascalientes","A",3]
[20336,"Francisco Sarabia","El Llano","Aguascalientes","A",3]
[20336,"Santa Rosa","El Llano","Aguascalientes","A",3]
[20336,"Los Conos","El Llano","Aguascalientes","A",3]
[20336,"El Terremoto","El Llano","Aguascalientes","A",3]
[20336,"Montoya","El Llano","Aguascalientes","A",3]
[20337,"La Tinaja","El Llano","Aguascalientes","A",3]
[20337,"San Jerónimo","El Llano","Aguascalientes","A",3]
[20337,"El Retoño","El Llano","Aguascalientes","A",3]
[20337,"El Rosario","El Llano","Aguascalientes","A",3]
[20338,"La Unión","El Llano","Aguascalientes","A",3]
[20338,"Mirasoles","El Llano","Aguascalientes","A",3]
[20338,"El Copetillo (El Moquete)","El Llano","Aguascalientes","A",3]
[20338,"San Lorenzo","El Llano","Aguascalientes","A",3]
[20338,"El Copetillo","El Llano","Aguascalientes","A",3]
[20338,"San Agustín","El Llano","Aguascalientes","A",3]
[20338,"La Lucita","El Llano","Aguascalientes","A",3]
[20338,"San Ramón","El Llano","Aguascalientes","A",3]
[20338,"Rancho Nuevo","El Llano","Aguascalientes","A",3]
[20338,"Tanque El Coyote (El Coyote)","El Llano","Aguascalientes","A",3]
[20338,"Santa Clara (Las Mieleras)","El Llano","Aguascalientes","A",3]
[20338,"La Calavera (Q. de Alonso)","El Llano","Aguascalientes","A",3]
[20338,"San Antonio de La Rosa","El Llano","Aguascalientes","A",3]
[20338,"La Paz","El Llano","Aguascalientes","A",3]
[20338,"El Chonguillo (El Chonguito)","El Llano","Aguascalientes","A",3]
[20338,"Granja Temixco","El Llano","Aguascalientes","A",3]
[20338,"Santa Elena","El Llano","Aguascalientes","A",3]
[20338,"El Tildio","El Llano","Aguascalientes","A",3]
[20338,"La Primavera","El Llano","Aguascalientes","A",3]
[20338,"Santa Rita Uno (Santa Rita)","El Llano","Aguascalientes","A",3]
[20338,"Lomas del Refugio","El Llano","Aguascalientes","A",3]
[20338,"El Paraíso (Santa Rita)","El Llano","Aguascalientes","A",3]
[20339,"Cereso el Llano","El Llano","Aguascalientes","A",3]
[20340,"Cieneguilla","Aguascalientes","Aguascalientes","A",3]
[20340,"Buena Vista de Peñuelas","Aguascalientes","Aguascalientes","A",3]
[20340,"Peñuelas","Aguascalientes","Aguascalientes","A",3]
[20340,"Arellano","Aguascalientes","Aguascalientes","A",3]
[20341,"La Huerta","Aguascalientes","Aguascalientes","A",3]
[20341,"El Salto de Ojocaliente","Aguascalientes","Aguascalientes","A",3]
[20341,"Salto de los Salados","Aguascalientes","Aguascalientes","A",3]
[20342,"San Francisco","Aguascalientes","Aguascalientes","A",3]
[20342,"San Gerardo","Aguascalientes","Aguascalientes","A",3]
[20344,"Lic Jesús Terán Villa","Aguascalientes","Aguascalientes","A",3]
[20345,"Montoro","Aguascalientes","Aguascalientes","A",3]
[20346,"Los Caños","Aguascalientes","Aguascalientes","A",3]
[20348,"San Antonio de Peñuelas","Aguascalientes","Aguascalientes","A",3]
[20349,"Aguascalientes (Lic. Jesús Terán Peredo)","Aguascalientes","Aguascalientes","A",3]
[20350,"Medio Kilo","San Francisco de los Romo","Aguascalientes","A",3]
[20350,"Rancho Seco","San Francisco de los Romo","Aguascalientes","A",3]
[20350,"La Biznaga","San Francisco de los Romo","Aguascalientes","A",3]
[20350,"Macario J Gómez","San Francisco de los Romo","Aguascalientes","A",3]
[20350,"Loretito","San Francisco de los Romo","Aguascalientes","A",3]
[20353,"La Providencia 1","San Francisco de los Romo","Aguascalientes","A",3]
[20355,"La Guayana","San Francisco de los Romo","Aguascalientes","A",3]
[20355,"San Ramon","San Francisco de los Romo","Aguascalientes","A",3]
[20355,"Viñedos RIVer","San Francisco de los Romo","Aguascalientes","A",3]
[20355,"Enriqueta","San Francisco de los Romo","Aguascalientes","A",3]
[20355,"Paseos de La Providencia","San Francisco de los Romo","Aguascalientes","A",3]
[20356,"Chicalote","San Francisco de los Romo","Aguascalientes","A",3]
[20356,"Ramon Romo","San Francisco de los Romo","Aguascalientes","A",3]
[20356,"Borrotes","San Francisco de los Romo","Aguascalientes","A",3]
[20357,"Rancho Nuevo 2","San Francisco de los Romo","Aguascalientes","A",3]
[20357,"El Tepetate","San Francisco de los Romo","Aguascalientes","A",3]
[20357,"Amapolas del Rio","San Francisco de los Romo","Aguascalientes","A",3]
[20357,"Ojo de Agua del Mezquite","San Francisco de los Romo","Aguascalientes","A",3]
[20357,"Rancho Nuevo","San Francisco de los Romo","Aguascalientes","A",3]
[20358,"Ex Viñedos de Guadalupe","San Francisco de los Romo","Aguascalientes","A",3]
[20358,"La Casita","San Francisco de los Romo","Aguascalientes","A",3]
[20358,"Valle de Aguascalientes","San Francisco de los Romo","Aguascalientes","A",3]
[20358,"Puertecito de La Virgen","San Francisco de los Romo","Aguascalientes","A",3]
[20358,"Villas de San Felipe","San Francisco de los Romo","Aguascalientes","A",3]
[20363,"San José de La Ordeña","Aguascalientes","Aguascalientes","A",3]
[20363,"San Antonio de los Pedroza","Aguascalientes","Aguascalientes","A",3]
[20364,"San Nicolás de Enmedio","Aguascalientes","Aguascalientes","A",3]
[20364,"La Soledad","Aguascalientes","Aguascalientes","A",3]
[20364,"San Nicolás de Arriba","Aguascalientes","Aguascalientes","A",3]
[20364,"Cartagena 1947","Aguascalientes","Aguascalientes","A",3]
[20366,"El Colorado (el Soyatal)","Aguascalientes","Aguascalientes","A",3]
[20366,"Cumbres II","Aguascalientes","Aguascalientes","A",3]
[20366,"El Conejal","Aguascalientes","Aguascalientes","A",3]
[20367,"El Rocio","Aguascalientes","Aguascalientes","A",3]
[20367,"Norias del Ojocaliente","Aguascalientes","Aguascalientes","A",3]
[20367,"El Trigo","Aguascalientes","Aguascalientes","A",3]
[20369,"El Malacate","Aguascalientes","Aguascalientes","A",3]
[20369,"Dolores","Aguascalientes","Aguascalientes","A",3]
[20370,"El Puerto","Aguascalientes","Aguascalientes","A",3]
[20370,"La Pila","Aguascalientes","Aguascalientes","A",3]
[20371,"Ciudad de los Niños","Aguascalientes","Aguascalientes","A",3]
[20371,"La Cotorra","Aguascalientes","Aguascalientes","A",3]
[20372,"El Niágara","Aguascalientes","Aguascalientes","A",3]
[20372,"Cabecita 3 Marías","Aguascalientes","Aguascalientes","A",3]
[20372,"Granjas Fátima","Aguascalientes","Aguascalientes","A",3]
[20373,"El Ocote","Aguascalientes","Aguascalientes","A",3]
[20373,"El Salitre","Aguascalientes","Aguascalientes","A",3]
[20375,"Campestre Bosques de Las Lomas","Aguascalientes","Aguascalientes","A",3]
[20375,"El Refugio de Peñuelas","Aguascalientes","Aguascalientes","A",3]
[20375,"El Cedazo (cedazo de San Antonio)","Aguascalientes","Aguascalientes","A",3]
[20375,"El Tanque de los Jimenez","Aguascalientes","Aguascalientes","A",3]
[20376,"Centro de Arriba","Aguascalientes","Aguascalientes","A",3]
[20377,"Cieneguilla","Aguascalientes","Aguascalientes","A",3]
[20377,"San Pedro Cieneguilla","Aguascalientes","Aguascalientes","A",3]
[20379,"Los Dolores","Aguascalientes","Aguascalientes","A",3]
[20382,"El Codo","Aguascalientes","Aguascalientes","A",3]
[20384,"Norias del Paso Hondo","Aguascalientes","Aguascalientes","A",3]
[20384,"Paso Hondo","Aguascalientes","Aguascalientes","A",3]
[20385,"Santa Gertrudis","Aguascalientes","Aguascalientes","A",3]
[20385,"Lotes de Arellano","Aguascalientes","Aguascalientes","A",3]
[20386,"El Duraznillo","Aguascalientes","Aguascalientes","A",3]
[20386,"Tanque de Guadalupe","Aguascalientes","Aguascalientes","A",3]
[20389,"Soledad de Abajo","Aguascalientes","Aguascalientes","A",3]
[20389,"Congregación Matamoros","Aguascalientes","Aguascalientes","A",3]
[20389,"Los Duron","Aguascalientes","Aguascalientes","A",3]
[20390,"San José","Aguascalientes","Aguascalientes","A",3]
[20390,"Villa Campestre San José del Monte","Aguascalientes","Aguascalientes","A",3]
[20391,"Agostaderito","Aguascalientes","Aguascalientes","A",3]
[20392,"Montoro","Aguascalientes","Aguascalientes","A",3]
[20392,"Cotorina de Ejido","Aguascalientes","Aguascalientes","A",3]
[20394,"Cañada Grande de Cotorina","Aguascalientes","Aguascalientes","A",3]
[20394,"Coyotes Sur","Aguascalientes","Aguascalientes","A",3]
[20395,"Los Cuervos (los Ojos de Agua)","Aguascalientes","Aguascalientes","A",3]
[20395,"San Bartolo","Aguascalientes","Aguascalientes","A",3]
[20396,"El Refugio de Peñuelas","Aguascalientes","Aguascalientes","A",3]
[20396,"Peñuelas","Aguascalientes","Aguascalientes","A",3]
[20396,"Peñuelas","Aguascalientes","Aguascalientes","A",3]
[20399,"El Turicate","Aguascalientes","Aguascalientes","A",3]
[20400,"Rincón de Romos Centro","Rincón de Romos","Aguascalientes","A",3]
[20403,"Santa Elena","Rincón de Romos","Aguascalientes","A",3]
[20403,"Desarrollo Especial La Pedrera","Rincón de Romos","Aguascalientes","A",3]
[20403,"Subdivisión La Piedrera","Rincón de Romos","Aguascalientes","A",3]
[20403,"Norte","Rincón de Romos","Aguascalientes","A",3]
[20403,"Villa Seguridad","Rincón de Romos","Aguascalientes","A",3]
[20404,"José Luis Macias","Rincón de Romos","Aguascalientes","A",3]
[20404,"Estancia de Chora","Rincón de Romos","Aguascalientes","A",3]
[20404,"Emperadores","Rincón de Romos","Aguascalientes","A",3]
[20404,"Embajadores","Rincón de Romos","Aguascalientes","A",3]
[20405,"De Guadalupe","Rincón de Romos","Aguascalientes","A",3]
[20405,"La Paz","Rincón de Romos","Aguascalientes","A",3]
[20406,"Santa Cruz","Rincón de Romos","Aguascalientes","A",3]
[20406,"Fraternidad","Rincón de Romos","Aguascalientes","A",3]
[20406,"Lázaro Cárdenas","Rincón de Romos","Aguascalientes","A",3]
[20406,"De Chora","Rincón de Romos","Aguascalientes","A",3]
[20406,"Cerro del Gato","Rincón de Romos","Aguascalientes","A",3]
[20410,"Magisterial","Rincón de Romos","Aguascalientes","A",3]
[20410,"Independencia","Rincón de Romos","Aguascalientes","A",3]
[20410,"Santa Anita","Rincón de Romos","Aguascalientes","A",3]
[20410,"El Potrero","Rincón de Romos","Aguascalientes","A",3]
[20410,"Magisterial II","Rincón de Romos","Aguascalientes","A",3]
[20414,"Villas de Jesús","Rincón de Romos","Aguascalientes","A",3]
[20414,"Desarrollo Especial","Rincón de Romos","Aguascalientes","A",3]
[20415,"San José","Rincón de Romos","Aguascalientes","A",3]
[20416,"Presidentes de México","Rincón de Romos","Aguascalientes","A",3]
[20416,"Solidaridad","Rincón de Romos","Aguascalientes","A",3]
[20417,"Popular","Rincón de Romos","Aguascalientes","A",3]
[20417,"Miguel Hidalgo","Rincón de Romos","Aguascalientes","A",3]
[20420,"Escaleras","Rincón de Romos","Aguascalientes","A",3]
[20420,"El Saucillo","Rincón de Romos","Aguascalientes","A",3]
[20420,"Mar Negro","Rincón de Romos","Aguascalientes","A",3]
[20420,"La Presa","Rincón de Romos","Aguascalientes","A",3]
[20420,"El Panal","Rincón de Romos","Aguascalientes","A",3]
[20420,"Rincón de Romos","Rincón de Romos","Aguascalientes","A",3]
[20420,"Potrero El Tarasco","Rincón de Romos","Aguascalientes","A",3]
[20420,"El Bajío","Rincón de Romos","Aguascalientes","A",3]
[20423,"Candelaria","Rincón de Romos","Aguascalientes","A",3]
[20423,"Santa Fe","Rincón de Romos","Aguascalientes","A",3]
[20423,"El Muerto","Rincón de Romos","Aguascalientes","A",3]
[20424,"Tanque Blanco","Rincón de Romos","Aguascalientes","A",3]
[20424,"Puerta del Muerto","Rincón de Romos","Aguascalientes","A",3]
[20424,"California","Rincón de Romos","Aguascalientes","A",3]
[20424,"Yerbanis","Rincón de Romos","Aguascalientes","A",3]
[20425,"San Jacinto","Rincón de Romos","Aguascalientes","A",3]
[20426,"San Juan de La Natura","Rincón de Romos","Aguascalientes","A",3]
[20427,"La Puerta del Muerto","Rincón de Romos","Aguascalientes","A",3]
[20427,"El Valle de las Delicias","Rincón de Romos","Aguascalientes","A",3]
[20427,"Los Morales","Rincón de Romos","Aguascalientes","A",3]
[20427,"16 de Septiembre","Rincón de Romos","Aguascalientes","A",3]
[20427,"San Isidro El Labrador","Rincón de Romos","Aguascalientes","A",3]
[20430,"La Misión","Rincón de Romos","Aguascalientes","A",3]
[20434,"Lupita","Rincón de Romos","Aguascalientes","A",3]
[20434,"18 de Marzo","Rincón de Romos","Aguascalientes","A",3]
[20435,"El Salitrillo","Rincón de Romos","Aguascalientes","A",3]
[20435,"Las Norias","Rincón de Romos","Aguascalientes","A",3]
[20435,"El Barzón","Rincón de Romos","Aguascalientes","A",3]
[20436,"Pabellón de Hidalgo","Rincón de Romos","Aguascalientes","A",3]
[20436,"El Milagro","Rincón de Romos","Aguascalientes","A",3]
[20437,"Pabellón de Hidalgo","Rincón de Romos","Aguascalientes","A",3]
[20437,"Estancia de Mosqueira","Rincón de Romos","Aguascalientes","A",3]
[20437,"El Canal","Rincón de Romos","Aguascalientes","A",3]
[20440,"Morelos","Rincón de Romos","Aguascalientes","A",3]
[20444,"El Potrerillo","Rincón de Romos","Aguascalientes","A",3]
[20444,"Túnel de Potrerillo","Rincón de Romos","Aguascalientes","A",3]
[20445,"Las Camas","Rincón de Romos","Aguascalientes","A",3]
[20445,"Peña Blanca","Rincón de Romos","Aguascalientes","A",3]
[20446,"La Boquilla Grande","Rincón de Romos","Aguascalientes","A",3]
[20446,"Los Negritos","Rincón de Romos","Aguascalientes","A",3]
[20447,"Mirasoles","Rincón de Romos","Aguascalientes","A",3]
[20447,"Rancho La Laguna de Piedra","Rincón de Romos","Aguascalientes","A",3]
[20450,"Fresnillo","Rincón de Romos","Aguascalientes","A",3]
[20450,"La Boquilla","Rincón de Romos","Aguascalientes","A",3]
[20454,"El Ají ladero","Rincón de Romos","Aguascalientes","A",3]
[20456,"Las Rosas","Rincón de Romos","Aguascalientes","A",3]
[20457,"Mesa el Conejo","Rincón de Romos","Aguascalientes","A",3]
[20460,"Cosío Centro","Cosío","Aguascalientes","A",3]
[20462,"Luis Donaldo Colosio","Cosío","Aguascalientes","A",3]
[20466,"Rancho El Potrerito","Cosío","Aguascalientes","A",3]
[20466,"Villas del Potrerito","Cosío","Aguascalientes","A",3]
[20467,"Popular","Cosío","Aguascalientes","A",3]
[20468,"Santa Cruz","Cosío","Aguascalientes","A",3]
[20469,"MeXIquito","Cosío","Aguascalientes","A",3]
[20469,"Coplamar","Cosío","Aguascalientes","A",3]
[20469,"Vista Hermosa","Cosío","Aguascalientes","A",3]
[20470,"Zacatequillas","Cosío","Aguascalientes","A",3]
[20470,"Soledad de Abajo","Cosío","Aguascalientes","A",3]
[20470,"Soledad de Arriba","Cosío","Aguascalientes","A",3]
[20472,"El Durazno","Cosío","Aguascalientes","A",3]
[20472,"La Punta","Cosío","Aguascalientes","A",3]
[20472,"El Durazno","Cosío","Aguascalientes","A",3]
[20472,"La Esperanza (el Salerito)","Cosío","Aguascalientes","A",3]
[20472,"Los Nava","Cosío","Aguascalientes","A",3]
[20476,"El Salero","Cosío","Aguascalientes","A",3]
[20476,"Guadalupito","Cosío","Aguascalientes","A",3]
[20478,"El Refugio de Agua Zarca","Cosío","Aguascalientes","A",3]
[20478,"Refugio de Providencia","Cosío","Aguascalientes","A",3]
[20478,"Santa María de La Paz","Cosío","Aguascalientes","A",3]
[20500,"San José de Gracia","San José de Gracia","Aguascalientes","A",3]
[20501,"El Jocoque","San José de Gracia","Aguascalientes","A",3]
[20502,"Cieneguita","San José de Gracia","Aguascalientes","A",3]
[20503,"El Toril","San José de Gracia","Aguascalientes","A",3]
[20504,"Santa Elena de La Cruz","San José de Gracia","Aguascalientes","A",3]
[20506,"Las Amarillas","San José de Gracia","Aguascalientes","A",3]
[20508,"Potrerillo","San José de Gracia","Aguascalientes","A",3]
[20508,"Tortugas","San José de Gracia","Aguascalientes","A",3]
[20510,"Ciénega de Acarcho","San José de Gracia","Aguascalientes","A",3]
[20516,"Boca del Túnel de Potrerillo","San José de Gracia","Aguascalientes","A",3]
[20520,"La Congoja","San José de Gracia","Aguascalientes","A",3]
[20525,"La Campana","San José de Gracia","Aguascalientes","A",3]
[20530,"Bajío de La Tienda","San José de Gracia","Aguascalientes","A",3]
[20534,"El Zepo","San José de Gracia","Aguascalientes","A",3]
[20538,"Antrialco","San José de Gracia","Aguascalientes","A",3]
[20538,"Alamitos","San José de Gracia","Aguascalientes","A",3]
[20540,"Paredes","San José de Gracia","Aguascalientes","A",3]
[20545,"San Antonio de los Ríos","San José de Gracia","Aguascalientes","A",3]
[20550,"Santa Rosa de Lima","San José de Gracia","Aguascalientes","A",3]
[20560,"Presa del Sáuz","San José de Gracia","Aguascalientes","A",3]
[20564,"Rancho Viejo","San José de Gracia","Aguascalientes","A",3]
[20567,"Potrero de los Lopez","San José de Gracia","Aguascalientes","A",3]
[20570,"El Tecongo","San José de Gracia","Aguascalientes","A",3]
[20574,"Estancia de San Marcos","San José de Gracia","Aguascalientes","A",3]
[20576,"San José","San José de Gracia","Aguascalientes","A",3]
[20578,"El Sáuz","San José de Gracia","Aguascalientes","A",3]
[20580,"Huijolotes","San José de Gracia","Aguascalientes","A",3]
[20584,"Santa Rosa","San José de Gracia","Aguascalientes","A",3]
[20590,"El Taray","San José de Gracia","Aguascalientes","A",3]
[20600,"Tepezala Centro","Tepezalá","Aguascalientes","A",3]
[20602,"Cholula 2a Sección","Tepezalá","Aguascalientes","A",3]
[20603,"Comunidad San Rafael","Tepezalá","Aguascalientes","A",3]
[20603,"Los Arcos","Tepezalá","Aguascalientes","A",3]
[20603,"Del Socorro","Tepezalá","Aguascalientes","A",3]
[20604,"Felipe Gonzalez González 2a Sección","Tepezalá","Aguascalientes","A",3]
[20604,"Felipe Gonzalez González 1a Sección","Tepezalá","Aguascalientes","A",3]
[20605,"La Cañada","Tepezalá","Aguascalientes","A",3]
[20607,"Luis Ortega Douglas","Tepezalá","Aguascalientes","A",3]
[20608,"Cholula 1a Sección","Tepezalá","Aguascalientes","A",3]
[20610,"El Chayote","Tepezalá","Aguascalientes","A",3]
[20610,"El Barranco","Tepezalá","Aguascalientes","A",3]
[20612,"La Tira","Tepezalá","Aguascalientes","A",3]
[20612,"Las Pilas","Tepezalá","Aguascalientes","A",3]
[20613,"San Rafael","Tepezalá","Aguascalientes","A",3]
[20614,"Los Alamitos","Tepezalá","Aguascalientes","A",3]
[20614,"Ampliación los Hornos (el Lagunazo)","Tepezalá","Aguascalientes","A",3]
[20615,"El Porvenir","Tepezalá","Aguascalientes","A",3]
[20616,"La Luz","Tepezalá","Aguascalientes","A",3]
[20616,"San Antonio","Tepezalá","Aguascalientes","A",3]
[20622,"Mesillas","Tepezalá","Aguascalientes","A",3]
[20622,"Ojo de Agua de los Montes","Tepezalá","Aguascalientes","A",3]
[20631,"El Carmen","Tepezalá","Aguascalientes","A",3]
[20634,"La Victoria","Tepezalá","Aguascalientes","A",3]
[20637,"El Gigante","Tepezalá","Aguascalientes","A",3]
[20645,"El Zorrillo","Tepezalá","Aguascalientes","A",3]
[20645,"Carboneras","Tepezalá","Aguascalientes","A",3]
[20646,"El Águila","Tepezalá","Aguascalientes","A",3]
[20650,"Puerto de La Concepción","Tepezalá","Aguascalientes","A",3]
[20654,"Los Hornos","Tepezalá","Aguascalientes","A",3]
[20656,"El Refugio","Tepezalá","Aguascalientes","A",3]
[20657,"Arroyo Hondo","Tepezalá","Aguascalientes","A",3]
[20658,"El Tepozán","Tepezalá","Aguascalientes","A",3]
[20659,"Caldera","Tepezalá","Aguascalientes","A",3]
[20663,"El Refugio","Pabellón de Arteaga","Aguascalientes","A",3]
[20663,"Gámez Orozco (Puerta de Carboneras)","Pabellón de Arteaga","Aguascalientes","A",3]
[20663,"San Pedro","Pabellón de Arteaga","Aguascalientes","A",3]
[20664,"Ojo Zarco (la Loma)","Pabellón de Arteaga","Aguascalientes","A",3]
[20664,"Los Lira","Pabellón de Arteaga","Aguascalientes","A",3]
[20664,"Estación de Garabato","Pabellón de Arteaga","Aguascalientes","A",3]
[20664,"El Mezquite","Pabellón de Arteaga","Aguascalientes","A",3]
[20664,"Las Animas","Pabellón de Arteaga","Aguascalientes","A",3]
[20664,"El Rayo","Pabellón de Arteaga","Aguascalientes","A",3]
[20664,"Los Corrales (Los Corrales Blancos)","Pabellón de Arteaga","Aguascalientes","A",3]
[20664,"Ojo Zarco","Pabellón de Arteaga","Aguascalientes","A",3]
[20665,"Emiliano Zapata","Pabellón de Arteaga","Aguascalientes","A",3]
[20665,"El Pilar","Pabellón de Arteaga","Aguascalientes","A",3]
[20665,"Los Contreras","Pabellón de Arteaga","Aguascalientes","A",3]
[20665,"El Gigante","Pabellón de Arteaga","Aguascalientes","A",3]
[20665,"San Agustín de Los Puentes","Pabellón de Arteaga","Aguascalientes","A",3]
[20665,"El Pedernal Segundo","Pabellón de Arteaga","Aguascalientes","A",3]
[20666,"El Garabato","Pabellón de Arteaga","Aguascalientes","A",3]
[20667,"Canal Grande","Pabellón de Arteaga","Aguascalientes","A",3]
[20667,"El Canal","Pabellón de Arteaga","Aguascalientes","A",3]
[20667,"Estancia de Mosqueira","Pabellón de Arteaga","Aguascalientes","A",3]
[20667,"Santiago","Pabellón de Arteaga","Aguascalientes","A",3]
[20668,"Puerta del Milagro","Pabellón de Arteaga","Aguascalientes","A",3]
[20668,"San Luis de Letras","Pabellón de Arteaga","Aguascalientes","A",3]
[20668,"Ampliación Ejido Garabato","Pabellón de Arteaga","Aguascalientes","A",3]
[20668,"Secadora Miguel Alemán","Pabellón de Arteaga","Aguascalientes","A",3]
[20670,"Zona Centro","Pabellón de Arteaga","Aguascalientes","A",3]
[20673,"Jardines de Pabellón","Pabellón de Arteaga","Aguascalientes","A",3]
[20673,"Barrio Industrial","Pabellón de Arteaga","Aguascalientes","A",3]
[20673,"FOVISSSTE","Pabellón de Arteaga","Aguascalientes","A",3]
[20673,"Subdivisión Haciendas de Pabellón","Pabellón de Arteaga","Aguascalientes","A",3]
[20674,"Villas de Pabellón","Pabellón de Arteaga","Aguascalientes","A",3]
[20674,"Trojes de San Pedro","Pabellón de Arteaga","Aguascalientes","A",3]
[20674,"Francisco Villa","Pabellón de Arteaga","Aguascalientes","A",3]
[20675,"Carboneras","Pabellón de Arteaga","Aguascalientes","A",3]
[20675,"Palo Alto","Pabellón de Arteaga","Aguascalientes","A",3]
[20676,"Cosmos","Pabellón de Arteaga","Aguascalientes","A",3]
[20676,"Popular","Pabellón de Arteaga","Aguascalientes","A",3]
[20676,"5 de Mayo","Pabellón de Arteaga","Aguascalientes","A",3]
[20677,"Plutarco Elias Calles","Pabellón de Arteaga","Aguascalientes","A",3]
[20677,"Progreso Sur","Pabellón de Arteaga","Aguascalientes","A",3]
[20678,"La Quesería de Los Serna","Pabellón de Arteaga","Aguascalientes","A",3]
[20678,"Progreso Norte","Pabellón de Arteaga","Aguascalientes","A",3]
[20678,"Vergel del Valle","Pabellón de Arteaga","Aguascalientes","A",3]
[20678,"Valle del Vivero","Pabellón de Arteaga","Aguascalientes","A",3]
[20678,"Subdivisión Villa de Guadalupe","Pabellón de Arteaga","Aguascalientes","A",3]
[20700,"El Tule","Asientos","Aguascalientes","A",3]
[20700,"La Loma (Tanque de Las Palmitas)","Asientos","Aguascalientes","A",3]
[20700,"Villa Juárez","Asientos","Aguascalientes","A",3]
[20700,"La Esperanza","Asientos","Aguascalientes","A",3]
[20700,"El Rascón (La Loma)","Asientos","Aguascalientes","A",3]
[20704,"Viudas de Poniente","Asientos","Aguascalientes","A",3]
[20705,"Charco Azul","Asientos","Aguascalientes","A",3]
[20708,"Amarillas de Esparza","Asientos","Aguascalientes","A",3]
[20709,"Jilotepec","Asientos","Aguascalientes","A",3]
[20709,"La Dichosa","Asientos","Aguascalientes","A",3]
[20710,"Asientos Centro","Asientos","Aguascalientes","A",3]
[20710,"Santa Cruz","Asientos","Aguascalientes","A",3]
[20712,"De Peñitas 1a Sección","Asientos","Aguascalientes","A",3]
[20713,"Los Tepetates","Asientos","Aguascalientes","A",3]
[20713,"Del CECYTE","Asientos","Aguascalientes","A",3]
[20714,"De Guadalupe","Asientos","Aguascalientes","A",3]
[20715,"INFONAVIT","Asientos","Aguascalientes","A",3]
[20715,"Juventud","Asientos","Aguascalientes","A",3]
[20715,"Del Tepozán","Asientos","Aguascalientes","A",3]
[20716,"De Peñitas 2a Sección","Asientos","Aguascalientes","A",3]
[20717,"Real Minero","Asientos","Aguascalientes","A",3]
[20720,"Guadalupe de Atlas","Asientos","Aguascalientes","A",3]
[20720,"La Divina Providencia","Asientos","Aguascalientes","A",3]
[20720,"Sector de Producción No. 3","Asientos","Aguascalientes","A",3]
[20720,"Sector de Producción No. 2","Asientos","Aguascalientes","A",3]
[20720,"Los Torres","Asientos","Aguascalientes","A",3]
[20720,"San Gil","Asientos","Aguascalientes","A",3]
[20720,"Sociedad Los Posada","Asientos","Aguascalientes","A",3]
[20720,"Bimbaletes Aguascalientes","Asientos","Aguascalientes","A",3]
[20720,"Crisóstomos","Asientos","Aguascalientes","A",3]
[20720,"Alvarado","Asientos","Aguascalientes","A",3]
[20720,"Bimbaletes Atlas","Asientos","Aguascalientes","A",3]
[20721,"Plutarco Elias Calles","Asientos","Aguascalientes","A",3]
[20722,"Ciénega Grande","Asientos","Aguascalientes","A",3]
[20723,"Jarillas","Asientos","Aguascalientes","A",3]
[20723,"Noria del Borrego","Asientos","Aguascalientes","A",3]
[20724,"Gómez Portugal","Asientos","Aguascalientes","A",3]
[20727,"Pino Suárez (Rancho Viejo)","Asientos","Aguascalientes","A",3]
[20728,"Berrendos","Asientos","Aguascalientes","A",3]
[20729,"Clavellinas","Asientos","Aguascalientes","A",3]
[20730,"Molinos","Asientos","Aguascalientes","A",3]
[20732,"Los Encinos","Asientos","Aguascalientes","A",3]
[20734,"Lázaro Cárdenas","Asientos","Aguascalientes","A",3]
[20736,"La Gloria","Asientos","Aguascalientes","A",3]
[20738,"La Soledad","Asientos","Aguascalientes","A",3]
[20739,"San Pedro","Asientos","Aguascalientes","A",3]
[20740,"El Polvo","Asientos","Aguascalientes","A",3]
[20741,"Caldera","Asientos","Aguascalientes","A",3]
[20741,"El Tepozán","Asientos","Aguascalientes","A",3]
[20742,"Charco Prieto (El Palomar)","Asientos","Aguascalientes","A",3]
[20742,"El Fénix","Asientos","Aguascalientes","A",3]
[20742,"Adolfo Lopez Mateos","Asientos","Aguascalientes","A",3]
[20744,"San Antonio de los Martinez","Asientos","Aguascalientes","A",3]
[20746,"Gorriones","Asientos","Aguascalientes","A",3]
[20748,"Ojo de Agua de Rosales","Asientos","Aguascalientes","A",3]
[20749,"Tepetatillo","Asientos","Aguascalientes","A",3]
[20750,"San José del Rio","Asientos","Aguascalientes","A",3]
[20760,"El Llavero","Asientos","Aguascalientes","A",3]
[20765,"San Vicente","Asientos","Aguascalientes","A",3]
[20768,"3 Valles","Asientos","Aguascalientes","A",3]
[20770,"Emancipación","Asientos","Aguascalientes","A",3]
[20771,"Tanque Viejo","Asientos","Aguascalientes","A",3]
[20773,"La Tinajuela","Asientos","Aguascalientes","A",3]
[20773,"Las Adjuntas","Asientos","Aguascalientes","A",3]
[20775,"Tanque de Guadalupe","Asientos","Aguascalientes","A",3]
[20777,"Las Joyas","Asientos","Aguascalientes","A",3]
[20779,"Ojo de Agua de los Sauces","Asientos","Aguascalientes","A",3]
[20780,"San Rafael de Ocampo","Asientos","Aguascalientes","A",3]
[20780,"San José del Tulillo","Asientos","Aguascalientes","A",3]
[20782,"San Isidro","Asientos","Aguascalientes","A",3]
[20785,"El Chonguillo","Asientos","Aguascalientes","A",3]
[20790,"Francisco Villa","Asientos","Aguascalientes","A",3]
[20792,"El Epazote","Asientos","Aguascalientes","A",3]
[20794,"Las Fraguas","Asientos","Aguascalientes","A",3]
[20795,"Pilotos","Asientos","Aguascalientes","A",3]
[20796,"El Bajío de Los Campos","Asientos","Aguascalientes","A",3]
[20796,"El Salitre","Asientos","Aguascalientes","A",3]
[20797,"Bajío del Salitre","Asientos","Aguascalientes","A",3]
[20799,"Las Negritas","Asientos","Aguascalientes","A",3]
[20800,"Calvillo Centro","Calvillo","Aguascalientes","A",3]
[20802,"Vista Hermosa","Calvillo","Aguascalientes","A",3]
[20802,"Sección Loma de Fundadores","Calvillo","Aguascalientes","A",3]
[20802,"El Mirador","Calvillo","Aguascalientes","A",3]
[20802,"Lopez Mateos","Calvillo","Aguascalientes","A",3]
[20802,"Sección Benito Juárez","Calvillo","Aguascalientes","A",3]
[20802,"Vista Hermosa 2a. Sección","Calvillo","Aguascalientes","A",3]
[20802,"Sección Cerritos","Calvillo","Aguascalientes","A",3]
[20802,"Independencia","Calvillo","Aguascalientes","A",3]
[20802,"Paseras","Calvillo","Aguascalientes","A",3]
[20802,"Zona Militar XIV","Calvillo","Aguascalientes","A",3]
[20803,"Lomas de Huejúcar","Calvillo","Aguascalientes","A",3]
[20803,"San Rafael","Calvillo","Aguascalientes","A",3]
[20803,"Rincón de Baltazares","Calvillo","Aguascalientes","A",3]
[20803,"San Nicolás","Calvillo","Aguascalientes","A",3]
[20803,"José Landeros","Calvillo","Aguascalientes","A",3]
[20804,"Magisterial","Calvillo","Aguascalientes","A",3]
[20804,"Liberal","Calvillo","Aguascalientes","A",3]
[20804,"Rincón de Baltazares","Calvillo","Aguascalientes","A",3]
[20804,"La Fortuna","Calvillo","Aguascalientes","A",3]
[20804,"Morelos","Calvillo","Aguascalientes","A",3]
[20804,"Del Carmen","Calvillo","Aguascalientes","A",3]
[20804,"Azteca","Calvillo","Aguascalientes","A",3]
[20804,"Los Arcos","Calvillo","Aguascalientes","A",3]
[20804,"Arroyo de Los Caballos","Calvillo","Aguascalientes","A",3]
[20804,"Ejidal","Calvillo","Aguascalientes","A",3]
[20804,"Valle de Santiago","Calvillo","Aguascalientes","A",3]
[20805,"Las Flores","Calvillo","Aguascalientes","A",3]
[20805,"El Cerrito","Calvillo","Aguascalientes","A",3]
[20805,"Los Angeles","Calvillo","Aguascalientes","A",3]
[20805,"Martinez","Calvillo","Aguascalientes","A",3]
[20805,"Valle de Huejúcar","Calvillo","Aguascalientes","A",3]
[20805,"Chicago","Calvillo","Aguascalientes","A",3]
[20805,"Emiliano Zapata","Calvillo","Aguascalientes","A",3]
[20810,"Palo Alto","Calvillo","Aguascalientes","A",3]
[20810,"El Terrero de La Labor","Calvillo","Aguascalientes","A",3]
[20814,"Terrero de Sáuz","Calvillo","Aguascalientes","A",3]
[20816,"Las Cuevas","Calvillo","Aguascalientes","A",3]
[20816,"El Sáuz de La Labor","Calvillo","Aguascalientes","A",3]
[20816,"El Molino","Calvillo","Aguascalientes","A",3]
[20816,"Las Rubias","Calvillo","Aguascalientes","A",3]
[20816,"El Zapote","Calvillo","Aguascalientes","A",3]
[20816,"Piedras Chinas","Calvillo","Aguascalientes","A",3]
[20820,"El Mirador","Calvillo","Aguascalientes","A",3]
[20820,"Jardines de San Isidro (colonia Limón)","Calvillo","Aguascalientes","A",3]
[20820,"Solidaridad","Calvillo","Aguascalientes","A",3]
[20820,"Duraznillas","Calvillo","Aguascalientes","A",3]
[20820,"El Jagüey","Calvillo","Aguascalientes","A",3]
[20820,"San Tadeo","Calvillo","Aguascalientes","A",3]
[20824,"Los Muñoz","Calvillo","Aguascalientes","A",3]
[20824,"Montoro","Calvillo","Aguascalientes","A",3]
[20824,"Los Lazo","Calvillo","Aguascalientes","A",3]
[20824,"El Capulín","Calvillo","Aguascalientes","A",3]
[20830,"La Panadera","Calvillo","Aguascalientes","A",3]
[20830,"San Isidro el Chiquihuitero","Calvillo","Aguascalientes","A",3]
[20830,"Chiquihuitero","Calvillo","Aguascalientes","A",3]
[20830,"San Nicolás","Calvillo","Aguascalientes","A",3]
[20830,"Arroyo Quita Sueño","Calvillo","Aguascalientes","A",3]
[20830,"Las Víboras","Calvillo","Aguascalientes","A",3]
[20830,"Los Arquitos","Calvillo","Aguascalientes","A",3]
[20830,"El Llano (El Llano de San Rafael)","Calvillo","Aguascalientes","A",3]
[20830,"Colomos","Calvillo","Aguascalientes","A",3]
[20832,"Rio Gil de Arriba","Calvillo","Aguascalientes","A",3]
[20832,"El Sáuz","Calvillo","Aguascalientes","A",3]
[20832,"El Maguey","Calvillo","Aguascalientes","A",3]
[20834,"Catama","Calvillo","Aguascalientes","A",3]
[20834,"Junta de los Ríos","Calvillo","Aguascalientes","A",3]
[20834,"Ojocaliente","Calvillo","Aguascalientes","A",3]
[20834,"San José del Rio","Calvillo","Aguascalientes","A",3]
[20834,"El Cuervero","Calvillo","Aguascalientes","A",3]
[20834,"Potrero de los Lopez","Calvillo","Aguascalientes","A",3]
[20834,"Malpaso","Calvillo","Aguascalientes","A",3]
[20834,"Rio Gil de Abajo","Calvillo","Aguascalientes","A",3]
[20840,"Los Mirasoles","Calvillo","Aguascalientes","A",3]
[20840,"Potrerito","Calvillo","Aguascalientes","A",3]
[20842,"El Mirasol","Calvillo","Aguascalientes","A",3]
[20842,"Los Lobos","Calvillo","Aguascalientes","A",3]
[20842,"Las Joyas","Calvillo","Aguascalientes","A",3]
[20844,"El Laurel","Calvillo","Aguascalientes","A",3]
[20844,"La Laguna","Calvillo","Aguascalientes","A",3]
[20844,"Llano Blanco","Calvillo","Aguascalientes","A",3]
[20844,"Ciénegas","Calvillo","Aguascalientes","A",3]
[20844,"Chinantitlán","Calvillo","Aguascalientes","A",3]
[20850,"Praderas","Calvillo","Aguascalientes","A",3]
[20850,"Tepezalilla de Abajo","Calvillo","Aguascalientes","A",3]
[20850,"Pozo de Los Artistas","Calvillo","Aguascalientes","A",3]
[20850,"Crucero las Pilas","Calvillo","Aguascalientes","A",3]
[20850,"Las Moras","Calvillo","Aguascalientes","A",3]
[20850,"La CalIXtina","Calvillo","Aguascalientes","A",3]
[20850,"Mesa Grande","Calvillo","Aguascalientes","A",3]
[20852,"Los Adobes","Calvillo","Aguascalientes","A",3]
[20852,"Arroyo Ojocalientillo","Calvillo","Aguascalientes","A",3]
[20854,"Ojo de Agua","Calvillo","Aguascalientes","A",3]
[20854,"El Tepetate de Abajo","Calvillo","Aguascalientes","A",3]
[20854,"El Taray","Calvillo","Aguascalientes","A",3]
[20854,"Los Alisos","Calvillo","Aguascalientes","A",3]
[20854,"El Carruño","Calvillo","Aguascalientes","A",3]
[20856,"Barranca del Roble","Calvillo","Aguascalientes","A",3]
[20856,"El Guencho","Calvillo","Aguascalientes","A",3]
[20856,"Jaltiche de Arriba","Calvillo","Aguascalientes","A",3]
[20856,"Mesa del Roble","Calvillo","Aguascalientes","A",3]
[20860,"Las Pilas","Calvillo","Aguascalientes","A",3]
[20860,"Michoacanejo","Calvillo","Aguascalientes","A",3]
[20860,"Las Animas","Calvillo","Aguascalientes","A",3]
[20860,"Cerro Blanco","Calvillo","Aguascalientes","A",3]
[20860,"El Salitre","Calvillo","Aguascalientes","A",3]
[20862,"La Fragua","Calvillo","Aguascalientes","A",3]
[20862,"Las Tinajas","Calvillo","Aguascalientes","A",3]
[20862,"La Rinconada","Calvillo","Aguascalientes","A",3]
[20862,"La Media Luna","Calvillo","Aguascalientes","A",3]
[20862,"Salitrillo","Calvillo","Aguascalientes","A",3]
[20862,"Jaltiche de Abajo","Calvillo","Aguascalientes","A",3]
[20864,"Presa de los Serna","Calvillo","Aguascalientes","A",3]
[20864,"El Terrero del Refugio","Calvillo","Aguascalientes","A",3]
[20864,"El Caracol","Calvillo","Aguascalientes","A",3]
[20864,"La Majada","Calvillo","Aguascalientes","A",3]
[20870,"Mezquitillos","Calvillo","Aguascalientes","A",3]
[20870,"El Papanton","Calvillo","Aguascalientes","A",3]
[20870,"El Guayabo","Calvillo","Aguascalientes","A",3]
[20870,"San José","Calvillo","Aguascalientes","A",3]
[20870,"Santos","Calvillo","Aguascalientes","A",3]
[20870,"Peña Blanca","Calvillo","Aguascalientes","A",3]
[20870,"Vaquería","Calvillo","Aguascalientes","A",3]
[20870,"La Teresa","Calvillo","Aguascalientes","A",3]
[20870,"El Rodeo","Calvillo","Aguascalientes","A",3]
[20870,"Los Patos","Calvillo","Aguascalientes","A",3]
[20872,"Miguel Hidalgo","Calvillo","Aguascalientes","A",3]
[20872,"Barranca de Portales","Calvillo","Aguascalientes","A",3]
[20872,"El Tigre","Calvillo","Aguascalientes","A",3]
[20874,"El Ocote","Calvillo","Aguascalientes","A",3]
[20874,"El Tepalcate","Calvillo","Aguascalientes","A",3]
[20874,"Las Trojes","Calvillo","Aguascalientes","A",3]
[20874,"El Terrero de La Presa","Calvillo","Aguascalientes","A",3]
[20874,"La Joya","Calvillo","Aguascalientes","A",3]
[20874,"Tanque de Lucerna","Calvillo","Aguascalientes","A",3]
[20880,"Temascal","Calvillo","Aguascalientes","A",3]
[20880,"Paredes","Calvillo","Aguascalientes","A",3]
[20880,"La Primavera","Calvillo","Aguascalientes","A",3]
[20880,"La Hiedra","Calvillo","Aguascalientes","A",3]
[20880,"Ventanillas","Calvillo","Aguascalientes","A",3]
[20880,"La Labor","Calvillo","Aguascalientes","A",3]
[20880,"El Salitrillo","Calvillo","Aguascalientes","A",3]
[20880,"Ordeña Vieja","Calvillo","Aguascalientes","A",3]
[20882,"La Pedrera","Calvillo","Aguascalientes","A",3]
[20882,"Manguillas","Calvillo","Aguascalientes","A",3]
[20882,"El Jaralito","Calvillo","Aguascalientes","A",3]
[20882,"El Tepozán","Calvillo","Aguascalientes","A",3]
[20884,"Los Bajíos","Calvillo","Aguascalientes","A",3]
[20884,"La Ciénega","Calvillo","Aguascalientes","A",3]
[20890,"Presa La Codorniz","Calvillo","Aguascalientes","A",3]
[20892,"La Boquilla","Calvillo","Aguascalientes","A",3]
[20892,"Carboneras","Calvillo","Aguascalientes","A",3]
[20899,"La Haciendita","Calvillo","Aguascalientes","A",3]
[20900,"Residencial Villa Campestre","Jesús María","Aguascalientes","A",3]
[20900,"Brownsville","Jesús María","Aguascalientes","A",3]
[20900,"Los Olivos","Jesús María","Aguascalientes","A",3]
[20900,"Las Pérgolas","Jesús María","Aguascalientes","A",3]
[20900,"Maravillas","Jesús María","Aguascalientes","A",3]
[20900,"Valladolid","Jesús María","Aguascalientes","A",3]
[20900,"Rinconada Maravillas","Jesús María","Aguascalientes","A",3]
[20900,"Trojes del Norte","Jesús María","Aguascalientes","A",3]
[20900,"Corral de Barrancos","Jesús María","Aguascalientes","A",3]
[20900,"Trojes del Norte II","Jesús María","Aguascalientes","A",3]
[20900,"San Antonio de los Horcones","Jesús María","Aguascalientes","A",3]
[20900,"Valle Escondido","Jesús María","Aguascalientes","A",3]
[20901,"Las Jaulas","Jesús María","Aguascalientes","A",3]
[20901,"La Loma de Valladolid","Jesús María","Aguascalientes","A",3]
[20901,"El Maguey","Jesús María","Aguascalientes","A",3]
[20902,"Villas de Guadalupe (la Malobra)","Jesús María","Aguascalientes","A",3]
[20902,"El Aurero","Jesús María","Aguascalientes","A",3]
[20902,"El Refugio","Jesús María","Aguascalientes","A",3]
[20902,"La Loma","Jesús María","Aguascalientes","A",3]
[20902,"La Chaveña","Jesús María","Aguascalientes","A",3]
[20902,"El Cenizo","Jesús María","Aguascalientes","A",3]
[20903,"Las Margaritas","Jesús María","Aguascalientes","A",3]
[20904,"Los Vázquez","Jesús María","Aguascalientes","A",3]
[20904,"Los Ramirez","Jesús María","Aguascalientes","A",3]
[20905,"Granjas Miravalle","Jesús María","Aguascalientes","A",3]
[20905,"La Lomita de Paso Blanco (las Canoas)","Jesús María","Aguascalientes","A",3]
[20905,"Paso Blanco","Jesús María","Aguascalientes","A",3]
[20906,"La Cardona","Jesús María","Aguascalientes","A",3]
[20907,"San Miguelito","Jesús María","Aguascalientes","A",3]
[20908,"Viñedos Frutilandia","Jesús María","Aguascalientes","A",3]
[20908,"Porta Real","Jesús María","Aguascalientes","A",3]
[20908,"Villas del Molino","Jesús María","Aguascalientes","A",3]
[20908,"Trojes de San Cristóbal","Jesús María","Aguascalientes","A",3]
[20908,"Quintas de Monticello","Jesús María","Aguascalientes","A",3]
[20908,"Campo Real","Jesús María","Aguascalientes","A",3]
[20908,"Reserva San Cristóbal","Jesús María","Aguascalientes","A",3]
[20908,"Villa Antigua","Jesús María","Aguascalientes","A",3]
[20908,"Viña Antigua","Jesús María","Aguascalientes","A",3]
[20908,"Paseos del Country","Jesús María","Aguascalientes","A",3]
[20908,"Rancho San Miguel","Jesús María","Aguascalientes","A",3]
[20908,"Tepetates","Jesús María","Aguascalientes","A",3]
[20908,"Centro Distribuidor de Básicos Viñedos San Marcos","Jesús María","Aguascalientes","A",3]
[20908,"La Guayana (rancho Seco)","Jesús María","Aguascalientes","A",3]
[20908,"Residencial Cedros","Jesús María","Aguascalientes","A",3]
[20908,"Los Arenales","Jesús María","Aguascalientes","A",3]
[20908,"La Troje II","Jesús María","Aguascalientes","A",3]
[20908,"Alcázar","Jesús María","Aguascalientes","A",3]
[20908,"Trojes de San Cristóbal II","Jesús María","Aguascalientes","A",3]
[20909,"Paseos Gómez Portugal","Jesús María","Aguascalientes","A",3]
[20909,"El Zapato","Jesús María","Aguascalientes","A",3]
[20909,"Crnl. Jesús Gómez Portugal","Jesús María","Aguascalientes","A",3]
[20909,"Paso de Argenta","Jesús María","Aguascalientes","A",3]
[20912,"El Pedernal 2","Jesús María","Aguascalientes","A",3]
[20914,"La Granjita","Jesús María","Aguascalientes","A",3]
[20916,"El Chichimeco","Jesús María","Aguascalientes","A",3]
[20917,"San Isidro","Jesús María","Aguascalientes","A",3]
[20919,"La Florida","Jesús María","Aguascalientes","A",3]
[20920,"Jesús María Centro","Jesús María","Aguascalientes","A",3]
[20922,"El Calvario","Jesús María","Aguascalientes","A",3]
[20922,"La Escalera","Jesús María","Aguascalientes","A",3]
[20923,"Las Culebras","Jesús María","Aguascalientes","A",3]
[20923,"Ruiseñores","Jesús María","Aguascalientes","A",3]
[20923,"San Miguelito","Jesús María","Aguascalientes","A",3]
[20923,"Jesús María","Jesús María","Aguascalientes","A",3]
[20923,"Flores Magón","Jesús María","Aguascalientes","A",3]
[20923,"La Cardona","Jesús María","Aguascalientes","A",3]
[20923,"Los Arroyitos","Jesús María","Aguascalientes","A",3]
[20923,"La Cuesta","Jesús María","Aguascalientes","A",3]
[20924,"Los Manantiales","Jesús María","Aguascalientes","A",3]
[20924,"Arboledas de Paso Blanco","Jesús María","Aguascalientes","A",3]
[20924,"Paseos de Aguascalientes","Jesús María","Aguascalientes","A",3]
[20924,"Agua Clara","Jesús María","Aguascalientes","A",3]
[20924,"Jacarandas","Jesús María","Aguascalientes","A",3]
[20924,"San Miguelito","Jesús María","Aguascalientes","A",3]
[20925,"Lomas de Jesús María","Jesús María","Aguascalientes","A",3]
[20925,"Trojes del Pedregal","Jesús María","Aguascalientes","A",3]
[20925,"Benigno Chavez","Jesús María","Aguascalientes","A",3]
[20925,"Puerta Grande","Jesús María","Aguascalientes","A",3]
[20925,"Agua Zarca","Jesús María","Aguascalientes","A",3]
[20925,"Vistas del Sáuz","Jesús María","Aguascalientes","A",3]
[20925,"Colinas del Sol","Jesús María","Aguascalientes","A",3]
[20925,"Rancho San Pedro","Jesús María","Aguascalientes","A",3]
[20926,"Martinez Andrade","Jesús María","Aguascalientes","A",3]
[20926,"Manantiales del Pinar","Jesús María","Aguascalientes","A",3]
[20926,"Loma de La Cañada","Jesús María","Aguascalientes","A",3]
[20926,"La Loma","Jesús María","Aguascalientes","A",3]
[20926,"Arboledas II","Jesús María","Aguascalientes","A",3]
[20926,"La Loma","Jesús María","Aguascalientes","A",3]
[20926,"Arboledas I","Jesús María","Aguascalientes","A",3]
[20926,"Chicahuales II","Jesús María","Aguascalientes","A",3]
[20926,"Lomas del Valle","Jesús María","Aguascalientes","A",3]
[20926,"Vista Hermosa","Jesús María","Aguascalientes","A",3]
[20926,"Misión de Santa María","Jesús María","Aguascalientes","A",3]
[20926,"Yalta Campestre","Jesús María","Aguascalientes","A",3]
[20926,"Solidaridad","Jesús María","Aguascalientes","A",3]
[20926,"Rinconada Bugambilias","Jesús María","Aguascalientes","A",3]
[20926,"Deportiva","Jesús María","Aguascalientes","A",3]
[20926,"Chicahuales I","Jesús María","Aguascalientes","A",3]
[20926,"La Piedra","Jesús María","Aguascalientes","A",3]
[20926,"Lomas del Vergel","Jesús María","Aguascalientes","A",3]
[20926,"Tres Arroyos","Jesús María","Aguascalientes","A",3]
[20927,"Ayuntamiento","Jesús María","Aguascalientes","A",3]
[20927,"La Cañada","Jesús María","Aguascalientes","A",3]
[20927,"Ojos de Agua","Jesús María","Aguascalientes","A",3]
[20927,"La Cañada","Jesús María","Aguascalientes","A",3]
[20928,"El Chaveño","Jesús María","Aguascalientes","A",3]
[20928,"Ejidal","Jesús María","Aguascalientes","A",3]
[20928,"Buenavista","Jesús María","Aguascalientes","A",3]
[20928,"Plan Benito Juárez","Jesús María","Aguascalientes","A",3]
[20928,"El Torito","Jesús María","Aguascalientes","A",3]
[20928,"Las Palmas","Jesús María","Aguascalientes","A",3]
[20928,"El Mezquital","Jesús María","Aguascalientes","A",3]
[20940,"Los Muñoz","Jesús María","Aguascalientes","A",3]
[20943,"Milpilla de Abajo","Jesús María","Aguascalientes","A",3]
[20945,"Milpilla de Arriba","Jesús María","Aguascalientes","A",3]
[20947,"Gracias A Dios","Jesús María","Aguascalientes","A",3]
[20950,"El Zapote","Jesús María","Aguascalientes","A",3]
[20953,"Cañada del Rodeo","Jesús María","Aguascalientes","A",3]
[20955,"Contadero","Jesús María","Aguascalientes","A",3]
[20957,"El Pedernal 1","Jesús María","Aguascalientes","A",3]
[20959,"El Rincón","Jesús María","Aguascalientes","A",3]
[20960,"San Rafael","Jesús María","Aguascalientes","A",3]
[20964,"El Pensamiento","Jesús María","Aguascalientes","A",3]
[20967,"Piedras Negras","Jesús María","Aguascalientes","A",3]
[20970,"Tapias Viejas","Jesús María","Aguascalientes","A",3]
[20974,"Puentes Cuates","Jesús María","Aguascalientes","A",3]
[20980,"Gral. Ignacio Zaragoza","Jesús María","Aguascalientes","A",3]
[20981,"Buenavista","Jesús María","Aguascalientes","A",3]
[20983,"El Llano","Jesús María","Aguascalientes","A",3]
[20983,"Condominio Antiguo Country","Jesús María","Aguascalientes","A",3]
[20984,"Providencia","Jesús María","Aguascalientes","A",3]
[20986,"El Conejo","Jesús María","Aguascalientes","A",3]
[20987,"El Puente","Jesús María","Aguascalientes","A",3]
[20990,"San Lorenzo","Jesús María","Aguascalientes","A",3]
[20992,"Agua Zarca","Jesús María","Aguascalientes","A",3]
[20994,"La Tomatina","Jesús María","Aguascalientes","A",3]
[20994,"La Estancia","Jesús María","Aguascalientes","A",3]
[20996,"La Primavera","Jesús María","Aguascalientes","A",3]
[20996,"Los Arquitos","Jesús María","Aguascalientes","A",3]
[20997,"El Chacho","Jesús María","Aguascalientes","A",3]
[21000,"Centro Cívico","Mexicali","Baja California","C",3]
[21009,"Mexicali (Gral. Rodolfo Sánchez Taboada)","Mexicali","Baja California","C",3]
[21010,"Caliss","Mexicali","Baja California","C",3]
[21010,"Industrial","Mexicali","Baja California","C",3]
[21010,"Residencial Cerrada del Parque","Mexicali","Baja California","C",3]
[21010,"Zona Industrial","Mexicali","Baja California","C",3]
[21020,"Burócrata","Mexicali","Baja California","C",3]
[21030,"Libertad","Mexicali","Baja California","C",3]
[21030,"Nacozari","Mexicali","Baja California","C",3]
[21038,"FOVISSSTE","Mexicali","Baja California","C",3]
[21039,"Crnl. Esteban Cantú","Mexicali","Baja California","C",3]
[21040,"Ferrocarril","Mexicali","Baja California","C",3]
[21040,"Calafia","Mexicali","Baja California","C",3]
[21050,"Guajardo","Mexicali","Baja California","C",3]
[21050,"Nueva Esperanza","Mexicali","Baja California","C",3]
[21050,"San Marcos","Mexicali","Baja California","C",3]
[21060,"Constituyentes","Mexicali","Baja California","C",3]
[21060,"Indeco Anáhuac","Mexicali","Baja California","C",3]
[21060,"Josué Molina","Mexicali","Baja California","C",3]
[21060,"Anáhuac","Mexicali","Baja California","C",3]
[21070,"Zacatecas","Mexicali","Baja California","C",3]
[21070,"Balbuena","Mexicali","Baja California","C",3]
[21070,"Zona Industrial","Mexicali","Baja California","C",3]
[21079,"Los Arcos","Mexicali","Baja California","C",3]
[21080,"18 de Marzo","Mexicali","Baja California","C",3]
[21080,"El Vidrio","Mexicali","Baja California","C",3]
[21090,"Zona Industrial","Mexicali","Baja California","C",3]
[21090,"Agualeguas","Mexicali","Baja California","C",3]
[21090,"Zacatecas","Mexicali","Baja California","C",3]
[21090,"Del Rastro","Mexicali","Baja California","C",3]
[21100,"Segunda Sección","Mexicali","Baja California","C",3]
[21100,"Nueva","Mexicali","Baja California","C",3]
[21100,"Primera Sección","Mexicali","Baja California","C",3]
[21110,"Eligio Esquivel","Mexicali","Baja California","C",3]
[21110,"Santa Clara","Mexicali","Baja California","C",3]
[21110,"Fronteriza","Mexicali","Baja California","C",3]
[21110,"Revolución","Mexicali","Baja California","C",3]
[21120,"Río Nuevo","Mexicali","Baja California","C",3]
[21120,"Pueblo Nuevo","Mexicali","Baja California","C",3]
[21130,"Orizaba","Mexicali","Baja California","C",3]
[21130,"Baja California","Mexicali","Baja California","C",3]
[21130,"Orizaba","Mexicali","Baja California","C",3]
[21135,"Las Palmeras","Mexicali","Baja California","C",3]
[21135,"Los Olivos","Mexicali","Baja California","C",3]
[21135,"Mártires de La Democracia","Mexicali","Baja California","C",3]
[21135,"Las Magdalenas","Mexicali","Baja California","C",3]
[21135,"Sol del Amanecer","Mexicali","Baja California","C",3]
[21135,"Los Faisanes","Mexicali","Baja California","C",3]
[21135,"Palmar de Orizaba","Mexicali","Baja California","C",3]
[21135,"Hacienda de Mexicali","Mexicali","Baja California","C",3]
[21135,"Haciendas Orizaba","Mexicali","Baja California","C",3]
[21135,"Sindicalista","Mexicali","Baja California","C",3]
[21135,"Desarrollo Urbano Orizaba Sur","Mexicali","Baja California","C",3]
[21137,"Lucerna","Mexicali","Baja California","C",3]
[21137,"Mayos","Mexicali","Baja California","C",3]
[21137,"Carlos Salinas","Mexicali","Baja California","C",3]
[21137,"Ladrilleros Santa Isabel","Mexicali","Baja California","C",3]
[21137,"Villas Galicia","Mexicali","Baja California","C",3]
[21137,"Luis Donaldo Colosio","Mexicali","Baja California","C",3]
[21137,"San Miguel 2da Etapa","Mexicali","Baja California","C",3]
[21137,"Cachanilla","Mexicali","Baja California","C",3]
[21137,"Misión de San Diego de Alcalá","Mexicali","Baja California","C",3]
[21137,"Misión de San Francisco Javier","Mexicali","Baja California","C",3]
[21137,"San Martín Caballero","Mexicali","Baja California","C",3]
[21137,"Misión de San Ignacio","Mexicali","Baja California","C",3]
[21137,"Real del Río Residencial 2da Sección","Mexicali","Baja California","C",3]
[21137,"Real del Río","Mexicali","Baja California","C",3]
[21137,"El Colonial","Mexicali","Baja California","C",3]
[21137,"Ampliación Lucerna","Mexicali","Baja California","C",3]
[21137,"Desarrollo Urbano Ex Ejido Orizaba","Mexicali","Baja California","C",3]
[21137,"Aztecas","Mexicali","Baja California","C",3]
[21137,"Oscar Garzón","Mexicali","Baja California","C",3]
[21137,"San Miguel","Mexicali","Baja California","C",3]
[21137,"Villa del Campo","Mexicali","Baja California","C",3]
[21137,"Misión de San Antonio","Mexicali","Baja California","C",3]
[21137,"Villas Coahuila","Mexicali","Baja California","C",3]
[21138,"Misión Viejo","Mexicali","Baja California","C",3]
[21138,"San Jacinto","Mexicali","Baja California","C",3]
[21138,"La Luna","Mexicali","Baja California","C",3]
[21138,"El Angel","Mexicali","Baja California","C",3]
[21138,"Torremolinos","Mexicali","Baja California","C",3]
[21138,"Ampliación Refugio","Mexicali","Baja California","C",3]
[21138,"El Paraíso","Mexicali","Baja California","C",3]
[21138,"San Clemente","Mexicali","Baja California","C",3]
[21138,"Los Milagros","Mexicali","Baja California","C",3]
[21138,"El Coloso","Mexicali","Baja California","C",3]
[21138,"Valle de las Misiones","Mexicali","Baja California","C",3]
[21138,"El Refugio","Mexicali","Baja California","C",3]
[21138,"Los Viñedos","Mexicali","Baja California","C",3]
[21139,"Las Reinas","Mexicali","Baja California","C",3]
[21139,"San José","Mexicali","Baja California","C",3]
[21139,"Gabriela Mistral","Mexicali","Baja California","C",3]
[21139,"Popular Centinela","Mexicali","Baja California","C",3]
[21139,"Santa Lorena","Mexicali","Baja California","C",3]
[21139,"Nuevo Santa Lucia","Mexicali","Baja California","C",3]
[21139,"Santa Isabel","Mexicali","Baja California","C",3]
[21139,"San Carlos","Mexicali","Baja California","C",3]
[21139,"San Pablo","Mexicali","Baja California","C",3]
[21139,"Santa Catarina","Mexicali","Baja California","C",3]
[21139,"Centinela","Mexicali","Baja California","C",3]
[21139,"El Sauce","Mexicali","Baja California","C",3]
[21139,"La Estrella","Mexicali","Baja California","C",3]
[21140,"Parcela 36","Mexicali","Baja California","C",3]
[21140,"Esperanza","Mexicali","Baja California","C",3]
[21140,"Loma Linda","Mexicali","Baja California","C",3]
[21140,"Condominio Esperanza Agrícola","Mexicali","Baja California","C",3]
[21147,"Bordo Wisteria","Mexicali","Baja California","C",3]
[21150,"Bellavista","Mexicali","Baja California","C",3]
[21150,"San Isidro","Mexicali","Baja California","C",3]
[21150,"Héctor Corella","Mexicali","Baja California","C",3]
[21150,"Eguia","Mexicali","Baja California","C",3]
[21150,"Pasadina","Mexicali","Baja California","C",3]
[21150,"Villas del Sol","Mexicali","Baja California","C",3]
[21150,"Villas California","Mexicali","Baja California","C",3]
[21150,"Jabonera","Mexicali","Baja California","C",3]
[21150,"Barrio Álamo","Mexicali","Baja California","C",3]
[21150,"Zona Industrial","Mexicali","Baja California","C",3]
[21150,"Villas Cachanillas","Mexicali","Baja California","C",3]
[21160,"CCI Ejidatarios","Mexicali","Baja California","C",3]
[21160,"San Luis","Mexicali","Baja California","C",3]
[21160,"Municipio Libre","Mexicali","Baja California","C",3]
[21160,"Orizaba","Mexicali","Baja California","C",3]
[21160,"Simental","Mexicali","Baja California","C",3]
[21160,"Gasca","Mexicali","Baja California","C",3]
[21160,"Santa Bárbara","Mexicali","Baja California","C",3]
[21165,"Popular Nacionalistas","Mexicali","Baja California","C",3]
[21170,"Militar","Mexicali","Baja California","C",3]
[21170,"27 de Septiembre","Mexicali","Baja California","C",3]
[21178,"Electricistas","Mexicali","Baja California","C",3]
[21179,"Martha Welch","Mexicali","Baja California","C",3]
[21180,"Universitario","Mexicali","Baja California","C",3]
[21180,"Villafontana","Mexicali","Baja California","C",3]
[21185,"El Porvenir","Mexicali","Baja California","C",3]
[21185,"Francisco Zarco","Mexicali","Baja California","C",3]
[21185,"El Papago INFONAVIT","Mexicali","Baja California","C",3]
[21188,"Solidaridad INFONAVIT II","Mexicali","Baja California","C",3]
[21188,"Mediterráneo","Mexicali","Baja California","C",3]
[21188,"Progreso","Mexicali","Baja California","C",3]
[21188,"Solidaridad Virreyes","Mexicali","Baja California","C",3]
[21188,"Puesta de Sol Residencial","Mexicali","Baja California","C",3]
[21188,"Las Palomas","Mexicali","Baja California","C",3]
[21188,"Solidaridad INFONAVIT","Mexicali","Baja California","C",3]
[21188,"Misión Virreyes","Mexicali","Baja California","C",3]
[21188,"Residencial San Francisco","Mexicali","Baja California","C",3]
[21189,"INFONAVIT","Mexicali","Baja California","C",3]
[21190,"Residencial San Andrés","Mexicali","Baja California","C",3]
[21190,"Real Virreyes","Mexicali","Baja California","C",3]
[21190,"Granjas Virreyes","Mexicali","Baja California","C",3]
[21190,"Ampliación Popular Santo Niño","Mexicali","Baja California","C",3]
[21190,"Viñas del Sol","Mexicali","Baja California","C",3]
[21190,"Huertas de La Progreso","Mexicali","Baja California","C",3]
[21190,"Santo Niño","Mexicali","Baja California","C",3]
[21200,"Cuauhtémoc Norte","Mexicali","Baja California","C",3]
[21200,"Cuauhtémoc Sur","Mexicali","Baja California","C",3]
[21210,"Pimsa I","Mexicali","Baja California","C",3]
[21210,"Residencial Argentina","Mexicali","Baja California","C",3]
[21210,"Sonora","Mexicali","Baja California","C",3]
[21210,"Alamitos","Mexicali","Baja California","C",3]
[21210,"San Gabriel","Mexicali","Baja California","C",3]
[21210,"Estatutos Jurídicos","Mexicali","Baja California","C",3]
[21210,"Prolongación Alamitos","Mexicali","Baja California","C",3]
[21210,"Felipe Ángeles","Mexicali","Baja California","C",3]
[21215,"Alameda","Mexicali","Baja California","C",3]
[21216,"Las Hadas","Mexicali","Baja California","C",3]
[21217,"Andalucía","Mexicali","Baja California","C",3]
[21218,"Compuertas","Mexicali","Baja California","C",3]
[21219,"Residencial Hípico","Mexicali","Baja California","C",3]
[21220,"Armando Gutiérrez","Mexicali","Baja California","C",3]
[21220,"Hega","Mexicali","Baja California","C",3]
[21220,"Josefa Ortiz de Domínguez","Mexicali","Baja California","C",3]
[21220,"Flores Magón","Mexicali","Baja California","C",3]
[21220,"El Porvenir","Mexicali","Baja California","C",3]
[21220,"Flores Magón","Mexicali","Baja California","C",3]
[21220,"Imperial","Mexicali","Baja California","C",3]
[21220,"Corregidora","Mexicali","Baja California","C",3]
[21220,"El Porvenir","Mexicali","Baja California","C",3]
[21224,"Nuevo Ideal","Mexicali","Baja California","C",3]
[21225,"Privada Vistahermosa","Mexicali","Baja California","C",3]
[21225,"Cerrada del Sol","Mexicali","Baja California","C",3]
[21225,"Veredas del Sol","Mexicali","Baja California","C",3]
[21225,"Residencial Marsella","Mexicali","Baja California","C",3]
[21225,"Valle de Álamo","Mexicali","Baja California","C",3]
[21229,"Parque Industrial Álamo","Mexicali","Baja California","C",3]
[21229,"Aduana Garita 2","Mexicali","Baja California","C",3]
[21229,"Las Garzas","Mexicali","Baja California","C",3]
[21229,"PIMSA IV","Mexicali","Baja California","C",3]
[21229,"Alianza Para La Producción","Mexicali","Baja California","C",3]
[21230,"Las Fuentes","Mexicali","Baja California","C",3]
[21230,"Unidad Patria","Mexicali","Baja California","C",3]
[21230,"La Escondida","Mexicali","Baja California","C",3]
[21230,"Periodista","Mexicali","Baja California","C",3]
[21230,"Aviación","Mexicali","Baja California","C",3]
[21230,"Justo Sierra","Mexicali","Baja California","C",3]
[21230,"Los Pinos","Mexicali","Baja California","C",3]
[21239,"Ciudad Deportiva","Mexicali","Baja California","C",3]
[21240,"Prohogar","Mexicali","Baja California","C",3]
[21240,"Santa Maria","Mexicali","Baja California","C",3]
[21240,"Rincón Cataviña","Mexicali","Baja California","C",3]
[21240,"Vista Hermosa","Mexicali","Baja California","C",3]
[21240,"Catavina","Mexicali","Baja California","C",3]
[21250,"Mártires de 1906","Mexicali","Baja California","C",3]
[21250,"Miraflores","Mexicali","Baja California","C",3]
[21250,"Residencial el Lienzo","Mexicali","Baja California","C",3]
[21250,"Roma","Mexicali","Baja California","C",3]
[21250,"Constitución","Mexicali","Baja California","C",3]
[21250,"Benito Juárez","Mexicali","Baja California","C",3]
[21250,"República Mexicana","Mexicali","Baja California","C",3]
[21254,"Pi Calafia","Mexicali","Baja California","C",3]
[21254,"Versalles Residencial","Mexicali","Baja California","C",3]
[21254,"Privada San Miguel","Mexicali","Baja California","C",3]
[21254,"Real del Sol","Mexicali","Baja California","C",3]
[21254,"Parque Industrial Ex-XXI","Mexicali","Baja California","C",3]
[21254,"Residencial San Sebastián","Mexicali","Baja California","C",3]
[21254,"Ampliación Residencial San Sebastián","Mexicali","Baja California","C",3]
[21254,"San Pedro Residencial","Mexicali","Baja California","C",3]
[21254,"Hacienda del Río","Mexicali","Baja California","C",3]
[21254,"Residencial Coronado","Mexicali","Baja California","C",3]
[21254,"Colorado","Mexicali","Baja California","C",3]
[21254,"Privada San Miguel 3a Etapa","Mexicali","Baja California","C",3]
[21254,"Ampliación Parque Industrial Ex-XXI","Mexicali","Baja California","C",3]
[21255,"Montecarlo","Mexicali","Baja California","C",3]
[21255,"Montecarlo 2a Sección","Mexicali","Baja California","C",3]
[21255,"Quinta Montecarlo","Mexicali","Baja California","C",3]
[21255,"Residencial Casa Maya II","Mexicali","Baja California","C",3]
[21255,"Montecarlo 3a Sección","Mexicali","Baja California","C",3]
[21255,"Villas San Ángel","Mexicali","Baja California","C",3]
[21255,"Casa Maya","Mexicali","Baja California","C",3]
[21255,"Puerta de Hierro","Mexicali","Baja California","C",3]
[21255,"Residencial Puerta de Alcalá","Mexicali","Baja California","C",3]
[21255,"Balboa Residencial","Mexicali","Baja California","C",3]
[21257,"Misión de Loreto","Mexicali","Baja California","C",3]
[21258,"El Lienzo","Mexicali","Baja California","C",3]
[21258,"La Joya","Mexicali","Baja California","C",3]
[21259,"Rivera","Mexicali","Baja California","C",3]
[21260,"Las Fuentes","Mexicali","Baja California","C",3]
[21260,"1 de Diciembre","Mexicali","Baja California","C",3]
[21260,"Chapultepec los Pinos","Mexicali","Baja California","C",3]
[21260,"Cantú","Mexicali","Baja California","C",3]
[21270,"Jardines del Valle","Mexicali","Baja California","C",3]
[21270,"Santa Teresa","Mexicali","Baja California","C",3]
[21270,"Santa Rosalía","Mexicali","Baja California","C",3]
[21270,"Vallarta","Mexicali","Baja California","C",3]
[21279,"Plaza Universidad","Mexicali","Baja California","C",3]
[21280,"Maestros Estatales","Mexicali","Baja California","C",3]
[21280,"Profesores Estatales","Mexicali","Baja California","C",3]
[21280,"Insurgentes Este","Mexicali","Baja California","C",3]
[21280,"Insurgentes Oeste","Mexicali","Baja California","C",3]
[21280,"Residencias","Mexicali","Baja California","C",3]
[21280,"Reforma","Mexicali","Baja California","C",3]
[21285,"Residencias Imperiales","Mexicali","Baja California","C",3]
[21289,"Universidad Autónoma Baja California","Mexicali","Baja California","C",3]
[21290,"Granjas La Bodega","Mexicali","Baja California","C",3]
[21290,"Independencia","Mexicali","Baja California","C",3]
[21290,"Independencia","Mexicali","Baja California","C",3]
[21297,"Villas del Rosario","Mexicali","Baja California","C",3]
[21297,"Hacienda de Lourdes","Mexicali","Baja California","C",3]
[21297,"Santa Fe","Mexicali","Baja California","C",3]
[21297,"Las Delicias","Mexicali","Baja California","C",3]
[21297,"San Fernando","Mexicali","Baja California","C",3]
[21297,"Villas Cachanillas","Mexicali","Baja California","C",3]
[21298,"Burócratas Federales","Mexicali","Baja California","C",3]
[21298,"Misión de Santo Domingo Ampliación","Mexicali","Baja California","C",3]
[21298,"Privada Rústica","Mexicali","Baja California","C",3]
[21298,"Villa Colonial","Mexicali","Baja California","C",3]
[21298,"Los Reyes","Mexicali","Baja California","C",3]
[21298,"Maestros Democráticos de La Base","Mexicali","Baja California","C",3]
[21298,"Misión de Santo Domingo","Mexicali","Baja California","C",3]
[21298,"San Jerónimo","Mexicali","Baja California","C",3]
[21298,"Misión San Adrian","Mexicali","Baja California","C",3]
[21299,"Misión de Guadalupe","Mexicali","Baja California","C",3]
[21299,"De ANSA","Mexicali","Baja California","C",3]
[21300,"División del Norte","Mexicali","Baja California","C",3]
[21307,"Villanova","Mexicali","Baja California","C",3]
[21307,"Villafontana","Mexicali","Baja California","C",3]
[21308,"Parcela 64","Mexicali","Baja California","C",3]
[21309,"Parcela 62","Mexicali","Baja California","C",3]
[21309,"Villas del Real","Mexicali","Baja California","C",3]
[21310,"Morelos","Mexicali","Baja California","C",3]
[21320,"Vicente Guerrero","Mexicali","Baja California","C",3]
[21320,"Vicente Guerrero","Mexicali","Baja California","C",3]
[21320,"Camino Viejo","Mexicali","Baja California","C",3]
[21320,"Lucio Blanco","Mexicali","Baja California","C",3]
[21320,"Pedro Moreno","Mexicali","Baja California","C",3]
[21320,"Crnl. Esteban Cantú","Mexicali","Baja California","C",3]
[21320,"Felipe Ángeles","Mexicali","Baja California","C",3]
[21320,"Joaquín Murrieta","Mexicali","Baja California","C",3]
[21323,"Reacomodo San Fernando","Mexicali","Baja California","C",3]
[21323,"San Fernando Regularización Corett","Mexicali","Baja California","C",3]
[21323,"Valle de La Plata","Mexicali","Baja California","C",3]
[21323,"Casa Digna","Mexicali","Baja California","C",3]
[21323,"Residencial Barcelona","Mexicali","Baja California","C",3]
[21323,"Hacienda La Encantada","Mexicali","Baja California","C",3]
[21323,"Voluntad","Mexicali","Baja California","C",3]
[21323,"Residencial Barcelona II","Mexicali","Baja California","C",3]
[21324,"Reacomodo Río Colorado","Mexicali","Baja California","C",3]
[21324,"Zaragoza","Mexicali","Baja California","C",3]
[21325,"Valle Del Diamante","Mexicali","Baja California","C",3]
[21325,"Cucapah Progreso","Mexicali","Baja California","C",3]
[21325,"Zona Progreso","Mexicali","Baja California","C",3]
[21326,"Progreso","Mexicali","Baja California","C",3]
[21326,"Villa Los Jazmines","Mexicali","Baja California","C",3]
[21326,"Valle del Progreso","Mexicali","Baja California","C",3]
[21326,"Pioneros de La Progreso","Mexicali","Baja California","C",3]
[21326,"Jardines de La Progreso","Mexicali","Baja California","C",3]
[21326,"Finca Los Jazminez","Mexicali","Baja California","C",3]
[21326,"Villa de Alarcón Segunda Etapa","Mexicali","Baja California","C",3]
[21326,"Santa Lucia Progreso","Mexicali","Baja California","C",3]
[21326,"Villa de Alarcón","Mexicali","Baja California","C",3]
[21327,"Hacienda de Los Portales 3a Sección","Mexicali","Baja California","C",3]
[21327,"Hacienda de Castilla","Mexicali","Baja California","C",3]
[21327,"Hacienda de los Portales 4a Sección","Mexicali","Baja California","C",3]
[21327,"Hacienda de Los Portales 5a Sección","Mexicali","Baja California","C",3]
[21327,"Hacienda de Los Portales","Mexicali","Baja California","C",3]
[21327,"Fundadores","Mexicali","Baja California","C",3]
[21327,"Hacienda de los Portales 2da Sección","Mexicali","Baja California","C",3]
[21327,"Mezquital","Mexicali","Baja California","C",3]
[21330,"Jardines del Lago","Mexicali","Baja California","C",3]
[21330,"Las Flores","Mexicali","Baja California","C",3]
[21330,"Adolfo López Mateos","Mexicali","Baja California","C",3]
[21330,"Popular 6 de Enero","Mexicali","Baja California","C",3]
[21330,"Jardines del Lago","Mexicali","Baja California","C",3]
[21330,"Tierra del Sol INFONAVIT","Mexicali","Baja California","C",3]
[21337,"Televisora","Mexicali","Baja California","C",3]
[21338,"Residencial del Bosque","Mexicali","Baja California","C",3]
[21339,"Santa Mónica","Mexicali","Baja California","C",3]
[21339,"Jardines del Lago","Mexicali","Baja California","C",3]
[21340,"Cucapah INFONAVIT","Mexicali","Baja California","C",3]
[21340,"Monte Alban","Mexicali","Baja California","C",3]
[21340,"Aurora","Mexicali","Baja California","C",3]
[21350,"Conjunto Urbano Esperanza","Mexicali","Baja California","C",3]
[21350,"Gomes Farias","Mexicali","Baja California","C",3]
[21350,"Santa Cecilia","Mexicali","Baja California","C",3]
[21353,"Paseos de Xochimilco","Mexicali","Baja California","C",3]
[21353,"Hacienda del Real","Mexicali","Baja California","C",3]
[21353,"Hacienda Real","Mexicali","Baja California","C",3]
[21353,"Ampliación Xichicalli","Mexicali","Baja California","C",3]
[21353,"Residencial Madrid 2a Sección","Mexicali","Baja California","C",3]
[21353,"Xochicalli","Mexicali","Baja California","C",3]
[21353,"Terrazas del Sol","Mexicali","Baja California","C",3]
[21353,"California","Mexicali","Baja California","C",3]
[21353,"Gran Venecia","Mexicali","Baja California","C",3]
[21353,"Villa Residencial Venecia","Mexicali","Baja California","C",3]
[21353,"Villa del Rey Tercera Etapa","Mexicali","Baja California","C",3]
[21353,"Juventud Deportiva 2000","Mexicali","Baja California","C",3]
[21353,"Residencial Madrid","Mexicali","Baja California","C",3]
[21353,"Villa Residencial Venecia 2da Etapa","Mexicali","Baja California","C",3]
[21353,"Lago de Xochimilco","Mexicali","Baja California","C",3]
[21353,"Villa Esperanza 2000","Mexicali","Baja California","C",3]
[21353,"El Campanario","Mexicali","Baja California","C",3]
[21354,"Paseo las Flores","Mexicali","Baja California","C",3]
[21354,"Villa del Rey Segunda Etapa","Mexicali","Baja California","C",3]
[21354,"Gran Hacienda","Mexicali","Baja California","C",3]
[21354,"Villa del Rey Cuarta Etapa","Mexicali","Baja California","C",3]
[21354,"Casa Magna","Mexicali","Baja California","C",3]
[21354,"Villa del Rey Primera Etapa","Mexicali","Baja California","C",3]
[21354,"Casa Magna Platino","Mexicali","Baja California","C",3]
[21355,"Quinta del Rey","Mexicali","Baja California","C",3]
[21355,"Residencial Quinta Granada","Mexicali","Baja California","C",3]
[21355,"Zona Urbana del Ejido Xochimilco","Mexicali","Baja California","C",3]
[21355,"Villa Lomas Altas 2a Secc.","Mexicali","Baja California","C",3]
[21355,"Residencial Quinta del Rey 2a Etapa","Mexicali","Baja California","C",3]
[21355,"Villa Lomas Altas 3era. Sección","Mexicali","Baja California","C",3]
[21355,"Quinta Córdoba","Mexicali","Baja California","C",3]
[21355,"Villa del Rey Quinta Etapa","Mexicali","Baja California","C",3]
[21355,"Quintas del Rey II","Mexicali","Baja California","C",3]
[21355,"Hacienda del Bosque","Mexicali","Baja California","C",3]
[21355,"Quinta Roma","Mexicali","Baja California","C",3]
[21355,"Villa Residencial del Prado","Mexicali","Baja California","C",3]
[21355,"Villa Lomas Altas","Mexicali","Baja California","C",3]
[21355,"Villa las Lomas","Mexicali","Baja California","C",3]
[21355,"Villa Margarita Residencial","Mexicali","Baja California","C",3]
[21355,"Buenos Aires","Mexicali","Baja California","C",3]
[21356,"Villa del Sol INFONAVIT","Mexicali","Baja California","C",3]
[21359,"Esperanza 4a Sección","Mexicali","Baja California","C",3]
[21360,"Ex Ejido Coahuila","Mexicali","Baja California","C",3]
[21360,"Sanchez Taboada","Mexicali","Baja California","C",3]
[21360,"Las Palmas","Mexicali","Baja California","C",3]
[21360,"Margaritas","Mexicali","Baja California","C",3]
[21360,"Privada Coahuila","Mexicali","Baja California","C",3]
[21370,"Maestros Federales","Mexicali","Baja California","C",3]
[21370,"Carbajal","Mexicali","Baja California","C",3]
[21370,"Lázaro Cárdenas","Mexicali","Baja California","C",3]
[21370,"Profesores Federales","Mexicali","Baja California","C",3]
[21370,"Privada Juárez","Mexicali","Baja California","C",3]
[21371,"Centro SCT Baja California","Mexicali","Baja California","C",3]
[21376,"Misión del Valle","Mexicali","Baja California","C",3]
[21376,"Hacienda Dorada","Mexicali","Baja California","C",3]
[21376,"Puerta del Sol","Mexicali","Baja California","C",3]
[21376,"Terrazas del Valle","Mexicali","Baja California","C",3]
[21376,"Coral Maya","Mexicali","Baja California","C",3]
[21376,"Puerta del Sol 2da Etapa","Mexicali","Baja California","C",3]
[21376,"Bosque del Sol","Mexicali","Baja California","C",3]
[21376,"Verona","Mexicali","Baja California","C",3]
[21376,"Plutarco Elías Calles","Mexicali","Baja California","C",3]
[21376,"Palmar de Santa Anita","Mexicali","Baja California","C",3]
[21376,"Rivera Maya Residencial","Mexicali","Baja California","C",3]
[21376,"Mayakhan Residencial","Mexicali","Baja California","C",3]
[21376,"Villas del Valle","Mexicali","Baja California","C",3]
[21376,"Residencial Segovia","Mexicali","Baja California","C",3]
[21378,"Villa del Cedro","Mexicali","Baja California","C",3]
[21378,"Sombras Jery","Mexicali","Baja California","C",3]
[21378,"Lomas de Abasolo","Mexicali","Baja California","C",3]
[21378,"Villas del Palmar","Mexicali","Baja California","C",3]
[21378,"Saturno","Mexicali","Baja California","C",3]
[21378,"Sevilla","Mexicali","Baja California","C",3]
[21378,"Residencial Sevilla 2a Sección","Mexicali","Baja California","C",3]
[21378,"La Toscana Residencial","Mexicali","Baja California","C",3]
[21379,"San Vizcaíno","Mexicali","Baja California","C",3]
[21379,"IMSS Siglo XXI","Mexicali","Baja California","C",3]
[21379,"El Sauzal","Mexicali","Baja California","C",3]
[21379,"Las Bugambilias Inn","Mexicali","Baja California","C",3]
[21379,"Real del Monte","Mexicali","Baja California","C",3]
[21379,"Santa Veronica","Mexicali","Baja California","C",3]
[21379,"Rancho La Bodega","Mexicali","Baja California","C",3]
[21379,"Vista del Llano","Mexicali","Baja California","C",3]
[21379,"Valle Delicias","Mexicali","Baja California","C",3]
[21379,"Sol de Reyes","Mexicali","Baja California","C",3]
[21379,"La Antigua","Mexicali","Baja California","C",3]
[21379,"Santa Lucia","Mexicali","Baja California","C",3]
[21379,"Misión San Vizcaíno","Mexicali","Baja California","C",3]
[21379,"Padre Kino","Mexicali","Baja California","C",3]
[21379,"Las Misiones","Mexicali","Baja California","C",3]
[21379,"La Bodega ISSSTE","Mexicali","Baja California","C",3]
[21379,"Real del Castillo","Mexicali","Baja California","C",3]
[21379,"Los Álamos","Mexicali","Baja California","C",3]
[21379,"El Maple","Mexicali","Baja California","C",3]
[21379,"Villa Bonita","Mexicali","Baja California","C",3]
[21379,"Jardines de La Arboleda","Mexicali","Baja California","C",3]
[21379,"Misión de San Carlos","Mexicali","Baja California","C",3]
[21379,"Residencial Ibiza","Mexicali","Baja California","C",3]
[21379,"Hacienda Málaga","Mexicali","Baja California","C",3]
[21380,"Justo Sierra","Mexicali","Baja California","C",3]
[21380,"Xochimilco","Mexicali","Baja California","C",3]
[21380,"Justo Sierra","Mexicali","Baja California","C",3]
[21383,"Unión de Residentes Lázaro Cárdenas","Mexicali","Baja California","C",3]
[21383,"Colorado","Mexicali","Baja California","C",3]
[21383,"Parque Industrial el Dorado","Mexicali","Baja California","C",3]
[21384,"El Ciprés","Mexicali","Baja California","C",3]
[21384,"El Roble","Mexicali","Baja California","C",3]
[21384,"Emiliano Zapata","Mexicali","Baja California","C",3]
[21384,"Valle de Puebla 2a Sección","Mexicali","Baja California","C",3]
[21384,"Huertas del Colorado","Mexicali","Baja California","C",3]
[21384,"El Robledo","Mexicali","Baja California","C",3]
[21384,"Los Encinos","Mexicali","Baja California","C",3]
[21385,"Visión","Mexicali","Baja California","C",3]
[21385,"Cucapa","Mexicali","Baja California","C",3]
[21385,"Cachanilla","Mexicali","Baja California","C",3]
[21385,"Unidad Industrial Paccar México","Mexicali","Baja California","C",3]
[21385,"Satélite","Mexicali","Baja California","C",3]
[21385,"Parque Industrial Cucapah","Mexicali","Baja California","C",3]
[21385,"Marán","Mexicali","Baja California","C",3]
[21385,"El Vigía II","Mexicali","Baja California","C",3]
[21385,"Palaco","Mexicali","Baja California","C",3]
[21386,"Granjas Valle Verde","Mexicali","Baja California","C",3]
[21386,"Granjas Santa Cecilia","Mexicali","Baja California","C",3]
[21386,"Leandro Valle","Mexicali","Baja California","C",3]
[21386,"El Dorado","Mexicali","Baja California","C",3]
[21386,"Campestre","Mexicali","Baja California","C",3]
[21386,"Ecológicas Campestre","Mexicali","Baja California","C",3]
[21386,"Francisco I Madero","Mexicali","Baja California","C",3]
[21387,"Solidaridad Social","Mexicali","Baja California","C",3]
[21387,"Ladrillera Campestre","Mexicali","Baja California","C",3]
[21387,"Pórticos del Valle","Mexicali","Baja California","C",3]
[21387,"Laguna Campestre","Mexicali","Baja California","C",3]
[21387,"Diego Bustamante","Mexicali","Baja California","C",3]
[21387,"Nuevo Milenio","Mexicali","Baja California","C",3]
[21387,"Solidaridad Social","Mexicali","Baja California","C",3]
[21387,"5 de Julio","Mexicali","Baja California","C",3]
[21387,"Los Naranjos","Mexicali","Baja California","C",3]
[21387,"Vista del Valle","Mexicali","Baja California","C",3]
[21387,"Misión del Ángel","Mexicali","Baja California","C",3]
[21387,"Lago del Sol Residencial","Mexicali","Baja California","C",3]
[21387,"Popular Leandro Valle","Mexicali","Baja California","C",3]
[21387,"Jardines de Calafia","Mexicali","Baja California","C",3]
[21387,"Rivera Campestre","Mexicali","Baja California","C",3]
[21389,"Villa Mediterranea","Mexicali","Baja California","C",3]
[21389,"Zona Industrial","Mexicali","Baja California","C",3]
[21389,"Des. Urbanos Zacatecas II","Mexicali","Baja California","C",3]
[21389,"Hidalgo","Mexicali","Baja California","C",3]
[21390,"Nueva 18 de Marzo","Mexicali","Baja California","C",3]
[21390,"Ignacio Allende","Mexicali","Baja California","C",3]
[21390,"Haro Barnet","Mexicali","Baja California","C",3]
[21390,"Granjas Nuevas","Mexicali","Baja California","C",3]
[21390,"Francisco I Madero","Mexicali","Baja California","C",3]
[21394,"Solidaridad Mexicali","Mexicali","Baja California","C",3]
[21394,"Las Californias","Mexicali","Baja California","C",3]
[21394,"Venustiano Carranza","Mexicali","Baja California","C",3]
[21395,"Las Aves","Mexicali","Baja California","C",3]
[21395,"Unidad Pioneros","Mexicali","Baja California","C",3]
[21395,"Pimsa III","Mexicali","Baja California","C",3]
[21395,"Villas del Colorado","Mexicali","Baja California","C",3]
[21395,"Los Balcones","Mexicali","Baja California","C",3]
[21395,"Praderas del Sol","Mexicali","Baja California","C",3]
[21395,"Valle del Puebla","Mexicali","Baja California","C",3]
[21395,"Valle del Pedregal 7a Sección","Mexicali","Baja California","C",3]
[21395,"Valle del Pedregal 4a Sección","Mexicali","Baja California","C",3]
[21395,"Villa Toledo","Mexicali","Baja California","C",3]
[21395,"Valle de Puebla 6a Sección","Mexicali","Baja California","C",3]
[21395,"Villa del Roble","Mexicali","Baja California","C",3]
[21395,"El Cóndor","Mexicali","Baja California","C",3]
[21395,"Villa Florida","Mexicali","Baja California","C",3]
[21395,"Santa Fe","Mexicali","Baja California","C",3]
[21395,"Ladrillera","Mexicali","Baja California","C",3]
[21395,"Valle del Pedregal 2a Sección","Mexicali","Baja California","C",3]
[21395,"Nelson","Mexicali","Baja California","C",3]
[21395,"Villa Verde","Mexicali","Baja California","C",3]
[21395,"Hacienda del Sol","Mexicali","Baja California","C",3]
[21395,"Santa Sofía","Mexicali","Baja California","C",3]
[21395,"Valle del Pedregal 6a Sección","Mexicali","Baja California","C",3]
[21395,"Valle del Pedregal 3a Sección","Mexicali","Baja California","C",3]
[21395,"Valle del Puebla 4a Sección","Mexicali","Baja California","C",3]
[21395,"Valle del Puebla 5a Sección","Mexicali","Baja California","C",3]
[21395,"Victoria Residencial","Mexicali","Baja California","C",3]
[21395,"Bugambilias","Mexicali","Baja California","C",3]
[21395,"Huertas del Sol","Mexicali","Baja California","C",3]
[21395,"Valle del Pedregal 5a Sección","Mexicali","Baja California","C",3]
[21395,"Predio Bugambilias","Mexicali","Baja California","C",3]
[21395,"Villas del Colorado","Mexicali","Baja California","C",3]
[21395,"Casa Blanca","Mexicali","Baja California","C",3]
[21395,"Monarcas Residencial","Mexicali","Baja California","C",3]
[21395,"Monarcas Residencial 2a Sección","Mexicali","Baja California","C",3]
[21395,"Valle del Puebla 3a Sección","Mexicali","Baja California","C",3]
[21395,"Pedregal Turquesa","Mexicali","Baja California","C",3]
[21395,"Bugambilias","Mexicali","Baja California","C",3]
[21395,"Residencial del Río","Mexicali","Baja California","C",3]
[21395,"Mexicali II","Mexicali","Baja California","C",3]
[21395,"Villa Florida","Mexicali","Baja California","C",3]
[21395,"Villa Flor","Mexicali","Baja California","C",3]
[21395,"Valle del Colorado","Mexicali","Baja California","C",3]
[21395,"El Sahuaro","Mexicali","Baja California","C",3]
[21395,"Valle del Pedregal","Mexicali","Baja California","C",3]
[21395,"Cantera Residencial","Mexicali","Baja California","C",3]
[21396,"González Ortega Norte","Mexicali","Baja California","C",3]
[21396,"Mirasol","Mexicali","Baja California","C",3]
[21396,"Frontera","Mexicali","Baja California","C",3]
[21396,"Mexicali","Mexicali","Baja California","C",3]
[21396,"Santa Cruz","Mexicali","Baja California","C",3]
[21397,"González Ortega","Mexicali","Baja California","C",3]
[21397,"El Vigía","Mexicali","Baja California","C",3]
[21397,"Pimsa II","Mexicali","Baja California","C",3]
[21397,"Santa Rosa","Mexicali","Baja California","C",3]
[21397,"El Vigía","Mexicali","Baja California","C",3]
[21398,"González Ortega Poniente 1","Mexicali","Baja California","C",3]
[21398,"Raza","Mexicali","Baja California","C",3]
[21399,"Elizaura","Mexicali","Baja California","C",3]
[21399,"Los Álamos","Mexicali","Baja California","C",3]
[21399,"Mexicali del Sol","Mexicali","Baja California","C",3]
[21399,"Vivienda Magisterial","Mexicali","Baja California","C",3]
[21399,"1 de Mayo","Mexicali","Baja California","C",3]
[21399,"Los Laureles","Mexicali","Baja California","C",3]
[21399,"Hacienda del Río","Mexicali","Baja California","C",3]
[21399,"San Esteban","Mexicali","Baja California","C",3]
[21399,"Nuevo Mexicali","Mexicali","Baja California","C",3]
[21399,"Paseos del Sol","Mexicali","Baja California","C",3]
[21399,"Valle Dorado","Mexicali","Baja California","C",3]
[21399,"Tavizan Silva","Mexicali","Baja California","C",3]
[21399,"Casas Eternas","Mexicali","Baja California","C",3]
[21399,"González Ortega Poniente 3","Mexicali","Baja California","C",3]
[21399,"Valle del Sol","Mexicali","Baja California","C",3]
[21399,"Villas de La República","Mexicali","Baja California","C",3]
[21399,"Centro Comercial Río Mexicali","Mexicali","Baja California","C",3]
[21399,"Eucaliptos","Mexicali","Baja California","C",3]
[21399,"González Ortega Poniente 2","Mexicali","Baja California","C",3]
[21399,"Punta de Estrella","Mexicali","Baja California","C",3]
[21399,"Orquídea","Mexicali","Baja California","C",3]
[21400,"Tecate Centro","Tecate","Baja California","C",3]
[21410,"Romero","Tecate","Baja California","C",3]
[21410,"Espinoza","Tecate","Baja California","C",3]
[21410,"Prohogar","Tecate","Baja California","C",3]
[21420,"Esteban Cantú","Tecate","Baja California","C",3]
[21420,"Pliego","Tecate","Baja California","C",3]
[21430,"1 de Mayo","Tecate","Baja California","C",3]
[21430,"Aldrete","Tecate","Baja California","C",3]
[21430,"Arroyo Residencial","Tecate","Baja California","C",3]
[21430,"Libertad","Tecate","Baja California","C",3]
[21430,"Industrial","Tecate","Baja California","C",3]
[21432,"Sandoval","Tecate","Baja California","C",3]
[21432,"Tecate","Tecate","Baja California","C",3]
[21432,"Andalucía","Tecate","Baja California","C",3]
[21433,"San José","Tecate","Baja California","C",3]
[21440,"Encanto Sur","Tecate","Baja California","C",3]
[21440,"El Refugio","Tecate","Baja California","C",3]
[21440,"Chávez","Tecate","Baja California","C",3]
[21440,"Palmillas","Tecate","Baja California","C",3]
[21440,"Bella Vista","Tecate","Baja California","C",3]
[21440,"Paseo del Águila Rancho Eseorial","Tecate","Baja California","C",3]
[21440,"Carreño","Tecate","Baja California","C",3]
[21440,"Escorial","Tecate","Baja California","C",3]
[21442,"Rancho Santa Fe","Tecate","Baja California","C",3]
[21447,"Laderas de Tecate","Tecate","Baja California","C",3]
[21447,"Lomitas del Cuchuma","Tecate","Baja California","C",3]
[21447,"Encanto Norte","Tecate","Baja California","C",3]
[21447,"Rancho Gandul","Tecate","Baja California","C",3]
[21448,"La Hacienda","Tecate","Baja California","C",3]
[21449,"Ampliación Colinas de Cuchuma","Tecate","Baja California","C",3]
[21449,"Colinas de Cuchuma","Tecate","Baja California","C",3]
[21449,"Solidaridad","Tecate","Baja California","C",3]
[21450,"Moderna","Tecate","Baja California","C",3]
[21450,"González","Tecate","Baja California","C",3]
[21450,"Federal","Tecate","Baja California","C",3]
[21450,"Downey","Tecate","Baja California","C",3]
[21450,"Zorrilla","Tecate","Baja California","C",3]
[21450,"INFONAVIT Canaima","Tecate","Baja California","C",3]
[21452,"Francisco Villa","Tecate","Baja California","C",3]
[21452,"Rincón Tecate","Tecate","Baja California","C",3]
[21452,"Rincón Tecate 3a Etapa","Tecate","Baja California","C",3]
[21452,"Trece Ayuntamiento","Tecate","Baja California","C",3]
[21452,"Rincón Tecate 2a Sección","Tecate","Baja California","C",3]
[21452,"Rinconada Escudero","Tecate","Baja California","C",3]
[21452,"Escudero","Tecate","Baja California","C",3]
[21453,"Santa Anita","Tecate","Baja California","C",3]
[21453,"Santa Anita","Tecate","Baja California","C",3]
[21453,"Las Torres","Tecate","Baja California","C",3]
[21453,"Lomas de Santa Fe","Tecate","Baja California","C",3]
[21453,"Lomas de Santa Anita","Tecate","Baja California","C",3]
[21460,"Morelos","Tecate","Baja California","C",3]
[21460,"La Viñita","Tecate","Baja California","C",3]
[21460,"Emiliano Zapata","Tecate","Baja California","C",3]
[21460,"San Fernando","Tecate","Baja California","C",3]
[21460,"Valencia","Tecate","Baja California","C",3]
[21460,"El Pedregal","Tecate","Baja California","C",3]
[21460,"Jardines del Pedregal","Tecate","Baja California","C",3]
[21462,"Miguel Alemán","Tecate","Baja California","C",3]
[21463,"Cerro Azul","Tecate","Baja California","C",3]
[21470,"INFONAVIT Industrial","Tecate","Baja California","C",3]
[21470,"Cuauhtémoc Este","Tecate","Baja California","C",3]
[21470,"Guajardo","Tecate","Baja California","C",3]
[21470,"Militar","Tecate","Baja California","C",3]
[21472,"Ampliación Descanso","Tecate","Baja California","C",3]
[21472,"El Mirador","Tecate","Baja California","C",3]
[21472,"Luis Donaldo Colosio","Tecate","Baja California","C",3]
[21472,"Popular Emiliano Zapata","Tecate","Baja California","C",3]
[21472,"Valle Verde","Tecate","Baja California","C",3]
[21477,"La Sierra","Tecate","Baja California","C",3]
[21477,"El Yaqui","Tecate","Baja California","C",3]
[21478,"Cucapah","Tecate","Baja California","C",3]
[21478,"Jardines del Río","Tecate","Baja California","C",3]
[21478,"FOVISSSTE","Tecate","Baja California","C",3]
[21478,"El Descanso","Tecate","Baja California","C",3]
[21478,"Terrazas del Río","Tecate","Baja California","C",3]
[21478,"Fundadores","Tecate","Baja California","C",3]
[21479,"Las Huertas","Tecate","Baja California","C",3]
[21480,"Benito Juárez","Tecate","Baja California","C",3]
[21480,"Braulio Maldonado","Tecate","Baja California","C",3]
[21480,"INFONAVIT Loma Alta","Tecate","Baja California","C",3]
[21480,"Residencial San Jorge","Tecate","Baja California","C",3]
[21480,"La Bondad","Tecate","Baja California","C",3]
[21480,"Loma Alta II","Tecate","Baja California","C",3]
[21480,"San Jorge","Tecate","Baja California","C",3]
[21480,"Loma Alta","Tecate","Baja California","C",3]
[21482,"Maclovio Herrera","Tecate","Baja California","C",3]
[21483,"El Mirador","Tecate","Baja California","C",3]
[21483,"Moctezuma","Tecate","Baja California","C",3]
[21485,"Paraíso","Tecate","Baja California","C",3]
[21490,"Lázaro Cárdenas","Tecate","Baja California","C",3]
[21496,"Alfonso Garzón","Tecate","Baja California","C",3]
[21500,"El Dorado","Tecate","Baja California","C",3]
[21500,"Valle de las Palmas","Tecate","Baja California","C",3]
[21500,"Rancho Viejo","Tecate","Baja California","C",3]
[21505,"Luis Echeverría Álvarez","Tecate","Baja California","C",3]
[21506,"El Encinal","Tecate","Baja California","C",3]
[21506,"Loma Tova","Tecate","Baja California","C",3]
[21507,"Chula Vista","Tecate","Baja California","C",3]
[21507,"Nueva Hindú Sección Cerro Azul","Tecate","Baja California","C",3]
[21507,"Los Compadres","Tecate","Baja California","C",3]
[21507,"Nueva Hindú Sección Cafetalera","Tecate","Baja California","C",3]
[21507,"Nueva Hindú Sección Encinos","Tecate","Baja California","C",3]
[21507,"Felipe Ángeles","Tecate","Baja California","C",3]
[21510,"La Rumorosa","Tecate","Baja California","C",3]
[21511,"Baja California","Tecate","Baja California","C",3]
[21511,"Jacume","Tecate","Baja California","C",3]
[21517,"San Francisco","Tecate","Baja California","C",3]
[21519,"CERESO El Hongo","Tecate","Baja California","C",3]
[21520,"La Puerta","Tecate","Baja California","C",3]
[21530,"San Pablo","Tecate","Baja California","C",3]
[21530,"Villa Artesanal Lic. Milton Castellano","Tecate","Baja California","C",3]
[21530,"Hacienda Tecate","Tecate","Baja California","C",3]
[21530,"Tanama","Tecate","Baja California","C",3]
[21550,"Neji","Tecate","Baja California","C",3]
[21553,"Santa Verónica","Tecate","Baja California","C",3]
[21560,"Carmen Serdán","Tecate","Baja California","C",3]
[21570,"El Testerazo","Tecate","Baja California","C",3]
[21573,"Guadalajara","Tecate","Baja California","C",3]
[21600,"10 de Mayo","Mexicali","Baja California","C",3]
[21600,"Islas Agrarias B","Mexicali","Baja California","C",3]
[21600,"Laguna Campestre","Mexicali","Baja California","C",3]
[21600,"Williams","Mexicali","Baja California","C",3]
[21600,"Granjas Arco Iris","Mexicali","Baja California","C",3]
[21600,"El Pacifico","Mexicali","Baja California","C",3]
[21600,"Rivera","Mexicali","Baja California","C",3]
[21600,"San Isidro","Mexicali","Baja California","C",3]
[21600,"Ahumadita","Mexicali","Baja California","C",3]
[21600,"Cauces Federales","Mexicali","Baja California","C",3]
[21600,"Wisteria","Mexicali","Baja California","C",3]
[21600,"Zona del Canal","Mexicali","Baja California","C",3]
[21600,"San Agustin de las Palmas","Mexicali","Baja California","C",3]
[21600,"Estrella","Mexicali","Baja California","C",3]
[21600,"Mariano Abasolo","Mexicali","Baja California","C",3]
[21600,"Nuevo Milenio","Mexicali","Baja California","C",3]
[21600,"Jardines de Mendoza","Mexicali","Baja California","C",3]
[21600,"El Marítimo","Mexicali","Baja California","C",3]
[21600,"Islas Agrarias A","Mexicali","Baja California","C",3]
[21600,"Jardines de Loreto","Mexicali","Baja California","C",3]
[21600,"Pascualitos","Mexicali","Baja California","C",3]
[21600,"Bugambilias Jardines","Mexicali","Baja California","C",3]
[21601,"Orizaba","Mexicali","Baja California","C",3]
[21602,"Santo Niño","Mexicali","Baja California","C",3]
[21603,"Emiliano Zapata","Mexicali","Baja California","C",3]
[21604,"El Centinela","Mexicali","Baja California","C",3]
[21604,"Zaragoza","Mexicali","Baja California","C",3]
[21610,"Progreso","Mexicali","Baja California","C",3]
[21611,"Heriberto Jara","Mexicali","Baja California","C",3]
[21612,"Cecilia","Mexicali","Baja California","C",3]
[21613,"Palo Verde","Mexicali","Baja California","C",3]
[21620,"Hechicera Estación","Mexicali","Baja California","C",3]
[21620,"Querétaro","Mexicali","Baja California","C",3]
[21620,"Guanajuato 1","Mexicali","Baja California","C",3]
[21620,"San Luis Potosí","Mexicali","Baja California","C",3]
[21620,"Gómez","Mexicali","Baja California","C",3]
[21620,"Jalisco","Mexicali","Baja California","C",3]
[21620,"Puebla","Mexicali","Baja California","C",3]
[21620,"Pólvora","Mexicali","Baja California","C",3]
[21620,"Ángeles de Puebla","Mexicali","Baja California","C",3]
[21620,"Rincones de Puebla","Mexicali","Baja California","C",3]
[21620,"El Peligro","Mexicali","Baja California","C",3]
[21620,"Sinaloa","Mexicali","Baja California","C",3]
[21621,"Castro","Mexicali","Baja California","C",3]
[21700,"Nayarit","Mexicali","Baja California","C",3]
[21800,"Venustiano Carranza (Estación Coahuila Km. 57)","Mexicali","Baja California","C",3]
[21850,"Las Dunas","Mexicali","Baja California","C",3]
[22000,"Zona Este","Tijuana","Baja California","C",2]
[22030,"Hacienda las Palomas","Tijuana","Baja California","C",2]
[22105,"El Prado Este","Tijuana","Baja California","C",2]
[22115,"Benton","Tijuana","Baja California","C",2]
[22117,"Los Árboles","Tijuana","Baja California","C",2]
[22125,"Los Naranjos","Tijuana","Baja California","C",2]
[22195,"Sonora","Tijuana","Baja California","C",2]
[22205,"Villa Fontana XVIII","Tijuana","Baja California","C",2]
[22215,"Las Misiones","Tijuana","Baja California","C",2]
[22245,"Las Abejas","Tijuana","Baja California","C",2]
[22330,"Vista del Valle","Tijuana","Baja California","C",2]
[22420,"Insurgentes","Tijuana","Baja California","C",2]
[22504,"Playas de Tijuana Sección Laderas del Mar","Tijuana","Baja California","C",2]
[22517,"TECNOMEX","Tijuana","Baja California","C",2]
[22565,"Pacifico Campestre","Tijuana","Baja California","C",2]
[22616,"Monte San Antonio","Tijuana","Baja California","C",2]
[22635,"Santa Paula","Tijuana","Baja California","C",2]
[22643,"Industrial Pacífico III","Tijuana","Baja California","C",2]
[22689,"Cañón México Lindo","Tijuana","Baja California","C",2]
[22705,"Lomas Tecalli","Playas de Rosarito","Baja California","B",2]
[22707,"Morelos","Playas de Rosarito","Baja California","B",2]
[22770,"Real del Castillo Nuevo","Ensenada","Baja California","B",2]
[22785,"Lomas de San Fernando 2","Ensenada","Baja California","B",2]
[22793,"Los Pinos","Ensenada","Baja California","B",2]
[22810,"Reacomodo Lomitas","Ensenada","Baja California","B",2]
[22830,"28 de Agosto","Ensenada","Baja California","B",2]
[22850,"Francisco Villa II","Ensenada","Baja California","B",2]
[22880,"Buenaventura","Ensenada","Baja California","B",2]
[22932,"Nuevo Mexicali","Ensenada","Baja California","B",2]
[22952,"Pabellón","Ensenada","Baja California","B",2]
[23020,"Esterito","La Paz","Baja California Sur","B","1PS"]
[23054,"Cihuatán (Costa Azul)","La Paz","Baja California Sur","B","1PS"]
[23083,"Solidaridad Mezquitito I, II","La Paz","Baja California Sur","B","1PS"]
[23088,"Calafia","La Paz","Baja California Sur","B","1PS"]
[23213,"El Encino","La Paz","Baja California Sur","B","1PS"]
[23300,"Todos Santos Centro","La Paz","Baja California Sur","B","1PS"]
[23390,"Plutarco Elias Calles","La Paz","Baja California Sur","B","1PS"]
[23437,"El Limón","Los Cabos","Baja California Sur","B","1PS"]
[23455,"Santa Carmela","Los Cabos","Baja California Sur","B","1PS"]
[23467,"Reyna Avalos","Los Cabos","Baja California Sur","B","1PS"]
[23575,"Las Barrancas","Los Cabos","Baja California Sur","B","1PS"]
[23696,"El Agricultor INDECO","Comondú","Baja California Sur","B",3]
[23760,"Ley Federal de Aguas No 5","Comondú","Baja California Sur","B",3]
[23840,"María Auxiliadora","Comondú","Baja California Sur","B",3]
[23893,"San Angel","Loreto","Baja California Sur","B","1PS"]
[23895,"San Lucas","Loreto","Baja California Sur","B","1PS"]
[23900,"Heroica Mulegé Centro","Mulegé","Baja California Sur","B",2]
[23950,"Bahía Tortugas Sur","Mulegé","Baja California Sur","B",2]
[24020,"Sotavento","Campeche","Campeche","A","1PY"]
[24027,"Palmas II","Campeche","Campeche","A","1PY"]
[24070,"Bello Horizonte","Campeche","Campeche","A","1PY"]
[24087,"Eduardo J. Lavalle Urbina","Campeche","Campeche","A","1PY"]
[24090,"San Andrés","Campeche","Campeche","A","1PY"]
[24154,"Isla del Carmen 2000","Carmen","Campeche","A","1PY"]
[24157,"Privada Santa Ana","Carmen","Campeche","A","1PY"]
[24158,"Reforma","Carmen","Campeche","A","1PY"]
[24300,"Pénjamo","Carmen","Campeche","A","1PY"]
[24314,"18 de Marzo","Carmen","Campeche","A","1PY"]
[24317,"La Florida","Carmen","Campeche","A","1PY"]
[24333,"San Martín de Porres","Candelaria","Campeche","A","1PY"]
[24336,"Agricultores del Norte","Candelaria","Campeche","A","1PY"]
[24345,"Las Golondrinas","Candelaria","Campeche","A","1PY"]
[24350,"Jesús García","Escárcega","Campeche","A","1PY"]
[24400,"Microondas","Champotón","Campeche","A","1PY"]
[24402,"Canasayab","Champotón","Campeche","A","1PY"]
[24415,"San Antonio Yacasay","Champotón","Campeche","A","1PY"]
[24557,"Crucero OXA","Campeche","Campeche","A","1PY"]
[24600,"Dolores Lanz","Hopelchén","Campeche","A","1PY"]
[24620,"Bolonchen de Rejón","Hopelchén","Campeche","A","1PY"]
[24653,"Nuevo Conhuas","Calakmul","Campeche","A","1PY"]
[24730,"Tinun","Tenabo","Campeche","A","1PY"]
[24863,"San Juan Actun","Hecelchakán","Campeche","A","1PY"]
[25015,"Fundadores","Saltillo","Coahuila","A",3]
[25016,"Puerta del Oriente 2da Etapa","Saltillo","Coahuila","A",3]
[25023,"San Vicente","Saltillo","Coahuila","A",3]
[25070,"Lomas de Guadalupe","Saltillo","Coahuila","A",3]
[25084,"Buenavista","Saltillo","Coahuila","A",3]
[25096,"Federico Berrueto Ramón Popular","Saltillo","Coahuila","A",3]
[25128,"Josefa Ortiz de Domínguez","Saltillo","Coahuila","A",3]
[25140,"Obrera","Saltillo","Coahuila","A",3]
[25179,"Los Cuernitos","Saltillo","Coahuila","A",3]
[25210,"Privadas de Santiago","Saltillo","Coahuila","A",3]
[25240,"Jardín","Saltillo","Coahuila","A",3]
[25265,"República Poniente","Saltillo","Coahuila","A",3]
[25298,"Jardines de los Bosques","Saltillo","Coahuila","A",3]
[25306,"Cuauhtémoc","Saltillo","Coahuila","A",3]
[25331,"Santa Anita","Saltillo","Coahuila","A",3]
[25352,"Jardín","Arteaga","Coahuila","A",3]
[25505,"Magisterio","San Buenaventura","Coahuila","A",3]
[25629,"Ferrocarrilera","Frontera","Coahuila","A",3]
[25660,"Roma","Frontera","Coahuila","A",3]
[25740,"Pedregal de San Ángel","Monclova","Coahuila","A",3]
[25748,"23 de Abril","Monclova","Coahuila","A",3]
[25760,"Benavides","Monclova","Coahuila","A",3]
[25785,"ramos Arizpe","Monclova","Coahuila","A",3]
[25870,"San José","Castaños","Coahuila","A",3]
[25902,"La Esmeralda","Ramos Arizpe","Coahuila","A",3]
[25904,"FINSA","Ramos Arizpe","Coahuila","A",3]
[25933,"Las Encinas","Ramos Arizpe","Coahuila","A",3]
[25974,"La Hedionda Chica","General Cepeda","Coahuila","A",3]
[26017,"Argentinas","Piedras Negras","Coahuila","A",3]
[26060,"Central","Piedras Negras","Coahuila","A",3]
[26070,"Venustiano Carranza Norte","Piedras Negras","Coahuila","A",3]
[26174,"Progreso","Nava","Coahuila","A",3]
[26236,"Valle del Mirador","Acuña","Coahuila","A",3]
[26250,"Francisco I Madero","Acuña","Coahuila","A",3]
[26342,"México","Múzquiz","Coahuila","A",3]
[26355,"Mineral","Múzquiz","Coahuila","A",3]
[26460,"La Maroma","Zaragoza","Coahuila","A",3]
[26540,"Río Bravo","Allende","Coahuila","A",3]
[26770,"Coahuila","Sabinas","Coahuila","A",3]
[26862,"Las Torres","San Juan de Sabinas","Coahuila","A",3]
[26963,"Puente Negro","Sabinas","Coahuila","A",3]
[27053,"San Luisito","Torreón","Coahuila","A",3]
[27058,"Las Etnas","Torreón","Coahuila","A",3]
[27085,"Residencial las Torres Sección I","Torreón","Coahuila","A",3]
[27106,"Residencial Ibero","Torreón","Coahuila","A",3]
[27168,"Cuauhtémoc","Torreón","Coahuila","A",3]
[27240,"Ferrocarrilera","Torreón","Coahuila","A",3]
[27289,"La Huerta","Torreón","Coahuila","A",3]
[27299,"El Obispado","Torreón","Coahuila","A",3]
[27367,"La Unión","Torreón","Coahuila","A",3]
[27444,"Las Nogaleras","Matamoros","Coahuila","A",3]
[27447,"El Chalet","Matamoros","Coahuila","A",3]
[27470,"Tierra Blanca","Matamoros","Coahuila","A",3]
[27489,"Río Escondido","Viesca","Coahuila","A",3]
[27610,"La Esmeralda","Sierra Mojada","Coahuila","A",3]
[27646,"La Victoria","Cuatro Ciénegas","Coahuila","A",3]
[27810,"Las Palmas","San Pedro","Coahuila","A",3]
[27908,"San Alberto","Francisco I. Madero","Coahuila","A",3]
[27922,"La Virgen","Francisco I. Madero","Coahuila","A",3]
[27945,"Vega Larga","San Pedro","Coahuila","A",3]
[27986,"Barrio de La Loma","Parras","Coahuila","A",3]
[27989,"Barrio del Refugio","Parras","Coahuila","A",3]
[27992,"El Amparo","Parras","Coahuila","A",3]
[28017,"Residencial Santa Bárbara","Colima","Colima","D",2]
[28048,"Paraíso","Colima","Colima","D",2]
[28075,"Parque Industrial","Colima","Colima","D",2]
[28190,"San José","Tecomán","Colima","D","1PS"]
[28230,"Las Joyas","Manzanillo","Colima","D","1PS"]
[28306,"Emiliano Zapata","Armería","Colima","D","1PS"]
[28466,"Agosto","Comala","Colima","D",3]
[28554,"El Parían","Cuauhtémoc","Colima","D",3]
[28640,"Los Asmoles","Colima","Colima","D",2]
[28809,"Campos","Manzanillo","Colima","D","1PS"]
[28863,"San Isidro Labrador","Manzanillo","Colima","D","1PS"]
[28864,"INFONAVIT","Manzanillo","Colima","D","1PS"]
[28872,"Punta de Agua de Camotlán","Manzanillo","Colima","D","1PS"]
[28977,"Las Parotas","Villa de Álvarez","Colima","D",2]
[28979,"Salomón Preciado","Villa de Álvarez","Colima","D",2]
[28984,"La Reserva","Villa de Álvarez","Colima","D",2]
[29017,"Capulines 1","Tuxtla Gutiérrez","Chiapas","D",3]
[29020,"Juan Crispín","Tuxtla Gutiérrez","Chiapas","D",3]
[29020,"Bugambilias","Tuxtla Gutiérrez","Chiapas","D",3]
[29040,"Electricistas","Tuxtla Gutiérrez","Chiapas","D",3]
[29045,"Comitán","Tuxtla Gutiérrez","Chiapas","D",3]
[29050,"Santa Isabel","Tuxtla Gutiérrez","Chiapas","D",3]
[29066,"Lomas Verdes","Tuxtla Gutiérrez","Chiapas","D",3]
[29067,"Xamaipak","Tuxtla Gutiérrez","Chiapas","D",3]
[29090,"San Juan Sabinito","Tuxtla Gutiérrez","Chiapas","D",3]
[29130,"Emiliano Zapata","Berriozábal","Chiapas","D",2]
[29140,"San Ramón","Ocozocoautla de Espinosa","Chiapas","D",2]
[29144,"Espinal de Morelos","Ocozocoautla de Espinosa","Chiapas","D",2]
[29165,"Nuevo Zinacantán","Chiapa de Corzo","Chiapas","D",2]
[29169,"El Vergel","Chiapa de Corzo","Chiapas","D",2]
[29215,"Nueva Jerusalén","San Cristóbal de las Casas","Chiapas","D",3]
[29230,"Cuxtitali","San Cristóbal de las Casas","Chiapas","D",3]
[29266,"Burócratas","San Cristóbal de las Casas","Chiapas","D",3]
[29292,"10 de Abril","San Cristóbal de las Casas","Chiapas","D",3]
[29336,"Yut Osil","Chamula","Chiapas","D",3]
[29372,"Salomón González Blanco","Acala","Chiapas","D",3]
[29376,"El Rosario","Acala","Chiapas","D",3]
[29380,"San Miguel","Acala","Chiapas","D",3]
[29386,"El Bajío","Acala","Chiapas","D",3]
[29410,"Lindavista","Teopisca","Chiapas","D",3]
[29461,"El Niz","Oxchuc","Chiapas","D",3]
[29507,"Macayo 1a Sección","Reforma","Chiapas","D",3]
[29518,"El Huapaque 2a Sección","Juárez","Chiapas","D","1PS"]
[29523,"Azufre 1a Secc","Pichucalco","Chiapas","D","1PS"]
[29603,"Miravalle","Tecpatán","Chiapas","D","1PS"]
[29606,"El Paraíso","Tecpatán","Chiapas","D","1PS"]
[29617,"Las Pilas","Tecpatán","Chiapas","D","1PS"]
[29626,"División del Norte","Copainalá","Chiapas","D",3]
[29635,"San José San Marcos","Copainalá","Chiapas","D",3]
[29694,"San Miguel Buena Vista","Chapultenango","Chiapas","D","1PS"]
[29714,"El Zacatonal Juárez","Huitiupán","Chiapas","D",2]
[29734,"San Isidro","Tapilula","Chiapas","D",2]
[29755,"San José Chapayal","Pueblo Nuevo Solistahuacán","Chiapas","D",3]
[29770,"Agustín Rubio Montoya","Bochil","Chiapas","D",3]
[29804,"El Bebedero","Sabanilla","Chiapas","D","1PS"]
[29823,"Congregación San Cristóbal la Gloria","Simojovel","Chiapas","D","1PS"]
[29825,"Nuevo Villaflores","Simojovel","Chiapas","D","1PS"]
[29840,"Plátanos","El Bosque","Chiapas","D",3]
[29872,"Taquihucum","Chenalhó","Chiapas","D",2]
[29881,"San Joaquín","Pantelhó","Chiapas","D",2]
[29930,"12 de Diciembre","Yajalón","Chiapas","D",2]
[29943,"Jetja 1","Chilón","Chiapas","D",3]
[29950,"Pinos I","Ocosingo","Chiapas","D","1PS"]
[29950,"Bellavista","Ocosingo","Chiapas","D","1PS"]
[29953,"Abasolo","Ocosingo","Chiapas","D","1PS"]
[29959,"Galaxia","Marqués de Comillas","Chiapas","D",3]
[29968,"Palenque","Palenque","Chiapas","D","1PS"]
[29985,"Agua Fría","Catazajá","Chiapas","D","1PS"]
[30028,"Panteón Municipal","Comitán de Domínguez","Chiapas","D",3]
[30090,"Colinas del Sol","Comitán de Domínguez","Chiapas","D",3]
[30107,"Caxh","Comitán de Domínguez","Chiapas","D",3]
[30134,"Caballete","Bella Vista","Chiapas","D",3]
[30149,"Agua Zarca","Frontera Comalapa","Chiapas","D",2]
[30160,"Vicente Guerrero","La Trinitaria","Chiapas","D",3]
[30180,"Maravilla Tenejapa","Maravilla Tenejapa","Chiapas","D",3]
[30185,"La Conquista","Las Margaritas","Chiapas","D",3]
[30193,"San Luis","Altamirano","Chiapas","D",3]
[30194,"Lindavista","Altamirano","Chiapas","D",3]
[30195,"Anexo Monterrey","Altamirano","Chiapas","D",3]
[30315,"Soyatitan","Venustiano Carranza","Chiapas","D",3]
[30360,"Santa Cruz","La Concordia","Chiapas","D",2]
[30365,"San Nicolás","La Concordia","Chiapas","D",2]
[30384,"Salvador Urbina","Angel Albino Corzo","Chiapas","D",2]
[30394,"Tierra y Libertad","Socoltenango","Chiapas","D","1PS"]
[30397,"Tierra Blanca","Socoltenango","Chiapas","D","1PS"]
[30433,"Santa Cruz","Jiquipilas","Chiapas","D",2]
[30453,"Las Tejerías II","Arriaga","Chiapas","D","1PS"]
[30454,"Las Cruces","Arriaga","Chiapas","D","1PS"]
[30479,"Ampliación San Miguel","Villaflores","Chiapas","D",2]
[30500,"Tejería","Tonalá","Chiapas","D","1PS"]
[30500,"14 de Septiembre","Tonalá","Chiapas","D","1PS"]
[30525,"Atlántida","Villa Corzo","Chiapas","D",2]
[30527,"Juan Sabines","Villa Corzo","Chiapas","D",2]
[30540,"20 de Noviembre","Pijijiapan","Chiapas","D","1PS"]
[30545,"Cuatro Hermanos","Pijijiapan","Chiapas","D","1PS"]
[30567,"La Blanca","Mapastepec","Chiapas","D","1PS"]
[30576,"Loma Bonita","Mapastepec","Chiapas","D","1PS"]
[30583,"El Recuerdo","Acapetahua","Chiapas","D","1PS"]
[30584,"Mariano Matamoros","Acapetahua","Chiapas","D","1PS"]
[30584,"Palo Blanco","Acapetahua","Chiapas","D","1PS"]
[30586,"Limoncitos (San Juan de Los Lagos)","Acapetahua","Chiapas","D","1PS"]
[30593,"Playa Inés 1","Acacoyagua","Chiapas","D",3]
[30594,"Betania","Acacoyagua","Chiapas","D",3]
[30595,"San Vicente Joval","Acacoyagua","Chiapas","D",3]
[30605,"Jalapa","Escuintla","Chiapas","D",3]
[30620,"Chacala","Villa Comaltitlán","Chiapas","D","1PS"]
[30626,"Zacualpa 2","Villa Comaltitlán","Chiapas","D","1PS"]
[30640,"El Recreo","Huixtla","Chiapas","D","1PS"]
[30649,"Playa Grande","Huixtla","Chiapas","D","1PS"]
[30673,"El Amategua","Huehuetán","Chiapas","D",3]
[30720,"Lomas del Tacana","Tapachula","Chiapas","D","1PS"]
[30735,"El Vegel","Tapachula","Chiapas","D","1PS"]
[30750,"El Porvenir","Tapachula","Chiapas","D","1PS"]
[30780,"5a San Enrique","Tapachula","Chiapas","D","1PS"]
[30790,"Flores de Tapachula","Tapachula","Chiapas","D","1PS"]
[30794,"Santa Cruz Aguinal","Tapachula","Chiapas","D","1PS"]
[30806,"La Patria","Tapachula","Chiapas","D","1PS"]
[30820,"El Naranjo","Tapachula","Chiapas","D","1PS"]
[30840,"26 de Julio","Suchiate","Chiapas","D","1PS"]
[30843,"Los Fideles","Suchiate","Chiapas","D","1PS"]
[30847,"El Mango","Suchiate","Chiapas","D","1PS"]
[30870,"Guillen 1a Sección","Tuxtla Chico","Chiapas","D",2]
[30890,"Miguel Hidalgo","Cacahoatán","Chiapas","D",2]
[30918,"Allende","Motozintla","Chiapas","D",3]
[30926,"Esquiche","Mazapa de Madero","Chiapas","D",2]
[30935,"Granadillal","Amatenango de la Frontera","Chiapas","D",3]
[30956,"Justo Sierra","Bejucal de Ocampo","Chiapas","D",2]
[30963,"Melchor Ocampo","La Grandeza","Chiapas","D",2]
[30973,"Las Pilas","El Porvenir","Chiapas","D",2]
[30986,"Cipresal","Siltepec","Chiapas","D",2]
[30990,"La Soledad","Siltepec","Chiapas","D",3]
[30996,"Concepción Pinada","Siltepec","Chiapas","D",2]
[31054,"Valle Escondido","Chihuahua","Chihuahua","A",3]
[31064,"Sector Emiliano Zapata","Chihuahua","Chihuahua","A",3]
[31066,"Valle del Sur","Chihuahua","Chihuahua","A",3]
[31105,"Vicente Guerrero","Chihuahua","Chihuahua","A",3]
[31115,"San Francisco III","Chihuahua","Chihuahua","A",3]
[31123,"Lomas Universidad I","Chihuahua","Chihuahua","A",3]
[31124,"Ignacio Allende","Chihuahua","Chihuahua","A",3]
[31136,"Alamedas IV","Chihuahua","Chihuahua","A",3]
[31137,"Juan Guereca","Chihuahua","Chihuahua","A",3]
[31144,"Los Olivos","Chihuahua","Chihuahua","A",3]
[31203,"San Felipe Viejo","Chihuahua","Chihuahua","A",3]
[31207,"Cerrada Ríoja","Chihuahua","Chihuahua","A",3]
[31214,"Las Águilas","Chihuahua","Chihuahua","A",3]
[31300,"San Francisco","Chihuahua","Chihuahua","A",3]
[31350,"Popular I","Chihuahua","Chihuahua","A",3]
[31376,"Santo Domingo","Chihuahua","Chihuahua","A",3]
[31512,"Los Nogales","Cuauhtémoc","Chihuahua","A",3]
[31527,"Campesina","Cuauhtémoc","Chihuahua","A",3]
[31542,"Basaseachi","Cuauhtémoc","Chihuahua","A",3]
[31606,"3 Lagunitas","Cuauhtémoc","Chihuahua","A",3]
[31610,"Álvaro Obregón","Cuauhtémoc","Chihuahua","A",3]
[31615,"Campo 15.5","Cuauhtémoc","Chihuahua","A",3]
[31651,"Francisco Portillo","Aquiles Serdán","Chihuahua","A",3]
[31670,"Abraham González","Bachíniva","Chihuahua","A",3]
[31692,"San José Baquiachic","Guerrero","Chihuahua","A",3]
[31735,"1ro de Mayo","Nuevo Casas Grandes","Chihuahua","A",3]
[31850,"Los Altos","Casas Grandes","Chihuahua","A",3]
[31897,"Juan Pablo II","Buenaventura","Chihuahua","A",3]
[31940,"Ferrocarrilera","Madera","Chihuahua","A",3]
[31977,"Ojos Azules","Namiquipa","Chihuahua","A",3]
[31987,"Tosanachic","Temósachic","Chihuahua","A",3]
[32110,"Francisco Villa","Juárez","Chihuahua","A",3]
[32290,"Libertad","Juárez","Chihuahua","A",3]
[32320,"El Futuro","Juárez","Chihuahua","A",3]
[32345,"ing. Portillo","Juárez","Chihuahua","A",3]
[32380,"Montemayor","Juárez","Chihuahua","A",3]
[32408,"Paraíso","Juárez","Chihuahua","A",3]
[32420,"Frontera Infonavit 1","Juárez","Chihuahua","A",3]
[32472,"Portales de Abadía","Juárez","Chihuahua","A",3]
[32509,"Rincones de Santa Rita Virreyes","Juárez","Chihuahua","A",3]
[32538,"Los Manantiales","Juárez","Chihuahua","A",3]
[32545,"Residencial la Florida","Juárez","Chihuahua","A",3]
[32557,"Parque Industrial Río Bravo","Juárez","Chihuahua","A",3]
[32573,"Villas del Paraíso","Juárez","Chihuahua","A",3]
[32575,"Paraje de San Juan Etapa 1 2 3 4 y 5","Juárez","Chihuahua","A",3]
[32594,"Rincón del Río","Juárez","Chihuahua","A",3]
[32600,"Casas Grandes Infonavit 1a Secc","Juárez","Chihuahua","A",3]
[32620,"Sol de Mayo","Juárez","Chihuahua","A",3]
[32670,"Morelos","Juárez","Chihuahua","A",3]
[32675,"Tarahumaras","Juárez","Chihuahua","A",3]
[32679,"Parque Industrial Azteca","Juárez","Chihuahua","A",3]
[32696,"Paraje del Sol VI","Juárez","Chihuahua","A",3]
[32758,"Banderas","Guadalupe","Chihuahua","A",3]
[32850,"Coyame","Coyame del Sotol","Chihuahua","A",3]
[32912,"Benito Juárez","Aldama","Chihuahua","A",3]
[32950,"Julimes","Julimes","Chihuahua","A",3]
[33018,"San Marcos","Delicias","Chihuahua","A",3]
[33087,"Emiliano J. Laing","Delicias","Chihuahua","A",3]
[33089,"1ro de Mayo","Delicias","Chihuahua","A",3]
[33130,"Estación","Meoqui","Chihuahua","A",3]
[33180,"Los Pinos","Guachochi","Chihuahua","A",3]
[33210,"Kilómetro 80","Bocoyna","Chihuahua","A",3]
[33257,"Tascate","Cusihuiriachi","Chihuahua","A",3]
[33364,"Las Chinacas","Chínipas","Chihuahua","A",3]
[33421,"Cerocahui","Urique","Chihuahua","A",3]
[33471,"San Ignacio de los Sotelo","Guadalupe y Calvo","Chihuahua","A",3]
[33491,"Agua Amarilla","Guadalupe y Calvo","Chihuahua","A",3]
[33604,"El Porvenir","Camargo","Chihuahua","A",3]
[33625,"Las Carboneras","Saucillo","Chihuahua","A",3]
[33682,"Amparaneño","San Francisco de Conchos","Chihuahua","A",3]
[33834,"Barrio del Topo Chico","Hidalgo del Parral","Chihuahua","A",3]
[33857,"Talleres","Hidalgo del Parral","Chihuahua","A",3]
[33886,"Bellavista II INFONAVIT","Hidalgo del Parral","Chihuahua","A",3]
[33980,"Benito Juárez","Jiménez","Chihuahua","A",3]
[33996,"Las Pilas","Coronado","Chihuahua","A",3]
[1140,"José Maria Pino Suárez","Álvaro Obregón","Ciudad de México","E",3]
[1299,"2a Ampliación Presidentes","Álvaro Obregón","Ciudad de México","E",3]
[1490,"La Cascada","Álvaro Obregón","Ciudad de México","E",3]
[1560,"Canutillo 2a Sección","Álvaro Obregón","Ciudad de México","E",3]
[1859,"Tlacoyaque","Álvaro Obregón","Ciudad de México","E",3]
[2110,"Ecológica Novedades Impacto","Azcapotzalco","Ciudad de México","F",3]
[2680,"Potrero del Llano","Azcapotzalco","Ciudad de México","F",3]
[3027,"Unidad de Pagos de La SCT","Benito Juárez","Ciudad de México","G",3]
[3560,"Albert","Benito Juárez","Ciudad de México","H1",3]
[3949,"Consejo Nacional de La Ciencia y Tecnología","Benito Juárez","Ciudad de México","F",3]
[4319,"Torres de Chimalistac","Coyoacán","Ciudad de México","E",3]
[4737,"Media Luna","Coyoacán","Ciudad de México","E",3]
[4920,"Los Girasoles","Coyoacán","Ciudad de México","H1",3]
[5219,"Granjas Navidad","Cuajimalpa de Morelos","Ciudad de México","E",3]
[6350,"Buenavista","Cuauhtémoc","Ciudad de México","H1",3]
[6760,"Roma Sur","Cuauhtémoc","Ciudad de México","G",3]
[7090,"C.T.M. Atzacoalco","Gustavo A. Madero","Ciudad de México","H1",3]
[7340,"La Laguna Ticomán","Gustavo A. Madero","Ciudad de México","F",3]
[7580,"Ampliación Casas Alemán","Gustavo A. Madero","Ciudad de México","H1",3]
[7730,"San Bartolo Atepehuacan","Gustavo A. Madero","Ciudad de México","F",3]
[8230,"San Francisco Xicaltongo","Iztacalco","Ciudad de México","H1",3]
[8840,"Reforma Iztaccihuatl Sur","Iztacalco","Ciudad de México","H1",3]
[9110,"La Valenciana","Iztapalapa","Ciudad de México","H2",3]
[9280,"Jacarandas","Iztapalapa","Ciudad de México","H1",3]
[9620,"Lomas de Zaragoza","Iztapalapa","Ciudad de México","H1",3]
[9700,"Buenavista","Iztapalapa","Ciudad de México","H1",3]
[9830,"El Manto","Iztapalapa","Ciudad de México","H1",3]
[9858,"Paraje San Juan Cerro","Iztapalapa","Ciudad de México","H1",3]
[9898,"Villas Estrella","Iztapalapa","Ciudad de México","H1",3]
[10640,"La Carbonera","La Magdalena Contreras","Ciudad de México","E",3]
[11289,"Ampliación Torre Blanca","Miguel Hidalgo","Ciudad de México","E",3]
[11489,"Ampliación Popo","Miguel Hidalgo","Ciudad de México","F",3]
[13000,"La Asunción","Tláhuac","Ciudad de México","G",3]
[13219,"Ampliación Los Olivos","Tláhuac","Ciudad de México","F",3]
[13410,"López Portillo","Tláhuac","Ciudad de México","G",3]
[14009,"Delegación Política Tlalpan","Tlalpan","Ciudad de México","F",3]
[14307,"Villa del Sur","Tlalpan","Ciudad de México","E",3]
[14360,"Magisterial","Tlalpan","Ciudad de México","E",3]
[14426,"Texcaltenco","Tlalpan","Ciudad de México","E",3]
[15230,"Emilio Carranza","Venustiano Carranza","Ciudad de México","E",3]
[15520,"Peñón de los Baños","Venustiano Carranza","Ciudad de México","E",3]
[16030,"Huichapan","Xochimilco","Ciudad de México","G",3]
[16513,"Barrio Apatlaco","Xochimilco","Ciudad de México","H1",3]
[16720,"Del Carmen","Xochimilco","Ciudad de México","G",3]
[16860,"Santa Cruz de Guadalupe","Xochimilco","Ciudad de México","G",3]
[34050,"Santa María","Durango","Durango","A",3]
[34069,"Paloma","Durango","Durango","A",3]
[34124,"12 de Diciembre","Durango","Durango","A",3]
[34159,"Francisco I Madero","Durango","Durango","A",3]
[34167,"Vivah Reforma II","Durango","Durango","A",3]
[34188,"Juan Lira Bracho","Durango","Durango","A",3]
[34217,"Industrial Nuevo Durango","Durango","Durango","A",3]
[34224,"Nuevo Pedregal III","Durango","Durango","A",3]
[34230,"Máximo Gamiz Fernández","Durango","Durango","A",3]
[34239,"Provincial","Durango","Durango","A",3]
[34305,"Rancho el Maguey","Durango","Durango","A",3]
[34307,"Gabino Santillán","Durango","Durango","A",3]
[34314,"Rancho Tinajas","Durango","Durango","A",3]
[34357,"Granja Martínez","Durango","Durango","A",3]
[34380,"Rancho la Nogalera","Durango","Durango","A",3]
[34398,"Abraham González","Durango","Durango","A",3]
[34423,"La Concha","Nuevo Ideal","Durango","A",3]
[34425,"Tierra Limpia","Nuevo Ideal","Durango","A",3]
[34437,"Guajolotes de Abajo","Nuevo Ideal","Durango","A",3]
[34457,"Bellavista","Canatlán","Durango","A",3]
[34465,"Los Juárez","Canatlán","Durango","A",3]
[34475,"Sapioris","Coneto de Comonfort","Durango","A",3]
[34494,"Santa Cruz","San Juan del Río","Durango","A",3]
[34510,"Carboneras","Canelas","Durango","A",2]
[34520,"Potrero Grande","Canelas","Durango","A",2]
[34527,"Guachapure","Canelas","Durango","A",2]
[34543,"El Picacho","Topia","Durango","A",2]
[34544,"La Rinconada (La Labor)","Topia","Durango","A",2]
[34546,"Chocolistagua","Topia","Durango","A",2]
[34554,"Las Higueras (El Reventazón)","Topia","Durango","A",2]
[34555,"El Amolillo","Topia","Durango","A",2]
[34560,"El Pirami","Topia","Durango","A",2]
[34592,"Coluta","Tamazula","Durango","A",2]
[34605,"La Ciénega del Correo","Santiago Papasquiaro","Durango","A",3]
[34610,"El Agua Caliente","Santiago Papasquiaro","Durango","A",3]
[34620,"Cordón del Tabaco","Santiago Papasquiaro","Durango","A",3]
[34627,"Los Algodones","Santiago Papasquiaro","Durango","A",3]
[34636,"Las Hacienditas","Santiago Papasquiaro","Durango","A",3]
[34673,"Los Cardos","San Dimas","Durango","A",2]
[34674,"Los Tanques","San Dimas","Durango","A",2]
[34675,"El Ancón","San Dimas","Durango","A",2]
[34677,"La Joya","San Dimas","Durango","A",2]
[34680,"Las Flores","San Dimas","Durango","A",2]
[34683,"La Ciénega","San Dimas","Durango","A",2]
[34686,"Puerta de Flechas","San Dimas","Durango","A",2]
[34687,"La Cebadilla","San Dimas","Durango","A",2]
[34693,"El Chirimoyo","San Dimas","Durango","A",2]
[34694,"Agua Zarca","San Dimas","Durango","A",2]
[34697,"La Fraguita","San Dimas","Durango","A",2]
[34697,"Las Aguilillas","San Dimas","Durango","A",2]
[34767,"Santa Lucia","Peñón Blanco","Durango","A",3]
[34811,"Francisco Zarco","Poanas","Durango","A",3]
[34862,"Lauro del Villar","Nombre de Dios","Durango","A",3]
[34898,"San Isidro de Murillos","Vicente Guerrero","Durango","A",3]
[34955,"Los Bancos","Pueblo Nuevo","Durango","A",2]
[34956,"Las Carreras","Pueblo Nuevo","Durango","A",2]
[34960,"Jagüeyes","Pueblo Nuevo","Durango","A",2]
[34966,"El Jocuistle Amarillo","Pueblo Nuevo","Durango","A",2]
[34967,"El Gallo","Pueblo Nuevo","Durango","A",2]
[34968,"Las Lagunas","Pueblo Nuevo","Durango","A",2]
[34993,"Canoas","Mezquital","Durango","A",2]
[35015,"Las Flores","Gómez Palacio","Durango","A",3]
[35024,"Nueva los Ángeles","Gómez Palacio","Durango","A",3]
[35057,"Castellanos","Gómez Palacio","Durango","A",3]
[35077,"Francisco Pérez Ríos","Gómez Palacio","Durango","A",3]
[35117,"Santa Cruz","Gómez Palacio","Durango","A",3]
[35147,"Dolores","Gómez Palacio","Durango","A",3]
[35156,"Las Ladrilleras","Lerdo","Durango","A",3]
[35158,"Constituyentes","Lerdo","Durango","A",3]
[35182,"El Rayo","Lerdo","Durango","A",3]
[35233,"El Llanero","Mapimí","Durango","A",3]
[35264,"El Nogal","Tlahualilo","Durango","A",3]
[35270,"Nombre de Dios","Tlahualilo","Durango","A",3]
[35344,"El Ciento Veinte (La Zarca)","Hidalgo","Durango","A",3]
[35373,"El Vergel","Ocampo","Durango","A",3]
[35414,"Vallecillos","Guanaceví","Durango","A",3]
[35430,"El Cerro","Guanaceví","Durango","A",3]
[35435,"La Joya de Ayala","Guanaceví","Durango","A",3]
[35436,"El Río Chiquihuites","Guanaceví","Durango","A",3]
[35446,"El Potrillo","Guanaceví","Durango","A",3]
[35465,"Charco Azul","San Bernardo","Durango","A",3]
[35490,"San Bernardo","San Bernardo","Durango","A",3]
[35527,"El Calichal","Indé","Durango","A",3]
[35617,"Mesa de los Navar","Tepehuanes","Durango","A",3]
[35626,"Bajío de Agua Nueva","Tepehuanes","Durango","A",3]
[35635,"Potrerillos","Tepehuanes","Durango","A",3]
[35637,"Las Cuevas","Tepehuanes","Durango","A",3]
[35643,"El Cañón","Tepehuanes","Durango","A",3]
[35676,"General Ignacio Allende (Torrecitas)","El Oro","Durango","A",3]
[35695,"Alameda","El Oro","Durango","A",3]
[35723,"La Jarita","Nazas","Durango","A",3]
[35764,"El Parían","Rodeo","Durango","A",3]
[35837,"Cerro de Santiago","Cuencamé","Durango","A",3]
[35905,"La Barranca","San Juan de Guadalupe","Durango","A",3]
[35963,"San Antonio de Zaragoza","General Simón Bolívar","Durango","A",3]
[36120,"Las Cruces","Silao","Guanajuato","B",3]
[36169,"La Joya","Silao","Guanajuato","B",3]
[36200,"Villa Patricia","Romita","Guanajuato","B",3]
[36246,"Los Llanitos de Santa Ana","Guanajuato","Guanajuato","B",3]
[36250,"Cerro Lindavista","Guanajuato","Guanajuato","B",3]
[36257,"Rosa de Castilla","Guanajuato","Guanajuato","B",3]
[36292,"Baños de Aguas Buenas","Silao","Guanajuato","B",3]
[36330,"Los Fresnos","San Francisco del Rincón","Guanajuato","B",3]
[36365,"Guadalupe","San Francisco del Rincón","Guanajuato","B",3]
[36432,"Guadalupe de Jalpa","Purísima del Rincón","Guanajuato","B",3]
[36443,"San Roque de Montes","San Francisco del Rincón","Guanajuato","B",3]
[36472,"Puerta de Llave","Manuel Doblado","Guanajuato","B",3]
[36530,"Álvaro Obregón","Irapuato","Guanajuato","B",3]
[36550,"Los Presidentes","Irapuato","Guanajuato","B",3]
[36557,"Rinconada de La Hacienda","Irapuato","Guanajuato","B",3]
[36580,"Colón 3a Sección","Irapuato","Guanajuato","B",3]
[36615,"Estancia las Palmas","Irapuato","Guanajuato","B",3]
[36640,"San Gabriel 1a Secc.","Irapuato","Guanajuato","B",3]
[36660,"Jardines de Irapuato","Irapuato","Guanajuato","B",3]
[36740,"Villarreal","Salamanca","Guanajuato","B",3]
[36764,"El Perúl","Salamanca","Guanajuato","B",3]
[36774,"Ampliación El Rosario","Salamanca","Guanajuato","B",3]
[36802,"Gabino Vázquez","Irapuato","Guanajuato","B",3]
[36816,"Comederito","Irapuato","Guanajuato","B",3]
[36827,"Rivera de Guadalupe","Irapuato","Guanajuato","B",3]
[36878,"La Cal","Salamanca","Guanajuato","B",3]
[36888,"El Nacimiento","Salamanca","Guanajuato","B",3]
[36900,"San Miguel","Pénjamo","Guanajuato","B",3]
[36923,"Tepuza de Ortiz","Pénjamo","Guanajuato","B",3]
[36941,"El Carmen","Pénjamo","Guanajuato","B",3]
[36948,"La Gavilana","Pénjamo","Guanajuato","B",3]
[36967,"Cerrito de Agua Caliente","Cuerámaro","Guanajuato","B",3]
[36972,"Boquillas","Abasolo","Guanajuato","B",3]
[36990,"El Mirador","Huanímaro","Guanajuato","B",3]
[37107,"Quinta los Castillos","León","Guanajuato","B",3]
[37120,"Rancho La Florida","León","Guanajuato","B",3]
[37130,"Granjas del Rosario","León","Guanajuato","B",3]
[37168,"Insurgentes","León","Guanajuato","B",3]
[37207,"Antenas de Arriba","León","Guanajuato","B",3]
[37210,"Bosques de Los Naranjos Sección Villas","León","Guanajuato","B",3]
[37220,"Hidalgo","León","Guanajuato","B",3]
[37268,"Belén","León","Guanajuato","B",3]
[37288,"Jardines de San Pedro","León","Guanajuato","B",3]
[37295,"Las Villas","León","Guanajuato","B",3]
[37353,"Valle Antigua","León","Guanajuato","B",3]
[37358,"Paseos de Country 3","León","Guanajuato","B",3]
[37380,"Guadalupe","León","Guanajuato","B",3]
[37450,"Plaza de Toros I","León","Guanajuato","B",3]
[37490,"Central de Abastos","León","Guanajuato","B",3]
[37530,"Jardines de Jerez II","León","Guanajuato","B",3]
[37549,"Real Delta I y II","León","Guanajuato","B",3]
[37555,"San José de Cementos","León","Guanajuato","B",3]
[37600,"Los Diaz","San Felipe","Guanajuato","B",3]
[37641,"Haciendita","Ocampo","Guanajuato","B",3]
[37667,"Estancia de Vaqueros","León","Guanajuato","B",3]
[37675,"Los Jacales","León","Guanajuato","B",3]
[37717,"San Ricardo","San Miguel de Allende","Guanajuato","B",3]
[37745,"Jardines","San Miguel de Allende","Guanajuato","B",3]
[37777,"Ojo de Agua","San Miguel de Allende","Guanajuato","B",3]
[37800,"Niños Héroes","Dolores Hidalgo Cuna de la Independencia Nacional","Guanajuato","B",3]
[37826,"El Tecolote","Dolores Hidalgo Cuna de la Independencia Nacional","Guanajuato","B",3]
[37850,"Lomas del Pedregal","San Diego de la Unión","Guanajuato","B",3]
[37864,"La Sauceda","San Diego de la Unión","Guanajuato","B",3]
[37898,"La Angostura","San Miguel de Allende","Guanajuato","B",3]
[37900,"Banda de Arriba","San Luis de la Paz","Guanajuato","B",3]
[37902,"Palmillas","San Luis de la Paz","Guanajuato","B",3]
[37930,"Aurora","Xichú","Guanajuato","B",3]
[37947,"Álamos y Llano","Atarjea","Guanajuato","B",3]
[37968,"Derramadero","Doctor Mora","Guanajuato","B",3]
[37996,"5 de Mayo","San José Iturbide","Guanajuato","B",3]
[38010,"Puertas de Santa María","Celaya","Guanajuato","B",3]
[38016,"Valle de los Naranjos III Sección","Celaya","Guanajuato","B",3]
[38033,"Praderas del Bosque","Celaya","Guanajuato","B",3]
[38040,"La Joya","Celaya","Guanajuato","B",3]
[38057,"Arcada Alameda","Celaya","Guanajuato","B",3]
[38079,"El Dorado","Celaya","Guanajuato","B",3]
[38110,"Roque","Celaya","Guanajuato","B",3]
[38140,"La Cruz","Celaya","Guanajuato","B",3]
[38180,"Obrajuelo","Apaseo el Grande","Guanajuato","B",3]
[38193,"Tenango El Nuevo","Apaseo el Grande","Guanajuato","B",3]
[38210,"Nueva Reforma","Comonfort","Guanajuato","B",3]
[38240,"Lázaro Cárdenas","Santa Cruz de Juventino Rosas","Guanajuato","B",3]
[38260,"Praderas de La Venta","Villagrán","Guanajuato","B",3]
[38317,"San Miguel","Cortazar","Guanajuato","B",3]
[38342,"La Perla","Cortazar","Guanajuato","B",3]
[38406,"Carmelitas Chico","Valle de Santiago","Guanajuato","B",3]
[38414,"Guadalupe San Guillermo","Valle de Santiago","Guanajuato","B",3]
[38442,"San Antonio de Pantoja","Valle de Santiago","Guanajuato","B",3]
[38480,"Valencia de Fuentes","Cortazar","Guanajuato","B",3]
[38500,"La Cruz","Apaseo el Alto","Guanajuato","B",3]
[38521,"El Talayote","Apaseo el Alto","Guanajuato","B",3]
[38549,"Zatemaye","Jerécuaro","Guanajuato","B",3]
[38564,"Yerbabuena","Jerécuaro","Guanajuato","B",3]
[38593,"Cerro Colorado","Coroneo","Guanajuato","B",3]
[38702,"Francisco Aguilera","Tarimoro","Guanajuato","B",3]
[38725,"Los Fieros","Tarimoro","Guanajuato","B",3]
[38747,"San Juan Rancho Viejo","Acámbaro","Guanajuato","B",3]
[38823,"Modelo","Moroleón","Guanajuato","B",3]
[38845,"Unión de Colonos El Terrero","Moroleón","Guanajuato","B",3]
[38867,"Los Virreyes","Moroleón","Guanajuato","B",3]
[38900,"Camino Real de La Hacienda","Salvatierra","Guanajuato","B",3]
[38919,"El Fénix","Salvatierra","Guanajuato","B",3]
[38940,"Campestre del Río","Yuriria","Guanajuato","B",3]
[38951,"Cimental","Yuriria","Guanajuato","B",3]
[38983,"Loma Linda","Uriangato","Guanajuato","B",3]
[38985,"La Presa de Huahuemba","Uriangato","Guanajuato","B",3]
[38997,"Los Amoles","Moroleón","Guanajuato","B",3]
[39020,"Vista Alegre","Chilpancingo de los Bravo","Guerrero","D",2]
[39038,"Suspeg Secc VII","Chilpancingo de los Bravo","Guerrero","D",2]
[39047,"San Rafael","Chilpancingo de los Bravo","Guerrero","D",2]
[39074,"Universidad","Chilpancingo de los Bravo","Guerrero","D",2]
[39086,"Trinidad Nacional","Chilpancingo de los Bravo","Guerrero","D",2]
[39090,"Los Alarcón","Chilpancingo de los Bravo","Guerrero","D",2]
[39130,"Chapultepec","General Heliodoro Castillo","Guerrero","D",3]
[39132,"Acatlán del Río","General Heliodoro Castillo","Guerrero","D",3]
[39160,"Puerto Gral. Nicolás Bravo","Leonardo Bravo","Guerrero","D",3]
[39203,"San José","Ayutla de los Libres","Guerrero","D","1PS"]
[39219,"La Concordia","Ayutla de los Libres","Guerrero","D","1PS"]
[39237,"Zacaxtlahuacan","Mochitlán","Guerrero","D",2]
[39260,"El Aguacate","Quechultenango","Guerrero","D",3]
[39300,"El Capire","Acapulco de Juárez","Guerrero","I","1PS"]
[39370,"La Poza","Acapulco de Juárez","Guerrero","I","1PS"]
[39407,"Costa Dorada","Acapulco de Juárez","Guerrero","I","1PS"]
[39550,"Bellavista","Acapulco de Juárez","Guerrero","I","1PS"]
[39610,"Revolución del Sur","Acapulco de Juárez","Guerrero","I","1PS"]
[39700,"Ricardo Flores Magón","Acapulco de Juárez","Guerrero","I","1PS"]
[39713,"Paraíso Palmar III","Acapulco de Juárez","Guerrero","I","1PS"]
[39747,"Amin Zarur Menez","Acapulco de Juárez","Guerrero","I","1PS"]
[39770,"Corales","Acapulco de Juárez","Guerrero","I","1PS"]
[39850,"23 de Noviembre","Acapulco de Juárez","Guerrero","J","1PS"]
[39890,"Villas Diamante","Acapulco de Juárez","Guerrero","I","1PS"]
[39900,"Pie de La Cuesta","Acapulco de Juárez","Guerrero","I","1PS"]
[39926,"San Juan de las Lomas","Acapulco de Juárez","Guerrero","I","1PS"]
[39936,"Oaxaquillas","Acapulco de Juárez","Guerrero","I","1PS"]
[39957,"Las Peñas","Juan R. Escudero","Guerrero","D","1PS"]
[40014,"Loma Linda","Iguala de la Independencia","Guerrero","C",3]
[40023,"Ejidatarios","Iguala de la Independencia","Guerrero","C",3]
[40045,"Magisterial Iguala","Iguala de la Independencia","Guerrero","C",3]
[40050,"Reforma","Iguala de la Independencia","Guerrero","C",3]
[40095,"La Palma","Iguala de la Independencia","Guerrero","C",3]
[40130,"Benito Juárez","Huitzuco de los Figueroa","Guerrero","C",3]
[40170,"Lázaro Cárdenas","Tepecoacuilco de Trujano","Guerrero","C",2]
[40189,"San Francisco","Eduardo Neri","Guerrero","C",2]
[40212,"Casayas","Taxco de Alarcón","Guerrero","C",3]
[40265,"Cereso Taxco","Taxco de Alarcón","Guerrero","C",3]
[40334,"San Antonio","Buenavista de Cuéllar","Guerrero","C",3]
[40371,"Poder de Dios","Tetipac","Guerrero","C",3]
[40400,"Guadalupe Victoria","Teloloapan","Guerrero","C",3]
[40420,"Ahuacatitlán","Teloloapan","Guerrero","C",3]
[40471,"Tlanilpa","Pedro Ascencio Alquisiras","Guerrero","C",3]
[40477,"Yahualtengo","Pedro Ascencio Alquisiras","Guerrero","C",3]
[40511,"Zopilotepec","Arcelia","Guerrero","C",2]
[40532,"Tepoxtepec","Apaxtla","Guerrero","C",2]
[40563,"Ahuaxotitla","Cuetzala del Progreso","Guerrero","C",2]
[40604,"San Juan Mina","Tlapehuala","Guerrero","C",2]
[40645,"Los Guajes","Cutzamala de Pinzón","Guerrero","C","1PS"]
[40662,"Vicente Guerrero","Pungarabato","Guerrero","C",2]
[40703,"Chamacua de Michelena","Coyuca de Catalán","Guerrero","D","1PS"]
[40712,"Quiriricuaro","Coyuca de Catalán","Guerrero","D","1PS"]
[40737,"Santa Ana Águila","Ajuchitlán del Progreso","Guerrero","D","1PS"]
[40785,"Santa Catarina","San Miguel Totolapan","Guerrero","D",3]
[40803,"El Tibor","La Unión de Isidoro Montes de Oca","Guerrero","D","1PS"]
[40828,"San Jerónimo","La Unión de Isidoro Montes de Oca","Guerrero","D","1PS"]
[40847,"Camalotito","Petatlán","Guerrero","D","1PS"]
[40880,"Villas del Valle","Zihuatanejo de Azueta","Guerrero","D","1PS"]
[40888,"Buenavista","Zihuatanejo de Azueta","Guerrero","D","1PS"]
[40894,"12 de Marzo Parte Alta","Zihuatanejo de Azueta","Guerrero","D","1PS"]
[40904,"El Chilcahuite","Técpan de Galeana","Guerrero","D","1PS"]
[40912,"Las Mesas","Técpan de Galeana","Guerrero","D","1PS"]
[40930,"Juan N Alvarez","Atoyac de Álvarez","Guerrero","D","1PS"]
[40960,"Arenal del Centro","Benito Juárez","Guerrero","D","1PS"]
[40976,"Las Palmas","Coyuca de Benítez","Guerrero","D","1PS"]
[40985,"Platanillo","Coyuca de Benítez","Guerrero","D","1PS"]
[41031,"Tuzantlan","Atenango del Río","Guerrero","C",3]
[41103,"La Muralla","Chilapa de Álvarez","Guerrero","D",3]
[41104,"La Villa","Chilapa de Álvarez","Guerrero","D",3]
[41113,"De Tejalcingo","Chilapa de Álvarez","Guerrero","D",3]
[41115,"Tlaxinga (Catzinga)","Chilapa de Álvarez","Guerrero","D",3]
[41117,"Mexcaltepec","Chilapa de Álvarez","Guerrero","D",3]
[41200,"Loma Bonita","Huamuxtitlán","Guerrero","C",3]
[41260,"Zoyatitlánapa","Xochihuehuetlán","Guerrero","C",3]
[41300,"Loma Bonita","Tlapa de Comonfort","Guerrero","D",3]
[41349,"San Pedro Acatlán","Tlapa de Comonfort","Guerrero","D",3]
[41433,"El Camalote","Acatepec","Guerrero","D",3]
[41470,"Patlicha","Copanatoyac","Guerrero","D",2]
[41527,"Tierra Colorada","Malinaltepec","Guerrero","D",2]
[41536,"Cruztomahuac","Iliatenco","Guerrero","D",2]
[41636,"Cuanacastitlán","San Luis Acatlán","Guerrero","D","1PS"]
[41700,"La Ermita","Ometepec","Guerrero","D",2]
[41707,"Cereso Ometepec","Ometepec","Guerrero","D",2]
[41800,"Vicente Guerrero","Florencio Villarreal","Guerrero","D","1PS"]
[41843,"Huamuchititán","Cuautepec","Guerrero","D","1PS"]
[41920,"Juchitán","Juchitán","Guerrero","D","1PS"]
[41943,"Lomas del Carmen","Cuajinicuilapa","Guerrero","D","1PS"]
[41960,"Montecillos","Cuajinicuilapa","Guerrero","D","1PS"]
[42039,"20 de Noviembre","Pachuca de Soto","Hidalgo","B",3]
[42070,"Rincón del Real","Pachuca de Soto","Hidalgo","B",3]
[42082,"Privadas de la Hacienda","Pachuca de Soto","Hidalgo","B",3]
[42097,"Tiro Tula","Pachuca de Soto","Hidalgo","B",3]
[42133,"Del Viento","Mineral del Monte","Hidalgo","B",3]
[42162,"El Durazno","San Agustín Tlaxiaca","Hidalgo","B","1IR"]
[42184,"Taxistas","Mineral de la Reforma","Hidalgo","B",3]
[42185,"La Colonia","Mineral de la Reforma","Hidalgo","B",3]
[42186,"San Cristóbal Chacón","Mineral de la Reforma","Hidalgo","B",3]
[42210,"Comatitlán","Jacala de Ledezma","Hidalgo","B",2]
[42265,"El Álamo de la Misión","La Misión","Hidalgo","B",2]
[42282,"La Chuparrosa","Chapulhuacán","Hidalgo","B",3]
[42291,"Zacate Grande","Chapulhuacán","Hidalgo","B",3]
[42306,"Granaditas","Ixmiquilpan","Hidalgo","B","1IR"]
[42335,"Minera INFONAVIT","Zimapán","Hidalgo","B",3]
[42345,"Xodhé","Zimapán","Hidalgo","B",3]
[42375,"San Cristóbal","Cardonal","Hidalgo","B","1IR"]
[42392,"San Antonio Corrales","Alfajayucan","Hidalgo","B","1IR"]
[42400,"Huichapan","Huichapan","Hidalgo","B",3]
[42481,"El Jazmín (El Potrero)","Nopala de Villagrán","Hidalgo","B",3]
[42510,"Trigueros","Actopan","Hidalgo","B",3]
[42608,"La Loma","Actopan","Hidalgo","B",3]
[42724,"Colonia Morelos (El Nueve)","Mixquiahuala de Juárez","Hidalgo","B",3]
[42757,"El Bethí","Chilcuautla","Hidalgo","B","1IR"]
[42820,"El Llano 1a Sección","Tula de Allende","Hidalgo","B",3]
[42860,"Santa María Magdalena","Tepeji del Río de Ocampo","Hidalgo","B",3]
[42918,"El Capulín","Chapantongo","Hidalgo","B","1IR"]
[42960,"Teocalco","Tlaxcoapan","Hidalgo","B",3]
[43000,"Paraíso de las Huastecas","Huejutla de Reyes","Hidalgo","B","1IR"]
[43000,"Lindavista","Huejutla de Reyes","Hidalgo","B","1IR"]
[43004,"Cuatecómetl","Huejutla de Reyes","Hidalgo","B","1IR"]
[43017,"Tlaltzintla","Huejutla de Reyes","Hidalgo","B","1IR"]
[43060,"Tecolotitla","Atlapexco","Hidalgo","B","1IR"]
[43080,"Tlalchiyahualica","Yahualica","Hidalgo","B","1IR"]
[43098,"Ohuatipa","Xochiatipan","Hidalgo","B","1IR"]
[43151,"Chichatla","Tlanchinol","Hidalgo","B","1IR"]
[43170,"Tlahuiltepa","Tlahuiltepa","Hidalgo","B",2]
[43212,"Matlatlán","Zacualtipán de Ángeles","Hidalgo","B",3]
[43283,"Piedra Ancha","Tianguistengo","Hidalgo","B","1IR"]
[43320,"San José Zoquital","Atotonilco el Grande","Hidalgo","B",3]
[43375,"Huayateno","Metztitlán","Hidalgo","B","1IR"]
[43443,"Piedra Ancha","San Bartolo Tutotepec","Hidalgo","B","1IR"]
[43480,"La Cruz de Tenango","Tenango de Doria","Hidalgo","B",2]
[43516,"San Jerónimo","Huasca de Ocampo","Hidalgo","B",3]
[43628,"San José Caltengo","Tulancingo de Bravo","Hidalgo","B",3]
[43633,"Loma Bonita","Tulancingo de Bravo","Hidalgo","B",3]
[43645,"Francisco Villa 1a Sección","Tulancingo de Bravo","Hidalgo","B",3]
[43667,"Unidad Magisterial Dos","Tulancingo de Bravo","Hidalgo","B",3]
[43714,"Barrio Atlalpán","Tulancingo de Bravo","Hidalgo","B",3]
[43740,"La Esperanza II","Cuautepec de Hinojosa","Hidalgo","B",3]
[43750,"El Nectario","Cuautepec de Hinojosa","Hidalgo","B",3]
[43806,"City","Tizayuca","Hidalgo","B",3]
[43832,"San Agustín Zapotlán","Zempoala","Hidalgo","B",3]
[43853,"Ex-hacienda San Antonio Tochatlaco","Zempoala","Hidalgo","B",3]
[43972,"San Bartolomé Tepetates","Tepeapulco","Hidalgo","B",3]
[43994,"Fides","Tepeapulco","Hidalgo","B",3]
[43998,"Unidad Campesina","Tepeapulco","Hidalgo","B",3]
[44270,"Alcalde Barranquitas","Guadalajara","Jalisco","B",3]
[44350,"Lomas Independencia","Guadalajara","Jalisco","B",3]
[44410,"La Loma","Guadalajara","Jalisco","B",3]
[44660,"Los Colomos","Guadalajara","Jalisco","B",3]
[44700,"Unidad Río Verde","Guadalajara","Jalisco","B",3]
[44737,"Los Mártires","Guadalajara","Jalisco","B",3]
[44810,"San Andrés Gigantes","Guadalajara","Jalisco","B",3]
[44890,"Rancho Blanco","Guadalajara","Jalisco","B",3]
[44950,"Jardines de San José","Guadalajara","Jalisco","B",3]
[44980,"Lázaro Cárdenas Sur","Guadalajara","Jalisco","B",3]
[45037,"Parques Guadalupe","Zapopan","Jalisco","B",3]
[45058,"Santa Catalina","Zapopan","Jalisco","B",3]
[45117,"La Laja","Zapopan","Jalisco","B",3]
[45130,"Bosques de Zapopan","Zapopan","Jalisco","B",3]
[45134,"Placita del Sol","Zapopan","Jalisco","B",3]
[45136,"Puerta Real","Zapopan","Jalisco","B",3]
[45160,"Villa San Jorge","Zapopan","Jalisco","B",3]
[45180,"Jardines del Porvenir","Zapopan","Jalisco","B",3]
[45187,"Lomas Del Centinela","Zapopan","Jalisco","B",3]
[45207,"Los Olivos","Zapopan","Jalisco","B",3]
[45236,"Prados Del Ixtepete","Zapopan","Jalisco","B",3]
[45265,"Las Animas de Romero","Ixtlahuacán del Río","Jalisco","B",3]
[45400,"Jardines de Tonala","Tonalá","Jalisco","B",3]
[45400,"Colonia del Sur","Tonalá","Jalisco","B",3]
[45402,"Loma Dorada Secc B","Tonalá","Jalisco","B",3]
[45404,"Educadores de Jalisco","Tonalá","Jalisco","B",3]
[45407,"La Villa","Tonalá","Jalisco","B",3]
[45410,"Prados Cruz 2","Tonalá","Jalisco","B",3]
[45424,"Fuerte","Tonalá","Jalisco","B",3]
[45427,"Real Fresno","Tonalá","Jalisco","B",3]
[45463,"Escalofrío de Santa Fe","Zapotlanejo","Jalisco","B",3]
[45540,"Camichines Residencial 1ra. Sección","Tlaquepaque","Jalisco","B",3]
[45588,"Paisajes del Tapatío","Tlaquepaque","Jalisco","B",3]
[45595,"El Vergelito","Tlaquepaque","Jalisco","B",3]
[45601,"La Gigantera","Tlaquepaque","Jalisco","B",3]
[45625,"Lomas de San Pedrito","Tlaquepaque","Jalisco","B",3]
[45638,"Barrios Unidos de Intercolonias","Tlaquepaque","Jalisco","B",3]
[45640,"Los Arcos","Tlajomulco de Zúñiga","Jalisco","B",3]
[45645,"El Manantial","Tlajomulco de Zúñiga","Jalisco","B",3]
[45650,"Villas de San Sebastián","Tlajomulco de Zúñiga","Jalisco","B",3]
[45654,"La Esperanza","Tlajomulco de Zúñiga","Jalisco","B",3]
[45680,"La Azucena","El Salto","Jalisco","B",3]
[45696,"Felipe Angeles","El Salto","Jalisco","B",3]
[45754,"El Calvario","Zacoalco de Torres","Jalisco","C",3]
[45925,"El Estrellón","Chapala","Jalisco","B",3]
[45958,"Los Tepetates","Poncitlán","Jalisco","B",3]
[46018,"Ortega","Huejuquilla el Alto","Jalisco","B",3]
[46237,"Aguajes","Colotlán","Jalisco","B",3]
[46402,"La Mula","Tequila","Jalisco","B",3]
[46446,"La Venta de Mochitiltic","Hostotipaquillo","Jalisco","B",3]
[46700,"Labor de Solís","Ameca","Jalisco","C",3]
[46726,"Villa Hermosa","Ameca","Jalisco","C",3]
[46733,"Ahualulco Ejidal","Ahualulco de Mercado","Jalisco","B",3]
[46820,"El Tablillo","Guachinango","Jalisco","C",3]
[47073,"Maravillas de San Juan","San Juan de los Lagos","Jalisco","B",3]
[47123,"La Salve","Jalostotitlán","Jalisco","B",3]
[47142,"De La Cantera","San Miguel el Alto","Jalisco","B",3]
[47185,"El Gallito","Arandas","Jalisco","B",3]
[47192,"La Deportiva","San Ignacio Cerro Gordo","Jalisco","B",3]
[47203,"San Miguel Norte","Teocaltiche","Jalisco","B",3]
[47282,"El Tecuan","Encarnación de Díaz","Jalisco","B",3]
[47334,"Apozol de Gutiérrez","Yahualica de González Gallo","Jalisco","B",3]
[47410,"La Salitrera","Lagos de Moreno","Jalisco","B",3]
[47510,"La Venta","Lagos de Moreno","Jalisco","B",3]
[47576,"Río de Vázquez","Unión de San Antonio","Jalisco","B",3]
[47595,"San Jose","San Diego de Alejandría","Jalisco","B",3]
[47723,"Rincón de Velázquez","Tepatitlán de Morelos","Jalisco","B",3]
[47747,"Carrozas","Tototlán","Jalisco","B",3]
[47750,"Buenavista","Atotonilco el Alto","Jalisco","B",3]
[47778,"El Maguey","Atotonilco el Alto","Jalisco","B",3]
[47912,"Bosques de La Rivera","La Barca","Jalisco","B",3]
[47925,"San Antonio de Rivas","La Barca","Jalisco","B",3]
[47995,"La Resolana","Degollado","Jalisco","B",3]
[48087,"San Antonio de los Moran","Ayutla","Jalisco","C",2]
[48202,"Naranjo","Talpa de Allende","Jalisco","C","1PS"]
[48290,"Jardines Del Bosque","Puerto Vallarta","Jalisco","D","1PS"]
[48290,"Villas Universidad","Puerto Vallarta","Jalisco","D","1PS"]
[48313,"Villas Rio","Puerto Vallarta","Jalisco","D","1PS"]
[48320,"La Vena","Puerto Vallarta","Jalisco","D","1PS"]
[48400,"Bioto","Cabo Corrientes","Jalisco","D","1PS"]
[48457,"Teocinte","Tomatlán","Jalisco","D","1PS"]
[48520,"La Sauceda","Cocula","Jalisco","C",3]
[48744,"7 de Abril","El Grullo","Jalisco","D",3]
[48788,"Apulco","Tuxcacuesco","Jalisco","C",3]
[48867,"Platanitos (La Limonosa)","La Huerta","Jalisco","D","1PS"]
[48914,"Chacaltepec","Autlán de Navarro","Jalisco","D",3]
[48955,"La Pareja","Cuautitlán de García Barragán","Jalisco","D",2]
[49013,"Azaleas","Zapotlán el Grande","Jalisco","D",3]
[49064,"El Nogal","Zapotlán el Grande","Jalisco","D",3]
[49088,"Constituyentes","Zapotlán el Grande","Jalisco","D",3]
[49097,"Lomas de Solidaridad","Zapotlán el Grande","Jalisco","D",3]
[49316,"La Candelaria","Sayula","Jalisco","C",3]
[49330,"Usmajac","Sayula","Jalisco","C",3]
[49570,"Quitupan","Quitupan","Jalisco","C",3]
[49664,"Joya Del Salto","Tamazula de Gordiano","Jalisco","D",3]
[49744,"Los Garcia","San Gabriel","Jalisco","D",3]
[49807,"Lomas Del Norte","Tuxpan","Jalisco","D",3]
[49870,"La Estrella","Pihuamo","Jalisco","D",3]
[50010,"Los Girasoles III","Toluca","México","B",3]
[50070,"Fidel Velázquez","Toluca","México","B",3]
[50110,"Plazas de San Buenaventura","Toluca","México","B",3]
[50200,"San Andrés Cuexcontitlán","Toluca","México","B",3]
[50220,"San Mateo Otzacatipan","Toluca","México","B",3]
[50230,"San Blas Otzacatipan","Toluca","México","B",3]
[50253,"El Calvario","Toluca","México","B",3]
[50264,"Las Palmas","Toluca","México","B",3]
[50285,"De Palmillas","Toluca","México","B",3]
[50315,"Los Pilares","Acambay","México","B",3]
[50340,"Doxteje Barrio Dos","Acambay","México","B",3]
[50357,"Agostadero","Acambay","México","B",3]
[50410,"Puruahua","Temascalcingo","México","B",3]
[50443,"Solís","Temascalcingo","México","B",3]
[50455,"La Ascensión","Atlacomulco","México","B",3]
[50564,"Los Mazatetes","Morelos","México","B",3]
[50586,"Chute Grande","Morelos","México","B",3]
[50627,"La Presa Brockman","El Oro","México","B",3]
[50664,"La Soledad","San José del Rincón","México","B",3]
[50668,"Fabrica Pueblo Nuevo Monte Alto","San José del Rincón","México","B",3]
[50677,"Palo Seco","San José del Rincón","México","B",3]
[50685,"El Fresno de Nichi","San Felipe del Progreso","México","B",3]
[50714,"La Presa","Jocotitlán","México","B",3]
[50727,"Los Reyes","Jocotitlán","México","B",3]
[50750,"Jalpa Dolores","Ixtlahuaca","México","B",3]
[50826,"La Purísima","Jiquipilco","México","B",3]
[50863,"Jiquipilco el Viejo 2da. Sección","Temoaya","México","B",3]
[50880,"San José Pathe","Temoaya","México","B",3]
[50927,"Palos Amarillos (Palos Amarillos Yebuciví)","Almoloya de Juárez","México","B",3]
[50964,"Sansón","Villa Victoria","México","B",3]
[50966,"Ejido de Laguna Seca 2a Sección","Villa Victoria","México","B",3]
[50997,"Centro del Cerrillo","Villa Victoria","México","B",3]
[51015,"San Isidro","Villa de Allende","México","B",3]
[51057,"Mesas Altas de Xoconusco","Donato Guerra","México","B",3]
[51260,"Rincón de Guadalupe","Amanalco","México","B",3]
[51290,"Corral de Piedra","Amanalco","México","B",3]
[51354,"Los Maestros","Zinacantepec","México","B",3]
[51410,"Rincón de López 4a. Sección","Tejupilco","México","B",3]
[51412,"Mazatepec","Tejupilco","México","B",3]
[51417,"La Angostura Primera","Tejupilco","México","B",3]
[51425,"Puerto de Jalpan","Tejupilco","México","B",3]
[51436,"El Salto Dos","Tejupilco","México","B",3]
[51443,"Calaveras","Luvianos","México","B",3]
[51454,"Potrero Grande","Luvianos","México","B",3]
[51458,"El Cascalote","Luvianos","México","B",3]
[51463,"Hilamache","Luvianos","México","B",3]
[51467,"Mesa del Capulín","Luvianos","México","B",3]
[51530,"La Palma","Amatepec","México","B",3]
[51536,"Buenavista","Amatepec","México","B",3]
[51553,"Dieciocho de Marzo","Tlatlaya","México","B",3]
[51624,"2da. Manzana 4 Cruces","Sultepec","México","B",3]
[51665,"Tehuilotepec","Sultepec","México","B",3]
[51716,"Acuitlapilco","Coatepec Harinas","México","B",3]
[51773,"San Diego","Villa Guerrero","México","B",3]
[51800,"Plaza Juárez","Zacualpan","México","B",3]
[51854,"La Mora","Zacualpan","México","B",3]
[51920,"San Pedro Tlacochaca","Ixtapan de la Sal","México","B",3]
[51973,"La Puerta de Santiago","Tonatico","México","B",3]
[51993,"El Tamarindo","Zumpahuacán","México","B",3]
[52044,"San Mateo Atarasquillo","Lerma","México","B",3]
[52104,"Santiago","San Mateo Atenco","México","B",3]
[52140,"Los Sauces II","Metepec","México","B",3]
[52149,"Andrés Molina Enríquez","Metepec","México","B",3]
[52167,"Isidro Fabela","Metepec","México","B",3]
[52172,"Esperanza López Mateos","Metepec","México","B",3]
[52172,"Azaleas","Metepec","México","B",3]
[52280,"San Lucas Tepemajalco","San Antonio la Isla","México","B",3]
[52366,"La Asunción","Rayón","México","B",3]
[52420,"San Mateo","Tenancingo","México","B",3]
[52477,"Guadalupe Victoria","Malinalco","México","B",3]
[52494,"Santa Ana","Ocuilan","México","B",3]
[52604,"20 de Noviembre","Tianguistenco","México","B1",3]
[52730,"San Miguelito","Capulhuac","México","B",3]
[52756,"El Pirame","Ocoyoacac","México","B1",3]
[52767,"El Palacio","Huixquilucan","México","B1",3]
[52793,"El Mirador","Huixquilucan","México","B1",3]
[52926,"Villa San José","Atizapán de Zaragoza","México","B",3]
[52937,"Vallescondido","Atizapán de Zaragoza","México","B",3]
[52958,"Los Clubes Metropolitanos","Atizapán de Zaragoza","México","B",3]
[53116,"La Alteza","Naucalpan de Juárez","México","B1",3]
[53178,"La Soledad","Naucalpan de Juárez","México","B1",3]
[53378,"Ahuizotla (Santiago Ahuizotla)","Naucalpan de Juárez","México","B1",3]
[53520,"Rosa de Castilla","Naucalpan de Juárez","México","B1",3]
[53650,"Yongua","Naucalpan de Juárez","México","B1",3]
[53696,"Ampliación Minas Palacio","Naucalpan de Juárez","México","B1",3]
[54030,"IMSS Tlalnepantla","Tlalnepantla de Baz","México","B1",3]
[54059,"Francisco Villa","Tlalnepantla de Baz","México","B1",3]
[54090,"San José Puente de Vigas","Tlalnepantla de Baz","México","B1",3]
[54130,"Jardines de la Cañada","Tlalnepantla de Baz","México","B1",3]
[54152,"La Purísima","Tlalnepantla de Baz","México","B1",3]
[54189,"Lázaro Cárdenas 1ra. Sección","Tlalnepantla de Baz","México","B1",3]
[54270,"San Martín","Jilotepec","México","B",3]
[54313,"El Plan Zacapexco","Villa del Carbón","México","B",3]
[54324,"El Palomar","Villa del Carbón","México","B",3]
[54413,"Guadalupe San Ildefonso","Nicolás Romero","México","B",3]
[54435,"El Trafico","Nicolás Romero","México","B",3]
[54467,"Francisco I. Madero Sección 20","Nicolás Romero","México","B",3]
[54570,"La Cuesta","Jilotzingo","México","B",3]
[54650,"Titini","Tepotzotlán","México","B",3]
[54685,"Salitrillo","Huehuetoca","México","B",3]
[54720,"Liverpool","Cuautitlán Izcalli","México","B",3]
[54743,"INFONAVIT Tepalcapa","Cuautitlán Izcalli","México","B",3]
[54763,"La Presita","Cuautitlán Izcalli","México","B",3]
[54769,"Paseo de los Jardines","Cuautitlán Izcalli","México","B",3]
[54857,"Villas Olivo","Cuautitlán","México","B",3]
[54884,"Tepetongo","Melchor Ocampo","México","B",3]
[54913,"Sol de Tultitlán (Zona Oriente)","Tultitlán","México","B",3]
[54934,"Gustavo Baz","Tultitlán","México","B",3]
[54938,"Arcos I","Tultitlán","México","B",3]
[54944,"Arbolada la Loma","Tultitlán","México","B",3]
[54958,"Jardines de la Cañada","Tultitlán","México","B",3]
[55010,"Rancho Victoria II","Ecatepec de Morelos","México","B1",3]
[55020,"La Monera","Ecatepec de Morelos","México","B1",3]
[55050,"Hacienda Santa María","Ecatepec de Morelos","México","B1",3]
[55066,"La Preciosa","Ecatepec de Morelos","México","B1",3]
[55068,"Santo Tomás Chiconautla","Ecatepec de Morelos","México","B1",3]
[55090,"Ecatepec 40 Casas","Ecatepec de Morelos","México","B1",3]
[55126,"Profopec (Polígono I)","Ecatepec de Morelos","México","B1",3]
[55179,"Ampliación Códice Mendocino","Ecatepec de Morelos","México","B1",3]
[55290,"Granjas Independencia","Ecatepec de Morelos","México","B1",3]
[55340,"Benito Juárez Xalostoc","Ecatepec de Morelos","México","B1",3]
[55404,"Santa María Tulpetlac","Ecatepec de Morelos","México","B1",3]
[55430,"Jardines de Casa Nueva","Ecatepec de Morelos","México","B1",3]
[55620,"San José La Loma","Zumpango","México","B",3]
[55650,"Adolfo López Mateos","Tequixquiac","México","B",3]
[55700,"San Francisco Coacalco (Cabecera Municipal)","Coacalco de Berriozábal","México","B1",3]
[55718,"Potrero Popular","Coacalco de Berriozábal","México","B1",3]
[55737,"Conjunto Jalatlaco","Coacalco de Berriozábal","México","B1",3]
[55748,"Primero de Marzo","Tecámac","México","B",3]
[55773,"Hacienda Provenzal","Tecámac","México","B",3]
[55825,"Ampliación Ejidal Tlajinga","Teotihuacán","México","B",3]
[55874,"Granjas Familiares Acolman","Acolman","México","B",3]
[55924,"Tocuila","Otumba","México","B",3]
[55960,"San Antonio Ometusco","Axapusco","México","B",3]
[55975,"Huilotongo","Nopaltepec","México","B",3]
[56087,"San Pedro Chiautzingo","Tepetlaoxtoc","México","B",3]
[56150,"Salitrería","Texcoco","México","B",3]
[56225,"Villas de Tolimpa","Texcoco","México","B",3]
[56305,"La Pastoría","Atenco","México","B",3]
[56334,"Artesanos","Chimalhuacán","México","B",3]
[56337,"Apelsa","Chimalhuacán","México","B",3]
[56344,"San Agustín Atlapulco 2a Sección","Chimalhuacán","México","B",3]
[56386,"Real de Costitlán I","Chicoloapan","México","B",3]
[56410,"Rincón de Los Reyes","La Paz","México","B1",3]
[56530,"Ixtapaluca","Ixtapaluca","México","B1",3]
[56567,"Wenceslao Victoria Soto","Ixtapaluca","México","B1",3]
[56577,"Valle Verde","Ixtapaluca","México","B1",3]
[56589,"Hornos de Zoquiapan","Ixtapaluca","México","B1",3]
[56619,"Del Carmen","Valle de Chalco Solidaridad","México","B1",3]
[56653,"Santiago Zula","Temamatla","México","B",3]
[56800,"Ozumba de Alzate","Ozumba","México","B",3]
[57210,"Estado de México","Nezahualcóyotl","México","B1",3]
[57500,"Agua Azul Grupo B Super 4","Nezahualcóyotl","México","B1",3]
[57840,"Reforma","Nezahualcóyotl","México","B1",3]
[58087,"Real San Diego","Morelia","Michoacán","B",3]
[58090,"Santa Cecilia","Morelia","Michoacán","B",3]
[58097,"Jose Trinidad Güido","Morelia","Michoacán","B",3]
[58118,"Barrio Alto","Morelia","Michoacán","B",3]
[58145,"Centro SCT Michoacán","Morelia","Michoacán","B",3]
[58149,"Batalla de Morelia","Morelia","Michoacán","B",3]
[58195,"Máximo Bravo","Morelia","Michoacán","B",3]
[58210,"Independencia","Morelia","Michoacán","B",3]
[58219,"Constituyentes de Queretaro","Morelia","Michoacán","B",3]
[58290,"Comisión Federal de Electricidad","Morelia","Michoacán","B",3]
[58310,"Cotzurio","Morelia","Michoacán","B",3]
[58330,"La Hacienda","Morelia","Michoacán","B",3]
[58337,"Unión Antorchista","Morelia","Michoacán","B",3]
[58342,"Jardines de San Antonio","Morelia","Michoacán","B",3]
[58350,"Coto del Ángel","Morelia","Michoacán","B",3]
[58391,"Tacupillo","Huaniqueo","Michoacán","B",3]
[58493,"El Ahijadero","Madero","Michoacán","C",3]
[58503,"Adolfo López Mateos","Puruándiro","Michoacán","B",3]
[58508,"Los Lemus","Puruándiro","Michoacán","B",3]
[58541,"Los Corrales","José Sixto Verduzco","Michoacán","B",3]
[58620,"San Miguel INFONAVIT","Zacapu","Michoacán","B",3]
[58677,"Los Pirules INFONAVIT","Zacapu","Michoacán","B",3]
[58804,"La Noria","Morelos","Michoacán","B",3]
[58864,"Urundaneo","Chucándiro","Michoacán","B",3]
[58880,"Erandeni I","Tarímbaro","Michoacán","B",3]
[58893,"Cumbres de Tarímbaro","Tarímbaro","Michoacán","B",3]
[58932,"San Juan","Zinapécuaro","Michoacán","B",3]
[58948,"Ojo de Agua Del Cuervo","Zinapécuaro","Michoacán","B",3]
[59040,"Lomas de Santiago","Sahuayo","Michoacán","C",3]
[59155,"El Nogal","Cojumatlán de Régules","Michoacán","C",3]
[59233,"Las Cieneguitas","Tanhuato","Michoacán","B",3]
[59340,"México","La Piedad","Michoacán","B",3]
[59380,"Centro Americano","La Piedad","Michoacán","B",3]
[59401,"San Jose de los Laureles","La Piedad","Michoacán","B",3]
[59460,"Zinaparo","Zináparo","Michoacán","B",3]
[59517,"Lomas del Pedregal","Jiquilpan","Michoacán","C",3]
[59530,"Totolan","Jiquilpan","Michoacán","C",3]
[59575,"El Aguacate","Villamar","Michoacán","B",3]
[59633,"El Carvario","Zamora","Michoacán","B",3]
[59660,"20 de Noviembre","Zamora","Michoacán","B",3]
[59670,"Jardines de Catedral","Zamora","Michoacán","B",3]
[59750,"El Pescador","Tangancícuaro","Michoacán","B",3]
[59797,"Zopoco","Chilchota","Michoacán","B",3]
[59828,"Nueva España","Jacona","Michoacán","B",3]
[59920,"Santiago Tangamandapio","Tangamandapio","Michoacán","B",3]
[59952,"Lourdes","Cotija","Michoacán","C",3]
[60013,"Rubén Jaramillo","Uruapan","Michoacán","C",3]
[60105,"Observatorio","Uruapan","Michoacán","C",3]
[60126,"La Cofradía","Uruapan","Michoacán","C",3]
[60137,"San Rafael","Uruapan","Michoacán","C",3]
[60155,"Valle Verde","Uruapan","Michoacán","C",3]
[60190,"Santa Mónica","Uruapan","Michoacán","C",3]
[60255,"Santa Cecilia","Paracho","Michoacán","B",3]
[60280,"Sevina","Nahuatzen","Michoacán","B",3]
[60460,"Condembaro","Tancítaro","Michoacán","C",3]
[60522,"Punta de Agua","Buenavista","Michoacán","D",3]
[60556,"Mesas Del Terrenate","Tepalcatepec","Michoacán","D",3]
[60685,"Los Arquitos","Apatzingán","Michoacán","D",3]
[60720,"El Guayabo (Cuauhtémoc Cárdenas)","Apatzingán","Michoacán","D",3]
[60778,"Las Ordeñitas (Maravatío)","Parácuaro","Michoacán","C",3]
[60933,"La Pareja","Arteaga","Michoacán","D",3]
[60953,"Lotes y Servicios","Lázaro Cárdenas","Michoacán","D","1PS"]
[60955,"Victor Manuel Tinoco Rubí","Lázaro Cárdenas","Michoacán","D","1PS"]
[60994,"Aeropuerto","Lázaro Cárdenas","Michoacán","D","1PS"]
[60995,"Paraíso","Lázaro Cárdenas","Michoacán","D","1PS"]
[60998,"La Orilla","Lázaro Cárdenas","Michoacán","D","1PS"]
[61053,"El Césped","Contepec","Michoacán","B",3]
[61112,"Las Flores","Hidalgo","Michoacán","B",3]
[61133,"Alborada Socialista","Hidalgo","Michoacán","B",3]
[61170,"Patriotismo","Hidalgo","Michoacán","B",3]
[61190,"Tierras Coloradas","Hidalgo","Michoacán","B",3]
[61225,"El Porvenir","Hidalgo","Michoacán","B",3]
[61225,"San Jerónimo","Hidalgo","Michoacán","B",3]
[61260,"San Miguel Curinhuato","Maravatío","Michoacán","B",3]
[61276,"El Tejocote (Presa Quebrada)","Maravatío","Michoacán","B",3]
[61311,"Las Canoas","Charo","Michoacán","B",3]
[61438,"Puerto de la Cantera","Tuxpan","Michoacán","B",3]
[61503,"El Paraíso","Zitácuaro","Michoacán","B",3]
[61510,"Melchor Ocampo","Zitácuaro","Michoacán","B",3]
[61539,"La Palma","Zitácuaro","Michoacán","B",3]
[61590,"El Tremesino","Susupuato","Michoacán","B",3]
[61605,"Juventino Rosas","Pátzcuaro","Michoacán","B",3]
[61613,"Tzentzenguaro","Pátzcuaro","Michoacán","B",3]
[61615,"Tzurumutaro","Pátzcuaro","Michoacán","B",3]
[61650,"La Huerta","Tacámbaro","Michoacán","C",3]
[61655,"Machúparo","Tacámbaro","Michoacán","C",3]
[61658,"El Jazmín","Tacámbaro","Michoacán","C",3]
[61666,"Charapio","Tacámbaro","Michoacán","C",3]
[61676,"El Carrizal","Tacámbaro","Michoacán","C",3]
[61735,"El Cobano","Gabriel Zamora","Michoacán","C",3]
[61800,"Santa Clara Del Cobre","Salvador Escalante","Michoacán","C",3]
[61817,"Jujucato","Salvador Escalante","Michoacán","C",3]
[61880,"Churumuco de Morelos","Churumuco","Michoacán","C",3]
[61913,"Las Pilas","Nocupétaro","Michoacán","C",3]
[61954,"Montecillos","Huetamo","Michoacán","C",3]
[61991,"Salguero","San Lucas","Michoacán","C",3]
[62020,"Lomas de San Antón","Cuernavaca","Morelos","B",3]
[62116,"Balcones de Tepuente","Cuernavaca","Morelos","B",3]
[62215,"Universidad","Cuernavaca","Morelos","B",3]
[62253,"Pilancón","Cuernavaca","Morelos","B",3]
[62320,"Antonio Barona Centro","Cuernavaca","Morelos","B",3]
[62430,"Condominios Cuauhnahuac","Cuernavaca","Morelos","B",3]
[62498,"Tabachines","Cuernavaca","Morelos","B",3]
[62523,"El Parque Estación","Tepoztlán","Morelos","B",3]
[62553,"Residencial Campestre","Jiutepec","Morelos","B",3]
[62555,"Emiliano Zapata","Jiutepec","Morelos","B",3]
[62570,"Oriental","Jiutepec","Morelos","B",3]
[62583,"Lomas del Carril","Temixco","Morelos","B",3]
[62586,"Emiliano Zapata","Temixco","Morelos","B",3]
[62592,"Ampliación Lázaro Cárdenas del Río","Temixco","Morelos","B",3]
[62607,"El Terrero","Miacatlán","Morelos","B",3]
[62636,"La Trilla","Mazatepec","Morelos","B",3]
[62662,"Morelos","Puente de Ixtla","Morelos","B",3]
[62680,"Xoxocotla","Puente de Ixtla","Morelos","B",3]
[62723,"Chinameca","Ayala","Morelos","B",3]
[62732,"Amates","Yautepec","Morelos","B",3]
[62733,"24 de Febrero","Yautepec","Morelos","B",3]
[62739,"San Pablo","Yautepec","Morelos","B",3]
[62744,"Héroe de Nacozari","Cuautla","Morelos","B",3]
[62747,"Residencial los Arcos","Cuautla","Morelos","B",3]
[62763,"3 de Mayo","Emiliano Zapata","Morelos","B",3]
[62766,"El Amate","Emiliano Zapata","Morelos","B",3]
[62767,"Real de Tezoyuca","Emiliano Zapata","Morelos","B",3]
[62774,"Palo Prieto","Tlaltizapán","Morelos","B",3]
[62790,"Real del Puente","Xochitepec","Morelos","B",3]
[62796,"Paseos de Xochitepec","Xochitepec","Morelos","B",3]
[62840,"Los Reyes","Atlatlahucan","Morelos","B",3]
[62846,"San Francisco","Atlatlahucan","Morelos","B",3]
[62855,"La Ixtla","Ocuituco","Morelos","B",3]
[62907,"Tlatenchi","Jojutla","Morelos","B",3]
[62924,"El Bambú","Tepalcingo","Morelos","B",3]
[62937,"Juárez","Jonacatepec","Morelos","B",3]
[62974,"4 Caminos","Jantetelco","Morelos","B",3]
[62986,"La Tigra","Tlaquiltenango","Morelos","B",3]
[63035,"Ampliación El Paraíso","Tepic","Nayarit","B",2]
[63037,"Lomas de La Cruz","Tepic","Nayarit","B",2]
[63139,"Versalles Norte","Tepic","Nayarit","B",2]
[63173,"El Rubí","Tepic","Nayarit","B",2]
[63175,"Lagos del Country","Tepic","Nayarit","B",2]
[63203,"Emiliano Zapata","Tuxpan","Nayarit","B","1PS"]
[63402,"Invinay","Acaponeta","Nayarit","B","1PS"]
[63427,"San Miguel","Acaponeta","Nayarit","B","1PS"]
[63500,"Lázaro Cárdenas","Tepic","Nayarit","B",2]
[63514,"Las Pilas","Tepic","Nayarit","B",2]
[63534,"Arroyo del Cañaveral","Del Nayar","Nayarit","B","1PS"]
[63568,"Redención","Santiago Ixcuintla","Nayarit","B","1PS"]
[63620,"El Naranjo","Ruíz","Nayarit","B","1PS"]
[63633,"Abelardo L Rodriguez","Rosamorada","Nayarit","B","1PS"]
[63715,"Agua Azul","Compostela","Nayarit","B","1PS"]
[63722,"Altavista","Compostela","Nayarit","B","1PS"]
[63730,"Jardines del Sol","Bahía de Banderas","Nayarit","B","1PS"]
[63744,"El Guayabal","San Blas","Nayarit","B","1PS"]
[63756,"La Chiripa","San Blas","Nayarit","B","1PS"]
[63783,"SUTSEM Landereñas","Xalisco","Nayarit","B",2]
[63795,"La Curva","Xalisco","Nayarit","B",2]
[63920,"Ahuacatlán","Ahuacatlán","Nayarit","B",2]
[63954,"De Los Indios","Ixtlán del Río","Nayarit","B",2]
[64060,"Obispado","Monterrey","Nuevo León","A",2]
[64102,"Barrio Aztlán","Monterrey","Nuevo León","A",2]
[64103,"Eugenio Garza Sada","Monterrey","Nuevo León","A",2]
[64103,"San David I (P- 33)","Monterrey","Nuevo León","A",2]
[64117,"Paseos Águilas","Monterrey","Nuevo León","A",2]
[64170,"Condocasa Mitras","Monterrey","Nuevo León","A",2]
[64219,"Tiraderos 5","Monterrey","Nuevo León","A",2]
[64270,"San José","Monterrey","Nuevo León","A",2]
[64340,"Privadas de Cumbres","Monterrey","Nuevo León","A",2]
[64346,"Privada Cumbres Diamante","Monterrey","Nuevo León","A",2]
[64400,"Estrella","Monterrey","Nuevo León","A",2]
[64520,"Centrika Crisoles","Monterrey","Nuevo León","A",2]
[64619,"Las Cumbres 6 Sector D-1","Monterrey","Nuevo León","A",2]
[64634,"Colonial San Jerónimo 1 Sector","Monterrey","Nuevo León","A",2]
[64639,"Las Colinas 2 Sector","Monterrey","Nuevo León","A",2]
[64710,"Lomas de San Francisco","Monterrey","Nuevo León","A",2]
[64750,"Altamira","Monterrey","Nuevo León","A",2]
[64820,"Ex Hacienda el Ancón","Monterrey","Nuevo León","A",2]
[64836,"Industrial Comercial","Monterrey","Nuevo León","A",2]
[64890,"Cortijo del Río 1 Sector","Monterrey","Nuevo León","A",2]
[64979,"Ciudad Satélite 3 Sector","Monterrey","Nuevo León","A",2]
[64984,"Canterias Norte","Monterrey","Nuevo León","A",2]
[64988,"Los Nogales","Monterrey","Nuevo León","A",2]
[65001,"El Camarón","Anáhuac","Nuevo León","A",3]
[65150,"Bustamante","Bustamante","Nuevo León","A",2]
[65240,"Hacienda San Francisco","Sabinas Hidalgo","Nuevo León","A",2]
[65560,"Martinez Dominguez","Ciénega de Flores","Nuevo León","A",2]
[65600,"Crescenciano Lozano","Hidalgo","Nuevo León","A",2]
[66000,"Centro Villa de Garcia (casco)","García","Nuevo León","A",2]
[66025,"Valle de San Blas","García","Nuevo León","A",2]
[66051,"Jardines Escobedo I","Gral. Escobedo","Nuevo León","A",2]
[66054,"Haciendas del Canada","Gral. Escobedo","Nuevo León","A",2]
[66059,"El Centenario","Gral. Escobedo","Nuevo León","A",2]
[66062,"Parque Industrial Periférico","Gral. Escobedo","Nuevo León","A",2]
[66067,"Los Angeles","Gral. Escobedo","Nuevo León","A",2]
[66115,"La Fama 4","Santa Catarina","Nuevo León","A",2]
[66170,"Protexa","Santa Catarina","Nuevo León","A",2]
[66217,"Plan de Ayala","San Pedro Garza García","Nuevo León","A",2]
[66238,"Rincón de San Francisco","San Pedro Garza García","Nuevo León","A",2]
[66245,"Barranca Del Pedregal","San Pedro Garza García","Nuevo León","A",2]
[66259,"La Cañada","San Pedro Garza García","Nuevo León","A",2]
[66266,"Mirador Del Campestre","San Pedro Garza García","Nuevo León","A",2]
[66278,"Los Quetzales","San Pedro Garza García","Nuevo León","A",2]
[66280,"Zona Bosques de la Sierra","San Pedro Garza García","Nuevo León","A",2]
[66297,"Villas La Rivera","San Pedro Garza García","Nuevo León","A",2]
[66360,"Industrial Monte de los Olivos","Santa Catarina","Nuevo León","A",2]
[66363,"Senderos","Santa Catarina","Nuevo León","A",2]
[66369,"Las Sombrillas","Santa Catarina","Nuevo León","A",2]
[66418,"Viejo Roble","San Nicolás de los Garza","Nuevo León","A",2]
[66427,"Villa Real Sector 2","San Nicolás de los Garza","Nuevo León","A",2]
[66438,"Valle de Santo Domingo Sector 3","San Nicolás de los Garza","Nuevo León","A",2]
[66459,"Royal","San Nicolás de los Garza","Nuevo León","A",2]
[66467,"Residencial Las Puentes Sector 1 Sección C","San Nicolás de los Garza","Nuevo León","A",2]
[66470,"Villas de Oriente Sector 1","San Nicolás de los Garza","Nuevo León","A",2]
[66480,"Prados Del Nogalar (fomerrey 11)","San Nicolás de los Garza","Nuevo León","A",2]
[66490,"Ciudad Ideal","San Nicolás de los Garza","Nuevo León","A",2]
[66499,"Hacienda Lagrange","San Nicolás de los Garza","Nuevo León","A",2]
[66612,"Valle de Apodaca III","Apodaca","Nuevo León","A",2]
[66612,"Ébanos V","Apodaca","Nuevo León","A",2]
[66612,"Ébanos I","Apodaca","Nuevo León","A",2]
[66616,"Parque Industrial Aeropuerto 1er Sector","Apodaca","Nuevo León","A",2]
[66634,"Privadas Santa Fe","Apodaca","Nuevo León","A",2]
[66635,"Fresnos II","Apodaca","Nuevo León","A",2]
[66636,"Pinos II","Apodaca","Nuevo León","A",2]
[66645,"Privadas Huinalá","Apodaca","Nuevo León","A",2]
[66647,"Valle de las Flores","Apodaca","Nuevo León","A",2]
[66648,"Valle San Miguel II","Apodaca","Nuevo León","A",2]
[66940,"San Pedro","Los Aldamas","Nuevo León","A","1IR"]
[67110,"Las Dalias","Guadalupe","Nuevo León","A",2]
[67113,"Hacienda San Miguel","Guadalupe","Nuevo León","A",2]
[67117,"Arboledas Del Oriente","Guadalupe","Nuevo León","A",2]
[67140,"La Herradura","Guadalupe","Nuevo León","A",2]
[67150,"La Fuente","Guadalupe","Nuevo León","A",2]
[67173,"Pedregal Country","Guadalupe","Nuevo León","A",2]
[67176,"Bosques del Contry Sector A-6","Guadalupe","Nuevo León","A",2]
[67180,"Gloria Mendiola","Guadalupe","Nuevo León","A",2]
[67190,"Nuevo México","Guadalupe","Nuevo León","A",2]
[67190,"San Cristóbal","Guadalupe","Nuevo León","A",2]
[67193,"Villa Alegre","Guadalupe","Nuevo León","A",2]
[67197,"Diaz Ordaz","Guadalupe","Nuevo León","A",2]
[67267,"Villa del Real","Juárez","Nuevo León","A",2]
[67275,"San Juan Sector Valle","Juárez","Nuevo León","A",2]
[67286,"Salvador Chavez Mora","Juárez","Nuevo León","A",2]
[67323,"Jardines de La Boca","Santiago","Nuevo León","A",2]
[67350,"Zaragoza Sección","Allende","Nuevo León","A","1IR"]
[67353,"Los Sabinos","Allende","Nuevo León","A","1IR"]
[67480,"Cadereyta Jimenez Centro","Cadereyta Jiménez","Nuevo León","A",2]
[67484,"José O. Martinez Secc. A","Cadereyta Jiménez","Nuevo León","A",2]
[67485,"Las Palmas","Cadereyta Jiménez","Nuevo León","A",2]
[67613,"Buenavista","Montemorelos","Nuevo León","A","1IR"]
[67715,"Gloria Mendiola","Linares","Nuevo León","A","1IR"]
[67760,"Moderna","Linares","Nuevo León","A","1IR"]
[67850,"Sócrates Rizo","Galeana","Nuevo León","A",2]
[67853,"El Barrocito","Galeana","Nuevo León","A",2]
[67870,"San Pablo de Raíces","Galeana","Nuevo León","A",2]
[67914,"Mesa de Gonzalez","Dr. Arroyo","Nuevo León","A",3]
[67932,"Puerta de Aguilar","Dr. Arroyo","Nuevo León","A",3]
[67944,"San Juan O Puentes","Aramberri","Nuevo León","A",2]
[68010,"Revolucion","Oaxaca de Juárez","Oaxaca","D",3]
[68026,"Guadalupe Victoria","Oaxaca de Juárez","Oaxaca","D",3]
[68040,"Estrella","Oaxaca de Juárez","Oaxaca","D",3]
[68060,"Lomas de Antequera","Oaxaca de Juárez","Oaxaca","D",3]
[68154,"Pintores","Oaxaca de Juárez","Oaxaca","D",3]
[68210,"San Juan Bautista Jayacatlan","San Juan Bautista Jayacatlán","Oaxaca","D",3]
[68254,"Santo Tomas Mazaltepec","Santo Tomás Mazaltepec","Oaxaca","D",3]
[68270,"S S A","Tlalixtac de Cabrera","Oaxaca","D",3]
[68276,"Paraje la Maguellera","Oaxaca de Juárez","Oaxaca","D",3]
[68288,"14 de Febrero","San Andrés Huayápam","Oaxaca","D",3]
[68333,"La Moderna Sección Nacaste","San Juan Bautista Tuxtepec","Oaxaca","C","1PS"]
[68345,"Tuxtepec","San Juan Bautista Tuxtepec","Oaxaca","C","1PS"]
[68370,"Fovissste Costa Verde","San Juan Bautista Tuxtepec","Oaxaca","C","1PS"]
[68404,"Joval Nuevo","Loma Bonita","Oaxaca","C","1PS"]
[68415,"Cosolapa Centro","Cosolapa","Oaxaca","C",3]
[68424,"La Martinica","Acatlán de Pérez Figueroa","Oaxaca","C","1PS"]
[68443,"Rancho Nuevo Jonotal","San Juan Bautista Tuxtepec","Oaxaca","C","1PS"]
[68457,"Pueblo Viejo","San José Chiltepec","Oaxaca","C","1PS"]
[68483,"Boca de San Cristóbal","San Juan Bautista Valle Nacional","Oaxaca","C",2]
[68502,"Agua Del Cerro","Huautla de Jiménez","Oaxaca","C",2]
[68535,"Santiago Texcalcingo","Santiago Texcalcingo","Oaxaca","C",3]
[68564,"Peña Colorada","San Lucas Zoquiápam","Oaxaca","C",3]
[68588,"San Antonio Nopalera","San Juan de los Cués","Oaxaca","C",3]
[68694,"El Moral","Santiago Nacaltepec","Oaxaca","C",3]
[68725,"Santa Maria Yahuiche","Ixtlán de Juárez","Oaxaca","D",3]
[68767,"Santiago Xiacui","Santiago Xiacuí","Oaxaca","D",3]
[68880,"San Mateo Cajonos","San Mateo Cajonos","Oaxaca","D",3]
[68927,"Arroyo Bobo","Santiago Jocotepec","Oaxaca","C","1PS"]
[69000,"Heroica Ciudad de Huajuapan de León Centro","Heroica Ciudad de Huajuapan de León","Oaxaca","C",3]
[69007,"San Rafael 2 Sección","Heroica Ciudad de Huajuapan de León","Oaxaca","C",3]
[69010,"Lázaro Cárdenas","Santiago Chazumba","Oaxaca","C",3]
[69040,"San Juan Bautista Suchitepec","San Juan Bautista Suchitepec","Oaxaca","C",3]
[69235,"La Expiracion","San Martín Zacatepec","Oaxaca","C",3]
[69293,"Yetla de Juárez","Santo Domingo Tonalá","Oaxaca","C",3]
[69380,"San Cristóbal Suchixtlahuaca","San Cristóbal Suchixtlahuaca","Oaxaca","C",3]
[69510,"Tamazulapan Centro","Villa de Tamazulápam del Progreso","Oaxaca","D",3]
[69602,"Santiago Ixtaltepec","Asunción Nochixtlán","Oaxaca","D",3]
[69645,"Yudodeñe","San Pedro Coxcaltepec Cántaros","Oaxaca","D",3]
[69742,"San Mateo Tuñuchi","San Sebastián Tecomaxtlahuaca","Oaxaca","D",3]
[69783,"La Escopeta","San Martín Peras","Oaxaca","D",3]
[69800,"San Miguel","Heroica Ciudad de Tlaxiaco","Oaxaca","D",3]
[69824,"Santiago Nundiche","Santiago Nundiche","Oaxaca","D",3]
[69901,"Buenavista","Magdalena Jaltepec","Oaxaca","D",3]
[69995,"San Mateo Sindihui","San Mateo Sindihui","Oaxaca","D",3]
[70023,"14 de Agosto","Juchitán de Zaragoza","Oaxaca","D","1PS"]
[70110,"Tito Enriquez","Ciudad Ixtepec","Oaxaca","D","1PS"]
[70144,"El Mezquite","Asunción Ixtaltepec","Oaxaca","D","1PS"]
[70175,"Lázaro Cárdenas","San Francisco Ixhuatán","Oaxaca","D","1PS"]
[70257,"Santa Maria Huitepec","Totontepec Villa de Morelos","Oaxaca","C",3]
[70290,"San Antonio Tlaxcaltepec","Asunción Cacalotepec","Oaxaca","C",3]
[70309,"Rincón Viejo Petapa","Matías Romero Avendaño","Oaxaca","D","1PS"]
[70380,"Guiguba","El Barrio de la Soledad","Oaxaca","D","1PS"]
[70417,"Santa Maria Guelaxe","Santa María Guelacé","Oaxaca","D",3]
[70450,"Rojas de Cuauhtémoc","Rojas de Cuauhtémoc","Oaxaca","D",3]
[70570,"Tlacolulita","Asunción Tlacolulita","Oaxaca","D",2]
[70613,"Francisco I. Madero","Salina Cruz","Oaxaca","D","1PS"]
[70680,"San Juan","Salina Cruz","Oaxaca","D","1PS"]
[70760,"Infonavit Sandunga","Santo Domingo Tehuantepec","Oaxaca","D","1PS"]
[70789,"Santa Rosa de Lima","San Blas Atempa","Oaxaca","D","1PS"]
[70803,"Santa Cruz Miahuatlan","Miahuatlán de Porfirio Díaz","Oaxaca","D",3]
[70852,"El Gavilán","San Sebastián Coatlán","Oaxaca","D","1PS"]
[70900,"Sección 1a","San Pedro Pochutla","Oaxaca","D","1PS"]
[70904,"Chepilme","San Pedro Pochutla","Oaxaca","D","1PS"]
[70945,"Pso Ocote","Santa María Tonameca","Oaxaca","D","1PS"]
[70954,"El Molino","Candelaria Loxicha","Oaxaca","D","1PS"]
[70985,"Santa Cruz Huatulco","Santa María Huatulco","Oaxaca","D","1PS"]
[70988,"Sector U2 B","Santa María Huatulco","Oaxaca","D","1PS"]
[71040,"Mesones Hidalgo","Mesones Hidalgo","Oaxaca","D",3]
[71070,"San Pedro Amuzgos","San Pedro Amuzgos","Oaxaca","D",2]
[71111,"Yosinicaje","Santa María Yucuhiti","Oaxaca","D","1PS"]
[71195,"Iturbide","Santa Cruz Itundujia","Oaxaca","D",2]
[71218,"San Miguel Mixtepec","San Miguel Mixtepec","Oaxaca","D",3]
[71226,"Del Carmen","Santa Cruz Amilpas","Oaxaca","D",3]
[71232,"San Isidro Monjas","Santa Cruz Xoxocotlán","Oaxaca","D",3]
[71233,"Nuevo Manantial","Santa Cruz Xoxocotlán","Oaxaca","D",3]
[71233,"Guadalupe","Santa Cruz Xoxocotlán","Oaxaca","D",3]
[71250,"De Lexio","Villa de Zaachila","Oaxaca","D",3]
[71270,"San Antonio","San Pablo Huixtepec","Oaxaca","D",3]
[71323,"Lano de Agua","San Francisco Cahuacuá","Oaxaca","D",3]
[71507,"Santo Domingo Jalieza","Santo Tomás Jalieza","Oaxaca","D",3]
[71518,"Santiago Apóstol","Santiago Apóstol","Oaxaca","D",3]
[71603,"Benito Juárez","Santiago Pinotepa Nacional","Oaxaca","D",3]
[71607,"Rancho de La Virgen","Santiago Pinotepa Nacional","Oaxaca","D",3]
[71624,"San Pedro Orizaba","San Juan Bautista Lo de Soto","Oaxaca","D","1PS"]
[71702,"Del Hospital","Santiago Jamiltepec","Oaxaca","D","1PS"]
[71713,"La Palma","San Pedro Atoyac","Oaxaca","D","1PS"]
[71804,"San Francisco de Arriba","Villa de Tututepec de Melchor Ocampo","Oaxaca","D",3]
[71835,"Vicente Guerrero","Villa de Tututepec de Melchor Ocampo","Oaxaca","D",3]
[71940,"Pueblo Nuevo","San Juan Lachao","Oaxaca","D","1PS"]
[71993,"El Palmar","San Pedro Mixtepec -Dto. 22 -","Oaxaca","D","1PS"]
[72013,"Las Huertas","Puebla","Puebla","B",3]
[72017,"México 83","Puebla","Puebla","B",3]
[72100,"Loma Bonita","Puebla","Puebla","B",3]
[72104,"Unidad Volkswagen Sur","Puebla","Puebla","B",3]
[72110,"Fuentes de Morillotla","Puebla","Puebla","B",3]
[72170,"Guadalupe (Ejido Romero Vargas)","Puebla","Puebla","B",3]
[72190,"San Ángel","Puebla","Puebla","B",3]
[72210,"San Pedro","Puebla","Puebla","B",3]
[72229,"Villas Manzanilla","Puebla","Puebla","B",3]
[72310,"Real del Bosque","Puebla","Puebla","B",3]
[72350,"Pedregal","Puebla","Puebla","B",3]
[72440,"La Teja","Puebla","Puebla","B",3]
[72460,"Club de Golf Puebla","Puebla","Puebla","B",3]
[72470,"San Jorge","Puebla","Puebla","B",3]
[72490,"Marbella","Puebla","Puebla","B",3]
[72495,"La Playa","Puebla","Puebla","B",3]
[72498,"Jardines de Castillotla 5a. Sección","Puebla","Puebla","B",3]
[72540,"Santa Mónica","Puebla","Puebla","B",3]
[72575,"Lomas San Alfonso","Puebla","Puebla","B",3]
[72590,"Universidad","Puebla","Puebla","B",3]
[72595,"18 de Marzo","Puebla","Puebla","B",3]
[72710,"Real del Bosque","Cuautlancingo","Puebla","B",3]
[72735,"Pylsa 30","Cuautlancingo","Puebla","B",3]
[72754,"Residencial Jardines del Rosal","San Pedro Cholula","Puebla","B",3]
[72777,"Residencial San Pedro","San Pedro Cholula","Puebla","B",3]
[72813,"Real de San Pedro","San Andrés Cholula","Puebla","B",3]
[72825,"Misión de San Martinito","San Andrés Cholula","Puebla","B",3]
[72848,"San Luis Tehuiloyocan","San Andrés Cholula","Puebla","B",3]
[72971,"La Paz Tlaxcolpan","Puebla","Puebla","B",3]
[72990,"SIGNORET","Amozoc","Puebla","B",3]
[73068,"Atlalpan","Tlaxco","Puebla","B",3]
[73099,"Rancho Nuevo","Xicotepec","Puebla","B",3]
[73130,"Chila","Honey","Puebla","B",3]
[73175,"Santa Cruz","Huauchinango","Puebla","B",3]
[73177,"Atzopic","Huauchinango","Puebla","B",3]
[73235,"Cuamila","Tlaola","Puebla","B",3]
[73310,"La Ciénega","Zacatlán","Puebla","B",3]
[73310,"El Calvario","Zacatlán","Puebla","B",3]
[73317,"Otlatlan","Zacatlán","Puebla","B",3]
[73342,"Tlamanca de Hernández","Tepetzintla","Puebla","B",3]
[73514,"Ricardo Flores Magón","Tuzamapan de Galeana","Puebla","B",3]
[73563,"Acaxiloco","Cuetzalan del Progreso","Puebla","B",3]
[73580,"Tepactipan","Hueytamalco","Puebla","B",3]
[73665,"Xochiapulco","Xochiapulco","Puebla","B",3]
[73725,"Xocoxiutla","Ixtacamaxtitlán","Puebla","B",3]
[73752,"Chilapa de Vicente Guerrero","Zautla","Puebla","B",3]
[73860,"Cofradia","Teziutlán","Puebla","B",3]
[73900,"San Pedro","Tlatlauquitepec","Puebla","B",3]
[73920,"Hueyapan","Hueyapan","Puebla","B",3]
[73968,"Ixtlahuaca","Teziutlán","Puebla","B",3]
[74030,"La Purísima","San Martín Texmelucan","Puebla","B",3]
[74068,"La Huerta","San Martín Texmelucan","Puebla","B",3]
[74130,"San Salvador el Verde","San Salvador el Verde","Puebla","B",3]
[74160,"El Manzano","Huejotzingo","Puebla","B",3]
[74210,"Las Nieves","Atlixco","Puebla","B",3]
[74339,"Tulcingo","Tochimilco","Puebla","B",3]
[74368,"Santa Lucia Cosamaloapan","Atlixco","Puebla","B",3]
[74385,"La Soledad","San Diego la Mesa Tochimiltzingo","Puebla","B",3]
[74450,"San Bernardino","Izúcar de Matamoros","Puebla","B",3]
[74577,"Santa María Xuchapa","Izúcar de Matamoros","Puebla","B",3]
[74587,"Lagunillas de Rayón","Chietla","Puebla","B",3]
[74697,"Huejonapan de Aquiles Serdán","Tepexi de Rodríguez","Puebla","B",3]
[74815,"Organal","Cuayuca de Andrade","Puebla","B",3]
[74876,"San Miguel de Lozano","Tecomatlán","Puebla","B",3]
[74943,"San Francisco Rancho Nuevo","Acatlán","Puebla","B",3]
[75020,"Oriental","Oriental","Puebla","B",3]
[75050,"San Miguel Zoapan","Tlachichuca","Puebla","B",3]
[75073,"La Providencia","Chilchotla","Puebla","B",3]
[75150,"San Jerónimo","Acatzingo","Puebla","B",3]
[75179,"Tenango","General Felipe Ángeles","Puebla","B",3]
[75200,"Lomas del Calvario","Tepeaca","Puebla","B",3]
[75390,"Tempexquistla","Huatlatlauca","Puebla","B",3]
[75410,"Buenavista de Juárez","Los Reyes de Juárez","Puebla","B",3]
[75498,"La Soledad","Tecamachalco","Puebla","B",3]
[75551,"Xochiloma","Atzitzintla","Puebla","B",3]
[75620,"Atoyatempan","Atoyatempan","Puebla","B",3]
[75686,"San Martín","Tlacotepec de Benito Juárez","Puebla","B",3]
[75710,"Real de Santa Fé","Tehuacán","Puebla","B",3]
[75740,"Los Cipreses","Tehuacán","Puebla","B",3]
[75760,"El Riego","Tehuacán","Puebla","B",3]
[75769,"Jardines de Tehuacán (Ascote)","Tehuacán","Puebla","B",3]
[75853,"Magdalena Cuayucatepec","Tehuacán","Puebla","B",3]
[75860,"San Antonio Cañada","San Antonio Cañada","Puebla","B",3]
[75917,"Macuilcuautitla","Ajalpan","Puebla","B",3]
[75960,"Francisco I. Madero","Zinacatepec","Puebla","B",3]
[75990,"Chimalhuaca","Coyomeapan","Puebla","B",3]
[76024,"Calesa 2a Sección","Querétaro","Querétaro","B",3]
[76079,"Balaustradas","Querétaro","Querétaro","B",3]
[76087,"Prados de Querétaro","Querétaro","Querétaro","B",3]
[76100,"Ampliación la Campana","Querétaro","Querétaro","B",3]
[76117,"San Marcos I","Querétaro","Querétaro","B",3]
[76118,"San Miguel","Querétaro","Querétaro","B",3]
[76125,"Desarrollo San Pablo","Querétaro","Querétaro","B",3]
[76139,"Manuel Jurado","Querétaro","Querétaro","B",3]
[76147,"Jardines de San José","Querétaro","Querétaro","B",3]
[76148,"El Vergel Fase III","Querétaro","Querétaro","B",3]
[76158,"Conjunto Parques","Querétaro","Querétaro","B",3]
[76168,"Claustros del Parque","Querétaro","Querétaro","B",3]
[76177,"Residencial Frondoso","Querétaro","Querétaro","B",3]
[76206,"Modelo","Querétaro","Querétaro","B",3]
[76229,"San Francisco de la Palma","Querétaro","Querétaro","B",3]
[76238,"San José El Alto","Querétaro","Querétaro","B",3]
[76249,"La Granja","El Marqués","Querétaro","B",3]
[76300,"La Escondida","Pinal de Amoles","Querétaro","B",3]
[76316,"Derramadero de Juárez","Pinal de Amoles","Querétaro","B",3]
[76319,"Puerto del Naranjo","Pinal de Amoles","Querétaro","B",3]
[76334,"Medias Coloradas","Pinal de Amoles","Querétaro","B",3]
[76337,"Joyas del Derramadero","Pinal de Amoles","Querétaro","B",3]
[76345,"Puerto de San Nicolás","Jalpan de Serra","Querétaro","B",3]
[76368,"Otates","Landa de Matamoros","Querétaro","B",3]
[76385,"El Alambre","Landa de Matamoros","Querétaro","B",3]
[76395,"El Humo","Landa de Matamoros","Querétaro","B",3]
[76414,"Las Trancas","Arroyo Seco","Querétaro","B",3]
[76478,"La Cienega","Peñamiller","Querétaro","B",3]
[76490,"Camargo","Peñamiller","Querétaro","B",3]
[76534,"Chavarrías","Cadereyta de Montes","Querétaro","B",3]
[76555,"San Cristóbal","San Joaquín","Querétaro","B",3]
[76650,"La Presa","Ezequiel Montes","Querétaro","B",3]
[76704,"El Toreo","Pedro Escobedo","Querétaro","B",3]
[76755,"Paseo de la Media Luna","Tequisquiapan","Querétaro","B",3]
[76795,"La Tortuga","Tequisquiapan","Querétaro","B",3]
[76803,"Villa los Olivos","San Juan del Río","Querétaro","B",3]
[76805,"Las Águilas II","San Juan del Río","Querétaro","B",3]
[76806,"San Rafael","San Juan del Río","Querétaro","B",3]
[76820,"La Ladera","San Juan del Río","Querétaro","B",3]
[76833,"Villas de San José","San Juan del Río","Querétaro","B",3]
[76849,"La Laborcilla","San Juan del Río","Querétaro","B",3]
[76870,"El Rincón","Amealco de Bonfil","Querétaro","B",3]
[76900,"Villas de la Corregidora","Corregidora","Querétaro","B",3]
[76902,"Santa Lucía","Corregidora","Querétaro","B",3]
[76903,"Colinas del Sur","Corregidora","Querétaro","B",3]
[76908,"Los Ángeles","Corregidora","Querétaro","B",3]
[76926,"La Cantera","Corregidora","Querétaro","B",3]
[76981,"El Milagro","Huimilpan","Querétaro","B",3]
[77059,"Infonavit Villas Chetumal","Othón P. Blanco","Quintana Roo","A","1PY"]
[77079,"Zona de Granjas","Othón P. Blanco","Quintana Roo","A","1PY"]
[77135,"Chun-yah","Felipe Carrillo Puerto","Quintana Roo","A","1PY"]
[77210,"Leona Vicario","Felipe Carrillo Puerto","Quintana Roo","A","1PY"]
[77500,"Supermanzana 2a Centro","Benito Juárez","Quintana Roo","A","1PY"]
[77505,"SM 21","Benito Juárez","Quintana Roo","A","1PY"]
[77518,"Supermanzana 217","Benito Juárez","Quintana Roo","A","1PY"]
[77525,"Región 84","Benito Juárez","Quintana Roo","A","1PY"]
[77533,"Supermanzana 51","Benito Juárez","Quintana Roo","A","1PY"]
[77535,"Grand Santa Fe","Benito Juárez","Quintana Roo","A","1PY"]
[77666,"Flores Magón 3","Cozumel","Quintana Roo","A","1PY"]
[77720,"Tohoku","Solidaridad","Quintana Roo","A","1PY"]
[77727,"Privanza del Mar","Solidaridad","Quintana Roo","A","1PY"]
[77895,"El Triunfo","José María Morelos","Quintana Roo","A","1PY"]
[77919,"Melchor Ocampo","Othón P. Blanco","Quintana Roo","A","1PY"]
[77953,"Morocoy","Othón P. Blanco","Quintana Roo","A","1PY"]
[78110,"Villas del Roble","San Luis Potosí","San Luis Potosí","A",3]
[78120,"San Angel I","San Luis Potosí","San Luis Potosí","A",3]
[78136,"Privada de los Arroyo","San Luis Potosí","San Luis Potosí","A",3]
[78145,"Tecnológico II","San Luis Potosí","San Luis Potosí","A",3]
[78176,"Matehuala","San Luis Potosí","San Luis Potosí","A",3]
[78218,"Las Haciendas","San Luis Potosí","San Luis Potosí","A",3]
[78309,"Avenida México","San Luis Potosí","San Luis Potosí","A",3]
[78357,"Ricardo Flores Magón","San Luis Potosí","San Luis Potosí","A",3]
[78385,"Agua Sal","San Luis Potosí","San Luis Potosí","A",3]
[78394,"Poza Real","San Luis Potosí","San Luis Potosí","A",3]
[78398,"Palmar Chico","San Luis Potosí","San Luis Potosí","A",3]
[78401,"Cascaron","San Luis Potosí","San Luis Potosí","A",3]
[78421,"Villa de Pozos","San Luis Potosí","San Luis Potosí","A",3]
[78434,"Rinconada de San Pedro","Soledad de Graciano Sánchez","San Luis Potosí","A",3]
[78435,"San Antonio INFONAVIT","Soledad de Graciano Sánchez","San Luis Potosí","A",3]
[78437,"Francisco Sarabia","Soledad de Graciano Sánchez","San Luis Potosí","A",3]
[78453,"El Pastillo","Ahualulco","San Luis Potosí","A",3]
[78462,"Venadito","Mexquitic de Carmona","San Luis Potosí","A",3]
[78481,"Agua Señora","Mexquitic de Carmona","San Luis Potosí","A",3]
[78540,"Catorce","Catorce","San Luis Potosí","A",3]
[78585,"El Hospital","Charcas","San Luis Potosí","A",3]
[78602,"Diego Martín","Salinas","San Luis Potosí","A",3]
[78715,"Los Pinos","Matehuala","San Luis Potosí","A",3]
[78730,"Forestal","Matehuala","San Luis Potosí","A",3]
[78784,"Carlos Jonguitud Barrios INFONAVIT","Matehuala","San Luis Potosí","A",3]
[78851,"Morelos","Villa de Guadalupe","San Luis Potosí","A",3]
[78862,"San Bartolo","Villa de Guadalupe","San Luis Potosí","A",3]
[78900,"Tlaxcala","Moctezuma","San Luis Potosí","A",3]
[78965,"Tanquecito de San Francisco","Villa Hidalgo","San Luis Potosí","A",3]
[79010,"Márquez","Ciudad Valles","San Luis Potosí","A",3]
[79028,"Las Fincas","Ciudad Valles","San Luis Potosí","A",3]
[79068,"Del Carmen","Ciudad Valles","San Luis Potosí","A",3]
[79139,"Ampliación Del Valle","Ebano","San Luis Potosí","A","1IR"]
[79205,"Magisterial","Tamuín","San Luis Potosí","A","1IR"]
[79230,"500 Estación","Ciudad Valles","San Luis Potosí","A",3]
[79300,"Las Lomas","Ciudad del Maíz","San Luis Potosí","A",3]
[79314,"Salto del Agua","El Naranjo","San Luis Potosí","A",3]
[79421,"San Diego","Cerritos","San Luis Potosí","A",3]
[79467,"Buena Vista","Villa Juárez","San Luis Potosí","A",3]
[79510,"Carranco","Villa de Reyes","San Luis Potosí","A",3]
[79545,"La Calera","Zaragoza","San Luis Potosí","A",3]
[79602,"Puente Prieto","Rioverde","San Luis Potosí","A",3]
[79613,"San Miguel","Rioverde","San Luis Potosí","A",3]
[79624,"Santa Julia","Rioverde","San Luis Potosí","A",3]
[79686,"Relámpago","San Ciro de Acosta","San Luis Potosí","A",3]
[79712,"Pedregal","Tamasopo","San Luis Potosí","A","1IR"]
[79751,"Puertecitos","Rayón","San Luis Potosí","A",3]
[79804,"Mexcala","Tancanhuitz","San Luis Potosí","A","1IR"]
[79819,"San José del Tinto","Tanlajás","San Luis Potosí","A","1IR"]
[79851,"Tamarindo Huasteco","Tampamolón Corona","San Luis Potosí","A","1IR"]
[79856,"Coaxinquila","Tampamolón Corona","San Luis Potosí","A","1IR"]
[79917,"La Herradura","Xilitla","San Luis Potosí","A","1IR"]
[79931,"Tamalacaco","Axtla de Terrazas","San Luis Potosí","A","1IR"]
[79958,"Rancho Nuevo","San Martín Chalchicuautla","San Luis Potosí","A","1IR"]
[79960,"Del Carmen","Tamazunchale","San Luis Potosí","A","1IR"]
[79975,"Tepetzintla","Matlapa","San Luis Potosí","A","1IR"]
[79980,"La Providencia","Tamazunchale","San Luis Potosí","A","1IR"]
[80015,"Ruben Jaramillo","Culiacán","Sinaloa","B","1PS"]
[80020,"STASE","Culiacán","Sinaloa","B","1PS"]
[80028,"Rincón Real","Culiacán","Sinaloa","B","1PS"]
[80058,"Acueducto","Culiacán","Sinaloa","B","1PS"]
[80065,"Banus","Culiacán","Sinaloa","B","1PS"]
[80105,"Recursos Hidráulicos","Culiacán","Sinaloa","B","1PS"]
[80177,"Privada Del Rey","Culiacán","Sinaloa","B","1PS"]
[80184,"Vinoramas","Culiacán","Sinaloa","B","1PS"]
[80197,"Colinas del Bosque","Culiacán","Sinaloa","B","1PS"]
[80249,"Constitución CROC","Culiacán","Sinaloa","B","1PS"]
[80300,"Campo El Amapán","Culiacán","Sinaloa","B","1PS"]
[80308,"Presidentes de México","Culiacán","Sinaloa","B","1PS"]
[80334,"Lo de Reyes","Navolato","Sinaloa","B","1PS"]
[80349,"Nicolás Bravo","Navolato","Sinaloa","B","1PS"]
[80371,"Campo San Isidro","Navolato","Sinaloa","B","1PS"]
[80394,"La Guamuchilera","Culiacán","Sinaloa","B","1PS"]
[80419,"Tierra y Libertad","Culiacán","Sinaloa","B","1PS"]
[80434,"Campo El Conejo (Campo Esperazna)","Culiacán","Sinaloa","B","1PS"]
[80450,"Alvarez","Culiacán","Sinaloa","B","1PS"]
[80536,"La Juanilla","Badiraguato","Sinaloa","B","1PS"]
[80570,"Cortijos los de Guatenipa","Badiraguato","Sinaloa","B","1PS"]
[80770,"Santa Cruz de Alaya","Cosalá","Sinaloa","B","1PS"]
[80883,"Guayabito","Mocorito","Sinaloa","B","1PS"]
[80936,"Tepuche","Mocorito","Sinaloa","B","1PS"]
[81030,"Sector DIF","Guasave","Sinaloa","B","1PS"]
[81123,"El Huitussi y Anexos (El Huitussito)","Guasave","Sinaloa","B","1PS"]
[81160,"Cubilete 1","Guasave","Sinaloa","B","1PS"]
[81180,"Palmarito de los Angulo","Guasave","Sinaloa","B","1PS"]
[81240,"Ibarra","Ahome","Sinaloa","B","1PS"]
[81248,"Jardines del Bosque","Ahome","Sinaloa","B","1PS"]
[81256,"Villa Huites","Ahome","Sinaloa","B","1PS"]
[81285,"Prados del Sur","Ahome","Sinaloa","B","1PS"]
[81300,"Campo Gastelum","Ahome","Sinaloa","B","1PS"]
[81304,"Vallejo (Porvenir Vallejo)","Ahome","Sinaloa","B","1PS"]
[81363,"20 de Noviembre Nuevo","Ahome","Sinaloa","B","1PS"]
[81373,"Mendez","Ahome","Sinaloa","B","1PS"]
[81427,"Villahermosa","Salvador Alvarado","Sinaloa","B","1PS"]
[81475,"Pedro Infante","Salvador Alvarado","Sinaloa","B","1PS"]
[81649,"Agustina Ramirez","Angostura","Sinaloa","B","1PS"]
[81716,"Loreto","Choix","Sinaloa","B","1PS"]
[81802,"Kansas","El Fuerte","Sinaloa","B","1PS"]
[81854,"Zozorique","El Fuerte","Sinaloa","B","1PS"]
[81895,"El Ranchito 1","El Fuerte","Sinaloa","B","1PS"]
[81913,"La Choya","Sinaloa","Sinaloa","B","1PS"]
[81985,"Alfonso G Calderón Velarde","Sinaloa","Sinaloa","B","1PS"]
[82089,"23 de Noviembre","Mazatlán","Sinaloa","B","1PS"]
[82110,"El Dorado","Mazatlán","Sinaloa","B","1PS"]
[82133,"Misiones 2000","Mazatlán","Sinaloa","B","1PS"]
[82136,"Petróleos","Mazatlán","Sinaloa","B","1PS"]
[82146,"Sembradores de La Amistad","Mazatlán","Sinaloa","B","1PS"]
[82190,"El Campestre","Mazatlán","Sinaloa","B","1PS"]
[82200,"San Francisquito","Mazatlán","Sinaloa","B","1PS"]
[82248,"El Bajio","Mazatlán","Sinaloa","B","1PS"]
[82600,"Villa de Guadalupe","Concordia","Sinaloa","B","1PS"]
[82702,"Arroyitos","Elota","Sinaloa","B","1PS"]
[82790,"Saladito","Elota","Sinaloa","B","1PS"]
[82802,"Lopez Portillo","Rosario","Sinaloa","B","1PS"]
[82921,"El Chilar","San Ignacio","Sinaloa","B","1PS"]
[83020,"Amapolas","Hermosillo","Sonora","B",3]
[83100,"Prados de Bugambilias II","Hermosillo","Sonora","B",3]
[83114,"Milán","Hermosillo","Sonora","B",3]
[83116,"Miguel Ángel Jiménez","Hermosillo","Sonora","B",3]
[83118,"Mini Parque Industrial","Hermosillo","Sonora","B",3]
[83148,"Colina Blanca","Hermosillo","Sonora","B",3]
[83159,"Las Lomas del Pitic","Hermosillo","Sonora","B",3]
[83174,"Parque Industrial La Labor","Hermosillo","Sonora","B",3]
[83220,"Villas del Mediterráneo Etapa II","Hermosillo","Sonora","B",3]
[83247,"Vista del Lago","Hermosillo","Sonora","B",3]
[83250,"Las Granjas","Hermosillo","Sonora","B",3]
[83287,"Paseo San Angel","Hermosillo","Sonora","B",3]
[83293,"Central de Abastos","Hermosillo","Sonora","B",3]
[83294,"Rincón Del Marquez","Hermosillo","Sonora","B",3]
[83304,"Tazajal","Hermosillo","Sonora","B",3]
[83400,"Cuauhtémoc","San Luis Río Colorado","Sonora","C",3]
[83497,"Reforma","San Luis Río Colorado","Sonora","C",3]
[83555,"Spa Resort","Puerto Peñasco","Sonora","C",3]
[83634,"Niños Héroes","Caborca","Sonora","B",3]
[83680,"Luz de Oriente","Caborca","Sonora","B",3]
[83860,"Saric","Sáric","Sonora","B",3]
[84040,"Los Sauces","Nogales","Sonora","B",3]
[84063,"Margarita Maza de Juárez","Nogales","Sonora","B",3]
[84076,"Leandro Valle","Nogales","Sonora","B",3]
[84160,"Los Álamos","Magdalena","Sonora","B",3]
[84167,"El Sasabe","Magdalena","Sonora","B",3]
[84240,"Unidad Deportiva","Agua Prieta","Sonora","B",3]
[84440,"Nacori Chico","Nácori Chico","Sonora","B",3]
[84600,"La Terraza","Santa Ana","Sonora","B",3]
[84623,"Leyes de Reforma II","Cananea","Sonora","B",3]
[84775,"Nacori Grande","Villa Pesqueira","Sonora","B",3]
[84942,"San Jose","Baviácora","Sonora","B",3]
[85038,"Túnel","Cajeme","Sonora","B",2]
[85120,"Del Valle","Cajeme","Sonora","B",2]
[85140,"Lázaro Mercado","Cajeme","Sonora","B",2]
[85160,"Chihuahua","Cajeme","Sonora","B",2]
[85205,"El Henequén","Cajeme","Sonora","B",2]
[85210,"Valle de Héroes","Cajeme","Sonora","B",2]
[85219,"Viviano Murieta","Cajeme","Sonora","B",2]
[85227,"Siquisiva","Navojoa","Sonora","B",2]
[85246,"El Tabare","Huatabampo","Sonora","B",2]
[85258,"Plutarco Elías Calles","Huatabampo","Sonora","B",2]
[85283,"Rohe (arca de Noe)","Etchojoa","Sonora","B",2]
[85285,"Macochin","Etchojoa","Sonora","B",2]
[85286,"Campo de Guillermo Giesecke","Etchojoa","Sonora","B",2]
[85287,"Las Guayabas","Etchojoa","Sonora","B",2]
[85294,"Campo Joaquín Preciado","Benito Juárez","Sonora","B",2]
[85297,"Campo Liborio Rodriguez","Benito Juárez","Sonora","B",2]
[85298,"Campo Gutiérrez","Benito Juárez","Sonora","B",2]
[85424,"Loma Linda","Guaymas","Sonora","B",2]
[85440,"Las Flores","Guaymas","Sonora","B",2]
[85456,"18 de Marzo","Guaymas","Sonora","B",2]
[85508,"La Cuadrita","Guaymas","Sonora","B",2]
[85514,"La Tinajera","San Ignacio Río Muerto","Sonora","B",3]
[85515,"La Arboleda","San Ignacio Río Muerto","Sonora","B",3]
[85518,"Los Hernandez","San Ignacio Río Muerto","Sonora","B",3]
[85519,"Agraristas de Ciudad Obregón","San Ignacio Río Muerto","Sonora","B",3]
[85600,"Talamantes","Sahuaripa","Sonora","B",3]
[85714,"El Vado Cuate","Rosario","Sonora","B",2]
[85778,"El Fríjol","Alamos","Sonora","B",2]
[85864,"FOVISSSTE","Navojoa","Sonora","B",2]
[85966,"Nueva","Huatabampo","Sonora","B",2]
[86017,"Las Garzas","Centro","Tabasco","B","1GM"]
[86030,"Bonanza","Centro","Tabasco","B","1GM"]
[86039,"El Country","Centro","Tabasco","B","1GM"]
[86126,"Santa Elena","Centro","Tabasco","B","1GM"]
[86127,"Miguel Hidalgo 1a Sección","Centro","Tabasco","B","1GM"]
[86169,"Pensiones","Centro","Tabasco","B","1GM"]
[86216,"El Carmen","Jalpa de Méndez","Tabasco","B","1GM"]
[86237,"Congregación el Cometa","Nacajuca","Tabasco","B","1GM"]
[86253,"La Loma","Centro","Tabasco","B","1GM"]
[86280,"J A Sibilla Zurita","Centro","Tabasco","B","1GM"]
[86283,"Guineo 1a Secc","Centro","Tabasco","B","1GM"]
[86284,"Juchimán","Centro","Tabasco","B","1GM"]
[86296,"Gaviotas Sur (El Chiflón)","Centro","Tabasco","B","1GM"]
[86325,"Ecológica Lic. Carlos A. Madrazo Becerra","Comalcalco","Tabasco","B","1GM"]
[86400,"Comisión Federal de Electricidad","Huimanguillo","Tabasco","B","1GM"]
[86417,"Blasillo 2a Secc","Huimanguillo","Tabasco","B","1GM"]
[86418,"Ruborosa","Huimanguillo","Tabasco","B","1GM"]
[86426,"Paloma","Huimanguillo","Tabasco","B","1GM"]
[86446,"Gustavo Díaz Ordaz","Huimanguillo","Tabasco","B","1GM"]
[86460,"Ojoshal","Cárdenas","Tabasco","B","1GM"]
[86470,"Santa Ana 1a Sección A","Cárdenas","Tabasco","B","1GM"]
[86490,"Zapotal 2a Secc","Cárdenas","Tabasco","B","1GM"]
[86573,"Emiliano Zapata","Cárdenas","Tabasco","B","1GM"]
[86606,"El Limoncito","Paraíso","Tabasco","B","1GM"]
[86616,"San Francisco","Paraíso","Tabasco","B","1GM"]
[86654,"Guatemalan","Comalcalco","Tabasco","B","1GM"]
[86669,"Arena 3a Secc","Comalcalco","Tabasco","B","1GM"]
[86687,"Ignacio Zaragoza","Cunduacán","Tabasco","B","1GM"]
[86693,"Morelos Piedra","Cunduacán","Tabasco","B","1GM"]
[86698,"Cucuyulapa","Cunduacán","Tabasco","B","1GM"]
[86707,"Primavera","Macuspana","Tabasco","B","1GM"]
[86724,"Santos Degollado 1a Secc","Macuspana","Tabasco","B","1GM"]
[86726,"San Antonio","Macuspana","Tabasco","B","1GM"]
[86738,"Trinidad Malpica","Macuspana","Tabasco","B","1GM"]
[86752,"San Andrea","Centla","Tabasco","B","1GM"]
[86754,"Playa Azul","Centla","Tabasco","B","1GM"]
[86757,"Buenos Aires","Centla","Tabasco","B","1GM"]
[86770,"Sitio Nuevo","Jonuta","Tabasco","B","1GM"]
[86782,"Corozal Del Rio","Jonuta","Tabasco","B","1GM"]
[86802,"Carlos Salinas de Gortari","Teapa","Tabasco","B","1GM"]
[86802,"Chacuiba","Teapa","Tabasco","B","1GM"]
[86835,"Francisco J. Santa María (Cacao)","Jalapa","Tabasco","B","1GM"]
[86856,"San Miguel Adentro 2a Secc","Jalapa","Tabasco","B","1GM"]
[86877,"División del Norte","Tacotalpa","Tabasco","B","1GM"]
[86902,"Cocoyol","Tenosique","Tabasco","B","1GM"]
[86905,"Chaculji","Tenosique","Tabasco","B","1GM"]
[86910,"4 Hermanos","Tenosique","Tabasco","B","1GM"]
[86932,"Constitución","Balancán","Tabasco","B","1GM"]
[86949,"El Pimiental","Balancán","Tabasco","B","1GM"]
[86965,"El Capulín","Balancán","Tabasco","B","1GM"]
[86996,"El Último Esfuerzo","Emiliano Zapata","Tabasco","B","1GM"]
[87016,"Vamos Tamaulipas I Etapa","Victoria","Tamaulipas","A","1GM"]
[87023,"Hacienda del Colibrí","Victoria","Tamaulipas","A","1GM"]
[87030,"Privadas del Nogalar","Victoria","Tamaulipas","A","1GM"]
[87040,"Ascensión Gómez","Victoria","Tamaulipas","A","1GM"]
[87050,"Sierra Gorda","Victoria","Tamaulipas","A","1GM"]
[87078,"Las Flores","Victoria","Tamaulipas","A","1GM"]
[87120,"Ampliación el Palmar","Victoria","Tamaulipas","A","1GM"]
[87134,"Primavera","Victoria","Tamaulipas","A","1GM"]
[87170,"Amalia G de Castillo Ledon","Victoria","Tamaulipas","A","1GM"]
[87245,"El Roble (Ejido)","Güémez","Tamaulipas","A","1GM"]
[87267,"El Refugio (Ejido)","Victoria","Tamaulipas","A","1GM"]
[87320,"Estero San Pablo","Matamoros","Tamaulipas","A","1GM"]
[87344,"Hacienda Del Puente","Matamoros","Tamaulipas","A","1GM"]
[87360,"Lázaro Cárdenas","Matamoros","Tamaulipas","A","1GM"]
[87383,"Bagdad Sur","Matamoros","Tamaulipas","A","1GM"]
[87395,"Francisco Covarrubias","Matamoros","Tamaulipas","A","1GM"]
[87410,"Villa Del Mar","Matamoros","Tamaulipas","A","1GM"]
[87450,"Treviño Zapata","Matamoros","Tamaulipas","A","1GM"]
[87470,"Cylsa","Matamoros","Tamaulipas","A","1GM"]
[87493,"Longoreño Ampliación","Matamoros","Tamaulipas","A","1GM"]
[87499,"Ciudad Industrial","Matamoros","Tamaulipas","A","1GM"]
[87507,"Villa Satélite","Valle Hermoso","Tamaulipas","A","1GM"]
[87551,"El Soliceño (Ejido)","Matamoros","Tamaulipas","A","1GM"]
[87560,"Jarita Del Norte","Matamoros","Tamaulipas","A","1GM"]
[87627,"6 de Enero","San Fernando","Tamaulipas","A","1GM"]
[87690,"La Peña","Soto la Marina","Tamaulipas","A","1GM"]
[87760,"El Modelo","Abasolo","Tamaulipas","A","1GM"]
[87853,"Guayabas (Ejido)","Hidalgo","Tamaulipas","A","1GM"]
[87870,"Magueyes (Ejido)","Mainero","Tamaulipas","A","1GM"]
[87918,"Morelos","Tula","Tamaulipas","A","1GM"]
[87994,"La Muralla (Ejido)","Ocampo","Tamaulipas","A","1GM"]
[88134,"20 de Noviembre","Nuevo Laredo","Tamaulipas","A",2]
[88173,"Parque Ferroviario Oradel","Nuevo Laredo","Tamaulipas","A",2]
[88184,"Las Torres","Nuevo Laredo","Tamaulipas","A",2]
[88283,"Villas de San Miguel","Nuevo Laredo","Tamaulipas","A",2]
[88295,"Itavu","Nuevo Laredo","Tamaulipas","A",2]
[88302,"Del Norte","Miguel Alemán","Tamaulipas","A","1GM"]
[88408,"Emilio Portes Gil","Gustavo Díaz Ordaz","Tamaulipas","A","1GM"]
[88480,"Santa Rosalía","Camargo","Tamaulipas","A","1GM"]
[88600,"Modulo 2000 Rancho Grande","Reynosa","Tamaulipas","A","1GM"]
[88650,"Morelos","Reynosa","Tamaulipas","A","1GM"]
[88707,"Bosques Del Norte","Reynosa","Tamaulipas","A","1GM"]
[88715,"Ventura","Reynosa","Tamaulipas","A","1GM"]
[88754,"Villa Marín","Reynosa","Tamaulipas","A","1GM"]
[88763,"Lomas de Villar","Reynosa","Tamaulipas","A","1GM"]
[88786,"1 de Mayo","Reynosa","Tamaulipas","A","1GM"]
[88799,"Ampliación Balcones de Alcalá III","Reynosa","Tamaulipas","A","1GM"]
[88837,"Manuel Parreño (Ejido)","Río Bravo","Tamaulipas","A","1GM"]
[88900,"Rio Bravo Centro","Río Bravo","Tamaulipas","A","1GM"]
[88945,"Constitución","Río Bravo","Tamaulipas","A","1GM"]
[88993,"Bugambilias","Río Bravo","Tamaulipas","A","1GM"]
[89150,"Otomi","Tampico","Tamaulipas","A","1GM"]
[89170,"Aurora","Tampico","Tamaulipas","A","1GM"]
[89329,"Colombia","Tampico","Tamaulipas","A","1GM"]
[89356,"Carmen Romano de Lopez Portillo","Tampico","Tamaulipas","A","1GM"]
[89367,"Unidad Modelo","Tampico","Tamaulipas","A","1GM"]
[89515,"Villas Del Mar","Ciudad Madero","Tamaulipas","A","1GM"]
[89540,"La Barra","Ciudad Madero","Tamaulipas","A","1GM"]
[89602,"Enrique Cárdenas González","Altamira","Tamaulipas","A","1GM"]
[89603,"Magdaleno Aguilar","Altamira","Tamaulipas","A","1GM"]
[89604,"Justo Sierra","Altamira","Tamaulipas","A","1GM"]
[89604,"Jazmín","Altamira","Tamaulipas","A","1GM"]
[89607,"Tercer Milenium","Altamira","Tamaulipas","A","1GM"]
[89670,"Del Bosque","Aldama","Tamaulipas","A","1GM"]
[89712,"Nuevo Amanecer","González","Tamaulipas","A","1GM"]
[89764,"Francisco Castellanos","Xicoténcatl","Tamaulipas","A","1GM"]
[89816,"Unidad Nacional","El Mante","Tamaulipas","A","1GM"]
[89847,"Nacional Colectiva 1a Etapa","El Mante","Tamaulipas","A","1GM"]
[89880,"Altavista II","El Mante","Tamaulipas","A","1GM"]
[89942,"Gonzalez Ortega (Ejido)","El Mante","Tamaulipas","A","1GM"]
[90014,"El Rincón","Tlaxcala","Tlaxcala","B",3]
[90114,"El Rincón de las Rosas","Tlaxcala","Tlaxcala","B",3]
[90127,"San Antonio Tecoac","Ixtacuixtla de Mariano Matamoros","Tlaxcala","B",3]
[90150,"Emiliano Zapata","Panotla","Tlaxcala","B",3]
[90204,"La Herradura","Calpulalpan","Tlaxcala","B",3]
[90233,"Pachuquilla","Sanctórum de Lázaro Cárdenas","Tlaxcala","B",3]
[90250,"Ejidal","Tlaxco","Tlaxcala","B",3]
[90277,"Comisión Federal de Electricidad-La Martinica","Tlaxco","Tlaxcala","B",3]
[90378,"Loma Santa Anita","Apizaco","Tlaxcala","B",3]
[90406,"Lomas del Bosque","Apizaco","Tlaxcala","B",3]
[90440,"Jardines de Xaltocan","Xaltocan","Tlaxcala","B",3]
[90507,"Libra","Huamantla","Tlaxcala","B",3]
[90515,"El Valle","Huamantla","Tlaxcala","B",3]
[90548,"La Venta","Emiliano Zapata","Tlaxcala","B",3]
[90644,"Analco","Santa Cruz Tlaxcala","Tlaxcala","B",3]
[90710,"San Vicente Xiloxochitla","Natívitas","Tlaxcala","B",3]
[90750,"Manantiales 4ta Sección","Zacatelco","Tlaxcala","B",3]
[90805,"Del Carmen","Chiautempan","Tlaxcala","B",3]
[90835,"Teotlalpan","La Magdalena Tlaltelulco","Tlaxcala","B",3]
[90900,"Villa Vicente Guerrero Centro","San Pablo del Monte","Tlaxcala","B",3]
[91027,"Acueducto","Xalapa","Veracruz","B",2]
[91050,"3 de Mayo","Xalapa","Veracruz","B",2]
[91070,"Benito Juárez","Xalapa","Veracruz","B",2]
[91096,"Santa Bárbara","Xalapa","Veracruz","B",2]
[91154,"Las Torres","Xalapa","Veracruz","B",2]
[91157,"Margarita Maza de Juárez","Xalapa","Veracruz","B",2]
[91180,"10 de Mayo","Xalapa","Veracruz","B",2]
[91240,"El Haya","Xico","Veracruz","B","1GM"]
[91275,"Sabinal","Perote","Veracruz","B",3]
[91335,"El Virjam","Las Vigas de Ramírez","Veracruz","B",3]
[91449,"El Chaparral","Juchique de Ferrer","Veracruz","B","1GM"]
[91480,"Carlos y Teresa","Actopan","Veracruz","B","1GM"]
[91514,"Sayago Cristóbal","Coatepec","Veracruz","B","1GM"]
[91576,"Mosvil","Coatepec","Veracruz","B","1GM"]
[91609,"Cuauhtémoc","Coatepec","Veracruz","B","1GM"]
[91633,"La Cumbre","Emiliano Zapata","Veracruz","B",2]
[91652,"El Crucero","Puente Nacional","Veracruz","B","1GM"]
[91660,"Jareros","Ursulo Galván","Veracruz","B","1GM"]
[91674,"Las Trancas","Paso de Ovejas","Veracruz","B","1GM"]
[91688,"Jose Ingenieros","La Antigua","Veracruz","B",2]
[91726,"Xana","Veracruz","Veracruz","B","1GM"]
[91750,"Pascual Ortiz Rubio","Veracruz","Veracruz","B","1GM"]
[91779,"Framboyanes","Veracruz","Veracruz","B","1GM"]
[91850,"Buenavista INFONAVIT","Veracruz","Veracruz","B","1GM"]
[91920,"Del Maestro","Veracruz","Veracruz","B","1GM"]
[92018,"Laguna de La Costa","Pánuco","Veracruz","A","1GM"]
[92048,"Palacho 2","Tampico Alto","Veracruz","A","1GM"]
[92075,"Mesa de Santiago","Tempoal","Veracruz","A","1GM"]
[92086,"San Javier y Cazadero","Ozuluama de Mascareñas","Veracruz","A","1GM"]
[92127,"Gutiérrez Barrios","Tantoyuca","Veracruz","A","1GM"]
[92143,"Los Cues II","Platón Sánchez","Veracruz","A","1GM"]
[92270,"7 Palmas","Ixcatepec","Veracruz","A","1GM"]
[92430,"Gutiérrez Zamora","Tantima","Veracruz","A","1GM"]
[92514,"Ex Refinería","Cerro Azul","Veracruz","A",3]
[92539,"Las Guasimas","Tepetzintla","Veracruz","A","1GM"]
[92647,"Papatlar","Texcatepec","Veracruz","B",2]
[92683,"Rancho Nuevo","Ixhuatlán de Madero","Veracruz","B",2]
[92684,"Guaguaco","Ixhuatlán de Madero","Veracruz","B",2]
[92694,"Tenextongo","Ixhuatlán de Madero","Veracruz","B",2]
[92700,"Mexcatla","Chicontepec","Veracruz","B",2]
[92724,"Tetillas","Chicontepec","Veracruz","B",2]
[92733,"Luis Donaldo Colosio","Álamo Temapache","Veracruz","B","1GM"]
[92755,"Lomas de Vinasco","Álamo Temapache","Veracruz","B","1GM"]
[92770,"El Paraíso","Tuxpan","Veracruz","B","1GM"]
[92830,"Lázaro Cárdenas","Tuxpan","Veracruz","B","1GM"]
[92853,"Cenecista C.N.C.","Tuxpan","Veracruz","B","1GM"]
[92880,"Adolfo Ruiz Cortínez","Tuxpan","Veracruz","B","1GM"]
[92895,"CEAS","Tuxpan","Veracruz","B","1GM"]
[93003,"Acatzacan","Zozocolco de Hidalgo","Veracruz","B","1GM"]
[93140,"Catxiquilín","Coyutla","Veracruz","B","1GM"]
[93166,"Antonio M Quirasco","Coatzintla","Veracruz","B",3]
[93279,"Heriberto Kehoe Vicent","Poza Rica de Hidalgo","Veracruz","B","1GM"]
[93320,"Magisterio","Poza Rica de Hidalgo","Veracruz","B","1GM"]
[93387,"Medias Lomas","Poza Rica de Hidalgo","Veracruz","B","1GM"]
[93534,"San José de las Lajas","Papantla","Veracruz","B","1GM"]
[93550,"El Mango","Gutiérrez Zamora","Veracruz","B","1GM"]
[93569,"Santa Rosa","Gutiérrez Zamora","Veracruz","B","1GM"]
[93610,"Soledad","Martínez de la Torre","Veracruz","B","1GM"]
[93623,"Rio Mar","San Rafael","Veracruz","B",3]
[93627,"3 Encinos","San Rafael","Veracruz","B",3]
[93653,"Buenavista","Tlapacoyan","Veracruz","B","1GM"]
[93655,"Flor de María","Tlapacoyan","Veracruz","B","1GM"]
[93685,"El Equimite","Atzalan","Veracruz","B",2]
[93816,"Rancho Nuevo","Nautla","Veracruz","B","1GM"]
[93830,"La Concordia","Misantla","Veracruz","B","1GM"]
[93834,"Vista Hermosa","Misantla","Veracruz","B","1GM"]
[93844,"Los Ídolos","Misantla","Veracruz","B","1GM"]
[93995,"Lic Adolfo Lopez Mateos","Pánuco","Veracruz","B","1GM"]
[94050,"Zapotitla","Totutla","Veracruz","B",2]
[94110,"Tlamatoca","Huatusco","Veracruz","B",2]
[94242,"Vista Alegre","Soledad de Doblado","Veracruz","B","1GM"]
[94254,"Izotillo","Manlio Fabio Altamirano","Veracruz","B","1GM"]
[94266,"La Reforma","Jamapa","Veracruz","B","1GM"]
[94294,"Sutsem","Boca del Río","Veracruz","B","1GM"]
[94297,"Venustiano Carranza","Boca del Río","Veracruz","B","1GM"]
[94314,"Puerta Chica","Orizaba","Veracruz","B",3]
[94350,"Cuauhtémoc","Orizaba","Veracruz","B",3]
[94393,"San Francisco","Orizaba","Veracruz","B",3]
[94420,"El Recreo","Mariano Escobedo","Veracruz","B",3]
[94470,"Fortín de las Flores Centro","Fortín","Veracruz","B",3]
[94477,"Residencial la Llave","Fortín","Veracruz","B",3]
[94510,"Nueva Beisborama","Córdoba","Veracruz","B",2]
[94542,"Antorchista Secc C","Córdoba","Veracruz","B",2]
[94557,"Azucenas","Córdoba","Veracruz","B",2]
[94590,"Guadalupe","Córdoba","Veracruz","B",2]
[94656,"Tranca Tubos","Córdoba","Veracruz","B",2]
[94723,"Benito Juárez","Nogales","Veracruz","B",3]
[94732,"Libertad","Río Blanco","Veracruz","B","1GM"]
[94766,"Puerto del Aire","Acultzingo","Veracruz","B",3]
[94905,"San Jose de Abajo","Omealca","Veracruz","B","1GM"]
[94930,"Negro Yanga","Yanga","Veracruz","B",3]
[94950,"Zacatipan","Amatlán de los Reyes","Veracruz","B",2]
[94968,"La Reforma","Atoyac","Veracruz","B",3]
[94970,"Salvador Esquer Apodaca","Paso del Macho","Veracruz","B",3]
[95010,"Temaxcalapa","Zongolica","Veracruz","B",2]
[95083,"Campo Agrícola Experimental","Tezonapa","Veracruz","B",2]
[95085,"Almilinga","Tezonapa","Veracruz","B",2]
[95090,"La Toma Grande","Tezonapa","Veracruz","B",2]
[95160,"De los Gonzalez","Tierra Blanca","Veracruz","B","1GM"]
[95205,"Ejido Buena Vista","Tierra Blanca","Veracruz","B","1GM"]
[95224,"El Papayal","Tlalixcoyan","Veracruz","B","1GM"]
[95227,"Mata Cabestro","Tlalixcoyan","Veracruz","B","1GM"]
[95230,"El Jinicuil","Tlalixcoyan","Veracruz","B","1GM"]
[95234,"Mata Cabestro","Tlalixcoyan","Veracruz","B","1GM"]
[95243,"Tarcazalapa","Ignacio de la Llave","Veracruz","B","1GM"]
[95243,"El Zapote","Ignacio de la Llave","Veracruz","B","1GM"]
[95264,"Rincon Del Conchal","Alvarado","Veracruz","B","1GM"]
[95338,"Petrolera O Campo Deportivo","Carlos A. Carrillo","Veracruz","B",2]
[95394,"Las Mariposas","Cosamaloapan de Carpio","Veracruz","B","1GM"]
[95426,"El Retiro","Cosamaloapan de Carpio","Veracruz","B","1GM"]
[95484,"El Remolino","Saltabarranca","Veracruz","B","1GM"]
[95590,"Dobladero","José Azueta","Veracruz","B","1GM"]
[95633,"La Providencia","Santiago Sochiapan","Veracruz","C","1GM"]
[95636,"Arenalito","Santiago Sochiapan","Veracruz","C","1GM"]
[95673,"Nuevo Remolino","Juan Rodríguez Clara","Veracruz","C","1GM"]
[95683,"Huayacanes","Juan Rodríguez Clara","Veracruz","C","1GM"]
[95710,"El Cocal 2a Parte","San Andrés Tuxtla","Veracruz","B","1GM"]
[95786,"Belén Grande","San Andrés Tuxtla","Veracruz","B","1GM"]
[95807,"Buenos Aires Texalpan","San Andrés Tuxtla","Veracruz","B","1GM"]
[95832,"Xegoyo","Santiago Tuxtla","Veracruz","B","1GM"]
[95857,"Norma","Hueyapan de Ocampo","Veracruz","B","1GM"]
[95870,"Tepetapan","Catemaco","Veracruz","B",2]
[95902,"San Fernando","Soteapan","Veracruz","B","1GM"]
[96054,"Ateopan","Acayucan","Veracruz","C","1GM"]
[96135,"Jalapilla","San Juan Evangelista","Veracruz","C","1GM"]
[96145,"La Soledad","San Juan Evangelista","Veracruz","C","1GM"]
[96343,"Las Olas","Cosoleacaque","Veracruz","C","1GM"]
[96347,"Los Prados","Cosoleacaque","Veracruz","C","1GM"]
[96380,"Ejidal","Coatzacoalcos","Veracruz","B",2]
[96380,"El Faro","Coatzacoalcos","Veracruz","B",2]
[96536,"Las Gaviotas","Coatzacoalcos","Veracruz","B",2]
[96538,"Santa Rosa","Coatzacoalcos","Veracruz","B",2]
[96579,"Palma Sola","Coatzacoalcos","Veracruz","B",2]
[96729,"Nueva Mina Sur","Minatitlán","Veracruz","C","1GM"]
[96770,"Nueva Esperanza","Minatitlán","Veracruz","C","1GM"]
[96903,"Ampliación Colorado","Minatitlán","Veracruz","C","1GM"]
[96916,"Tenochtitlan","Minatitlán","Veracruz","C","1GM"]
[96931,"Santa Rosa","Hidalgotitlán","Veracruz","C","1GM"]
[96960,"Nuevo Morelos","Jesús Carranza","Veracruz","C","1GM"]
[96998,"Hidalgo Amajac","Uxpanapa","Veracruz","C",2]
[97114,"Monte Alban","Mérida","Yucatán","A","1PY"]
[97121,"Centro Sct Yucatán","Mérida","Yucatán","A","1PY"]
[97149,"San Esteban","Mérida","Yucatán","A","1PY"]
[97169,"Wallis","Mérida","Yucatán","A","1PY"]
[97195,"San Antonio Kaua I","Mérida","Yucatán","A","1PY"]
[97206,"Privada La Hacienda","Mérida","Yucatán","A","1PY"]
[97217,"Residencial Pensiones III (II)","Mérida","Yucatán","A","1PY"]
[97225,"Paseo de las Fuentes","Mérida","Yucatán","A","1PY"]
[97246,"Jardines de Nueva Mulsay","Mérida","Yucatán","A","1PY"]
[97297,"Emiliano Zapata Sur II","Mérida","Yucatán","A","1PY"]
[97305,"Dzibichaltun","Mérida","Yucatán","A","1PY"]
[97320,"Revolución","Progreso","Yucatán","A","1PY"]
[97370,"Flor de Mayo","Kanasín","Yucatán","A","1PY"]
[97383,"Sahcatzin","Acanceh","Yucatán","A","1PY"]
[97393,"Dzibikak","Umán","Yucatán","A","1PY"]
[97452,"Tixkuncheil","Baca","Yucatán","A","1PY"]
[97520,"Tekanto","Tekantó","Yucatán","A","1PY"]
[97566,"Xocchel","Xocchel","Yucatán","A","1PY"]
[97645,"Xmaakaba","Cenotillo","Yucatán","A","1PY"]
[97654,"San Román","Tunkás","Yucatán","A","1PY"]
[97694,"Tibolon","Sotuta","Yucatán","A","1PY"]
[97713,"Paraíso","Tizimín","Yucatán","A","1PY"]
[97716,"Papoinah","Tizimín","Yucatán","A","1PY"]
[97750,"Tinum","Tinum","Yucatán","A","1PY"]
[97769,"Sisbic","Tekom","Yucatán","A","1PY"]
[97777,"Lolbe","Chemax","Yucatán","A","1PY"]
[97784,"Capules","Valladolid","Yucatán","A","1PY"]
[97816,"San Antonio Chable","Chocholá","Yucatán","A","1PY"]
[97836,"Dzbzibachi","Halachó","Yucatán","A","1PY"]
[97887,"Xlapak","Oxkutzcab","Yucatán","A","1PY"]
[97887,"Tabi","Oxkutzcab","Yucatán","A","1PY"]
[97936,"San Dionisio","Peto","Yucatán","A","1PY"]
[97947,"Cisteka","Tahdziú","Yucatán","A","1PY"]
[97965,"El Escondido","Tzucacab","Yucatán","A","1PY"]
[97993,"Kuncheil","Akil","Yucatán","A","1PY"]
[98057,"América","Zacatecas","Zacatecas","A",3]
[98067,"Villas Del Sol","Zacatecas","Zacatecas","A",3]
[98097,"La Estancia (las Colinas II)","Zacatecas","Zacatecas","A",3]
[98175,"El Maguey","Zacatecas","Zacatecas","A",3]
[98223,"Matamoros","Melchor Ocampo","Zacatecas","A",3]
[98286,"Tanquecillo","Mazapil","Zacatecas","A",3]
[98420,"Rio Grande Centro","Río Grande","Zacatecas","A",3]
[98429,"Rio Grande","Río Grande","Zacatecas","A",3]
[98508,"Florencio Quezada","Calera","Zacatecas","A",3]
[98605,"Los Frailes","Guadalupe","Zacatecas","A",3]
[98607,"Minas Del Real","Guadalupe","Zacatecas","A",3]
[98612,"Loma Bonita","Guadalupe","Zacatecas","A",3]
[98613,"Popular San Francisco","Guadalupe","Zacatecas","A",3]
[98615,"Tierra y Libertad 3ra. Sección","Guadalupe","Zacatecas","A",3]
[98618,"Privada Eucaliptos","Guadalupe","Zacatecas","A",3]
[98712,"Nombre de Dios","Ojocaliente","Zacatecas","A",3]
[98718,"Industrial Ladrillero","Ojocaliente","Zacatecas","A",3]
[98795,"ing. Julián Adame","Luis Moya","Zacatecas","A",3]
[98839,"Arenas","Loreto","Zacatecas","A",3]
[98959,"El Pedregoso","Pinos","Zacatecas","A",3]
[99014,"Petroleos Mexicanos","Fresnillo","Zacatecas","A",3]
[99094,"Polvaderas","Fresnillo","Zacatecas","A",3]
[99104,"Fovissste","Sombrerete","Zacatecas","A",3]
[99119,"Flores Garcia","Sombrerete","Zacatecas","A",3]
[99120,"Lo de Mena","Sombrerete","Zacatecas","A",3]
[99120,"Los Corrales","Sombrerete","Zacatecas","A",3]
[99121,"Menonita","Sombrerete","Zacatecas","A",3]
[99121,"Refugio de los Pozos","Sombrerete","Zacatecas","A",3]
[99121,"Felipe Angeles Colonia","Sombrerete","Zacatecas","A",3]
[99121,"Mesillas","Sombrerete","Zacatecas","A",3]
[99121,"Estancia de Guadalupe","Sombrerete","Zacatecas","A",3]
[99128,"San Jose de Ranchos","Sombrerete","Zacatecas","A",3]
[99128,"San Juan de La Tapia","Sombrerete","Zacatecas","A",3]
[99129,"Vergelitos","Sombrerete","Zacatecas","A",3]
[99130,"Jose Maria Morelos","Sain Alto","Zacatecas","A",3]
[99130,"Sain Alto","Sain Alto","Zacatecas","A",3]
[99130,"Rio de Medina","Sain Alto","Zacatecas","A",3]
[99130,"Barrancas","Sain Alto","Zacatecas","A",3]
[99130,"Sain Bajo","Sain Alto","Zacatecas","A",3]
[99130,"San Antonio","Sain Alto","Zacatecas","A",3]
[99132,"El Cazadero","Sain Alto","Zacatecas","A",3]
[99138,"Santa Eduviges","Sain Alto","Zacatecas","A",3]
[99138,"Laguna Blanca","Sain Alto","Zacatecas","A",3]
[99140,"Cantuna Norte","Sain Alto","Zacatecas","A",3]
[99140,"Cantuna Sur","Sain Alto","Zacatecas","A",3]
[99140,"Cantuna","Sain Alto","Zacatecas","A",3]
[99141,"Emiliano Zapata","Sain Alto","Zacatecas","A",3]
[99141,"Cañas","Sain Alto","Zacatecas","A",3]
[99141,"Luis Moya","Sain Alto","Zacatecas","A",3]
[99150,"El Modelo","Fresnillo","Zacatecas","A",3]
[99150,"El Pardillo 2","Fresnillo","Zacatecas","A",3]
[99150,"Purísima de Maguey","Fresnillo","Zacatecas","A",3]
[99150,"El Pardillo","Fresnillo","Zacatecas","A",3]
[99150,"Los Chilitos","Fresnillo","Zacatecas","A",3]
[99150,"El Pardillo 1","Fresnillo","Zacatecas","A",3]
[99150,"Miguel Hidalgo","Fresnillo","Zacatecas","A",3]
[99150,"Fresnillo","Fresnillo","Zacatecas","A",3]
[99150,"Las Catarinas","Fresnillo","Zacatecas","A",3]
[99150,"Santiaguillo","Fresnillo","Zacatecas","A",3]
[99150,"Carrillo","Fresnillo","Zacatecas","A",3]
[99158,"Plateros","Fresnillo","Zacatecas","A",3]
[99159,"Chichimequillas","Fresnillo","Zacatecas","A",3]
[99160,"La Casita","Fresnillo","Zacatecas","A",3]
[99160,"Vicente Guerrero","Fresnillo","Zacatecas","A",3]
[99160,"El Centro","Fresnillo","Zacatecas","A",3]
[99160,"Francisco I Madero","Fresnillo","Zacatecas","A",3]
[99170,"Jose Maria Morelos","Fresnillo","Zacatecas","A",3]
[99170,"Monte Mariana","Fresnillo","Zacatecas","A",3]
[99170,"6 de Enero","Fresnillo","Zacatecas","A",3]
[99170,"Rio Florido","Fresnillo","Zacatecas","A",3]
[99170,"Baluarte","Fresnillo","Zacatecas","A",3]
[99170,"San Ignacio","Fresnillo","Zacatecas","A",3]
[99178,"El Plenitud","Fresnillo","Zacatecas","A",3]
[99178,"Plenitud","Fresnillo","Zacatecas","A",3]
[99178,"Los Álamos","Fresnillo","Zacatecas","A",3]
[99179,"El Epazote","Fresnillo","Zacatecas","A",3]
[99179,"Tapias de Santa Cruz","Fresnillo","Zacatecas","A",3]
[99179,"El Salto","Fresnillo","Zacatecas","A",3]
[99180,"Gutiérrez","Fresnillo","Zacatecas","A",3]
[99182,"El Mezquite","Fresnillo","Zacatecas","A",3]
[99188,"San Pablo de Rancho Grande","Fresnillo","Zacatecas","A",3]
[99188,"Altamira","Fresnillo","Zacatecas","A",3]
[99188,"Rancho Grande","Fresnillo","Zacatecas","A",3]
[99189,"San Jose de Lourdes","Fresnillo","Zacatecas","A",3]
[99190,"Matías Ramos","Fresnillo","Zacatecas","A",3]
[99190,"San Isidro de Cabrales","Fresnillo","Zacatecas","A",3]
[99190,"Guanajuato","Fresnillo","Zacatecas","A",3]
[99190,"Agrícola Guanajuato","Fresnillo","Zacatecas","A",3]
[99190,"Guadalupe de Trujillo","Fresnillo","Zacatecas","A",3]
[99190,"Santa Rosa","Fresnillo","Zacatecas","A",3]
[99198,"Labor de Santa Bárbara","Fresnillo","Zacatecas","A",3]
[99199,"Trujillo","Fresnillo","Zacatecas","A",3]
[99199,"San Jose Del Rio","Fresnillo","Zacatecas","A",3]
[99200,"Cruces","Valparaíso","Zacatecas","A",3]
[99200,"El Tejujan","Valparaíso","Zacatecas","A",3]
[99200,"El Astillero","Valparaíso","Zacatecas","A",3]
[99200,"Tejones","Valparaíso","Zacatecas","A",3]
[99200,"Trojes","Valparaíso","Zacatecas","A",3]
[99200,"San Miguel","Valparaíso","Zacatecas","A",3]
[99200,"El Resbalón","Valparaíso","Zacatecas","A",3]
[99200,"Capulín de La Sierra","Valparaíso","Zacatecas","A",3]
[99200,"Mimbres","Valparaíso","Zacatecas","A",3]
[99201,"San Jose Del Vergel","Valparaíso","Zacatecas","A",3]
[99202,"Vicente Escudero","Valparaíso","Zacatecas","A",3]
[99203,"Felipe Angeles","Valparaíso","Zacatecas","A",3]
[99206,"La Pila de Las Oscuras (La Pila)","Valparaíso","Zacatecas","A",3]
[99208,"San Antonio de Padua","Valparaíso","Zacatecas","A",3]
[99209,"Potrero de Gallego","Valparaíso","Zacatecas","A",3]
[99210,"Milpillas de La Sierra","Valparaíso","Zacatecas","A",3]
[99220,"San Mateo","Valparaíso","Zacatecas","A",3]
[99220,"Caracoles y Anexas","Valparaíso","Zacatecas","A",3]
[99225,"Peñitas de San Mateo","Valparaíso","Zacatecas","A",3]
[99230,"Lobatos","Valparaíso","Zacatecas","A",3]
[99230,"Mala Noche","Valparaíso","Zacatecas","A",3]
[99231,"Xoconoxtle","Valparaíso","Zacatecas","A",3]
[99237,"Cueva Grande","Valparaíso","Zacatecas","A",3]
[99238,"Boquilla Del Refugio","Valparaíso","Zacatecas","A",3]
[99239,"San Jose de Llanetes","Valparaíso","Zacatecas","A",3]
[99240,"San Juan Capistrano","Valparaíso","Zacatecas","A",3]
[99250,"Valparaíso Centro","Valparaíso","Zacatecas","A",3]
[99252,"La Viña","Valparaíso","Zacatecas","A",3]
[99252,"Santo Domingo","Valparaíso","Zacatecas","A",3]
[99252,"Las Rosas","Valparaíso","Zacatecas","A",3]
[99252,"La Lagunilla","Valparaíso","Zacatecas","A",3]
[99253,"Simon Bolívar","Valparaíso","Zacatecas","A",3]
[99253,"La Joyita","Valparaíso","Zacatecas","A",3]
[99253,"Agua Fría","Valparaíso","Zacatecas","A",3]
[99253,"El Panalito","Valparaíso","Zacatecas","A",3]
[99253,"Ameca","Valparaíso","Zacatecas","A",3]
[99254,"Lomas Del Valle","Valparaíso","Zacatecas","A",3]
[99254,"Ranchito de La Cruz","Valparaíso","Zacatecas","A",3]
[99254,"El Lago","Valparaíso","Zacatecas","A",3]
[99254,"Bellavista","Valparaíso","Zacatecas","A",3]
[99254,"Alameda","Valparaíso","Zacatecas","A",3]
[99254,"Francisco I Madero","Valparaíso","Zacatecas","A",3]
[99254,"Mesita Del Valle","Valparaíso","Zacatecas","A",3]
[99254,"Magisterial","Valparaíso","Zacatecas","A",3]
[99255,"Ranchito Del Tanque","Valparaíso","Zacatecas","A",3]
[99255,"Los Nogales","Valparaíso","Zacatecas","A",3]
[99256,"Del Refugio","Valparaíso","Zacatecas","A",3]
[99256,"De La Lentejita","Valparaíso","Zacatecas","A",3]
[99256,"Puerta de Cadena Del Sur","Valparaíso","Zacatecas","A",3]
[99257,"Emiliano Zapata","Valparaíso","Zacatecas","A",3]
[99257,"Sierra Dorada","Valparaíso","Zacatecas","A",3]
[99257,"Buenavista","Valparaíso","Zacatecas","A",3]
[99257,"México","Valparaíso","Zacatecas","A",3]
[99257,"Mauro Talamantes","Valparaíso","Zacatecas","A",3]
[99257,"Enrique Estrada","Valparaíso","Zacatecas","A",3]
[99257,"Santa Rita","Valparaíso","Zacatecas","A",3]
[99258,"Las Américas","Valparaíso","Zacatecas","A",3]
[99258,"Deportiva","Valparaíso","Zacatecas","A",3]
[99258,"Cumbres Del Valle","Valparaíso","Zacatecas","A",3]
[99259,"Atotonilco","Valparaíso","Zacatecas","A",3]
[99259,"Lomas Del Paraíso","Valparaíso","Zacatecas","A",3]
[99260,"Colorada","Chalchihuites","Zacatecas","A",3]
[99260,"Chalchihuites","Chalchihuites","Zacatecas","A",3]
[99260,"Jose Maria Morelos","Chalchihuites","Zacatecas","A",3]
[99270,"San Jose de Buenavista","Chalchihuites","Zacatecas","A",3]
[99270,"Canutillo","Chalchihuites","Zacatecas","A",3]
[99279,"Gualterio","Chalchihuites","Zacatecas","A",3]
[99280,"Jimenez Del Teul","Jiménez del Teul","Zacatecas","A",3]
[99300,"Jerez Centro","Jerez","Zacatecas","A",3]
[99310,"Guadalupe","Jerez","Zacatecas","A",3]
[99311,"Magisterial","Jerez","Zacatecas","A",3]
[99312,"El Durazno","Jerez","Zacatecas","A",3]
[99312,"Magisterial III","Jerez","Zacatecas","A",3]
[99312,"CTM","Jerez","Zacatecas","A",3]
[99312,"El Vergel","Jerez","Zacatecas","A",3]
[99313,"Olimpia","Jerez","Zacatecas","A",3]
[99313,"Organización Campesina","Jerez","Zacatecas","A",3]
[99313,"Jardines de La Victoria","Jerez","Zacatecas","A",3]
[99313,"El Duraznillo","Jerez","Zacatecas","A",3]
[99313,"Organización Campesina","Jerez","Zacatecas","A",3]
[99314,"Cervantes Corona","Jerez","Zacatecas","A",3]
[99315,"Las Palmas","Jerez","Zacatecas","A",3]
[99316,"Matías Ramos","Jerez","Zacatecas","A",3]
[99316,"Patria Nueva","Jerez","Zacatecas","A",3]
[99316,"Infonavit El Molino Plan Maestro","Jerez","Zacatecas","A",3]
[99316,"Frente Popular Sur","Jerez","Zacatecas","A",3]
[99316,"Ciénega","Jerez","Zacatecas","A",3]
[99316,"Frente Popular Norte","Jerez","Zacatecas","A",3]
[99320,"Guadalupe","Jerez","Zacatecas","A",3]
[99320,"Zaragoza","Jerez","Zacatecas","A",3]
[99320,"Las Huertas","Jerez","Zacatecas","A",3]
[99322,"Jerez","Jerez","Zacatecas","A",3]
[99322,"Magisterial II","Jerez","Zacatecas","A",3]
[99322,"Candelario Huizar","Jerez","Zacatecas","A",3]
[99323,"Las Américas","Jerez","Zacatecas","A",3]
[99323,"Popular Del Sol","Jerez","Zacatecas","A",3]
[99323,"San Isidro","Jerez","Zacatecas","A",3]
[99323,"Camino Real","Jerez","Zacatecas","A",3]
[99323,"Azteca","Jerez","Zacatecas","A",3]
[99323,"Don Durito","Jerez","Zacatecas","A",3]
[99323,"P.R.D.","Jerez","Zacatecas","A",3]
[99323,"Valle Real","Jerez","Zacatecas","A",3]
[99323,"Deportivo II","Jerez","Zacatecas","A",3]
[99323,"Candelario Huizar","Jerez","Zacatecas","A",3]
[99324,"El Valle","Jerez","Zacatecas","A",3]
[99330,"Nuevo","Jerez","Zacatecas","A",3]
[99330,"San Pedro","Jerez","Zacatecas","A",3]
[99340,"Nueva Reforma","Jerez","Zacatecas","A",3]
[99340,"Banrural","Jerez","Zacatecas","A",3]
[99340,"San Francisco","Jerez","Zacatecas","A",3]
[99340,"Lagunita","Jerez","Zacatecas","A",3]
[99340,"Los Sauces","Jerez","Zacatecas","A",3]
[99340,"Constituyentes","Jerez","Zacatecas","A",3]
[99342,"Villa Flabia","Jerez","Zacatecas","A",3]
[99343,"Artesanos","Jerez","Zacatecas","A",3]
[99344,"La Cruz","Jerez","Zacatecas","A",3]
[99344,"Bosques","Jerez","Zacatecas","A",3]
[99344,"Infonavit El Cortijo","Jerez","Zacatecas","A",3]
[99350,"Ejido de Ciénega","Jerez","Zacatecas","A",3]
[99350,"Lo de Taura","Jerez","Zacatecas","A",3]
[99350,"Chulavista","Jerez","Zacatecas","A",3]
[99350,"Loma Dorada","Jerez","Zacatecas","A",3]
[99350,"Unión Santa Cruz","Jerez","Zacatecas","A",3]
[99350,"Carlos","Jerez","Zacatecas","A",3]
[99352,"Montecillo","Jerez","Zacatecas","A",3]
[99352,"Concepción","Jerez","Zacatecas","A",3]
[99353,"El Molino","Jerez","Zacatecas","A",3]
[99353,"Granjas El Molino","Jerez","Zacatecas","A",3]
[99360,"Niños Héroes","Jerez","Zacatecas","A",3]
[99360,"Alamedas","Jerez","Zacatecas","A",3]
[99360,"Real Del Valle","Jerez","Zacatecas","A",3]
[99360,"INFONAVIT II","Jerez","Zacatecas","A",3]
[99360,"Justo Sierra","Jerez","Zacatecas","A",3]
[99360,"Las Quintas","Jerez","Zacatecas","A",3]
[99361,"Alameda Parque","Jerez","Zacatecas","A",3]
[99362,"Deportivo","Jerez","Zacatecas","A",3]
[99362,"La Noria","Jerez","Zacatecas","A",3]
[99362,"Pedregal","Jerez","Zacatecas","A",3]
[99363,"Caxcán","Jerez","Zacatecas","A",3]
[99363,"Los Cardos","Jerez","Zacatecas","A",3]
[99363,"Hidráulica","Jerez","Zacatecas","A",3]
[99370,"20 de Noviembre","Jerez","Zacatecas","A",3]
[99370,"Villa Fontana","Jerez","Zacatecas","A",3]
[99379,"Huertas San Jose","Jerez","Zacatecas","A",3]
[99380,"Lopez Mateos","Jerez","Zacatecas","A",3]
[99380,"Modelo","Jerez","Zacatecas","A",3]
[99380,"Fuenzanto","Jerez","Zacatecas","A",3]
[99380,"Las Artes","Jerez","Zacatecas","A",3]
[99380,"Obrera","Jerez","Zacatecas","A",3]
[99382,"Jardín del Álamo","Jerez","Zacatecas","A",3]
[99382,"Las Brisas","Jerez","Zacatecas","A",3]
[99382,"Los Pinos","Jerez","Zacatecas","A",3]
[99382,"Delicias","Jerez","Zacatecas","A",3]
[99389,"Baño Nuevo","Jerez","Zacatecas","A",3]
[99389,"Mercaderes","Jerez","Zacatecas","A",3]
[99389,"Ladrillera","Jerez","Zacatecas","A",3]
[99390,"Jardines de Ramon Lopez Velarde","Jerez","Zacatecas","A",3]
[99390,"Jardines de Jerez","Jerez","Zacatecas","A",3]
[99390,"Fovissste","Jerez","Zacatecas","A",3]
[99390,"Rancho Los Arquitos","Jerez","Zacatecas","A",3]
[99390,"Álamos","Jerez","Zacatecas","A",3]
[99392,"Granjas","Jerez","Zacatecas","A",3]
[99392,"Cnop","Jerez","Zacatecas","A",3]
[99393,"Alamitos","Jerez","Zacatecas","A",3]
[99400,"Manuel M Ponce","Monte Escobedo","Zacatecas","A",3]
[99400,"El Cristal","Monte Escobedo","Zacatecas","A",3]
[99400,"Las Mesitas","Monte Escobedo","Zacatecas","A",3]
[99400,"Monte Escobedo","Monte Escobedo","Zacatecas","A",3]
[99410,"Adjuntas Del Refugio","Monte Escobedo","Zacatecas","A",3]
[99420,"Laguna Grande","Monte Escobedo","Zacatecas","A",3]
[99430,"Maria de La Torre","Monte Escobedo","Zacatecas","A",3]
[99440,"Miguel Hidalgo","Jerez","Zacatecas","A",3]
[99440,"Vicente Guerrero","Jerez","Zacatecas","A",3]
[99442,"Sáuz de los Garcia de Abajo","Jerez","Zacatecas","A",3]
[99443,"Ermita de los Correa","Jerez","Zacatecas","A",3]
[99447,"El Durazno","Jerez","Zacatecas","A",3]
[99447,"Los Haro","Jerez","Zacatecas","A",3]
[99454,"San Isidro Del Salto","Jerez","Zacatecas","A",3]
[99456,"Los Garcia","Jerez","Zacatecas","A",3]
[99457,"La Ciénega","Jerez","Zacatecas","A",3]
[99458,"Luis Moya","Jerez","Zacatecas","A",3]
[99460,"Tetillas","Jerez","Zacatecas","A",3]
[99467,"Ermita de Guadalupe","Jerez","Zacatecas","A",3]
[99467,"Nuevo","Jerez","Zacatecas","A",3]
[99468,"El Huejote","Jerez","Zacatecas","A",3]
[99469,"Los Ríos","Jerez","Zacatecas","A",3]
[99471,"Cieneguitas de Fernandez","Jerez","Zacatecas","A",3]
[99473,"Palmas Altas","Jerez","Zacatecas","A",3]
[99476,"Rio Florido","Jerez","Zacatecas","A",3]
[99476,"El Cargadero","Jerez","Zacatecas","A",3]
[99478,"El Centro","Jerez","Zacatecas","A",3]
[99479,"Jomulquillo","Jerez","Zacatecas","A",3]
[99480,"Susticacan","Susticacán","Zacatecas","A",3]
[99500,"Tarasco","Villanueva","Zacatecas","A",3]
[99500,"El Salto","Villanueva","Zacatecas","A",3]
[99500,"Laguna Del Carretero","Villanueva","Zacatecas","A",3]
[99500,"El Tigre","Villanueva","Zacatecas","A",3]
[99506,"El Jagüey","Villanueva","Zacatecas","A",3]
[99510,"Malpaso","Villanueva","Zacatecas","A",3]
[99520,"Felipe Angeles","Villanueva","Zacatecas","A",3]
[99520,"Gral. Francisco Murguía","Villanueva","Zacatecas","A",3]
[99530,"Atitanac","Villanueva","Zacatecas","A",3]
[99530,"El Vergel","Villanueva","Zacatecas","A",3]
[99530,"La Quemada","Villanueva","Zacatecas","A",3]
[99540,"Villanueva Centro","Villanueva","Zacatecas","A",3]
[99542,"Magisterial I","Villanueva","Zacatecas","A",3]
[99542,"De los Varela","Villanueva","Zacatecas","A",3]
[99542,"Panames Escobedo","Villanueva","Zacatecas","A",3]
[99542,"Beisbolera","Villanueva","Zacatecas","A",3]
[99542,"Gutiérrez Del Águila","Villanueva","Zacatecas","A",3]
[99543,"De Santa Gertrudis","Villanueva","Zacatecas","A",3]
[99544,"Tadeo","Villanueva","Zacatecas","A",3]
[99544,"De los Ramirez","Villanueva","Zacatecas","A",3]
[99544,"De Guadalupe","Villanueva","Zacatecas","A",3]
[99545,"Lindavista","Villanueva","Zacatecas","A",3]
[99545,"Los Geranios","Villanueva","Zacatecas","A",3]
[99545,"Santa Anita","Villanueva","Zacatecas","A",3]
[99545,"Arboledas","Villanueva","Zacatecas","A",3]
[99545,"Del Panteón","Villanueva","Zacatecas","A",3]
[99545,"Sierra Nevada","Villanueva","Zacatecas","A",3]
[99545,"Flores Del Pedregal","Villanueva","Zacatecas","A",3]
[99546,"Magisterial II (centenario)","Villanueva","Zacatecas","A",3]
[99546,"Lomas Verdes","Villanueva","Zacatecas","A",3]
[99546,"Magisterial III","Villanueva","Zacatecas","A",3]
[99546,"Arroyo Del Tigre","Villanueva","Zacatecas","A",3]
[99546,"Lomas Doradas","Villanueva","Zacatecas","A",3]
[99546,"Loma de Tlalpan","Villanueva","Zacatecas","A",3]
[99546,"Rescodillo","Villanueva","Zacatecas","A",3]
[99547,"Nueva","Villanueva","Zacatecas","A",3]
[99547,"Colosio","Villanueva","Zacatecas","A",3]
[99547,"Lomas Del Diezmo","Villanueva","Zacatecas","A",3]
[99550,"La Encarnación","Villanueva","Zacatecas","A",3]
[99552,"Tuxtuac","Villanueva","Zacatecas","A",3]
[99559,"Adolfo Lopez Mateos","Villanueva","Zacatecas","A",3]
[99559,"Gustavo Díaz Ordaz","Villanueva","Zacatecas","A",3]
[99560,"Lindavista","Villanueva","Zacatecas","A",3]
[99560,"Tayahua","Villanueva","Zacatecas","A",3]
[99570,"América","Tepetongo","Zacatecas","A",3]
[99570,"Chihuahua","Tepetongo","Zacatecas","A",3]
[99570,"El Cuidado","Tepetongo","Zacatecas","A",3]
[99570,"Tepetongo","Tepetongo","Zacatecas","A",3]
[99570,"Víboras","Tepetongo","Zacatecas","A",3]
[99570,"El Salitre","Tepetongo","Zacatecas","A",3]
[99580,"Juanchorrey","Tepetongo","Zacatecas","A",3]
[99581,"Buenavista","Tepetongo","Zacatecas","A",3]
[99581,"Aparicios","Tepetongo","Zacatecas","A",3]
[99590,"Gral. Joaquín Amaro","El Plateado de Joaquín Amaro","Zacatecas","A",3]
[99592,"Antonio R Vela","El Plateado de Joaquín Amaro","Zacatecas","A",3]
[99593,"San Antonio de La Calera","El Plateado de Joaquín Amaro","Zacatecas","A",3]
[99600,"Sagrado Corazón","Jalpa","Zacatecas","A",3]
[99600,"Jalpa Centro","Jalpa","Zacatecas","A",3]
[99600,"El Rosario","Jalpa","Zacatecas","A",3]
[99602,"Lindavista","Jalpa","Zacatecas","A",3]
[99603,"Parque La Mezquitera","Jalpa","Zacatecas","A",3]
[99603,"De La Cruz","Jalpa","Zacatecas","A",3]
[99606,"Jacarandas","Jalpa","Zacatecas","A",3]
[99606,"Hidalgo","Jalpa","Zacatecas","A",3]
[99606,"Morelos","Jalpa","Zacatecas","A",3]
[99607,"Caxcán","Jalpa","Zacatecas","A",3]
[99607,"Reforma","Jalpa","Zacatecas","A",3]
[99608,"Lomas Del Valle","Jalpa","Zacatecas","A",3]
[99608,"Fovissste","Jalpa","Zacatecas","A",3]
[99608,"Loma Arroyo Blanco","Jalpa","Zacatecas","A",3]
[99608,"Revolución","Jalpa","Zacatecas","A",3]
[99608,"Sarh","Jalpa","Zacatecas","A",3]
[99609,"Obrera","Jalpa","Zacatecas","A",3]
[99609,"Loma de San Antonio","Jalpa","Zacatecas","A",3]
[99609,"Guerrero","Jalpa","Zacatecas","A",3]
[99620,"Guadalupe Victoria","Jalpa","Zacatecas","A",3]
[99624,"El Rodeo","Jalpa","Zacatecas","A",3]
[99630,"Linda Vista","Tabasco","Zacatecas","A",3]
[99630,"Huiscolco","Tabasco","Zacatecas","A",3]
[99630,"Balconcitos","Tabasco","Zacatecas","A",3]
[99630,"El Jaralillo","Tabasco","Zacatecas","A",3]
[99630,"San Luis de Custique","Tabasco","Zacatecas","A",3]
[99630,"Tabasco","Tabasco","Zacatecas","A",3]
[99630,"Secundaria","Tabasco","Zacatecas","A",3]
[99630,"Barrio San Nicolás","Tabasco","Zacatecas","A",3]
[99630,"Barrio San Jose","Tabasco","Zacatecas","A",3]
[99630,"Cosalimita","Tabasco","Zacatecas","A",3]
[99630,"Tenanguillo","Tabasco","Zacatecas","A",3]
[99630,"Magisterial","Tabasco","Zacatecas","A",3]
[99630,"El Refugio","Tabasco","Zacatecas","A",3]
[99650,"Santiago","Tabasco","Zacatecas","A",3]
[99670,"Huanusco","Huanusco","Zacatecas","A",3]
[99670,"La Luz","Huanusco","Zacatecas","A",3]
[99670,"Lindavista","Huanusco","Zacatecas","A",3]
[99700,"Morones","Tlaltenango de Sánchez Román","Zacatecas","A",3]
[99700,"Hidráulica","Tlaltenango de Sánchez Román","Zacatecas","A",3]
[99700,"Brisas Del Rio","Tlaltenango de Sánchez Román","Zacatecas","A",3]
[99700,"San Pascual","Tlaltenango de Sánchez Román","Zacatecas","A",3]
[99700,"Las Moritas","Tlaltenango de Sánchez Román","Zacatecas","A",3]
[99700,"Los Ramos","Tlaltenango de Sánchez Román","Zacatecas","A",3]
[99700,"Lomas Del Calvario","Tlaltenango de Sánchez Román","Zacatecas","A",3]
[99700,"Las Lomitas","Tlaltenango de Sánchez Román","Zacatecas","A",3]
[99700,"Hacienda Real","Tlaltenango de Sánchez Román","Zacatecas","A",3]
[99700,"Tabachines","Tlaltenango de Sánchez Román","Zacatecas","A",3]
[99700,"Los Guapos","Tlaltenango de Sánchez Román","Zacatecas","A",3]
[99700,"San Antonio","Tlaltenango de Sánchez Román","Zacatecas","A",3]
[99700,"Tlaltenango de Sanchez Román","Tlaltenango de Sánchez Román","Zacatecas","A",3]
[99700,"Buena Vista","Tlaltenango de Sánchez Román","Zacatecas","A",3]
[99700,"Arboledas","Tlaltenango de Sánchez Román","Zacatecas","A",3]
[99700,"Lomas Del Country","Tlaltenango de Sánchez Román","Zacatecas","A",3]
[99700,"Santo Santiago","Tlaltenango de Sánchez Román","Zacatecas","A",3]
[99700,"Valle Verde","Tlaltenango de Sánchez Román","Zacatecas","A",3]
[99700,"Independencia","Tlaltenango de Sánchez Román","Zacatecas","A",3]
[99700,"Las Conchas","Tlaltenango de Sánchez Román","Zacatecas","A",3]
[99700,"Las Goteras","Tlaltenango de Sánchez Román","Zacatecas","A",3]
[99700,"Militar","Tlaltenango de Sánchez Román","Zacatecas","A",3]
[99700,"La Haciendita","Tlaltenango de Sánchez Román","Zacatecas","A",3]
[99704,"La Palma","Tlaltenango de Sánchez Román","Zacatecas","A",3]
[99705,"Salazares","Tlaltenango de Sánchez Román","Zacatecas","A",3]
[99707,"Cicacalco","Tlaltenango de Sánchez Román","Zacatecas","A",3]
[99720,"La Esperanza","Momax","Zacatecas","A",3]
[99720,"Nueva","Momax","Zacatecas","A",3]
[99720,"Momax","Momax","Zacatecas","A",3]
[99730,"Laguna Grande","Atolinga","Zacatecas","A",3]
[99730,"Atolinga","Atolinga","Zacatecas","A",3]
[99730,"El Durazno","Atolinga","Zacatecas","A",3]
[99750,"Tepechitlan","Tepechitlán","Zacatecas","A",3]
[99750,"Ocotlan Cerro Chino","Tepechitlán","Zacatecas","A",3]
[99750,"Magisterial","Tepechitlán","Zacatecas","A",3]
[99750,"La Cumbrita","Tepechitlán","Zacatecas","A",3]
[99750,"El Terrero","Tepechitlán","Zacatecas","A",3]
[99755,"Ojuelos","Tepechitlán","Zacatecas","A",3]
[99760,"Santiago Nexcaltitan","Tepechitlán","Zacatecas","A",3]
[99760,"Nexcaltitan","Tepechitlán","Zacatecas","A",3]
[99770,"San Pedro Ocotlan","Tepechitlán","Zacatecas","A",3]
[99780,"Florencia de Benito Juárez","Benito Juárez","Zacatecas","A",3]
[99781,"Los Campos","Benito Juárez","Zacatecas","A",3]
[99800,"Genaro Borrego","Teúl de González Ortega","Zacatecas","A",3]
[99800,"Los Maestros","Teúl de González Ortega","Zacatecas","A",3]
[99800,"Teul de Gonzalez Ortega","Teúl de González Ortega","Zacatecas","A",3]
[99800,"Vallarta","Teúl de González Ortega","Zacatecas","A",3]
[99800,"El Agave","Teúl de González Ortega","Zacatecas","A",3]
[99800,"La Esperanza","Teúl de González Ortega","Zacatecas","A",3]
[99806,"Alamitos","Teúl de González Ortega","Zacatecas","A",3]
[99810,"Milpillas de Allende","Teúl de González Ortega","Zacatecas","A",3]
[99814,"Huitzila","Teúl de González Ortega","Zacatecas","A",3]
[99820,"Santa Maria de La Paz","Santa María de la Paz","Zacatecas","A",3]
[99823,"La Haciendita","Santa María de la Paz","Zacatecas","A",3]
[99823,"Los Rodriguez","Santa María de la Paz","Zacatecas","A",3]
[99823,"El Laurel","Santa María de la Paz","Zacatecas","A",3]
[99824,"El Zapotito","Santa María de la Paz","Zacatecas","A",3]
[99824,"Hidalgo (el Picacho)","Santa María de la Paz","Zacatecas","A",3]
[99824,"El Pantano","Santa María de la Paz","Zacatecas","A",3]
[99824,"La Mesa Grande","Santa María de la Paz","Zacatecas","A",3]
[99825,"Marines","Santa María de la Paz","Zacatecas","A",3]
[99825,"San Rafael","Santa María de la Paz","Zacatecas","A",3]
[99825,"El Soto","Santa María de la Paz","Zacatecas","A",3]
[99825,"La Laguna","Santa María de la Paz","Zacatecas","A",3]
[99825,"San Vicente","Santa María de la Paz","Zacatecas","A",3]
[99825,"Santa Fe","Santa María de la Paz","Zacatecas","A",3]
[99826,"El Arenal","Santa María de la Paz","Zacatecas","A",3]
[99826,"San Miguel Tepetitlan","Santa María de la Paz","Zacatecas","A",3]
[99826,"San Isidro","Santa María de la Paz","Zacatecas","A",3]
[99826,"El Saucito","Santa María de la Paz","Zacatecas","A",3]
[99826,"El Gato","Santa María de la Paz","Zacatecas","A",3]
[99826,"Mesa El Pueblo","Santa María de la Paz","Zacatecas","A",3]
[99827,"Los Cedros","Santa María de la Paz","Zacatecas","A",3]
[99827,"Hacienda Vieja","Santa María de la Paz","Zacatecas","A",3]
[99827,"El Capulín","Santa María de la Paz","Zacatecas","A",3]
[99827,"Los Horcones","Santa María de la Paz","Zacatecas","A",3]
[99827,"Las Tablas","Santa María de la Paz","Zacatecas","A",3]
[99828,"Los Polvos","Santa María de la Paz","Zacatecas","A",3]
[99828,"Pajaritos","Santa María de la Paz","Zacatecas","A",3]
[99828,"El Guitarrero","Santa María de la Paz","Zacatecas","A",3]
[99828,"Mesa de Trigos","Santa María de la Paz","Zacatecas","A",3]
[99830,"La Ceja","Trinidad García de la Cadena","Zacatecas","A",3]
[99830,"Garcia de La Cadena","Trinidad García de la Cadena","Zacatecas","A",3]
[99830,"Los Horconcillos","Trinidad García de la Cadena","Zacatecas","A",3]
[99860,"Mezquital Del Oro","Mezquital del Oro","Zacatecas","A",3]
[99890,"La Coronilla","Mezquital del Oro","Zacatecas","A",3]
[99900,"Nochistlan Centro","Nochistlán de Mejía","Zacatecas","A",3]
[99902,"Santo Santiago","Nochistlán de Mejía","Zacatecas","A",3]
[99902,"La Gloria","Nochistlán de Mejía","Zacatecas","A",3]
[99904,"Loma Bonita","Nochistlán de Mejía","Zacatecas","A",3]
[99904,"Arboledas","Nochistlán de Mejía","Zacatecas","A",3]
[99905,"Gonzalez Sanchez","Nochistlán de Mejía","Zacatecas","A",3]
[99905,"San Miguel Oriente","Nochistlán de Mejía","Zacatecas","A",3]
[99906,"Santa Cecilia","Nochistlán de Mejía","Zacatecas","A",3]
[99907,"Bugambilias","Nochistlán de Mejía","Zacatecas","A",3]
[99908,"La Quinta","Nochistlán de Mejía","Zacatecas","A",3]
[99908,"La Presa","Nochistlán de Mejía","Zacatecas","A",3]
[99909,"Sutsemop","Nochistlán de Mejía","Zacatecas","A",3]
[99909,"Los Arcos","Nochistlán de Mejía","Zacatecas","A",3]
[99910,"Monte de Yánez","Nochistlán de Mejía","Zacatecas","A",3]
[99913,"Las Delicias","Nochistlán de Mejía","Zacatecas","A",3]
[99913,"Toyahua de Arriba","Nochistlán de Mejía","Zacatecas","A",3]
[99913,"Toyahua de Abajo","Nochistlán de Mejía","Zacatecas","A",3]
[99913,"Las Huertas","Nochistlán de Mejía","Zacatecas","A",3]
[99914,"Daniel Camarena","Nochistlán de Mejía","Zacatecas","A",3]
[99915,"La Villita","Nochistlán de Mejía","Zacatecas","A",3]
[99915,"Las Pilas","Nochistlán de Mejía","Zacatecas","A",3]
[99917,"El Molino","Nochistlán de Mejía","Zacatecas","A",3]
[99917,"Capellania","Nochistlán de Mejía","Zacatecas","A",3]
[99917,"Gabriel Lopez","Nochistlán de Mejía","Zacatecas","A",3]
[99918,"Fátima","Nochistlán de Mejía","Zacatecas","A",3]
[99918,"Casas Grandes","Nochistlán de Mejía","Zacatecas","A",3]
[99918,"Tlachichila","Nochistlán de Mejía","Zacatecas","A",3]
[99919,"La Estancia","Nochistlán de Mejía","Zacatecas","A",3]
[99920,"San Pedro Apulco","Apulco","Zacatecas","A",3]
[99921,"Agua Blanca","Apulco","Zacatecas","A",3]
[99925,"La Pitaya","Apulco","Zacatecas","A",3]
[99930,"Tenayuca","Apulco","Zacatecas","A",3]
[99940,"Apozol","Apozol","Zacatecas","A",3]
[99940,"De Abajo","Apozol","Zacatecas","A",3]
[99949,"Los Llamas","Apozol","Zacatecas","A",3]
[99950,"El Rescoldo","Apozol","Zacatecas","A",3]
[99960,"Juchipila","Juchipila","Zacatecas","A",3]
[99960,"Pueblo Viejo","Juchipila","Zacatecas","A",3]
[99960,"San Sebastián","Juchipila","Zacatecas","A",3]
[99960,"Contitlan","Juchipila","Zacatecas","A",3]
[99960,"La Quinta","Juchipila","Zacatecas","A",3]
[99960,"Cerro La Arena","Juchipila","Zacatecas","A",3]
[99960,"Guadalupe Victoria","Juchipila","Zacatecas","A",3]
[99969,"Mezquitera","Juchipila","Zacatecas","A",3]
[99970,"Remolino","Juchipila","Zacatecas","A",3]
[99974,"El Ranchito","Juchipila","Zacatecas","A",3]
[99979,"Amazochitl","Juchipila","Zacatecas","A",3]
[99980,"Moyahua Centro","Moyahua de Estrada","Zacatecas","A",3]
[99984,"Santa Maria","Moyahua de Estrada","Zacatecas","A",3]
[99984,"Santa Cruz","Moyahua de Estrada","Zacatecas","A",3]
[99987,"Bajío Blanco","Moyahua de Estrada","Zacatecas","A",3]
[99990,"Alameda Juárez","Moyahua de Estrada","Zacatecas","A",3]
[99993,"Cuxpala","Moyahua de Estrada","Zacatecas","A",3]
[99994,"Vicente Guerrero","Moyahua de Estrada","Zacatecas","A",3]
[99998,"Jesús Maria","Moyahua de Estrada","Zacatecas","A",3]
[99998,"Palmarejo","Moyahua de Estrada","Zacatecas","A",3]
[99998,"San Jose de Palmarejo","Moyahua de Estrada","Zacatecas","A",3]

{"sheet":"Actividades","index":5,"n_rows":95,"n_cols":7,"rows_kept":95,"cut":false,"hidden":true,"merged":[[1,1,1,4],[2,1,2,4]]}
[]
[null,"RESPONSABILIDAD CIVIL CONTRATISTAS "]
[null,"CATALOGO DE RIESGOS SENCILLOS, MEDIANOS Y GRAVES"]
[]
[null,"Riesgo Sencillo:  Aceptación Automática"]
[null,"Riesgo Mediano: Aceptación Automática"]
[null,"Riesgo Grave: Fuera de políticas"]
[]
[null,"Codigo",null,"ACTIVIDAD","Tipo de Riesgo"]
[null,1,"Construcción de:","Adaptación y Mejoras (Se incluyen cercas, bardas, drenajes e instalaciones sanitarias)","Sencillo"]
[null,8,"Construcción de:","Edificación de oficinas, casetas, casas-habitación y escuelas de adiestramiento","Sencillo"]
[null,9,"Construcción de:","Estacionamientos en terminales de Servicio","Sencillo"]
[null,12,"Construcción de:","Obras civiles y Electromecánicas","Mediano"]
[null,13,"Construcción de:","Pavimentación y/o asfaltado (Dentro del predio)","Sencillo",null,{"$f":"IF('[2]Hoja de Trabajo'!$B$24=B13,E13,IF('[2]Hoja de Trabajo'!$B$24=B14,E14,IF('[2]Hoja de Trabajo'!$B$24=B15,E15,IF('[2]Hoja de Trabajo'!$B$24=B16,E16,G18))))","v":{"$error":"#REF!"}}]
[null,15,"Construcción de:","Tanques y Diques","Mediano"]
[null,17,"Desmantelamiento, montaje, rehabilitación y Mantenimiento de:","Maquinaria y equipos en general","Mediano"]
[null,19,"Desmantelamiento, montaje, rehabilitación y Mantenimiento de:","Tanques","Mediano"]
[null,31,"Instalación y mantenimiento de:","Equipo de Cómputo","Sencillo",null,{"$f":"IF('[2]Hoja de Trabajo'!$B$24=B17,E17,IF('[2]Hoja de Trabajo'!$B$24=B18,E18,IF('[2]Hoja de Trabajo'!$B$24=B19,E19,IF('[2]Hoja de Trabajo'!$B$24=#REF!,#REF!,G22))))","v":{"$error":"#REF!"}}]
[null,32,"Instalación y mantenimiento de:","Equipos y sistemas de comunicación, eléctricos y electrónicos","Sencillo"]
[null,35,"Instalación y mantenimiento de:","Inmuebles, incluyendo aire acondicionado","Sencillo"]
[null,36,"Instalación y mantenimiento de:","Protecciones contra incendio","Sencillo"]
[null,43,"Mantenimiento de:","Bienes Muebles (Se incluyen bardas y cercas)","Sencillo",null,{"$f":"IF('[2]Hoja de Trabajo'!$B$24=#REF!,#REF!,IF('[2]Hoja de Trabajo'!$B$24=B20,E20,IF('[2]Hoja de Trabajo'!$B$24=#REF!,#REF!,IF('[2]Hoja de Trabajo'!$B$24=B21,E21,G25))))","v":{"$error":"#REF!"}}]
[null,65,"Servicios","Alimentación y Hotelería","Sencillo"]
[null,66,"Servicios","Consultorías, Asesorías e Ingeniería  ","Sencillo"]
[null,68,"Servicios","Jardinería y Fumigación","Sencillo",null,{"$f":"IF('[2]Hoja de Trabajo'!$B$24=#REF!,#REF!,IF('[2]Hoja de Trabajo'!$B$24=B22,E22,IF('[2]Hoja de Trabajo'!$B$24=B23,E23,IF('[2]Hoja de Trabajo'!$B$24=B24,E24,G29))))","v":{"$error":"#REF!"}}]
[null,74,"Servicios","Vigilancia y Seguridad","Sencillo"]
[]
[]
[null,null,"Construcción","Inmuebles, Casa Habitacion, Escuelas,  Estacionamientos","Sencillo",null,{"$f":"IF('[2]Hoja de Trabajo'!$B$24=#REF!,#REF!,IF('[2]Hoja de Trabajo'!$B$24=B25,E25,IF('[2]Hoja de Trabajo'!$B$24=B26,E26,IF('[2]Hoja de Trabajo'!$B$24=#REF!,#REF!,#REF!))))","v":{"$error":"#REF!"}}]
[null,null,"Servicios","Consultorias, Seguridad, Vigilancia, Hoteleria, Jardineria, Fumigacion","Sencillo"]
[null,null,"Montaje / Desmontaje","Maquinaria y equipos en general, Tanques","Mediano",null,{"$f":"IF('[2]Hoja de Trabajo'!$B$24=#REF!,#REF!,IF('[2]Hoja de Trabajo'!$B$24=#REF!,#REF!,IF('[2]Hoja de Trabajo'!$B$24=#REF!,#REF!,IF('[2]Hoja de Trabajo'!$B$24=#REF!,#REF!,#REF!))))","v":{"$error":"#REF!"}}]
[null,null,"Mantenimiento","Inmuebles, Sistemas de Comunicación, Electricos, Electronicos, de Computo","Sencillo"]
[null,null,null,null,{"$f":"+C33","v":0}]
[null,null,"Construcción","Inmuebles, Casa Habitacion, Escuelas,  Estacionamientos","Mediano"]
[null,null,"Servicios","Consultorias, Seguridad, Vigilancia, Hoteleria, Jardineria, Fumigacion","Sencillo"]
[null,null,"Montaje / Desmontaje","Maquinaria y equipos en general, Tanques","Mediano"]
[null,null,"Mantenimiento","Inmuebles, Sistemas de Comunicación, Electricos, Electronicos, de Computo","Sencillo",null,{"$f":"IF('[2]Hoja de Trabajo'!$B$24=B33,E33,IF('[2]Hoja de Trabajo'!$B$24=B34,E34,IF('[2]Hoja de Trabajo'!$B$24=B35,E35,IF('[2]Hoja de Trabajo'!$B$24=B36,E36,G41))))","v":{"$error":"#REF!"}}]
[]
[]
[null,null,"OFICINA COMERCIAL"]
[null,null,"MÉRIDA",null,null,null,{"$f":"IF('[2]Hoja de Trabajo'!$B$24=B37,E37,IF('[2]Hoja de Trabajo'!$B$24=#REF!,#REF!,IF('[2]Hoja de Trabajo'!$B$24=B38,E38,IF('[2]Hoja de Trabajo'!$B$24=B39,E39,G44))))","v":{"$error":"#REF!"}}]
[null,null,"CANCÚN"]
[null,null,"CDMX"]
[null,null,"MONTERREY",null,null,null,{"$f":"IF('[2]Hoja de Trabajo'!$B$24=B40,E40,IF('[2]Hoja de Trabajo'!$B$24=B41,E41,IF('[2]Hoja de Trabajo'!$B$24=B42,E42,IF('[2]Hoja de Trabajo'!$B$24=B43,E43,G48))))","v":{"$error":"#REF!"}}]
[null,null,"GUADALAJARA"]
[null,null,"LEÓN"]
[null,null,"PUEBLA"]
[null,null,"QUERETARO",null,null,null,{"$f":"IF('[2]Hoja de Trabajo'!$B$24=B44,E44,IF('[2]Hoja de Trabajo'!$B$24=B45,E45,IF('[2]Hoja de Trabajo'!$B$24=B46,E46,IF('[2]Hoja de Trabajo'!$B$24=B47,E47,G52))))","v":{"$error":"#REF!"}}]
[null,null,"CDMX"]
[null,null,"SAN LUIS POTOSÍ"]
[]
[null,null,null,null,null,null,{"$f":"IF('[2]Hoja de Trabajo'!$B$24=B48,E48,IF('[2]Hoja de Trabajo'!$B$24=B49,E49,IF('[2]Hoja de Trabajo'!$B$24=B50,E50,IF('[2]Hoja de Trabajo'!$B$24=B51,E51,G56))))","v":{"$error":"#REF!"}}]
[]
[]
[]
[null,null,null,null,null,null,{"$f":"IF('[2]Hoja de Trabajo'!$B$24=B52,E52,IF('[2]Hoja de Trabajo'!$B$24=#REF!,#REF!,IF('[2]Hoja de Trabajo'!$B$24=B53,E53,IF('[2]Hoja de Trabajo'!$B$24=B54,E54,G59))))","v":{"$error":"#REF!"}}]
[]
[]
[null,null,null,null,null,null,{"$f":"IF('[2]Hoja de Trabajo'!$B$24=#REF!,#REF!,IF('[2]Hoja de Trabajo'!$B$24=B55,E55,IF('[2]Hoja de Trabajo'!$B$24=B56,E56,IF('[2]Hoja de Trabajo'!$B$24=B57,E57,G62))))","v":{"$error":"#REF!"}}]
[]
[]
[null,null,null,null,null,null,{"$f":"IF('[2]Hoja de Trabajo'!$B$24=B58,E58,IF('[2]Hoja de Trabajo'!$B$24=B59,E59,IF('[2]Hoja de Trabajo'!$B$24=B60,E60,IF('[2]Hoja de Trabajo'!$B$24=B61,E61,G66))))","v":{"$error":"#REF!"}}]
[]
[]
[]
[null,null,null,null,null,null,{"$f":"IF('[2]Hoja de Trabajo'!$B$24=B62,E62,IF('[2]Hoja de Trabajo'!$B$24=B63,E63,IF('[2]Hoja de Trabajo'!$B$24=B64,E64,IF('[2]Hoja de Trabajo'!$B$24=#REF!,#REF!,#REF!))))","v":{"$error":"#REF!"}}]
[]
[]
[]
[]
[]
[]
[null,null,null,null,null,null,{"$f":"IF('[2]Hoja de Trabajo'!$B$24=B69,E69,IF('[2]Hoja de Trabajo'!$B$24=B70,E70,IF('[2]Hoja de Trabajo'!$B$24=B71,E71,IF('[2]Hoja de Trabajo'!$B$24=B72,E72,G77))))","v":{"$error":"#REF!"}}]
[]
[]
[]
[null,null,null,null,null,null,{"$f":"IF('[2]Hoja de Trabajo'!$B$24=B73,E73,IF('[2]Hoja de Trabajo'!$B$24=B74,E74,IF('[2]Hoja de Trabajo'!$B$24=#REF!,#REF!,IF('[2]Hoja de Trabajo'!$B$24=B75,E75,G80))))","v":{"$error":"#REF!"}}]
[]
[]
[null,null,null,null,null,null,{"$f":"IF('[2]Hoja de Trabajo'!$B$24=B76,E76,IF('[2]Hoja de Trabajo'!$B$24=#REF!,#REF!,IF('[2]Hoja de Trabajo'!$B$24=B77,E77,IF('[2]Hoja de Trabajo'!$B$24=B78,E78,G83))))","v":{"$error":"#REF!"}}]
[]
[]
[null,null,null,null,null,null,{"$f":"IF('[2]Hoja de Trabajo'!$B$24=B79,E79,IF('[2]Hoja de Trabajo'!$B$24=B80,E80,IF('[2]Hoja de Trabajo'!$B$24=B81,E81,IF('[2]Hoja de Trabajo'!$B$24=B82,E82,G87))))","v":0}]
[]
[]
[]
[null,null,null,null,null,null,{"$f":"IF('[2]Hoja de Trabajo'!$B$24=B83,E83,IF('[2]Hoja de Trabajo'!$B$24=B84,E84,IF('[2]Hoja de Trabajo'!$B$24=B85,E85,IF('[2]Hoja de Trabajo'!$B$24=B86,E86,G91))))","v":0}]
[]
[]
[]
[null,null,null,null,null,null,{"$f":"IF('[2]Hoja de Trabajo'!$B$24=B87,E87,IF('[2]Hoja de Trabajo'!$B$24=B88,E88,IF('[2]Hoja de Trabajo'!$B$24=B89,E89,IF('[2]Hoja de Trabajo'!$B$24=B90,E90,G95))))","v":0}]
[]
[]
[]
[null,null,null,null,null,null,{"$f":"IF('[2]Hoja de Trabajo'!$B$24=B91,E91,IF('[2]Hoja de Trabajo'!$B$24=B92,E92,IF('[2]Hoja de Trabajo'!$B$24=B93,E93,IF('[2]Hoja de Trabajo'!$B$24=B94,E94,G99))))","v":0}]

{"sheet":"Cuotas","index":6,"n_rows":19,"n_cols":8,"rows_kept":19,"cut":false,"hidden":true,"merged":[[0,1,0,4]]}
[null,"Cuotas de riesgo al millar",null,null,null,null,"Gastos de adquisición",0.3]
[null,"Cobertura","Sencillo","Mediano","Grave",null,"Gastos de operación",0.15]
[null,"Cobertura básica",0.45798399224380409,0.71346974082328596,0.64100000000000001,null,"Utilidad",0.05]
[0.1,"Personal bajo relación de trabajo",{"$f":"$C$3*A4","v":4.5798399224380414E-2},{"$f":"$D$3*A4","v":7.1346974082328596E-2},{"$f":"$E$3*A4","v":6.4100000000000004E-2},null,"Total",{"$f":"SUM(H1:H3)","v":0.49999999999999994}]
[0.1,"Instalaciones subterráneas",{"$f":"$C$3*A5","v":4.5798399224380414E-2},{"$f":"$D$3*A5","v":7.1346974082328596E-2},{"$f":"$E$3*A5","v":6.4100000000000004E-2}]
[0.1,"Trabajos de soldadura ",4.5798399224380414E-2,7.1346974082328596E-2,6.4100000000000004E-2]
[0.25,"Carga y descarga",0.11449599806095102,0.17836743520582149,0.16025]
[0.1,"Demolición",4.5798399224380414E-2,7.1346974082328596E-2,6.4100000000000004E-2]
[0.5,"Explosivos",0.22899199612190205,0.35673487041164298,0.32050000000000001]
[0.1,"Máquinas de trabajo",4.5798399224380414E-2,7.1346974082328596E-2,6.4100000000000004E-2]
[0.1,"Apuntalamiento",4.5798399224380414E-2,7.1346974082328596E-2,6.4100000000000004E-2]
[0.1,"Sostén a suelos y subsuelos vecinos",4.5798399224380414E-2,7.1346974082328596E-2,6.4100000000000004E-2]
[0.05,"RC arrendatario",2.2899199612190207E-2,3.5673487041164298E-2,3.2050000000000002E-2]
[0.3,"RC cruzada por riesgos vecinales",0.13739519767314123,0.21404092224698579,0.1923]
[0.05,"RC asumida",2.2899199612190207E-2,3.5673487041164298E-2,3.2050000000000002E-2]
[0.1,"Otras obras especiales",4.5798399224380414E-2,7.1346974082328596E-2,6.4100000000000004E-2]
[0.5,"RC contaminación",0.22899199612190205,0.35673487041164298,0.32050000000000001]
[0.1,"RC por daños ocasionados a bienes propiedad de terceros",4.5798399224380414E-2,7.1346974082328596E-2,6.4100000000000004E-2]
[0.05,"RC contratistas independientes",2.2899199612190207E-2,3.5673487041164298E-2,3.2050000000000002E-2]

{"sheet":"Descuentos y recargos","index":7,"n_rows":45,"n_cols":15,"rows_kept":45,"cut":false,"hidden":true,"merged":[[3,12,3,13],[0,4,0,13],[3,4,3,5],[2,4,2,10],[29,0,29,1],[3,6,3,7],[30,1,31,1],[0,0,0,2],[2,0,2,2],[3,2,4,2],[15,0,15,1],[17,0,17,1],[17,2,18,2]]}
["Descuentos",null,null,null,"Recargos"]
[]
["Rango de descuento por valor del contrato (M.N)",null,null,null,"Tipo de riesgo"]
["Límite inferior","Límite superior","descuento aplicable",null,"Suma Asegurada N",null,"Suma Asegurada D",null,"Sencillo","Mediano","Grave",null,"Recargo por pago fraccionado"]
["(desde)","(hasta)",null,null,"desde","hasta","desde","hasta",null,null,null,null,"Periodicidad","Nacional"]
[0,2500000,1,null,1,500000,{"$f":"E6/'Hoja de trabajo'!$P$4","v":5.037783375314861E-2},{"$f":"F6/'Hoja de trabajo'!$P$4","v":25188.916876574305},0.99674309204115119,1.0264447029356398,1.1384166935143918,null,"Anual",0]
[2500001,10000000,0.8,null,{"$f":"F6+1","v":500001},1000000,{"$f":"E7/'Hoja de trabajo'!$P$4","v":25188.96725440806},{"$f":"F7/'Hoja de trabajo'!$P$4","v":50377.83375314861},1.0045861840823023,1.02978940587128,1.1390533870287833,null,"Semestral",0.04,0.03]
[10000001,21000000,0.75,null,{"$f":"F7+1","v":1000001},1500000,{"$f":"E8/'Hoja de trabajo'!$P$4","v":50377.884130982362},{"$f":"F8/'Hoja de trabajo'!$P$4","v":75566.750629722912},1.0124292761234535,1.0331341088069199,1.1396900805431751,null,"Trimestral",4.7500000000000001E-2,0.04]
[21000001,35000000,0.67,null,1500001,2000000,{"$f":"E9/'Hoja de trabajo'!$P$4","v":75566.801007556671},{"$f":"F9/'Hoja de trabajo'!$P$4","v":100755.66750629722},1.0202723681646046,1.0364788117425601,1.1403267740575669,null,"Bimestral",5.5E-2,5.5E-2]
[35000001,56000000,0.6,null,2000001,2500000,{"$f":"E10/'Hoja de trabajo'!$P$4","v":100755.71788413098},{"$f":"F10/'Hoja de trabajo'!$P$4","v":125944.58438287153},1.0280305135669332,1.0398235146782,1.1409634675719587,null,"Mensual",6.5000000000000002E-2,0.05]
[56000001,70000000,0.55000000000000004,null,2500001,3000000,{"$f":"E11/'Hoja de trabajo'!$P$4","v":125944.63476070527},{"$f":"F11/'Hoja de trabajo'!$P$4","v":151133.50125944582},1.0357811425762482,1.0431682176138399,1.1416001610863504]
[70000001,125000000,0.5,null,3000001,3500000,{"$f":"E12/'Hoja de trabajo'!$P$4","v":151133.5516372796},{"$f":"F12/'Hoja de trabajo'!$P$4","v":176322.41813602013},1.0430224652980935,1.046490227187421,1.142236854600742]
[125000001,300000000,0.45,null,3500001,4000000,{"$f":"E13/'Hoja de trabajo'!$P$4","v":176322.46851385391},{"$f":"F13/'Hoja de trabajo'!$P$4","v":201511.33501259444},1.0489287794907514,1.0498018949606645,1.1428735481151338]
[300000001,600000000,0.4,null,4000001,4500000,{"$f":"E14/'Hoja de trabajo'!$P$4","v":201511.38539042819},{"$f":"F14/'Hoja de trabajo'!$P$4","v":226700.25188916875},1.0547442382310357,1.0530613635299193,1.1435102416295255]
[600000001,1500000000,0.35,null,4500001,5000000,{"$f":"E15/'Hoja de trabajo'!$P$4","v":226700.30226700249},{"$f":"F15/'Hoja de trabajo'!$P$4","v":251889.16876574306},1.0596805287723512,1.0561834010159934,1.1441469351439173]
["Más de 1,500,000,001 ",null,0.25,null,5000001,7500000,{"$f":"E16/'Hoja de trabajo'!$P$4","v":251889.2191435768},{"$f":"F16/'Hoja de trabajo'!$P$4","v":377833.7531486146},1.0706356303698108,1.0685409951595146,1.1473304027158759]
[null,null,null,null,7500001,10000000,{"$f":"E17/'Hoja de trabajo'!$P$4","v":377833.80352644832},{"$f":"F17/'Hoja de trabajo'!$P$4","v":503778.33753148612},1.074752037993397,1.0774096867377563,1.1504491161137884]
["Número de máquinas",null,"descuento aplicable",null,10000001,15000000,{"$f":"E18/'Hoja de trabajo'!$P$4","v":503778.38790931989},{"$f":"F18/'Hoja de trabajo'!$P$4","v":755667.50629722921},1.082555037993397,1.0804596867377563,1.2081870670287835,null,null,0,1]
["Desde","Hasta",null,null,15000001,20000000,{"$f":"E19/'Hoja de trabajo'!$P$4","v":755667.55667506286},{"$f":"F19/'Hoja de trabajo'!$P$4","v":1007556.6750629722},1.090358037993397,1.0835096867377563,1.2144719470287835,null,null,24,1]
[null,0,1,null,20000001,25000000,{"$f":"E20/'Hoja de trabajo'!$P$4","v":1007556.725440806},{"$f":"F20/'Hoja de trabajo'!$P$4","v":1259445.8438287154},1.098161037993397,1.0865596867377563,1.2207568270287834,null,25,49,0.8]
[null,25,0.8,null,25000001,30000000,{"$f":"E21/'Hoja de trabajo'!$P$4","v":1259445.894206549},{"$f":"F21/'Hoja de trabajo'!$P$4","v":1511335.0125944584},1.105964037993397,1.0896096867377563,1.2270417070287836,null,50,74,0.75]
[null,50,0.75,null,30000001,35000000,{"$f":"E22/'Hoja de trabajo'!$P$4","v":1511335.0629722921},{"$f":"F22/'Hoja de trabajo'!$P$4","v":1763224.1813602014},1.113767037993397,1.0926596867377563,1.2333265870287835,null,75,99,0.7]
[null,75,0.7,null,35000001,40000000,{"$f":"E23/'Hoja de trabajo'!$P$4","v":1763224.2317380351},{"$f":"F23/'Hoja de trabajo'!$P$4","v":2015113.3501259445},1.1215700379933971,1.0957096867377563,1.2396114670287834,null,100,149,0.65]
[null,100,0.65,null,40000001,45000000,{"$f":"E24/'Hoja de trabajo'!$P$4","v":2015113.4005037781},{"$f":"F24/'Hoja de trabajo'!$P$4","v":2267002.5188916875},1.1293730379933971,1.0987596867377563,1.2458963470287834,null,150,199,0.6]
[null,150,0.6,null,45000001,50000000,{"$f":"E25/'Hoja de trabajo'!$P$4","v":2267002.5692695212},{"$f":"F25/'Hoja de trabajo'!$P$4","v":2518891.6876574308},1.1371760379933968,1.1018096867377563,1.2521812270287835,null,200,499,0.55000000000000004]
[null,200,0.55000000000000004,null,50000001,75000000,{"$f":"E26/'Hoja de trabajo'!$P$4","v":2518891.7380352644},{"$f":"F26/'Hoja de trabajo'!$P$4","v":3778337.5314861457},1.1449790379933968,1.1048596867377563,1.2584661070287835,null,500,749,0.5]
[null,500,0.5,null,75000001,100000000,{"$f":"E27/'Hoja de trabajo'!$P$4","v":3778337.5818639798},{"$f":"F27/'Hoja de trabajo'!$P$4","v":5037783.3753148615},1.1527820379933968,1.1079096867377562,1.2647509870287836,null,"Más de 750 ",750,0.4]
[null,750,0.4,null,100000001,150000000,{"$f":"E28/'Hoja de trabajo'!$P$4","v":5037783.4256926952},{"$f":"F28/'Hoja de trabajo'!$P$4","v":7556675.0629722914},1.1605850379933969,1.1109596867377562,1.2710358670287836]
[null,null,null,null,150000001,200000000,{"$f":"E29/'Hoja de trabajo'!$P$4","v":7556675.113350125},{"$f":"F29/'Hoja de trabajo'!$P$4","v":10075566.750629723},1.1683880379933969,1.1140096867377562,1.2773207470287835]
["Tarifa a corto plazo",null,null,null,200000001,250000000,{"$f":"E30/'Hoja de trabajo'!$P$4","v":10075566.801007556},{"$f":"F30/'Hoja de trabajo'!$P$4","v":12594458.438287152},1.1761910379933969,1.1170596867377562,1.2836056270287834]
["Vigencia solicitada","Porcentaje aplicable",null,null,250000001,300000000,{"$f":"E31/'Hoja de trabajo'!$P$4","v":12594458.488664987},{"$f":"F31/'Hoja de trabajo'!$P$4","v":15113350.125944583},1.1839940379933969,1.1201096867377562,1.2898905070287834]
["Hasta",null,null,null,300000001,350000000,{"$f":"E32/'Hoja de trabajo'!$P$4","v":15113350.176322417},{"$f":"F32/'Hoja de trabajo'!$P$4","v":17632241.813602015},1.1917970379933969,1.1231596867377562,1.2961753870287835]
[0,0.2,null,null,350000001,400000000,{"$f":"E33/'Hoja de trabajo'!$P$4","v":17632241.863979846},{"$f":"F33/'Hoja de trabajo'!$P$4","v":20151133.501259446},1.1996000379933969,1.1262096867377562,1.3024602670287835]
[1,0.2,null,null,400000001,450000000,{"$f":"E34/'Hoja de trabajo'!$P$4","v":20151133.551637277},{"$f":"F34/'Hoja de trabajo'!$P$4","v":22670025.188916873},1.2074030379933969,1.1292596867377562,1.3087451470287834]
[2,0.3,null,null,450000001,500000000,{"$f":"E35/'Hoja de trabajo'!$P$4","v":22670025.239294708},{"$f":"F35/'Hoja de trabajo'!$P$4","v":25188916.876574304},1.2152060379933969,1.1323096867377562,1.3150300270287834]
[3,0.4,null,null,500000001,750000000,{"$f":"E36/'Hoja de trabajo'!$P$4","v":25188916.926952139},{"$f":"F36/'Hoja de trabajo'!$P$4","v":37783375.314861462},1.2230090379933969,1.1353596867377562,1.3213149070287835]
[4,0.5,null,null,750000001,1000000000,{"$f":"E37/'Hoja de trabajo'!$P$4","v":37783375.365239292},{"$f":"F37/'Hoja de trabajo'!$P$4","v":50377833.753148608},1.2308120379933967,1.1384096867377562,1.3275997870287835]
[5,0.6]
[6,0.7]
[7,0.75]
[8,0.8]
[9,0.85]
[10,0.9]
[11,0.95]
[12,1]

{"sheet":"Derechos de póliza","index":8,"n_rows":13,"n_cols":6,"rows_kept":13,"cut":false,"hidden":true,"merged":[[0,0,0,5],[2,0,2,1],[2,2,3,2],[1,0,1,2],[1,3,1,5],[2,3,2,4],[2,5,3,5]]}
["Derechos de póliza"]
["Moneda Nacional",null,null,"Dólares"]
["Prima anual",null,"Importe","Prima anual",null,"Importe"]
["Desde","Hasta",null,"Desde","Hasta"]
[1,500,75,{"$f":"A5/'Hoja de trabajo'!#REF!","v":{"$error":"#REF!"}},{"$f":"B5/'Hoja de trabajo'!#REF!","v":{"$error":"#REF!"}},{"$f":"C5/'Hoja de trabajo'!#REF!","v":{"$error":"#REF!"}}]
[501,2500,150,{"$f":"A6/'Hoja de trabajo'!#REF!","v":{"$error":"#REF!"}},{"$f":"B6/'Hoja de trabajo'!#REF!","v":{"$error":"#REF!"}},{"$f":"C6/'Hoja de trabajo'!#REF!","v":{"$error":"#REF!"}}]
[2501,10000,200,{"$f":"A7/'Hoja de trabajo'!#REF!","v":{"$error":"#REF!"}},{"$f":"B7/'Hoja de trabajo'!#REF!","v":{"$error":"#REF!"}},{"$f":"C7/'Hoja de trabajo'!#REF!","v":{"$error":"#REF!"}}]
[10001,20000,300,{"$f":"A8/'Hoja de trabajo'!#REF!","v":{"$error":"#REF!"}},{"$f":"B8/'Hoja de trabajo'!#REF!","v":{"$error":"#REF!"}},{"$f":"C8/'Hoja de trabajo'!#REF!","v":{"$error":"#REF!"}}]
[20001,30000,400,{"$f":"A9/'Hoja de trabajo'!#REF!","v":{"$error":"#REF!"}},{"$f":"B9/'Hoja de trabajo'!#REF!","v":{"$error":"#REF!"}},{"$f":"C9/'Hoja de trabajo'!#REF!","v":{"$error":"#REF!"}}]
[30001,50000,500,{"$f":"A10/'Hoja de trabajo'!#REF!","v":{"$error":"#REF!"}},{"$f":"B10/'Hoja de trabajo'!#REF!","v":{"$error":"#REF!"}},{"$f":"C10/'Hoja de trabajo'!#REF!","v":{"$error":"#REF!"}}]
[50001,75000,600,{"$f":"A11/'Hoja de trabajo'!#REF!","v":{"$error":"#REF!"}},{"$f":"B11/'Hoja de trabajo'!#REF!","v":{"$error":"#REF!"}},{"$f":"C11/'Hoja de trabajo'!#REF!","v":{"$error":"#REF!"}}]
[75001,100000,750,{"$f":"A12/'Hoja de trabajo'!#REF!","v":{"$error":"#REF!"}},{"$f":"B12/'Hoja de trabajo'!#REF!","v":{"$error":"#REF!"}},{"$f":"C12/'Hoja de trabajo'!#REF!","v":{"$error":"#REF!"}}]
[100001,999999999,1000,{"$f":"A13/'Hoja de trabajo'!#REF!","v":{"$error":"#REF!"}},{"$f":"B13/'Hoja de trabajo'!#REF!","v":{"$error":"#REF!"}},{"$f":"C13/'Hoja de trabajo'!#REF!","v":{"$error":"#REF!"}}]